{"text_format":"1","workbook":"xlsx","n_sheets":7,"sheets":["Defaults","Clicktest","TestData","TestSet","IsmaelData","DT_tests","Query"],"not_rendered":{"charts":0,"images":1,"macros":1,"external_links":0,"defined_names":219,"comments":1,"pivot_tables":0},"unopened":[],"bounds":{"document_bytes":16777216,"sheet_cells":100000,"rows_first":2000,"rows_last":500,"rows_between":2000,"halvings":0,"cell_chars":16384,"cell_head_chars":4096},"cells_cut":1,"cells_raw":0,"read":"whole","date_system":"1900"}

{"sheet":"Defaults","index":0,"n_rows":30,"n_cols":16,"rows_kept":30,"cut":false,"hidden":false,"merged":[]}
[]
[null,"Blackbelt Website","Z",null,"Update Shortcuts","M"]
["Ribbon Tool","Read Write-G","Geo Code","Click Plot","Heat Mapper","Image Extract","Confidence Ellipses","Ternary Plot","Relative Impact","System Ring","Multi Graph","Simple Cluster","Solver Shadow","Scenarios DT","Confidence Bands","Model Estimation"]
["Macrostem","ReadWriteG","GeoCode","ClickPlot","HeatMapper","ImageExtract","ConfEllipses","TernaryPlot","RelImpact","SystemRing","MultiGraph","SimpleCluster","SolverShadow","SimsDT","ConfBands","LogReg"]
["ShowForm Shortcuts","R",null,"P","H","L","C","Y","F","S",null,"K","W","O","G","B"]
["Rerun Shortcuts","E",null,null,"G",null,"X","T","D","A",null,null,"Q"]
["Parameter","https://docs.google.com/spreadsheets/d/1Esiqu_eT9gfnV149dEPsbz29wbwRaLxmOxKRZTFgNxM",null,0,"Geography-National","C:\\Users\\Elliot\\Desktop\\",16763904,"TestData!A21:E28","TestData!A3:J16","TestData!$L$3:$R$9",null,"TestData!B47:F73","TestData!I33"]
["Parameter","https://docs.google.com/forms/d/e/1FAIpQLSdOCBjtZlcRdatlK-MwKoSmdUrbJ9nF3LdhWlObLEZW6czKoA/formResponse",null,0,"Brazil","NewLibrary.html",8388736,false,true,true,null,2,"TestData!F33:F41"]
["Parameter",false,null,10,1.11111111111111E+26,null,13382655,false,false,false,null,5,false]
["Parameter",false,null,10,1,null,16751103,true,false,false,null,null,false]
["Parameter","TestData!J52",null,6737151,100,null,52224,7829367,null,null,null,null,false]
["Parameter","TestData!L50:N50",null,0,16777062,null,8421504,204,null,null,null,null,"TestData!F42"]
["Parameter",null,null,0,0,null,8421504,16764057,null,null,null,null,"TestData!E34:E41"]
["Parameter",485960032,null,308.5,false,null,8421504,16777215]
["Parameter",1728318723,null,467,false,null,52224,false]
["Parameter",1486038929,null,true,false,null,"TestData!K21:R22",true]
["Parameter",null,null,11.914,"ShapeVault",null,"xvalue",false]
["Parameter",null,null,-1,null,null,"yvalue"]
["Parameter",null,null,296.12900000000002,null,null,"test"]
["Parameter",null,null,460,null,null,true]
["Parameter",null,null,true,null,null,false]
["Parameter",null,null,2162853,null,null,false]
["Parameter",null,null,true,null,null,false]
["Parameter",null,null,204,null,null,false]
["Parameter",null,null,4,null,null,"a1"]
["Parameter",null,null,false,null,null,true]
["Parameter",null,null,894]
["Parameter",null,null,43]
["Parameter",null,null,49]
["Parameter",null,null,578]

{"sheet":"Clicktest","index":1,"n_rows":0,"n_cols":0,"rows_kept":0,"cut":false,"hidden":true,"merged":[]}

{"sheet":"TestData","index":2,"n_rows":160,"n_cols":12303,"rows_kept":7,"cut":true,"hidden":false,"merged":[[0,0,0,11],[41,3,42,3],[41,5,42,5],[42,8,42,12],[2,1,2,9],[3,5,3,9],[41,2,42,2],[31,2,31,5],[31,8,31,12]],"bounds":{"rows_first":3,"rows_last":1,"rows_between":3,"halvings":9}}
[null,null,null,null,null,null,null,null,null,null,null,null,null,null,null,null,null,null,null,null,null,null,null,null,null,null,null,null,null,null,null,null,null,null,null,null,null,null,null,null,null,null,null,null,null,null,null,null,null,null,null,null,null,null,null,null,null,null,null,null,null,null,null,null,null,null,null,null,null,null,null,null,null,null,null,null,null,null,null,null,null,null,null,null,null,null,null,null,null,null,null,null,null,null,null,null,null,null,null,null,null,null,null,null,null,null,null,null,null,null,null,null,null,null,null,null,null,null,null,null,null,null,null,null,null,null,null,null,null,null,null,null,null,null,null,null,null,null,null,null,null,null,null,null,null,null,null,null,null,null,null,null,null,null,null,null,null,null,null,null,null,null,null,null,null,null,null,null,null,null,null,null,null,null,null,null,null,null,null,null,null,null,null,null,null,null,null,null,null,null,null,null,null,null,null,null,null,null,null,null,null,null,null,null,null,null,null,null,null,null,null,null,null,null,null,null,null,null,null,null,null,null,null,null,null,null,null,null,null,null,null,null,null,null,null,null,null,null,null,null,null,null,null,null,null,null,null,null,null,null,null,null,null,null,null,null,null,null,null,null,null,null,null,null,null,null,null,null,null,null,null,null,null,null,null,null,null,null,null,null,null,null,null,null,null,null,null,null,null,null,null,null,null,null,null,null,null,null,null,null,null,null,null,null,null,null,null,null,null,null,null,null,null,null,null,null,null,null,null,null,null,null,null,null,null,null,null,null,null,null,null,null,null,null,null,null,null,null,null,null,null,null,null,null,null,null,null,null,null,null,null,null,null,null,null,null,null,null,null,null,null,null,null,null,null,null,null,null,null,null,null,null,null,null,null,null,null,null,null,null,null,null,null,null,null,null,null,null,null,null,null,null,null,null,null,null,null,null,null,null,null,null,null,null,null,null,null,null,null,null,null,null,null,null,null,null,null,null,null,null,null,null,null,null,null,null,null,null,null,null,null,null,null,null,null,null,null,null,null,null,null,null,null,null,null,null,null,null,null,null,null,null,null,null,null,null,null,null,null,null,null,null,null,null,null,null,null,null,null,null,null,null,null,null,null,null,null,null,null,null,null,null,null,null,null,null,null,null,null,null,null,null,null,null,null,null,null,null,null,null,null,null,null,null,null,null,null,null,null,null,null,null,null,null,null,null,null,null,null,null,null,null,null,null,null,null,null,null,null,null,null,null,null,null,null,null,null,null,null,null,null,null,null,null,null,null,null,null,null,null,null,null,null,null,null,null,null,null,null,null,null,null,null,null,null,null,null,null,null,null,null,null,null,null,null,null,null,null,null,null,null,null,null,null,null,null,null,null,null,null,null,null,null,null,null,null,null,null,null,null,null,null,null,null,null,null,null,null,null,null,null,null,null,null,null,null,null,null,null,null,null,null,null,null,null,null,null,null,null,null,null,null,null,null,null,null,null,null,null,null,null,null,null,null,null,null,null,null,null,null,null,null,null,null,null,null,null,null,null,null,null,null,null,null,null,null,null,null,null,null,null,null,null,null,null,null,null,null,null,null,null,null,null,null,null,null,null,null,null,null,null,null,null,null,null,null,null,null,null,null,null,null,null,null,null,null,null,null,null,null,null,null,null,null,null,null,null,null,null,null,null,null,null,null,null,null,null,null,null,null,null,null,null,null,null,null,null,null,null,null,null,null,null,null,null,null,null,null,null,null,null,null,null,null,null,null,null,null,null,null,null,null,null,null,null,null,null,null,null,null,null,null,null,null,null,null,null,null,null,null,null,null,null,null,null,null,null,null,null,null,null,null,null,null,null,null,null,null,null,null,null,null,null,null,null,null,null,null,null,null,null,null,null,null,null,null,null,null,null,null,null,null,null,null,null,null,null,null,null,null,null,null,null,null,null,null,null,null,null,null,null,null,null,null,null,null,null,null,null,null,null,null,null,null,null,null,null,null,null,null,null,null,null,null,null,null,null,null,null,null,null,null,null,null,null,null,null,null,null,null,null,null,null,null,null,null,null,null,null,null,null,null,null,null,null,null,null,null,null,null,null,null,null,null,null,null,null,null,null,null,null,null,null,null,null,null,null,null,null,null,null,null,null,null,null,null,null,null,null,null,null,null,null,null,null,null,null,null,null,null,null,null,null,null,null,null,null,null,null,null,null,null,null,null,null,null,null,null,null,null,null,null,null,null,null,null,null,null,null,null,null,null,null,null,null,null,null,null,null,null,null,null,null,null,null,null,null,null,null,null,null,null,null,null,null,null,null,null,null,null,null,null,null,null,null,null,null,null,null,null,null,null,null,null,null,null,null,null,null,null,null,null,null,null,null,null,null,null,null,null,null,null,null,null,null,null,null,null,null,null,null,null,null,null,null,null,null,null,null,null,null,null,null,null,null,null,null,null,null,null,null,null,null,null,null,null,null,null,null,null,null,null,null,null,null,null,null,null,null,null,null,null,null,null,null,null,null,null,null,null,null,null,null,null,null,null,null,null,null,null,null,null,null,null,null,null,null,null,null,null,null,null,null,null,null,null,null,null,null,null,null,null,null,null,null,null,null,null,null,null,null,null,null,null,null,null,null,null,null,null,null,null,null,null,null,null,null,null,null,null,null,null,null,null,null,null,null,null,null,null,null,null,null,null,null,null,null,null,null,null,null,null,null,null,null,null,null,null,null,null,null,null,null,null,null,null,null,null,null,null,null,null,null,null,null,null,null,null,null,null,null,null,null,null,null,null,null,null,null,null,null,null,null,null,null,null,null,null,null,null,null,null,null,null,null,null,null,null,null,null,null,null,null,null,null,null,null,null,null,null,null,null,null,null,null,null,null,null,null,null,null,null,null,null,null,null,null,null,null,null,null,null,null,null,null,null,null,null,null,null,null,null,null,null,null,null,null,null,null,null,null,null,null,null,null,null,null,null,null,null,null,null,null,null,null,null,null,null,null,null,null,null,null,null,null,null,null,null,null,null,null,null,null,null,null,null,null,null,null,null,null,null,null,null,null,null,null,null,null,null,null,null,null,null,null,null,null,null,null,null,null,null,null,null,null,null,null,null,null,null,null,null,null,null,null,null,null,null,null,null,null,null,null,null,null,null,null,null,null,null,null,null,null,null,null,null,null,null,null,null,null,null,null,null,null,null,null,null,null,null,null,null,null,null,null,null,null,null,null,null,null,null,null,null,null,null,null,null,null,null,null,null,null,null,null,null,null,null,null,null,null,null,null,null,null,null,null,null,null,null,null,null,null,null,null,null,null,null,null,null,null,null,null,null,null,null,null,null,null,null,null,null,null,null,null,null,null,null,null,null,null,null,null,null,null,null,null,null,null,null,null,null,null,null,null,null,null,null,null,null,null,null,null,null,null,null,null,null,null,null,null,null,null,null,null,null,null,null,null,null,null,null,null,null,null,null,null,null,null,null,null,null,null,null,null,null,null,null,null,null,null,null,null,null,null,null,null,null,null,null,null,null,null,null,null,null,null,null,null,null,null,null,null,null,null,null,null,null,null,null,null,null,null,null,null,null,null,null,null,null,null,null,null,null,null,null,null,null,null,null,null,null,null,null,null,null,null,null,null,null,null,null,null,null,null,null,null,null,null,null,null,null,null,null,null,null,null,null,null,null,null,null,null,null,null,null,null,null,null,null,null,null,null,null,null,null,null,null,null,null,null,null,null,null,null,null,null,null,null,null,null,null,null,null,null,null,null,null,null,null,null,null,null,null,null,null,null,null,null,null,null,null,null,null,null,null,null,null,null,null,null,null,null,null,null,null,null,null,null,null,null,null,null,null,null,null,null,null,null,null,null,null,null,null,null,null,null,null,null,null,null,null,null,null,null,null,null,null,null,null,null,null,null,null,null,null,null,null,null,null,null,null,null,null,null,null,null,null,null,null,null,null,null,null,null,null,null,null,null,null,null,null,null,null,null,null,null,null,null,null,null,null,null,null,null,null,null,null,null,null,null,null,null,null,null,null,null,null,null,null,null,null,null,null,null,null,null,null,null,null,null,null,null,null,null,null,null,null,null,null,null,null,null,null,null,null,null,null,null,null,null,null,null,null,null,null,null,null,null,null,null,null,null,null,null,null,null,null,null,null,null,null,null,null,null,null,null,null,null,null,null,null,null,null,null,null,null,null,null,null,null,null,null,null,null,null,null,null,null,null,null,null,null,null,null,null,null,null,null,null,null,null,null,null,null,null,null,null,null,null,null,null,null,null,null,null,null,null,null,null,null,null,null,null,null,null,null,null,null,null,null,null,null,null,null,null,null,null,null,null,null,null,null,null,null,null,null,null,null,null,null,null,null,null,null,null,null,null,null,null,null,null,null,null,null,null,null,null,null,null,null,null,null,null,null,null,null,null,null,null,null,null,null,null,null,null,null,null,null,null,null,null,null,null,null,null,null,null,null,null,null,null,null,null,null,null,null,null,null,null,null,null,null,null,null,null,null,null,null,null,null,null,null,null,null,null,null,null,null,null,null,null,null,null,null,null,null,null,null,null,null,null,null,null,null,null,null,null,null,null,null,null,null,null,null,null,null,null,null,null,null,null,null,null,null,null,null,null,null,null,null,null,null,null,null,null,null,null,null,null,null,null,null,null,null,null,null,null,null,null,null,null,null,null,null,null,null,null,null,null,null,null,null,null,null,null,null,null,null,null,null,null,null,null,null,null,null,null,null,null,null,null,null,null,null,null,null,null,null,null,null,null,null,null,null,null,null,null,null,null,null,null,null,null,null,null,null,null,null,null,null,null,null,null,null,null,null,null,null,null,null,null,null,null,null,null,null,null,null,null,null,null,null,null,null,null,null,null,null,null,null,null,null,null,null,null,null,null,null,null,null,null,null,null,null,null,null,null,null,null,null,null,null,null,null,null,null,null,null,null,null,null,null,null,null,null,null,null,null,null,null,null,null,null,null,null,null,null,null,null,null,null,null,null,null,null,null,null,null,null,null,null,null,null,null,null,null,null,null,null,null,null,null,null,null,null,null,null,null,null,null,null,null,null,null,null,null,null,null,null,null,null,null,null,null,null,null,null,null,null,null,null,null,null,null,null,null,null,null,null,null,null,null,null,null,null,null,null,null,null,null,null,null,null,null,null,null,null,null,null,null,null,null,null,null,null,null,null,null,null,null,null,null,null,null,null,null,null,null,null,null,null,null,null,null,null,null,null,null,null,null,null,null,null,null,null,null,null,null,null,null,null,null,null,null,null,null,null,null,null,null,null,null,null,null,null,null,null,null,null,null,null,null,null,null,null,null,null,null,null,null,null,null,null,null,null,null,null,null,null,null,null,null,null,null,null,null,null,null,null,null,null,null,null,null,null,null,null,null,null,null,null,null,null,null,null,null,null,null,null,null,null,null,null,null,null,null,null,null,null,null,null,null,null,null,null,null,null,null,null,null,null,null,null,null,null,null,null,null,null,null,null,null,null,null,null,null,null,null,null,null,null,null,null,null,null,null,null,null,null,null,null,null,null,null,null,null,null,null,null,null,null,null,null,null,null,null,null,null,null,null,null,null,null,null,null,null,null,null,null,null,null,null,null,null,null,null,null,null,null,null,null,null,null,null,null,null,null,null,null,null,null,null,null,null,null,null,null,null,null,null,null,null,null,null,null,null,null,null,null,null,null,null,null,null,null,null,null,null,null,null,null,null,null,null,null,null,null,null,null,null,null,null,null,null,null,null,null,null,null,null,null,null,null,null,null,null,null,null,null,null,null,null,null,null,null,null,null,null,null,null,null,null,null,null,null,null,null,null,null,null,null,null,null,null,null,null,null,null,null,null,null,null,null,null,null,null,null,null,null,null,null,null,null,null,null,null,null,null,null,null,null,null,null,null,null,null,null,null,null,null,null,null,null,null,null,null,null,null,null,null,null,null,null,null,null,null,null,null,null,null,null,null,null,null,null,null,null,null,null,null,null,null,null,null,null,null,null,null,null,null,null,null,null,null,null,null,null,null,null,null,null,null,null,null,null,null,null,null,null,null,null,null,null,null,null,null,null,null,null,null,null,null,null,null,null,null,null,null,null,null,null,null,null,null,null,null,null,null,null,null,null,null,null,null,null,null,null,null,null,null,null,null,null,null,null,null,null,null,null,null,null,null,null,null,null,null,null,null,null,null,null,null,null,null,null,null,null,null,null,null,null,null,null,null,null,null,null,null,null,null,null,null,null,null,null,null,null,null,null,null,null,null,null,null,null,null,null,null,null,null,null,null,null,null,null,null,null,null,null,null,null,null,null,null,null,null,null,null,null,null,null,null,null,null,null,null,null,null,null,null,null,null,null,null,null,null,null,null,null,null,null,null,null,null,null,null,null,null,null,null,null,null,null,null,null,null,null,null,null,null,null,null,null,null,null,null,null,null,null,null,null,null,null,null,null,null,null,null,null,null,null,null,null,null,null,null,null,null,null,null,null,null,null,null,null,null,null,null,null,null,null,null,null,null,null,null,null,null,null,null,null,null,null,null,null,null,null,null,null,null,null,null,null,null,null,null,null,null,null,null,null,null,null,null,null,null,null,null,null,null,null,null,null,null,null,null,null,null,null,null,null,null,null,null,null,null,null,null,null,null,null,null,null,null,null,null,null,null,null,null,null,null,null,null,null,null,null,null,null,null,null,null,null,null,null,null,null,null,null,null,null,null,null,null,null,null,null,null,null,null,null,null,null,null,null,null,null,null,null,null,null,null,null,null,null,null,null,null,null,null,null,null,null,null,null,null,null,null,null,null,null,null,null,null,null,null,null,null,null,null,null,null,null,null,null,null,null,null,null,null,null,null,null,null,null,null,null,null,null,null,null,null,null,null,null,null,null,null,null,null,null,null,null,null,null,null,null,null,null,null,null,null,null,null,null,null,null,null,null,null,null,null,null,null,null,null,null,null,null,null,null,null,null,null,null,null,null,null,null,null,null,null,null,null,null,null,null,null,null,null,null,null,null,null,null,null,null,null,null,null,null,null,null,null,null,null,null,null,null,null,null,null,null,null,null,null,null,null,null,null,null,null,null,null,null,null,null,null,null,null,null,null,null,null,null,null,null,null,null,null,null,null,null,null,null,null,null,null,null,null,null,null,null,null,null,null,null,null,null,null,null,null,null,null,null,null,null,null,null,null,null,null,null,null,null,null,null,null,null,null,null,null,null,null,null,null,null,null,null,null,null,null,null,null,null,null,null,null,null,null,null,null,null,null,null,null,null,null,null,null,null,null,null,null,null,null,null,null,null,null,null,null,null,null,null,null,null,null,null,null,null,null,null,null,null,null,null,null,null,null,null,null,null,null,null,null,null,null,null,null,null,null,null,null,null,null,null,null,null,null,null,null,null,null,null,null,null,null,null,null,null,null,null,null,null,null,null,null,null,null,null,null,null,null,null,null,null,null,null,null,null,null,null,null,null,null,null,null,null,null,null,null,null,null,null,null,null,null,null,null,null,null,null,null,null,null,null,null,null,null,null,null,null,null,null,null,null,null,null,null,null,null,null,null,null,null,null,null,null,null,null,null,null,null,null,null,null,null,null,null,null,null,null,null,null,null,null,null,null,null,null,null,null,null,null,null,null,null,null,null,null,null,null,null,null,null,null,null,null,null,null,null,null,null,null,null,null,null,null,null,null,null,null,null,null,null,null,null,null,null,null,null,null,null,null,null,null,null,null,null,null,null,null,null,null,null,null,null,null,null,null,null,null,null,null,null,null,null,null,null,null,null,null,null,null,null,null,null,null,null,null,null,null,null,null,null,null,null,null,null,null,null,null,null,null,null,null,null,null,null,null,null,null,null,null,null,null,null,null,null,null,null,null,null,null,null,null,null,null,null,null,null,null,null,null,null,null,null,null,null,null,null,null,null,null,null,null,null,null,null,null,null,null,null,null,null,null,null,null,null,null,null,null,null,null,null,null,null,null,null,null,null,null,null,null,null,null,null,null,null,null,null,null,null,null,null,null,null,null,null,null,null,null,null,null,null,null,null,null,null,null,null,null,null,null,null,null,null,null,null,null,null,null,null,null,null,null,null,null,null,null,null,null,null,null,null,null,null,null,null,null,null,null,null,null,null,null,null,null,null,null,null,null,null,null,null,null,null,null,null,null,null,null,null,null,null,null,null,null,null,null,null,null,null,null,null,null,null,null,null,null,null,null,null,null,null,null,null,null,null,null,null,null,null,null,null,null,null,null,null,null,null,null,null,null,null,null,null,null,null,null,null,null,null,null,null,null,null,null,null,null,null,null,null,null,null,null,null,null,null,null,null,null,null,null,null,null,null,null,null,null,null,null,null,null,null,null,null,null,null,null,null,null,null,null,null,null,null,null,null,null,null,null,null,null,null,null,null,null,null,null,null,null,null,null,null,null,null,null,null,null,null,null,null,null,null,null,null,null,null,null,null,null,null,null,null,null,null,null,null,null,null,null,null,null,null,null,null,null,null,null,null,null,null,null,null,null,null,null,null,null,null,null,null,null,null,null,null,null,null,null,null,null,null,null,null,null,null,null,null,null,null,null,null,null,null,null,null,null,null,null,null,null,null,null,null,null,null,null,null,null,null,null,null,null,null,null,null,null,null,null,null,null,null,null,null,null,null,null,null,null,null,null,null,null,null,null,null,null,null,null,null,null,null,null,null,null,null,null,null,null,null,null,null,null,null,null,null,null,null,null,null,null,null,null,null,null,null,null,null,null,null,null,null,null,null,null,null,null,null,null,null,null,null,null,null,null,null,null,null,null,null,null,null,null,null,null,null,null,null,null,null,null,null,null,null,null,null,null,null,null,null,null,null,null,null,null,null,null,null,null,null,null,null,null,null,null,null,null,null,null,null,null,null,null,null,null,null,null,null,null,null,null,null,null,null,null,null,null,null,null,null,null,null,null,null,null,null,null,null,null,null,null,null,null,null,null,null,null,null,null,null,null,null,null,null,null,null,null,null,null,null,null,null,null,null,null,null,null,null,null,null,null,null,null,null,null,null,null,null,null,null,null,null,null,null,null,null,null,null,null,null,null,null,null,null,null,null,null,null,null,null,null,null,null,null,null,null,null,null,null,null,null,null,null,null,null,null,null,null,null,null,null,null,null,null,null,null,null,null,null,null,null,null,null,null,null,null,null,null,null,null,null,null,null,null,null,null,null,null,null,null,null,null,null,null,null,null,null,null,null,null,null,null,null,null,null,null,null,null,null,null,null,null,null,null,null,null,null,null,null,null,null,null,null,null,null,null,null,null,null,null,null,null,null,null,null,null,null,null,null,null,null,null,null,null,null,null,null,null,null,null,null,null,null,null,null,null,null,null,null,null,null,null,null,null,null,null,null,null,null,null,null,null,null,null,null,null,null,null,null,null,null,null,null,null,null,null,null,null,null,null,null,null,null,null,null,null,null,null,null,null,null,null,null,null,null,null,null,null,null,null,null,null,null,null,null,null,null,null,null,null,null,null,null,null,null,null,null,null,null,null,null,null,null,null,null,null,null,null,null,null,null,null,null,null,null,null,null,null,null,null,null,null,null,null,null,null,null,null,null,null,null,null,null,null,null,null,null,null,null,null,null,null,null,null,null,null,null,null,null,null,null,null,null,null,null,null,null,null,null,null,null,null,null,null,null,null,null,null,null,null,null,null,null,null,null,null,null,null,null,null,null,null,null,null,null,null,null,null,null,null,null,null,null,null,null,null,null,null,null,null,null,null,null,null,null,null,null,null,null,null,null,null,null,null,null,null,null,null,null,null,null,null,null,null,null,null,null,null,null,null,null,null,null,null,null,null,null,null,null,null,null,null,null,null,null,null,null,null,null,null,null,null,null,null,null,null,null,null,null,null,null,null,null,null,null,null,null,null,null,null,null,null,null,null,null,null,null,null,null,null,null,null,null,null,null,null,null,null,null,null,null,null,null,null,null,null,null,null,null,null,null,null,null,null,null,null,null,null,null,null,null,null,null,null,null,null,null,null,null,null,null,null,null,null,null,null,null,null,null,null,null,null,null,null,null,null,null,null,null,null,null,null,null,null,null,null,null,null,null,null,null,null,null,null,null,null,null,null,null,null,null,null,null,null,null,null,null,null,null,null,null,null,null,null,null,null,null,null,null,null,null,null,null,null,null,null,null,null,null,null,null,null,null,null,null,null,null,null,null,null,null,null,null,null,null,null,null,null,null,null,null,null,null,null,null,null,null,null,null,null,null,null,null,null,null,null,null,null,null,null,null,null,null,null,null,null,null,null,null,null,null,null,null,null,null,null,null,null,null,null,null,null,null,null,null,null,null,null,null,null,null,null,null,null,null,null,null,null,null,null,null,null,null,null,null,null,null,null,null,null,null,null,null,null,null,null,null,null,null,null,null,null,null,null,null,null,null,null,null,null,null,null,null,null,null,null,null,null,null,null,null,null,null,null,null,null,null,null,null,null,null,null,null,null,null,null,null,null,null,null,null,null,null,null,null,null,null,null,null,null,null,null,null,null,null,null,null,null,null,null,null,null,null,null,null,null,null,null,null,null,null,null,null,null,null,null,null,null,null,null,null,null,null,null,null,null,null,null,null,null,null,null,null,null,null,null,null,null,null,null,null,null,null,null,null,null,null,null,null,null,null,null,null,null,null,null,null,null,null,null,null,null,null,null,null,null,null,null,null,null,null,null,null,null,null,null,null,null,null,null,null,null,null,null,null,null,null,null,null,null,null,null,null,null,null,null,null,null,null,null,null,null,null,null,null,null,null,null,null,null,null,null,null,null,null,null,null,null,null,null,null,null,null,null,null,null,null,null,null,null,null,null,null,null,null,null,null,null,null,null,null,null,null,null,null,null,null,null,null,null,null,null,null,null,null,null,null,null,null,null,null,null,null,null,null,null,null,null,null,null,null,null,null,null,null,null,null,null,null,null,null,null,null,null,null,null,null,null,null,null,null,null,null,null,null,null,null,null,null,null,null,null,null,null,null,null,null,null,null,null,null,null,null,null,null,null,null,null,null,null,null,null,null,null,null,null,null,null,null,null,null,null,null,null,null,null,null,null,null,null,null,null,null,null,null,null,null,null,null,null,null,null,null,null,null,null,null,null,null,null,null,null,null,null,null,null,null,null,null,null,null,null,null,null,null,null,null,null,null,null,null,null,null,null,null,null,null,null,null,null,null,null,null,null,null,null,null,null,null,null,null,null,null,null,null,null,null,null,null,null,null,null,null,null,null,null,null,null,null,null,null,null,null,null,null,null,null,null,null,null,null,null,null,null,null,null,null,null,null,null,null,null,null,null,null,null,null,null,null,null,null,null,null,null,null,null,null,null,null,null,null,null,null,null,null,null,null,null,null,null,null,null,null,null,null,null,null,null,null,null,null,null,null,null,null,null,null,null,null,null,null,null,null,null,null,null,null,null,null,null,null,null,null,null,null,null,null,null,null,null,null,null,null,null,null,null,null,null,null,null,null,null,null,null,null,null,null,null,null,null,null,null,null,null,null,null,null,null,null,null,null,null,null,null,null,null,null,null,null,null,null,null,null,null,null,null,null,null,null,null,null,null,null,null,null,null,null,null,null,null,null,null,null,null,null,null,null,null,null,null,null,null,null,null,null,null,null,null,null,null,null,null,null,null,null,null,null,null,null,null,null,null,null,null,null,null,null,null,null,null,null,null,null,null,null,null,null,null,null,null,null,null,null,null,null,null,null,null,null,null,null,null,null,null,null,null,null,null,null,null,null,null,null,null,null,null,null,null,null,null,null,null,null,null,null,null,null,null,null,null,null,null,null,null,null,null,null,null,null,null,null,null,null,null,null,null,null,null,null,null,null,null,null,null,null,null,null,null,null,null,null,null,null,null,null,null,null,null,null,null,null,null,null,null,null,null,null,null,null,null,null,null,null,null,null,null,null,null,null,null,null,null,null,null,null,null,null,null,null,null,null,null,null,null,null,null,null,null,null,null,null,null,null,null,null,null,null,null,null,null,null,null,null,null,null,null,null,null,null,null,null,null,null,null,null,null,null,null,null,null,null,null,null,null,null,null,null,null,null,null,null,null,null,null,null,null,null,null,null,null,null,null,null,null,null,null,null,null,null,null,null,null,null,null,null,null,null,null,null,null,null,null,null,null,null,null,null,null,null,null,null,null,null,null,null,null,null,null,null,null,null,null,null,null,null,null,null,null,null,null,null,null,null,null,null,null,null,null,null,null,null,null,null,null,null,null,null,null,null,null,null,null,null,null,null,null,null,null,null,null,null,null,null,null,null,null,null,null,null,null,null,null,null,null,null,null,null,null,null,null,null,null,null,null,null,null,null,null,null,null,null,null,null,null,null,null,null,null,null,null,null,null,null,null,null,null,null,null,null,null,null,null,null,null,null,null,null,null,null,null,null,null,null,null,null,null,null,null,null,null,null,null,null,null,null,null,null,null,null,null,null,null,null,null,null,null,null,null,null,null,null,null,null,null,null,null,null,null,null,null,null,null,null,null,null,null,null,null,null,null,null,null,null,null,null,null,null,null,null,null,null,null,null,null,null,null,null,null,null,null,null,null,null,null,null,null,null,null,null,null,null,null,null,null,null,null,null,null,null,null,null,null,null,null,null,null,null,null,null,null,null,null,null,null,null,null,null,null,null,null,null,null,null,null,null,null,null,null,null,null,null,null,null,null,null,null,null,null,null,null,null,null,null,null,null,null,null,null,null,null,null,null,null,null,null,null,null,null,null,null,null,null,null,null,null,null,null,null,null,null,null,null,null,null,null,null,null,null,null,null,null,null,null,null,null,null,null,null,null,null,null,null,null,null,null,null,null,null,null,null,null,null,null,null,null,null,null,null,null,null,null,null,null,null,null,null,null,null,null,null,null,null,null,null,null,null,null,null,null,null,null,null,null,null,null,null,null,null,null,null,null,null,null,null,null,null,null,null,null,null,null,null,null,null,null,null,null,null,null,null,null,null,null,null,null,null,null,null,null,null,null,null,null,null,null,null,null,null,null,null,null,null,null,null,null,null,null,null,null,null,null,null,null,null,null,null,null,null,null,null,null,null,null,null,null,null,null,null,null,null,null,null,null,null,null,null,null,null,null,null,null,null,null,null,null,null,null,null,null,null,null,null,null,null,null,null,null,null,null,null,null,null,null,null,null,null,null,null,null,null,null,null,null,null,null,null,null,null,null,null,null,null,null,null,null,null,null,null,null,null,null,null,null,null,null,null,null,null,null,null,null,null,null,null,null,null,null,null,null,null,null,null,null,null,null,null,null,null,null,null,null,null,null,null,null,null,null,null,null,null,null,null,null,null,null,null,null,null,null,null,null,null,null,null,null,null,null,null,null,null,null,null,null,null,null,null,null,null,null,null,null,null,null,null,null,null,null,null,null,null,null,null,null,null,null,null,null,null,null,null,null,null,null,null,null,null,null,null,null,null,null,null,null,null,null,null,null,null,null,null,null,null,null,null,null,null,null,null,null,null,null,null,null,null,null,null,null,null,null,null,null,null,null,null,null,null,null,null,null,null,null,null,null,null,null,null,null,null,null,null,null,null,null,null,null,null,null,null,null,null,null,null,null,null,null,null,null,null,null,null,null,null,null,null,null,null,null,null,null,null,null,null,null,null,null,null,null,null,null,null,null,null,null,null,null,null,null,null,null,null,null,null,null,null,null,null,null,null,null,null,null,null,null,null,null,null,null,null,null,null,null,null,null,null,null,null,null,null,null,null,null,null,null,null,null,null,null,null,null,null,null,null,null,null,null,null,null,null,null,null,null,null,null,null,null,null,null,null,null,null,null,null,null,null,null,null,null,null,null,null,null,null,null,null,null,null,null,null,null,null,null,null,null,null,null,null,null,null,null,null,null,null,null,null,null,null,null,null,null,null,null,null,null,null,null,null,null,null,null,null,null,null,null,null,null,null,null,null,null,null,null,null,null,null,null,null,null,null,null,null,null,null,null,null,null,null,null,null,null,null,null,null,null,null,null,null,null,null,null,null,null,null,null,null,null,null,null,null,null,null,null,null,null,null,null,null,null,null,null,null,null,null,null,null,null,null,null,null,null,null,null,null,null,null,null,null,null,null,null,null,null,null,null,null,null,null,null,null,null,null,null,null,null,null,null,null,null,null,null,null,null,null,null,null,null,null,null,null,null,null,null,null,null,null,null,null,null,null,null,null,null,null,null,null,null,null,null,null,null,null,null,null,null,null,null,null,null,null,null,null,null,null,null,null,null,null,null,null,null,null,null,null,null,null,null,null,null,null,null,null,null,null,null,null,null,null,null,null,null,null,null,null,null,null,null,null,null,null,null,null,null,null,null,null,null,null,null,null,null,null,null,null,null,null,null,null,null,null,null,null,null,null,null,null,null,null,null,null,null,null,null,null,null,null,null,null,null,null,null,null,null,null,null,null,null,null,null,null,null,null,null,null,null,null,null,null,null,null,null,null,null,null,null,null,null,null,null,null,null,null,null,null,null,null,null,null,null,null,null,null,null,null,null,null,null,null,null,null,null,null,null,null,null,null,null,null,null,null,null,null,null,null,null,null,null,null,null,null,null,null,null,null,null,null,null,null,null,null,null,null,null,null,null,null,null,null,null,null,null,null,null,null,null,null,null,null,null,null,null,null,null,null,null,null,null,null,null,null,null,null,null,null,null,null,null,null,null,null,null,null,null,null,null,null,null,null,null,null,null,null,null,null,null,null,null,null,null,null,null,null,null,null,null,null,null,null,null,null,null,null,null,null,null,null,null,null,null,null,null,null,null,null,null,null,null,null,null,null,null,null,null,null,null,null,null,null,null,null,null,null,null,null,null,null,null,null,null,null,null,null,null,null,null,null,null,null,null,null,null,null,null,null,null,null,null,null,null,null,null,null,null,null,null,null,null,null,null,null,null,null,null,null,null,null,null,null,null,null,null,null,null,null,null,null,null,null,null,null,null,null,null,null,null,null,null,null,null,null,null,null,null,null,null,null,null,null,null,null,null,null,null,null,null,null,null,null,null,null,null,null,null,null,null,null,null,null,null,null,null,null,null,null,null,null,null,null,null,null,null,null,null,null,null,null,null,null,null,null,null,null,null,null,null,null,null,null,null,null,null,null,null,null,null,null,null,null,null,null,null,null,null,null,null,null,null,null,null,null,null,null,null,null,null,null,null,null,null,null,null,null,null,null,null,null,null,null,null,null,null,null,null,null,null,null,null,null,null,null,null,null,null,null,null,null,null,null,null,null,null,null,null,null,null,null,null,null,null,null,null,null,null,null,null,null,null,null,null,null,null,null,null,null,null,null,null,null,null,null,null,null,null,null,null,null,null,null,null,null,null,null,null,null,null,null,null,null,null,null,null,null,null,null,null,null,null,null,null,null,null,null,null,null,null,null,null,null,null,null,null,null,null,null,null,null,null,null,null,null,null,null,null,null,null,null,null,null,null,null,null,null,null,null,null,null,null,null,null,null,null,null,null,null,null,null,null,null,null,null,null,null,null,null,null,null,null,null,null,null,null,null,null,null,null,null,null,null,null,null,null,null,null,null,null,null,null,null,null,null,null,null,null,null,null,null,null,null,null,null,null,null,null,null,null,null,null,null,null,null,null,null,null,null,null,null,null,null,null,null,null,null,null,null,null,null,null,null,null,null,null,null,null,null,null,null,null,null,null,null,null,null,null,null,null,null,null,null,null,null,null,null,null,null,null,null,null,null,null,null,null,null,null,null,null,null,null,null,null,null,null,null,null,null,null,null,null,null,null,null,null,null,null,null,null,null,null,null,null,null,null,null,null,null,null,null,null,null,null,null,null,null,null,null,null,null,null,null,null,null,null,null,null,null,null,null,null,null,null,null,null,null,null,null,null,null,null,null,null,null,null,null,null,null,null,null,null,null,null,null,null,null,null,null,null,null,null,null,null,null,null,null,null,null,null,null,null,null,null,null,null,null,null,null,null,null,null,null,null,null,null,null,null,null,null,null,null,null,null,null,null,null,null,null,null,null,null,null,null,null,null,null,null,null,null,null,null,null,null,null,null,null,null,null,null,null,null,null,null,null,null,null,null,null,null,null,null,null,null,null,null,null,null,null,null,null,null,null,null,null,null,null,null,null,null,null,null,null,null,null,null,null,null,null,null,null,null,null,null,null,null,null,null,null,null,null,null,null,null,null,null,null,null,null,null,null,null,null,null,null,null,null,null,null,null,null,null,null,null,null,null,null,null,null,null,null,null,null,null,null,null,null,null,null,null,null,null,null,null,null,null,null,null,null,null,null,null,null,null,null,null,null,null,null,null,null,null,null,null,null,null,null,null,null,null,null,null,null,null,null,null,null,null,null,null,null,null,null,null,null,null,null,null,null,null,null,null,null,null,null,null,null,null,null,null,null,null,null,null,null,null,null,null,null,null,null,null,null,null,null,null,null,null,null,null,null,null,null,null,null,null,null,null,null,null,null,null,null,null,null,null,null,null,null,null,null,null,null,null,null,null,null,null,null,null,null,null,null,null,null,null,null,null,null,null,null,null,null,null,null,null,null,null,null,null,null,null,null,null,null,null,null,null,null,null,null,null,null,null,null,null,null,null,null,null,null,null,null,null,null,null,null,null,null,null,null,null,null,null,null,null,null,null,null,null,null,null,null,null,null,null,null,null,null,null,null,null,null,null,null,null,null,null,null,null,null,null,null,null,null,null,null,null,null,null,null,null,null,null,null,null,null,null,null,null,null,null,null,null,null,null,null,null,null,null,null,null,null,null,null,null,null,null,null,null,null,null,null,null,null,null,null,null,null,null,null,null,null,null,null,null,null,null,null,null,null,null,null,null,null,null,null,null,null,null,null,null,null,null,null,null,null,null,null,null,null,null,null,null,null,null,null,null,null,null,null,null,null,null,null,null,null,null,null,null,null,null,null,null,null,null,null,null,null,null,null,null,null,null,null,null,null,null,null,null,null,null,null,null,null,null,null,null,null,null,null,null,null,null,null,null,null,null,null,null,null,null,null,null,null,null,null,null,null,null,null,null,null,null,null,null,null,null,null,null,null,null,null,null,null,null,null,null,null,null,null,null,null,null,null,null,null,null,null,null,null,null,null,null,null,null,null,null,null,null,null,null,null,null,null,null,null,null,null,null,null,null,null,null,null,null,null,null,null,null,null,null,null,null,null,null,null,null,null,null,null,null,null,null,null,null,null,null,null,null,null,null,null,null,null,null,null,null,null,null,null,null,null,null,null,null,null,null,null,null,null,null,null,null,null,null,null,null,null,null,null,null,null,null,null,null,null,null,null,null,null,null,null,null,null,null,null,null,null,null,null,null,null,null,null,null,null,null,null,null,null,null,null,null,null,null,null,null,null,null,null,null,null,null,null,null,null,null,null,null,null,null,null,null,null,null,null,null,null,null,null,null,null,null,null,null,null,null,null,null,null,null,null,null,null,null,null,null,null,null,null,null,null,null,null,null,null,null,null,null,null,null,null,null,null,null,null,null,null,null,null,null,null,null,null,null,null,null,null,null,null,null,null,null,null,null,null,null,null,null,null,null,null,null,null,null,null,null,null,null,null,null,null,null,null,null,null,null,null,null,null,null,null,null,null,null,null,null,null,null,null,null,null,null,null,null,null,null,null,null,null,null,null,null,null,null,null,null,null,null,null,null,null,null,null,null,null,null,null,null,null,null,null,null,null,null,null,null,null,null,null,null,null,null,null,null,null,null,null,null,null,null,null,null,null,null,null,null,null,null,null,null,null,null,null,null,null,null,null,null,null,null,null,null,null,null,null,null,null,null,null,null,null,null,null,null,null,null,null,null,null,null,null,null,null,null,null,null,null,null,null,null,null,null,null,null,null,null,null,null,null,null,null,null,null,null,null,null,null,null,null,null,null,null,null,null,null,null,null,null,null,null,null,null,null,null,null,null,null,null,null,null,null,null,null,null,null,null,null,null,null,null,null,null,null,null,null,null,null,null,null,null,null,null,null,null,null,null,null,null,null,null,null,null,null,null,null,null,null,null,null,null,null,null,null,null,null,null,null,null,null,null,null,null,null,null,null,null,null,null,null,null,null,null,null,null,null,null,null,null,null,null,null,null,null,null,null,null,null,null,null,null,null,null,null,null,null,null,null,null,null,null,null,null,null,null,null,null,null,null,null,null,null,null,null,null,null,null,null,null,null,null,null,null,null,null,null,null,null,null,null,null,null,null,null,null,null,null,null,null,null,null,null,null,null,null,null,null,null,null,null,null,null,null,null,null,null,null,null,null,null,null,null,null,null,null,null,null,null,null,null,null,null,null,null,null,null,null,null,null,null,null,null,null,null,null,null,null,null,null,null,null,null,null,null,null,null,null,null,null,null,null,null,null,null,null,null,null,null,null,null,null,null,null,null,null,null,null,null,null,null,null,null,null,null,null,null,null,null,null,null,null,null,null,null,null,null,null,null,null,null,null,null,null,null,null,null,null,null,null,null,null,null,null,null,null,null,null,null,null,null,null,null,null,null,null,null,null,null,null,null,null,null,null,null,null,null,null,null,null,null,null,null,null,null,null,null,null,null,null,null,null,null,null,null,null,null,null,null,null,null,null,null,null,null,null,null,null,null,null,null,null,null,null,null,null,null,null,null,null,null,null,null,null,null,null,null,null,null,null,null,null,null,null,null,null,null,null,null,null,null,null,null,null,null,null,null,null,null,null,null,null,null,null,null,null,null,null,null,null,null,null,null,null,null,null,null,null,null,null,null,null,null,null,null,null,null,null,null,null,null,null,null,null,null,null,null,null,null,null,null,null,null,null,null,null,null,null,null,null,null,null,null,null,null,null,null,null,null,null,null,null,null,null,null,null,null,null,null,null,null,null,null,null,null,null,null,null,null,null,null,null,null,null,null,null,null,null,null,null,null,null,null,null,null,null,null,null,null,null,null,null,null,null,null,null,null,null,null,null,null,null,null,null,null,null,null,null,null,null,null,null,null,null,null,null,null,null,null,null,null,null,null,null,null,null,null,null,null,null,null,null,null,null,null,null,null,null,null,null,null,null,null,null,null,null,null,null,null,null,null,null,null,null,null,null,null,null,null,null,null,null,null,null,null,null,null,null,null,null,null,null,null,null,null,null,null,null,null,null,null,null,null,null,null,null,null,null,null,null,null,null,null,null,null,null,null,null,null,null,null,null,null,null,null,null,null,null,null,null,null,null,null,null,null,null,null,null,null,null,null,null,null,null,null,null,null,null,null,null,null,null,null,null,null,null,null,null,null,null,null,null,null,null,null,null,null,null,null,null,null,null,null,null,null,null,null,null,null,null,null,null,null,null,null,null,null,null,null,null,null,null,null,null,null,null,null,null,null,null,null,null,null,null,null,null,null,null,null,null,null,null,null,null,null,null,null,null,null,null,null,null,null,null,null,null,null,null,null,null,null,null,null,null,null,null,null,null,null,null,null,null,null,null,null,null,null,null,null,null,null,null,null,null,null,null,null,null,null,null,null,null,null,null,null,null,null,null,null,null,null,null,null,null,null,null,null,null,null,null,null,null,null,null,null,null,null,null,null,null,null,null,null,null,null,null,null,null,null,null,null,null,null,null,null,null,null,null,null,null,null,null,null,null,null,null,null,null,null,null,null,null,null,null,null,null,null,null,null,null,null,null,null,null,null,null,null,null,null,null,null,null,null,null,null,null,null,null,null,null,null,null,null,null,null,null,null,null,null,null,null,null,null,null,null,null,null,null,null,null,null,null,null,null,null,null,null,null,null,null,null,null,null,null,null,null,null,null,null,null,null,null,null,null,null,null,null,null,null,null,null,null,null,null,null,null,null,null,null,null,null,null,null,null,null,null,null,null,null,null,null,null,null,null,null,null,null,null,null,null,null,null,null,null,null,null,null,null,null,null,null,null,null,null,null,null,null,null,null,null,null,null,null,null,null,null,null,null,null,null,null,null,null,null,null,null,null,null,null,null,null,null,null,null,null,null,null,null,null,null,null,null,null,null,null,null,null,null,null,null,null,null,null,null,null,null,null,null,null,null,null,null,null,null,null,null,null,null,null,null,null,null,null,null,null,null,null,null,null,null,null,null,null,null,null,null,null,null,null,null,null,null,null,null,null,null,null,null,null,null,null,null,null,null,null,null,null,null,null,null,null,null,null,null,null,null,null,null,null,null,null,null,null,null,null,null,null,null,null,null,null,null,null,null,null,null,null,null,null,null,null,null,null,null,null,null,null,null,null,null,null,null,null,null,null,null,null,null,null,null,null,null,null,null,null,null,null,null,null,null,null,null,null,null,null,null,null,null,null,null,null,null,null,null,null,null,null,null,null,null,null,null,null,null,null,null,null,null,null,null,null,null,null,null,null,null,null,null,null,null,null,null,null,null,null,null,null,null,null,null,null,null,null,null,null,null,null,null,null,null,null,null,null,null,null,null,null,null,null,null,null,null,null,null,null,null,null,null,null,null,null,null,null,null,null,null,null,null,null,null,null,null,null,null,null,null,null,null,null,null,null,null,null,null,null,null,null,null,null,null,null,null,null,null,null,null,null,null,null,null,null,null,null,null,null,null,null,null,null,null,null,null,null,null,null,null,null,null,null,null,null,null,null,null,null,null,null,null,null,null,null,null,null,null,null,null,null,null,null,null,null,null,null,null,null,null,null,null,null,null,null,null,null,null,null,null,null,null,null,null,null,null,null,null,null,null,null,null,null,null,null,null,null,null,null,null,null,null,null,null,null,null,null,null,null,null,null,null,null,null,null,null,null,null,null,null,null,null,null,null,null,null,null,null,null,null,null,null,null,null,null,null,null,null,null,null,null,null,null,null,null,null,null,null,null,null,null,null,null,null,null,null,null,null,null,null,null,null,null,null,null,null,null,null,null,null,null,null,null,null,null,null,null,null,null,null,null,null,null,null,null,null,null,null,null,null,null,null,null,null,null,null,null,null,null,null,null,null,null,null,null,null,null,null,null,null,null,null,null,null,null,null,null,null,null,null,null,null,null,null,null,null,null,null,null,null,null,null,null,null,null,null,null,null,null,null,null,null,null,null,null,null,null,null,null,null,null,null,null,null,null,null,null,null,null,null,null,null,null,null,null,null,null,null,null,null,null,null,null,null,null,null,null,null,null,null,null,null,null,null,null,null,null,null,null,null,null,null,null,null,null,null,null,null,null,null,null,null,null,null,null,null,null,null,null,null,null,null,null,null,null,null,null,null,null,null,null,null,null,null,null,null,null,null,null,null,null,null,null,null,null,null,null,null,null,null,null,null,null,null,null,null,null,null,null,null,null,null,null,null,null,null,null,null,null,null,null,null,null,null,null,null,null,null,null,null,null,null,null,null,null,null,null,null,null,null,null,null,null,null,null,null,null,null,null,null,null,null,null,null,null,null,null,null,null,null,null,null,null,null,null,null,null,null,null,null,null,null,null,null,null,null,null,null,null,null,null,null,null,null,null,null,null,null,null,null,null,null,null,null,null,null,null,null,null,null,null,null,null,null,null,null,null,null,null,null,null,null,null,null,null,null,null,null,null,null,null,null,null,null,null,null,null,null,null,null,null,null,null,null,null,null,null,null,null,null,null,null,null,null,null,null,null,null,null,null,null,null,null,null,null,null,null,null,null,null,null,null,null,null,null,null,null,null,null,null,null,null,null,null,null,null,null,null,null,null,null,null,null,null,null,null,null,null,null,null,null,null,null,null,null,null,null,null,null,null,null,null,null,null,null,null,null,null,null,null,null,null,null,null,null,null,null,null,null,null,null,null,null,null,null,null,null,null,null,null,null,null,null,null,null,null,null,null,null,null,null,null,null,null,null,null,null,null,null,null,null,null,null,null,null,null,null,null,null,null,null,null,null,null,null,null,null,null,null,null,null,null,null,null,null,null,null,null,null,null,null,null,null,null,null,null,null,null,null,null,null,null,null,null,null,null,null,null,null,null,null,null,null,null,null,null,null,null,null,null,null,null,null,null,null,null,null,null,null,null,null,null,null,null,null,null,null,null,null,null,null,null,null,null,null,null,null,null,null,null,null,null,null,null,null,null,null,null,null,null,null,null,null,null,null,null,null,null,null,null,null,null,null,null,null,null,null,null,null,null,null,null,null,null,null,null,null,null,null,null,null,null,null,null,null,null,null,null,null,null,null,null,null,null,null,null,null,null,null,null,null,null,null,null,null,null,null,null,null,null,null,null,null,null,null,null,null,null,null,null,null,null,null,null,null,null,null,null,null,null,null,null,null,null,null,null,null,null,null,null,null,null,null,null,null,null,null,null,null,null,null,null,null,null,null,null,null,null,null,null,null,null,null,null,null,null,null,null,null,null,null,null,null,null,null,null,null,null,null,null,null,null,null,null,null,null,null,null,null,null,null,null,null,null,null,null,null,null,null,null,null,null,null,null,null,null,null,null,null,null,null,null,null,null,null,null,null,null,null,null,null,null,null,null,null,null,null,null,null,null,null,null,null,null,null,null,null,null,null,null,null,null,null,null,null,null,null,null,null,null,null,null,null,null,null,null,null,null,null,null,null,null,null,null,null,null,null,null,null,null,null,null,null,null,null,null,null,null,null,null,null,null,null,null,null,null,null,null,null,null,null,null,null,null,null,null,null,null,null,null,null,null,null,null,null,null,null,null,null,null,null,null,null,null,null,null,null,null,null,null,null,null,null,null,null,null,null,null,null,null,null,null,null,null,null,null,null,null,null,null,null,null,null,null,null,null,null,null,null,null,null,null,null,null,null,null,null,null,null,null,null,null,null,null,null,null,null,null,null,null,null,null,null,null,null,null,null,null,null,null,null,null,null,null,null,null,null,null,null,null,null,null,null,null,null,null,null,null,null,null,null,null,null,null,null,null,null,null,null,null,null,null,null,null,null,null,null,null,null,null,null,null,null,null,null,null,null,null,null,null,null,null,null,null,null,null,null,null,null,null,null,null,null,null,null,null,null,null,null,null,null,null,null,null,null,null,null,null,null,null,null,null,null,null,null,null,null,null,null,null,null,null,null,null,null,null,null,null,null,null,null,null,null,null,null,null,null,null,null,null,null,null,null,null,null,null,null,null,null,null,null,null,null,null,null,null,null,null,null,null,null,null,null,null,null,null,null,null,null,null,null,null,null,null,null,null,null,null,null,null,null,null,null,null,null,null,null,null,null,null,null,null,null,null,null,null,null,null,null,null,null,null,null,null,null,null,null,null,null,null,null,null,null,null,null,null,null,null,null,null,null,null,null,null,null,null,null,null,null,null,null,null,null,null,null,null,null,null,null,null,null,null,null,null,null,null,null,null,null,null,null,null,null,null,null,null,null,null,null,null,null,null,null,null,null,null,null,null,null,null,null,null,null,null,null,null,null,null,null,null,null,null,null,null,null,null,null,null,null,null,null,null,null,null,null,null,null,null,null,null,null,null,null,null,null,null,null,null,null,null,null,null,null,null,null,null,null,null,null,null,null,null,null,null,null,null,null,null,null,null,null,null,null,null,null,null,null,null,null,null,null,null,null,null,null,null,null,null,null,null,null,null,null,null,null,null,null,null,null,null,null,null,null,null,null,null,null,null,null,null,null,null,null,null,null,null,null,null,null,null,null,null,null,null,null,null,null,null,null,null,null,null,null,null,null,null,null,null,null,null,null,null,null,null,null,null,null,null,null,null,null,null,null,null,null,null,null,null,null,null,null,null,null,null,null,null,null,null,null,null,null,null,null,null,null,null,null,null,null,null,null,null,null,null,null,null,null,null,null,null,null,null,null,null,null,null,null,null,null,null,null,null,null,null,null,null,null,null,null,null,null,null,null,null,null,null,null,null,null,null,null,null,null,null,null,null,null,null,null,null,null,null,null,null,null,null,null,null,null,null,null,null,null,null,null,null,null,null,null,null,null,null,null,null,null,null,null,null,null,null,null,null,null,null,null,null,null,null,null,null,null,null,null,null,null,null,null,null,null,null,null,null,null,null,null,null,null,null,null,null,null,null,null,null,null,null,null,null,null,null,null,null,null,null,null,null,null,null,null,null,null,null,null,null,null,null,null,null,null,null,null,null,null,null,null,null,null,null,null,null,null,null,null,null,null,null,null,null,null,null,null,null,null,null,null,null,null,null,null,null,null,null,null,null,null,null,null,null,null,null,null,null,null,null,null,null,null,null,null,null,null,null,null,null,null,null,null,null,null,null,null,null,null,null,null,null,null,null,null,null,null,null,null,null,null,null,null,null,null,null,null,null,null,null,null,null,null,null,null,null,null,null,null,null,null,null,null,null,null,null,null,null,null,null,null,null,null,null,null,null,null,null,null,null,null,null,null,null,null,null,null,null,null,null,null,null,null,null,null,null,null,null,null,null,null,null,null,null,null,null,null,null,null,null,null,null,null,null,null,null,null,null,null,null,null,null,null,null,null,null,null,null,null,null,null,null,null,null,null,null,null,null,null,null,null,null,null,null,null,null,null,null,null,null,null,null,null,null,null,null,null,null,null,null,null,null,null,null,null,null,null,null,null,null,null,null,null,null,null,null,null,null,null,null,null,null,null,null,null,null,null,null,null,null,null,null,null,null,null,null,null,null,null,null,null,null,null,null,null,null,null,null,null,null,null,null,null,null,null,null,null,null,null,null,null,null,null,null,null,null,null,null,null,null,null,null,null,null,null,null,null,null,null,null,null,null,null,null,null,null,null,null,null,null,null,null,null,null,null,null,null,null,null,null,null,null,null,null,null,null,null,null,null,null,null,null,null,null,null,null,null,null,null,null,null,null,null,null,null,null,null,null,null,null,null,null,null,null,null,null,null,null,null,null,null,null,null,null,null,null,null,null,null,null,null,null,null,null,null,null,null,null,null,null,null,null,null,null,null,null,null,null,null,null,null,null,null,null,null,null,null,null,null,null,null,null,null,null,null,null,null,null,null,null,null,null,null,null,null,null,null,null,null,null,null,null,null,null,null,null,null,null,null,null,null,null,null,null,null,null,null,null,null,null,null,null,null,null,null,null,null,null,null,null,null,null,null,null,null,null,null,null,null,null,null,null,null,null,null,null,null,null,null,null,null,null,null,null,null,null,null,null,null,null,null,null,null,null,null,null,null,null,null,null,null,null,null,null,null,null,null,null,null,null,null,null,null,null,null,null,null,null,null,null,null,null,null,null,null,null,null,null,null,null,null,null,null,null,null,null,null,null,null,null,null,null,null,null,null,null,null,null,null,null,null,null,null,null,null,null,null,null,null,null,null,null,null,null,null,null,null,null,null,null,null,null,null,null,null,null,null,null,null,null,null,null,null,null,null,null,null,null,null,null,null,null,null,null,null,null,null,null,null,null,null,null,null,null,null,null,null,null,null,null,null,null,null,null,null,null,null,null,null,null,null,null,null,null,null,null,null,null,null,null,null,null,null,null,null,null,null,null,null,null,null,null,null,null,null,null,null,null,null,null,null,null,null,null,null,null,null,null,null,null,null,null,null,null,null,null,null,null,null,null,null,null,null,null,null,null,null,null,null,null,null,null,null,null,null,null,null,null,null,null,null,null,null,null,null,null,null,null,null,null,null,null,null,null,null,null,null,null,null,null,null,null,null,null,null,null,null,null,null,null,null,null,null,null,null,null,null,null,null,null,null,null,null,null,null,null,null,null,null,null,null,null,null,null,null,null,null,null,null,null,null,null,null,null,null,null,null,null,null,null,null,null,null,null,null,null,null,null,null,null,null,null,null,null,null,null,null,null,null,null,null,null,null,null,null,null,null,null,null,null,null,null,null,null,null,null,null,null,null,null,null,null,null,null,null,null,null,null,null,null,null,null,null,null,null,null,null,null,null,null,null,null,null,null,null,null,null,null,null,null,null,null,null,null,null,null,null,null,null,null,null,null,null,null,null,null,null,null,null,null,null,null,null,null,null,null,null,null,null,null,null,null,null,null,null,null,null,null,null,null,null,null,null,null,null,null,null,null,null,null,null,null,null,null,null,null,null,null,null,null,null,null,null,null,null,null,null,null,null,null,null,null,null,null,null,null,null,null,null,null,null,null,null,null,null,null,null,null,null,null,null,null,null,null,null,null,null,null,null,null,null,null,null,null,null,null,null,null,null,null,null,null,null,null,null,null,null,null,null,null,null,null,null,null,null,null,null,null,null,null,null,null,null,null,null,null,null,null,null,null,null,null,null,null,null,null,null,null,null,null,null,null,null,null,null,null,null,null,null,null,null,null,null,null,null,null,null,null,null,null,null,null,null,null,null,null,null,null,null,null,null,null,null,null,null,null,null,null,null,null,null,null,null,null,null,null,null,null,null,null,null,null,null,null,null,null,null,null,null,null,null,null,null,null,null,null,null,null,null,null,null,null,null,null,null,null,null,null,null,null,null,null,null,null,null,null,null,null,null,null,null,null,null,null,null,null,null,null,null,null,null,null,null,null,null,null,null,null,null,null,null,null,null,null,null,null,null,null,null,null,null,null,null,null,null,null,null,null,null,null,null,null,null,null,null,null,null,null,null,null,null,null,null,null,null,null,null,null,null,null,null,null,null,null,null,null,null,null,null,null,null,null,null,null,null,null,null,null,null,null,null,null,null,null,null,null,null,null,null,null,null,null,null,null,null,null,null,null,null,null,null,null,null,null,null,null,null,null,null,null,null,null,null,null,null,null,null,null,null,null,null,null,null,null,null,null,null,null,null,null,null,null,null,null,null,null,null,null,null,null,null,null,null,null,null,null,null,null,null,null,null,null,null,null,null,null,null,null,null,null,null,null,null,null,null,null,null,null,null,null,null,null,null,null,null,null,null,null,null,null,null,null,null,null,null,null,null,null,null,null,null,null,null,null,null,null,null,null,null,null,null,null,null,null,null,null,null,null,null,null,null,null,null,null,null,null,null,null,null,null,null,null,null,null,null,null,null,null,null,null,null,null,null,null,null,null,null,null,null,null,null,null,null,null,null,null,null,null,null,null,null,null,null,null,null,null,null,null,null,null,null,null,null,null,null,null,null,null,null,null,null,null,null,null,null,null,null,null,null,null,null,null,null,null,null,null,null,null,null,null,null,null,null,null,null,null,null,null,null,null,null,null,null,null,null,null,null,null,null,null,null,null,null,null,null,null,null,null,null,null,null,null,null,null,null,null,null,null,null,null,null,null,null,null,null,null,null,null,null,null,null,null,null,null,null,null,null,null,null,null,null,null,null,null,null,null,null,null,null,null,null,null,null,null,null,null,null,null,null,null,null,null,null,null,null,null,null,null,null,null,null,null,null,null,null,null,null,null,null,null,null,null,null,null,null,null,null,null,null,null,null,null,null,null,null,null,null,null,null,null,null,null,null,null,null,null,null,null,null,null,null,null,null,null,null,null,null,null,null,null,null,null,null,null,null,null,null,null,null,null,null,null,null,null,null,null,null,null,null,null,null,null,null,null,null,null,null,null,null,null,null,null,null,null,null,null,null,null,null,null,null,null,null,null,null,null,null,null,null,null,null,null,null,null,null,null,null,null,null,null,null,null,null,null,null,null,null,null,null,null,null,null,null,null,null,null,null,null,null,null,null,null,null,null,null,null,null,null,null,null,null,null,null,null,null,null,null,null,null,null,null,null,null,null,null,null,null,null,null,null,null,null,null,null,null,null,null,null,null,null,null,null,null,null,null,null,null,null,null,null,null,null,null,null,null,null,null,null,null,null,null,null,null,null,null,null,null,null,null,null,null,null,null,null,null,null,null,null,null,null,null,null,null,null,null,null,null,null,null,null,null,null,null,null,null,null,null,null,null,null,null,null,null,null,null,null,null,null,null,null,null,null,null,null,null,null,null,null,null,null,null,null,null,null,null,null,null,null,null,null,null,null,null,null,null,null,null,null,null,null,null,null,null,null,null,-1.4542803764343262,-0.98826676607131958]
["SystemsTest (for both Relative Impact and System Ring)",null,null,null,null,null,null,null,null,null,null,null,null,null,null,null,null,null,null,null,null,null,null,null,null,null,null,null,null,null,null,null,null,null,null,null,null,null,null,null,null,null,null,null,null,null,null,null,null,null,null,null,null,null,null,null,null,null,null,null,null,null,null,null,null,null,null,null,null,null,null,null,null,null,null,null,null,null,null,null,null,null,null,null,null,null,null,null,null,null,null,null,null,null,null,null,null,null,null,null,null,null,null,null,null,null,null,null,null,null,null,null,null,null,null,null,null,null,null,null,null,null,null,null,null,null,null,null,null,null,null,null,null,null,null,null,null,null,null,null,null,null,null,null,null,null,null,null,null,null,null,null,null,null,null,null,null,null,null,null,null,null,null,null,null,null,null,null,null,null,null,null,null,null,null,null,null,null,null,null,null,null,null,null,null,null,null,null,null,null,null,null,null,null,null,null,null,null,null,null,null,null,null,null,null,null,null,null,null,null,null,null,null,null,null,null,null,null,null,null,null,null,null,null,null,null,null,null,null,null,null,null,null,null,null,null,null,null,null,null,null,null,null,null,null,null,null,null,null,null,null,null,null,null,null,null,null,null,null,null,null,null,null,null,null,null,null,null,null,null,null,null,null,null,null,null,null,null,null,null,null,null,null,null,null,null,null,null,null,null,null,null,null,null,null,null,null,null,null,null,null,null,null,null,null,null,null,null,null,null,null,null,null,null,null,null,null,null,null,null,null,null,null,null,null,null,null,null,null,null,null,null,null,null,null,null,null,null,null,null,null,null,null,null,null,null,null,null,null,null,null,null,null,null,null,null,null,null,null,null,null,null,null,null,null,null,null,null,null,null,null,null,null,null,null,null,null,null,null,null,null,null,null,null,null,null,null,null,null,null,null,null,null,null,null,null,null,null,null,null,null,null,null,null,null,null,null,null,null,null,null,null,null,null,null,null,null,null,null,null,null,null,null,null,null,null,null,null,null,null,null,null,null,null,null,null,null,null,null,null,null,null,null,null,null,null,null,null,null,null,null,null,null,null,null,null,null,null,null,null,null,null,null,null,null,null,null,null,null,null,null,null,null,null,null,null,null,null,null,null,null,null,null,null,null,null,null,null,null,null,null,null,null,null,null,null,null,null,null,null,null,null,null,null,null,null,null,null,null,null,null,null,null,null,null,null,null,null,null,null,null,null,null,null,null,null,null,null,null,null,null,null,null,null,null,null,null,null,null,null,null,null,null,null,null,null,null,null,null,null,null,null,null,null,null,null,null,null,null,null,null,null,null,null,null,null,null,null,null,null,null,null,null,null,null,null,null,null,null,null,null,null,null,null,null,null,null,null,null,null,null,null,null,null,null,null,null,null,null,null,null,null,null,null,null,null,null,null,null,null,null,null,null,null,null,null,null,null,null,null,null,null,null,null,null,null,null,null,null,null,null,null,null,null,null,null,null,null,null,null,null,null,null,null,null,null,null,null,null,null,null,null,null,null,null,null,null,null,null,null,null,null,null,null,null,null,null,null,null,null,null,null,null,null,null,null,null,null,null,null,null,null,null,null,null,null,null,null,null,null,null,null,null,null,null,null,null,null,null,null,null,null,null,null,null,null,null,null,null,null,null,null,null,null,null,null,null,null,null,null,null,null,null,null,null,null,null,null,null,null,null,null,null,null,null,null,null,null,null,null,null,null,null,null,null,null,null,null,null,null,null,null,null,null,null,null,null,null,null,null,null,null,null,null,null,null,null,null,null,null,null,null,null,null,null,null,null,null,null,null,null,null,null,null,null,null,null,null,null,null,null,null,null,null,null,null,null,null,null,null,null,null,null,null,null,null,null,null,null,null,null,null,null,null,null,null,null,null,null,null,null,null,null,null,null,null,null,null,null,null,null,null,null,null,null,null,null,null,null,null,null,null,null,null,null,null,null,null,null,null,null,null,null,null,null,null,null,null,null,null,null,null,null,null,null,null,null,null,null,null,null,null,null,null,null,null,null,null,null,null,null,null,null,null,null,null,null,null,null,null,null,null,null,null,null,null,null,null,null,null,null,null,null,null,null,null,null,null,null,null,null,null,null,null,null,null,null,null,null,null,null,null,null,null,null,null,null,null,null,null,null,null,null,null,null,null,null,null,null,null,null,null,null,null,null,null,null,null,null,null,null,null,null,null,null,null,null,null,null,null,null,null,null,null,null,null,null,null,null,null,null,null,null,null,null,null,null,null,null,null,null,null,null,null,null,null,null,null,null,null,null,null,null,null,null,null,null,null,null,null,null,null,null,null,null,null,null,null,null,null,null,null,null,null,null,null,null,null,null,null,null,null,null,null,null,null,null,null,null,null,null,null,null,null,null,null,null,null,null,null,null,null,null,null,null,null,null,null,null,null,null,null,null,null,null,null,null,null,null,null,null,null,null,null,null,null,null,null,null,null,null,null,null,null,null,null,null,null,null,null,null,null,null,null,null,null,null,null,null,null,null,null,null,null,null,null,null,null,null,null,null,null,null,null,null,null,null,null,null,null,null,null,null,null,null,null,null,null,null,null,null,null,null,null,null,null,null,null,null,null,null,null,null,null,null,null,null,null,null,null,null,null,null,null,null,null,null,null,null,null,null,null,null,null,null,null,null,null,null,null,null,null,null,null,null,null,null,null,null,null,null,null,null,null,null,null,null,null,null,null,null,null,null,null,null,null,null,null,null,null,null,null,null,null,null,null,null,null,null,null,null,null,null,null,null,null,null,null,null,null,null,null,null,null,null,null,null,null,null,null,null,null,null,null,null,null,null,null,null,null,null,null,null,null,null,null,null,null,null,null,null,null,null,null,null,null,null,null,null,null,null,null,null,null,null,null,null,null,null,null,null,null,null,null,null,null,null,null,null,null,null,null,null,null,null,null,null,null,null,null,null,null,null,null,null,null,null,null,null,null,null,null,null,null,null,null,null,null,null,null,null,null,null,null,null,null,null,null,null,null,null,null,null,null,null,null,null,null,null,null,null,null,null,null,null,null,null,null,null,null,null,null,null,null,null,null,null,null,null,null,null,null,null,null,null,null,null,null,null,null,null,null,null,null,null,null,null,null,null,null,null,null,null,null,null,null,null,null,null,null,null,null,null,null,null,null,null,null,null,null,null,null,null,null,null,null,null,null,null,null,null,null,null,null,null,null,null,null,null,null,null,null,null,null,null,null,null,null,null,null,null,null,null,null,null,null,null,null,null,null,null,null,null,null,null,null,null,null,null,null,null,null,null,null,null,null,null,null,null,null,null,null,null,null,null,null,null,null,null,null,null,null,null,null,null,null,null,null,null,null,null,null,null,null,null,null,null,null,null,null,null,null,null,null,null,null,null,null,null,null,null,null,null,null,null,null,null,null,null,null,null,null,null,null,null,null,null,null,null,null,null,null,null,null,null,null,null,null,null,null,null,null,null,null,null,null,null,null,null,null,null,null,null,null,null,null,null,null,null,null,null,null,null,null,null,null,null,null,null,null,null,null,null,null,null,null,null,null,null,null,null,null,null,null,null,null,null,null,null,null,null,null,null,null,null,null,null,null,null,null,null,null,null,null,null,null,null,null,null,null,null,null,null,null,null,null,null,null,null,null,null,null,null,null,null,null,null,null,null,null,null,null,null,null,null,null,null,null,null,null,null,null,null,null,null,null,null,null,null,null,null,null,null,null,null,null,null,null,null,null,null,null,null,null,null,null,null,null,null,null,null,null,null,null,null,null,null,null,null,null,null,null,null,null,null,null,null,null,null,null,null,null,null,null,null,null,null,null,null,null,null,null,null,null,null,null,null,null,null,null,null,null,null,null,null,null,null,null,null,null,null,null,null,null,null,null,null,null,null,null,null,null,null,null,null,null,null,null,null,null,null,null,null,null,null,null,null,null,null,null,null,null,null,null,null,null,null,null,null,null,null,null,null,null,null,null,null,null,null,null,null,null,null,null,null,null,null,null,null,null,null,null,null,null,null,null,null,null,null,null,null,null,null,null,null,null,null,null,null,null,null,null,null,null,null,null,null,null,null,null,null,null,null,null,null,null,null,null,null,null,null,null,null,null,null,null,null,null,null,null,null,null,null,null,null,null,null,null,null,null,null,null,null,null,null,null,null,null,null,null,null,null,null,null,null,null,null,null,null,null,null,null,null,null,null,null,null,null,null,null,null,null,null,null,null,null,null,null,null,null,null,null,null,null,null,null,null,null,null,null,null,null,null,null,null,null,null,null,null,null,null,null,null,null,null,null,null,null,null,null,null,null,null,null,null,null,null,null,null,null,null,null,null,null,null,null,null,null,null,null,null,null,null,null,null,null,null,null,null,null,null,null,null,null,null,null,null,null,null,null,null,null,null,null,null,null,null,null,null,null,null,null,null,null,null,null,null,null,null,null,null,null,null,null,null,null,null,null,null,null,null,null,null,null,null,null,null,null,null,null,null,null,null,null,null,null,null,null,null,null,null,null,null,null,null,null,null,null,null,null,null,null,null,null,null,null,null,null,null,null,null,null,null,null,null,null,null,null,null,null,null,null,null,null,null,null,null,null,null,null,null,null,null,null,null,null,null,null,null,null,null,null,null,null,null,null,null,null,null,null,null,null,null,null,null,null,null,null,null,null,null,null,null,null,null,null,null,null,null,null,null,null,null,null,null,null,null,null,null,null,null,null,null,null,null,null,null,null,null,null,null,null,null,null,null,null,null,null,null,null,null,null,null,null,null,null,null,null,null,null,null,null,null,null,null,null,null,null,null,null,null,null,null,null,null,null,null,null,null,null,null,null,null,null,null,null,null,null,null,null,null,null,null,null,null,null,null,null,null,null,null,null,null,null,null,null,null,null,null,null,null,null,null,null,null,null,null,null,null,null,null,null,null,null,null,null,null,null,null,null,null,null,null,null,null,null,null,null,null,null,null,null,null,null,null,null,null,null,null,null,null,null,null,null,null,null,null,null,null,null,null,null,null,null,null,null,null,null,null,null,null,null,null,null,null,null,null,null,null,null,null,null,null,null,null,null,null,null,null,null,null,null,null,null,null,null,null,null,null,null,null,null,null,null,null,null,null,null,null,null,null,null,null,null,null,null,null,null,null,null,null,null,null,null,null,null,null,null,null,null,null,null,null,null,null,null,null,null,null,null,null,null,null,null,null,null,null,null,null,null,null,null,null,null,null,null,null,null,null,null,null,null,null,null,null,null,null,null,null,null,null,null,null,null,null,null,null,null,null,null,null,null,null,null,null,null,null,null,null,null,null,null,null,null,null,null,null,null,null,null,null,null,null,null,null,null,null,null,null,null,null,null,null,null,null,null,null,null,null,null,null,null,null,null,null,null,null,null,null,null,null,null,null,null,null,null,null,null,null,null,null,null,null,null,null,null,null,null,null,null,null,null,null,null,null,null,null,null,null,null,null,null,null,null,null,null,null,null,null,null,null,null,null,null,null,null,null,null,null,null,null,null,null,null,null,null,null,null,null,null,null,null,null,null,null,null,null,null,null,null,null,null,null,null,null,null,null,null,null,null,null,null,null,null,null,null,null,null,null,null,null,null,null,null,null,null,null,null,null,null,null,null,null,null,null,null,null,null,null,null,null,null,null,null,null,null,null,null,null,null,null,null,null,null,null,null,null,null,null,null,null,null,null,null,null,null,null,null,null,null,null,null,null,null,null,null,null,null,null,null,null,null,null,null,null,null,null,null,null,null,null,null,null,null,null,null,null,null,null,null,null,null,null,null,null,null,null,null,null,null,null,null,null,null,null,null,null,null,null,null,null,null,null,null,null,null,null,null,null,null,null,null,null,null,null,null,null,null,null,null,null,null,null,null,null,null,null,null,null,null,null,null,null,null,null,null,null,null,null,null,null,null,null,null,null,null,null,null,null,null,null,null,null,null,null,null,null,null,null,null,null,null,null,null,null,null,null,null,null,null,null,null,null,null,null,null,null,null,null,null,null,null,null,null,null,null,null,null,null,null,null,null,null,null,null,null,null,null,null,null,null,null,null,null,null,null,null,null,null,null,null,null,null,null,null,null,null,null,null,null,null,null,null,null,null,null,null,null,null,null,null,null,null,null,null,null,null,null,null,null,null,null,null,null,null,null,null,null,null,null,null,null,null,null,null,null,null,null,null,null,null,null,null,null,null,null,null,null,null,null,null,null,null,null,null,null,null,null,null,null,null,null,null,null,null,null,null,null,null,null,null,null,null,null,null,null,null,null,null,null,null,null,null,null,null,null,null,null,null,null,null,null,null,null,null,null,null,null,null,null,null,null,null,null,null,null,null,null,null,null,null,null,null,null,null,null,null,null,null,null,null,null,null,null,null,null,null,null,null,null,null,null,null,null,null,null,null,null,null,null,null,null,null,null,null,null,null,null,null,null,null,null,null,null,null,null,null,null,null,null,null,null,null,null,null,null,null,null,null,null,null,null,null,null,null,null,null,null,null,null,null,null,null,null,null,null,null,null,null,null,null,null,null,null,null,null,null,null,null,null,null,null,null,null,null,null,null,null,null,null,null,null,null,null,null,null,null,null,null,null,null,null,null,null,null,null,null,null,null,null,null,null,null,null,null,null,null,null,null,null,null,null,null,null,null,null,null,null,null,null,null,null,null,null,null,null,null,null,null,null,null,null,null,null,null,null,null,null,null,null,null,null,null,null,null,null,null,null,null,null,null,null,null,null,null,null,null,null,null,null,null,null,null,null,null,null,null,null,null,null,null,null,null,null,null,null,null,null,null,null,null,null,null,null,null,null,null,null,null,null,null,null,null,null,null,null,null,null,null,null,null,null,null,null,null,null,null,null,null,null,null,null,null,null,null,null,null,null,null,null,null,null,null,null,null,null,null,null,null,null,null,null,null,null,null,null,null,null,null,null,null,null,null,null,null,null,null,null,null,null,null,null,null,null,null,null,null,null,null,null,null,null,null,null,null,null,null,null,null,null,null,null,null,null,null,null,null,null,null,null,null,null,null,null,null,null,null,null,null,null,null,null,null,null,null,null,null,null,null,null,null,null,null,null,null,null,null,null,null,null,null,null,null,null,null,null,null,null,null,null,null,null,null,null,null,null,null,null,null,null,null,null,null,null,null,null,null,null,null,null,null,null,null,null,null,null,null,null,null,null,null,null,null,null,null,null,null,null,null,null,null,null,null,null,null,null,null,null,null,null,null,null,null,null,null,null,null,null,null,null,null,null,null,null,null,null,null,null,null,null,null,null,null,null,null,null,null,null,null,null,null,null,null,null,null,null,null,null,null,null,null,null,null,null,null,null,null,null,null,null,null,null,null,null,null,null,null,null,null,null,null,null,null,null,null,null,null,null,null,null,null,null,null,null,null,null,null,null,null,null,null,null,null,null,null,null,null,null,null,null,null,null,null,null,null,null,null,null,null,null,null,null,null,null,null,null,null,null,null,null,null,null,null,null,null,null,null,null,null,null,null,null,null,null,null,null,null,null,null,null,null,null,null,null,null,null,null,null,null,null,null,null,null,null,null,null,null,null,null,null,null,null,null,null,null,null,null,null,null,null,null,null,null,null,null,null,null,null,null,null,null,null,null,null,null,null,null,null,null,null,null,null,null,null,null,null,null,null,null,null,null,null,null,null,null,null,null,null,null,null,null,null,null,null,null,null,null,null,null,null,null,null,null,null,null,null,null,null,null,null,null,null,null,null,null,null,null,null,null,null,null,null,null,null,null,null,null,null,null,null,null,null,null,null,null,null,null,null,null,null,null,null,null,null,null,null,null,null,null,null,null,null,null,null,null,null,null,null,null,null,null,null,null,null,null,null,null,null,null,null,null,null,null,null,null,null,null,null,null,null,null,null,null,null,null,null,null,null,null,null,null,null,null,null,null,null,null,null,null,null,null,null,null,null,null,null,null,null,null,null,null,null,null,null,null,null,null,null,null,null,null,null,null,null,null,null,null,null,null,null,null,null,null,null,null,null,null,null,null,null,null,null,null,null,null,null,null,null,null,null,null,null,null,null,null,null,null,null,null,null,null,null,null,null,null,null,null,null,null,null,null,null,null,null,null,null,null,null,null,null,null,null,null,null,null,null,null,null,null,null,null,null,null,null,null,null,null,null,null,null,null,null,null,null,null,null,null,null,null,null,null,null,null,null,null,null,null,null,null,null,null,null,null,null,null,null,null,null,null,null,null,null,null,null,null,null,null,null,null,null,null,null,null,null,null,null,null,null,null,null,null,null,null,null,null,null,null,null,null,null,null,null,null,null,null,null,null,null,null,null,null,null,null,null,null,null,null,null,null,null,null,null,null,null,null,null,null,null,null,null,null,null,null,null,null,null,null,null,null,null,null,null,null,null,null,null,null,null,null,null,null,null,null,null,null,null,null,null,null,null,null,null,null,null,null,null,null,null,null,null,null,null,null,null,null,null,null,null,null,null,null,null,null,null,null,null,null,null,null,null,null,null,null,null,null,null,null,null,null,null,null,null,null,null,null,null,null,null,null,null,null,null,null,null,null,null,null,null,null,null,null,null,null,null,null,null,null,null,null,null,null,null,null,null,null,null,null,null,null,null,null,null,null,null,null,null,null,null,null,null,null,null,null,null,null,null,null,null,null,null,null,null,null,null,null,null,null,null,null,null,null,null,null,null,null,null,null,null,null,null,null,null,null,null,null,null,null,null,null,null,null,null,null,null,null,null,null,null,null,null,null,null,null,null,null,null,null,null,null,null,null,null,null,null,null,null,null,null,null,null,null,null,null,null,null,null,null,null,null,null,null,null,null,null,null,null,null,null,null,null,null,null,null,null,null,null,null,null,null,null,null,null,null,null,null,null,null,null,null,null,null,null,null,null,null,null,null,null,null,null,null,null,null,null,null,null,null,null,null,null,null,null,null,null,null,null,null,null,null,null,null,null,null,null,null,null,null,null,null,null,null,null,null,null,null,null,null,null,null,null,null,null,null,null,null,null,null,null,null,null,null,null,null,null,null,null,null,null,null,null,null,null,null,null,null,null,null,null,null,null,null,null,null,null,null,null,null,null,null,null,null,null,null,null,null,null,null,null,null,null,null,null,null,null,null,null,null,null,null,null,null,null,null,null,null,null,null,null,null,null,null,null,null,null,null,null,null,null,null,null,null,null,null,null,null,null,null,null,null,null,null,null,null,null,null,null,null,null,null,null,null,null,null,null,null,null,null,null,null,null,null,null,null,null,null,null,null,null,null,null,null,null,null,null,null,null,null,null,null,null,null,null,null,null,null,null,null,null,null,null,null,null,null,null,null,null,null,null,null,null,null,null,null,null,null,null,null,null,null,null,null,null,null,null,null,null,null,null,null,null,null,null,null,null,null,null,null,null,null,null,null,null,null,null,null,null,null,null,null,null,null,null,null,null,null,null,null,null,null,null,null,null,null,null,null,null,null,null,null,null,null,null,null,null,null,null,null,null,null,null,null,null,null,null,null,null,null,null,null,null,null,null,null,null,null,null,null,null,null,null,null,null,null,null,null,null,null,null,null,null,null,null,null,null,null,null,null,null,null,null,null,null,null,null,null,null,null,null,null,null,null,null,null,null,null,null,null,null,null,null,null,null,null,null,null,null,null,null,null,null,null,null,null,null,null,null,null,null,null,null,null,null,null,null,null,null,null,null,null,null,null,null,null,null,null,null,null,null,null,null,null,null,null,null,null,null,null,null,null,null,null,null,null,null,null,null,null,null,null,null,null,null,null,null,null,null,null,null,null,null,null,null,null,null,null,null,null,null,null,null,null,null,null,null,null,null,null,null,null,null,null,null,null,null,null,null,null,null,null,null,null,null,null,null,null,null,null,null,null,null,null,null,null,null,null,null,null,null,null,null,null,null,null,null,null,null,null,null,null,null,null,null,null,null,null,null,null,null,null,null,null,null,null,null,null,null,null,null,null,null,null,null,null,null,null,null,null,null,null,null,null,null,null,null,null,null,null,null,null,null,null,null,null,null,null,null,null,null,null,null,null,null,null,null,null,null,null,null,null,null,null,null,null,null,null,null,null,null,null,null,null,null,null,null,null,null,null,null,null,null,null,null,null,null,null,null,null,null,null,null,null,null,null,null,null,null,null,null,null,null,null,null,null,null,null,null,null,null,null,null,null,null,null,null,null,null,null,null,null,null,null,null,null,null,null,null,null,null,null,null,null,null,null,null,null,null,null,null,null,null,null,null,null,null,null,null,null,null,null,null,null,null,null,null,null,null,null,null,null,null,null,null,null,null,null,null,null,null,null,null,null,null,null,null,null,null,null,null,null,null,null,null,null,null,null,null,null,null,null,null,null,null,null,null,null,null,null,null,null,null,null,null,null,null,null,null,null,null,null,null,null,null,null,null,null,null,null,null,null,null,null,null,null,null,null,null,null,null,null,null,null,null,null,null,null,null,null,null,null,null,null,null,null,null,null,null,null,null,null,null,null,null,null,null,null,null,null,null,null,null,null,null,null,null,null,null,null,null,null,null,null,null,null,null,null,null,null,null,null,null,null,null,null,null,null,null,null,null,null,null,null,null,null,null,null,null,null,null,null,null,null,null,null,null,null,null,null,null,null,null,null,null,null,null,null,null,null,null,null,null,null,null,null,null,null,null,null,null,null,null,null,null,null,null,null,null,null,null,null,null,null,null,null,null,null,null,null,null,null,null,null,null,null,null,null,null,null,null,null,null,null,null,null,null,null,null,null,null,null,null,null,null,null,null,null,null,null,null,null,null,null,null,null,null,null,null,null,null,null,null,null,null,null,null,null,null,null,null,null,null,null,null,null,null,null,null,null,null,null,null,null,null,null,null,null,null,null,null,null,null,null,null,null,null,null,null,null,null,null,null,null,null,null,null,null,null,null,null,null,null,null,null,null,null,null,null,null,null,null,null,null,null,null,null,null,null,null,null,null,null,null,null,null,null,null,null,null,null,null,null,null,null,null,null,null,null,null,null,null,null,null,null,null,null,null,null,null,null,null,null,null,null,null,null,null,null,null,null,null,null,null,null,null,null,null,null,null,null,null,null,null,null,null,null,null,null,null,null,null,null,null,null,null,null,null,null,null,null,null,null,null,null,null,null,null,null,null,null,null,null,null,null,null,null,null,null,null,null,null,null,null,null,null,null,null,null,null,null,null,null,null,null,null,null,null,null,null,null,null,null,null,null,null,null,null,null,null,null,null,null,null,null,null,null,null,null,null,null,null,null,null,null,null,null,null,null,null,null,null,null,null,null,null,null,null,null,null,null,null,null,null,null,null,null,null,null,null,null,null,null,null,null,null,null,null,null,null,null,null,null,null,null,null,null,null,null,null,null,null,null,null,null,null,null,null,null,null,null,null,null,null,null,null,null,null,null,null,null,null,null,null,null,null,null,null,null,null,null,null,null,null,null,null,null,null,null,null,null,null,null,null,null,null,null,null,null,null,null,null,null,null,null,null,null,null,null,null,null,null,null,null,null,null,null,null,null,null,null,null,null,null,null,null,null,null,null,null,null,null,null,null,null,null,null,null,null,null,null,null,null,null,null,null,null,null,null,null,null,null,null,null,null,null,null,null,null,null,null,null,null,null,null,null,null,null,null,null,null,null,null,null,null,null,null,null,null,null,null,null,null,null,null,null,null,null,null,null,null,null,null,null,null,null,null,null,null,null,null,null,null,null,null,null,null,null,null,null,null,null,null,null,null,null,null,null,null,null,null,null,null,null,null,null,null,null,null,null,null,null,null,null,null,null,null,null,null,null,null,null,null,null,null,null,null,null,null,null,null,null,null,null,null,null,null,null,null,null,null,null,null,null,null,null,null,null,null,null,null,null,null,null,null,null,null,null,null,null,null,null,null,null,null,null,null,null,null,null,null,null,null,null,null,null,null,null,null,null,null,null,null,null,null,null,null,null,null,null,null,null,null,null,null,null,null,null,null,null,null,null,null,null,null,null,null,null,null,null,null,null,null,null,null,null,null,null,null,null,null,null,null,null,null,null,null,null,null,null,null,null,null,null,null,null,null,null,null,null,null,null,null,null,null,null,null,null,null,null,null,null,null,null,null,null,null,null,null,null,null,null,null,null,null,null,null,null,null,null,null,null,null,null,null,null,null,null,null,null,null,null,null,null,null,null,null,null,null,null,null,null,null,null,null,null,null,null,null,null,null,null,null,null,null,null,null,null,null,null,null,null,null,null,null,null,null,null,null,null,null,null,null,null,null,null,null,null,null,null,null,null,null,null,null,null,null,null,null,null,null,null,null,null,null,null,null,null,null,null,null,null,null,null,null,null,null,null,null,null,null,null,null,null,null,null,null,null,null,null,null,null,null,null,null,null,null,null,null,null,null,null,null,null,null,null,null,null,null,null,null,null,null,null,null,null,null,null,null,null,null,null,null,null,null,null,null,null,null,null,null,null,null,null,null,null,null,null,null,null,null,null,null,null,null,null,null,null,null,null,null,null,null,null,null,null,null,null,null,null,null,null,null,null,null,null,null,null,null,null,null,null,null,null,null,null,null,null,null,null,null,null,null,null,null,null,null,null,null,null,null,null,null,null,null,null,null,null,null,null,null,null,null,null,null,null,null,null,null,null,null,null,null,null,null,null,null,null,null,null,null,null,null,null,null,null,null,null,null,null,null,null,null,null,null,null,null,null,null,null,null,null,null,null,null,null,null,null,null,null,null,null,null,null,null,null,null,null,null,null,null,null,null,null,null,null,null,null,null,null,null,null,null,null,null,null,null,null,null,null,null,null,null,null,null,null,null,null,null,null,null,null,null,null,null,null,null,null,null,null,null,null,null,null,null,null,null,null,null,null,null,null,null,null,null,null,null,null,null,null,null,null,null,null,null,null,null,null,null,null,null,null,null,null,null,null,null,null,null,null,null,null,null,null,null,null,null,null,null,null,null,null,null,null,null,null,null,null,null,null,null,null,null,null,null,null,null,null,null,null,null,null,null,null,null,null,null,null,null,null,null,null,null,null,null,null,null,null,null,null,null,null,null,null,null,null,null,null,null,null,null,null,null,null,null,null,null,null,null,null,null,null,null,null,null,null,null,null,null,null,null,null,null,null,null,null,null,null,null,null,null,null,null,null,null,null,null,null,null,null,null,null,null,null,null,null,null,null,null,null,null,null,null,null,null,null,null,null,null,null,null,null,null,null,null,null,null,null,null,null,null,null,null,null,null,null,null,null,null,null,null,null,null,null,null,null,null,null,null,null,null,null,null,null,null,null,null,null,null,null,null,null,null,null,null,null,null,null,null,null,null,null,null,null,null,null,null,null,null,null,null,null,null,null,null,null,null,null,null,null,null,null,null,null,null,null,null,null,null,null,null,null,null,null,null,null,null,null,null,null,null,null,null,null,null,null,null,null,null,null,null,null,null,null,null,null,null,null,null,null,null,null,null,null,null,null,null,null,null,null,null,null,null,null,null,null,null,null,null,null,null,null,null,null,null,null,null,null,null,null,null,null,null,null,null,null,null,null,null,null,null,null,null,null,null,null,null,null,null,null,null,null,null,null,null,null,null,null,null,null,null,null,null,null,null,null,null,null,null,null,null,null,null,null,null,null,null,null,null,null,null,null,null,null,null,null,null,null,null,null,null,null,null,null,null,null,null,null,null,null,null,null,null,null,null,null,null,null,null,null,null,null,null,null,null,null,null,null,null,null,null,null,null,null,null,null,null,null,null,null,null,null,null,null,null,null,null,null,null,null,null,null,null,null,null,null,null,null,null,null,null,null,null,null,null,null,null,null,null,null,null,null,null,null,null,null,null,null,null,null,null,null,null,null,null,null,null,null,null,null,null,null,null,null,null,null,null,null,null,null,null,null,null,null,null,null,null,null,null,null,null,null,null,null,null,null,null,null,null,null,null,null,null,null,null,null,null,null,null,null,null,null,null,null,null,null,null,null,null,null,null,null,null,null,null,null,null,null,null,null,null,null,null,null,null,null,null,null,null,null,null,null,null,null,null,null,null,null,null,null,null,null,null,null,null,null,null,null,null,null,null,null,null,null,null,null,null,null,null,null,null,null,null,null,null,null,null,null,null,null,null,null,null,null,null,null,null,null,null,null,null,null,null,null,null,null,null,null,null,null,null,null,null,null,null,null,null,null,null,null,null,null,null,null,null,null,null,null,null,null,null,null,null,null,null,null,null,null,null,null,null,null,null,null,null,null,null,null,null,null,null,null,null,null,null,null,null,null,null,null,null,null,null,null,null,null,null,null,null,null,null,null,null,null,null,null,null,null,null,null,null,null,null,null,null,null,null,null,null,null,null,null,null,null,null,null,null,null,null,null,null,null,null,null,null,null,null,null,null,null,null,null,null,null,null,null,null,null,null,null,null,null,null,null,null,null,null,null,null,null,null,null,null,null,null,null,null,null,null,null,null,null,null,null,null,null,null,null,null,null,null,null,null,null,null,null,null,null,null,null,null,null,null,null,null,null,null,null,null,null,null,null,null,null,null,null,null,null,null,null,null,null,null,null,null,null,null,null,null,null,null,null,null,null,null,null,null,null,null,null,null,null,null,null,null,null,null,null,null,null,null,null,null,null,null,null,null,null,null,null,null,null,null,null,null,null,null,null,null,null,null,null,null,null,null,null,null,null,null,null,null,null,null,null,null,null,null,null,null,null,null,null,null,null,null,null,null,null,null,null,null,null,null,null,null,null,null,null,null,null,null,null,null,null,null,null,null,null,null,null,null,null,null,null,null,null,null,null,null,null,null,null,null,null,null,null,null,null,null,null,null,null,null,null,null,null,null,null,null,null,null,null,null,null,null,null,null,null,null,null,null,null,null,null,null,null,null,null,null,null,null,null,null,null,null,null,null,null,null,null,null,null,null,null,null,null,null,null,null,null,null,null,null,null,null,null,null,null,null,null,null,null,null,null,null,null,null,null,null,null,null,null,null,null,null,null,null,null,null,null,null,null,null,null,null,null,null,null,null,null,null,null,null,null,null,null,null,null,null,null,null,null,null,null,null,null,null,null,null,null,null,null,null,null,null,null,null,null,null,null,null,null,null,null,null,null,null,null,null,null,null,null,null,null,null,null,null,null,null,null,null,null,null,null,null,null,null,null,null,null,null,null,null,null,null,null,null,null,null,null,null,null,null,null,null,null,null,null,null,null,null,null,null,null,null,null,null,null,null,null,null,null,null,null,null,null,null,null,null,null,null,null,null,null,null,null,null,null,null,null,null,null,null,null,null,null,null,null,null,null,null,null,null,null,null,null,null,null,null,null,null,null,null,null,null,null,null,null,null,null,null,null,null,null,null,null,null,null,null,null,null,null,null,null,null,null,null,null,null,null,null,null,null,null,null,null,null,null,null,null,null,null,null,null,null,null,null,null,null,null,null,null,null,null,null,null,null,null,null,null,null,null,null,null,null,null,null,null,null,null,null,null,null,null,null,null,null,null,null,null,null,null,null,null,null,null,null,null,null,null,null,null,null,null,null,null,null,null,null,null,null,null,null,null,null,null,null,null,null,null,null,null,null,null,null,null,null,null,null,null,null,null,null,null,null,null,null,null,null,null,null,null,null,null,null,null,null,null,null,null,null,null,null,null,null,null,null,null,null,null,null,null,null,null,null,null,null,null,null,null,null,null,null,null,null,null,null,null,null,null,null,null,null,null,null,null,null,null,null,null,null,null,null,null,null,null,null,null,null,null,null,null,null,null,null,null,null,null,null,null,null,null,null,null,null,null,null,null,null,null,null,null,null,null,null,null,null,null,null,null,null,null,null,null,null,null,null,null,null,null,null,null,null,null,null,null,null,null,null,null,null,null,null,null,null,null,null,null,null,null,null,null,null,null,null,null,null,null,null,null,null,null,null,null,null,null,null,null,null,null,null,null,null,null,null,null,null,null,null,null,null,null,null,null,null,null,null,null,null,null,null,null,null,null,null,null,null,null,null,null,null,null,null,null,null,null,null,null,null,null,null,null,null,null,null,null,null,null,null,null,null,null,null,null,null,null,null,null,null,null,null,null,null,null,null,null,null,null,null,null,null,null,null,null,null,null,null,null,null,null,null,null,null,null,null,null,null,null,null,null,null,null,null,null,null,null,null,null,null,null,null,null,null,null,null,null,null,null,null,null,null,null,null,null,null,null,null,null,null,null,null,null,null,null,null,null,null,null,null,null,null,null,null,null,null,null,null,null,null,null,null,null,null,null,null,null,null,null,null,null,null,null,null,null,null,null,null,null,null,null,null,null,null,null,null,null,null,null,null,null,null,null,null,null,null,null,null,null,null,null,null,null,null,null,null,null,null,null,null,null,null,null,null,null,null,null,null,null,null,null,null,null,null,null,null,null,null,null,null,null,null,null,null,null,null,null,null,null,null,null,null,null,null,null,null,null,null,null,null,null,null,null,null,null,null,null,null,null,null,null,null,null,null,null,null,null,null,null,null,null,null,null,null,null,null,null,null,null,null,null,null,null,null,null,null,null,null,null,null,null,null,null,null,null,null,null,null,null,null,null,null,null,null,null,null,null,null,null,null,null,null,null,null,null,null,null,null,null,null,null,null,null,null,null,null,null,null,null,null,null,null,null,null,null,null,null,null,null,null,null,null,null,null,null,null,null,null,null,null,null,null,null,null,null,null,null,null,null,null,null,null,null,null,null,null,null,null,null,null,null,null,null,null,null,null,null,null,null,null,null,null,null,null,null,null,null,null,null,null,null,null,null,null,null,null,null,null,null,null,null,null,null,null,null,null,null,null,null,null,null,null,null,null,null,null,null,null,null,null,null,null,null,null,null,null,null,null,null,null,null,null,null,null,null,null,null,null,null,null,null,null,null,null,null,null,null,null,null,null,null,null,null,null,null,null,null,null,null,null,null,null,null,null,null,null,null,null,null,null,null,null,null,null,null,null,null,null,null,null,null,null,null,null,null,null,null,null,null,null,null,null,null,null,null,null,null,null,null,null,null,null,null,null,null,null,null,null,null,null,null,null,null,null,null,null,null,null,null,null,null,null,null,null,null,null,null,null,null,null,null,null,null,null,null,null,null,null,null,null,null,null,null,null,null,null,null,null,null,null,null,null,null,null,null,null,null,null,null,null,null,null,null,null,null,null,null,null,null,null,null,null,null,null,null,null,null,null,null,null,null,null,null,null,null,null,null,null,null,null,null,null,null,null,null,null,null,null,null,null,null,null,null,null,null,null,null,null,null,null,null,null,null,null,null,null,null,null,null,null,null,null,null,null,null,null,null,null,null,null,null,null,null,null,null,null,null,null,null,null,null,null,null,null,null,null,null,null,null,null,null,null,null,null,null,null,null,null,null,null,null,null,null,null,null,null,null,null,null,null,null,null,null,null,null,null,null,null,null,null,null,null,null,null,null,null,null,null,null,null,null,null,null,null,null,null,null,null,null,null,null,null,null,null,null,null,null,null,null,null,null,null,null,null,null,null,null,null,null,null,null,null,null,null,null,null,null,null,null,null,null,null,null,null,null,null,null,null,null,null,null,null,null,null,null,null,null,null,null,null,null,null,null,null,null,null,null,null,null,null,null,null,null,null,null,null,null,null,null,null,null,null,null,null,null,null,null,null,null,null,null,null,null,null,null,null,null,null,null,null,null,null,null,null,null,null,null,null,null,null,null,null,null,null,null,null,null,null,null,null,null,null,null,null,null,null,null,null,null,null,null,null,null,null,null,null,null,null,null,null,null,null,null,null,null,null,null,null,null,null,null,null,null,null,null,null,null,null,null,null,null,null,null,null,null,null,null,null,null,null,null,null,null,null,null,null,null,null,null,null,null,null,null,null,null,null,null,null,null,null,null,null,null,null,null,null,null,null,null,null,null,null,null,null,null,null,null,null,null,null,null,null,null,null,null,null,null,null,null,null,null,null,null,null,null,null,null,null,null,null,null,null,null,null,null,null,null,null,null,null,null,null,null,null,null,null,null,null,null,null,null,null,null,null,null,null,null,null,null,null,null,null,null,null,null,null,null,null,null,null,null,null,null,null,null,null,null,null,null,null,null,null,null,null,null,null,null,null,null,null,null,null,null,null,null,null,null,null,null,null,null,null,null,null,null,null,null,null,null,null,null,null,null,null,null,null,null,null,null,null,null,null,null,null,null,null,null,null,null,null,null,null,null,null,null,null,null,null,null,null,null,null,null,null,null,null,null,null,null,null,null,null,null,null,null,null,null,null,null,null,null,null,null,null,null,null,null,null,null,null,null,null,null,null,null,null,null,null,null,null,null,null,null,null,null,null,null,null,null,null,null,null,null,null,null,null,null,null,null,null,null,null,null,null,null,null,null,null,null,null,null,null,null,null,null,null,null,null,null,null,null,null,null,null,null,null,null,null,null,null,null,null,null,null,null,null,null,null,null,null,null,null,null,null,null,null,null,null,null,null,null,null,null,null,null,null,null,null,null,null,null,null,null,null,null,null,null,null,null,null,null,null,null,null,null,null,null,null,null,null,null,null,null,null,null,null,null,null,null,null,null,null,null,null,null,null,null,null,null,null,null,null,null,null,null,null,null,null,null,null,null,null,null,null,null,null,null,null,null,null,null,null,null,null,null,null,null,null,null,null,null,null,null,null,null,null,null,null,null,null,null,null,null,null,null,null,null,null,null,null,null,null,null,null,null,null,null,null,null,null,null,null,null,null,null,null,null,null,null,null,null,null,null,null,null,null,null,null,null,null,null,null,null,null,null,null,null,null,null,null,null,null,null,null,null,null,null,null,null,null,null,null,null,null,null,null,null,null,null,null,null,null,null,null,null,null,null,null,null,null,null,null,null,null,null,null,null,null,null,null,null,null,null,null,null,null,null,null,null,null,null,null,null,null,null,null,null,null,null,null,null,null,null,null,null,null,null,null,null,null,null,null,null,null,null,null,null,null,null,null,null,null,null,null,null,null,null,null,null,null,null,null,null,null,null,null,null,null,null,null,null,null,null,null,null,null,null,null,null,null,null,null,null,null,null,null,null,null,null,null,null,null,null,null,null,null,null,null,null,null,null,null,null,null,null,null,null,null,null,null,null,null,null,null,null,null,null,null,null,null,null,null,null,null,null,null,null,null,null,null,null,null,null,null,null,null,null,null,null,null,null,null,null,null,null,null,null,null,null,null,null,null,null,null,null,null,null,null,null,null,null,null,null,null,null,null,null,null,null,null,null,null,null,null,null,null,null,null,null,null,null,null,null,null,null,null,null,null,null,null,null,null,null,null,null,null,null,null,null,null,null,null,null,null,null,null,null,null,null,null,null,null,null,null,null,null,null,null,null,null,null,null,null,null,null,null,null,null,null,null,null,null,null,null,null,null,null,null,null,null,null,null,null,null,null,null,null,null,null,null,null,null,null,null,null,null,null,null,null,null,null,null,null,null,null,null,null,null,null,null,null,null,null,null,null,null,null,null,null,null,null,null,null,null,null,null,null,null,null,null,null,null,null,null,null,null,null,null,null,null,null,null,null,null,null,null,null,null,null,null,null,null,null,null,null,null,null,null,null,null,null,null,null,null,null,null,null,null,null,null,null,null,null,null,null,null,null,null,null,null,null,null,null,null,null,null,null,null,null,null,null,null,null,null,null,null,null,null,null,null,null,null,null,null,null,null,null,null,null,null,null,null,null,null,null,null,null,null,null,null,null,null,null,null,null,null,null,null,null,null,null,null,null,null,null,null,null,null,null,null,null,null,null,null,null,null,null,null,null,null,null,null,null,null,null,null,null,null,null,null,null,null,null,null,null,null,null,null,null,null,null,null,null,null,null,null,null,null,null,null,null,null,null,null,null,null,null,null,null,null,null,null,null,null,null,null,null,null,null,null,null,null,null,null,null,null,null,null,null,null,null,null,null,null,null,null,null,null,null,null,null,null,null,null,null,null,null,null,null,null,null,null,null,null,null,null,null,null,null,null,null,null,null,null,null,null,null,null,null,null,null,null,null,null,null,null,null,null,null,null,null,null,null,null,null,null,null,null,null,null,null,null,null,null,null,null,null,null,null,null,null,null,null,null,null,null,null,null,null,null,null,null,null,null,null,null,null,null,null,null,null,null,null,null,null,null,null,null,null,null,null,null,null,null,null,null,null,null,null,null,null,null,null,null,null,null,null,null,null,null,null,null,null,null,null,null,null,null,null,null,null,null,null,null,null,null,null,null,null,null,null,null,null,null,null,null,null,null,null,null,null,null,null,null,null,null,null,null,null,null,null,null,null,null,null,null,null,null,null,null,null,null,null,null,null,null,null,null,null,null,null,null,null,null,null,null,null,null,null,null,null,null,null,null,null,null,null,null,null,null,null,null,null,null,null,null,null,null,null,null,null,null,null,null,null,null,null,null,null,null,null,null,null,null,null,null,null,null,null,null,null,null,null,null,null,null,null,null,null,null,null,null,null,null,null,null,null,null,null,null,null,null,null,null,null,null,null,null,null,null,null,null,null,null,null,null,null,null,null,null,null,null,null,null,null,null,null,null,null,null,null,null,null,null,null,null,null,null,null,null,null,null,null,null,null,null,null,null,null,null,null,null,null,null,null,null,null,null,null,null,null,null,null,null,null,null,null,null,null,null,null,null,null,null,null,null,null,null,null,null,null,null,null,null,null,null,null,null,null,null,null,null,null,null,null,null,null,null,null,null,null,null,null,null,null,null,null,null,null,null,null,null,null,null,null,null,null,null,null,null,null,null,null,null,null,null,null,null,null,null,null,null,null,null,null,null,null,null,null,null,null,null,null,null,null,null,null,null,null,null,null,null,null,null,null,null,null,null,null,null,null,null,null,null,null,null,null,null,null,null,null,null,null,null,null,null,null,null,null,null,null,null,null,null,null,null,null,null,null,null,null,null,null,null,null,null,null,null,null,null,null,null,null,null,null,null,null,null,null,null,null,null,null,null,null,null,null,null,null,null,null,null,null,null,null,null,null,null,null,null,null,null,null,null,null,null,null,null,null,null,null,null,null,null,null,null,null,null,null,null,null,null,null,null,null,null,null,null,null,null,null,null,null,null,null,null,null,null,null,null,null,null,null,null,null,null,null,null,null,null,null,null,null,null,null,null,null,null,null,null,null,null,null,null,null,null,null,null,null,null,null,null,null,null,null,null,null,null,null,null,null,null,null,null,null,null,null,null,null,null,null,null,null,null,null,null,null,null,null,null,null,null,null,null,null,null,null,null,null,null,null,null,null,null,null,null,null,null,null,null,null,null,null,null,null,null,null,null,null,null,null,null,null,null,null,null,null,null,null,null,null,null,null,null,null,null,null,null,null,null,null,null,null,null,null,null,null,null,null,null,null,null,null,null,null,null,null,null,null,null,null,null,null,null,null,null,null,null,null,null,null,null,null,null,null,null,null,null,null,null,null,null,null,null,null,null,null,null,null,null,null,null,null,null,null,null,null,null,null,null,null,null,null,null,null,null,null,null,null,null,null,null,null,null,null,null,null,null,null,null,null,null,null,null,null,null,null,null,null,null,null,null,null,null,null,null,null,null,null,null,null,null,null,null,null,null,null,null,null,null,null,null,null,null,null,null,null,null,null,null,null,null,null,null,null,null,null,null,null,null,null,null,null,null,null,null,null,null,null,null,null,null,null,null,null,null,null,null,null,null,null,null,null,null,null,null,null,null,null,null,null,null,null,null,null,null,null,null,null,null,null,null,null,null,null,null,null,null,null,null,null,null,null,null,null,null,null,null,null,null,null,null,null,null,null,null,null,null,null,null,null,null,null,null,null,null,null,null,null,null,null,null,null,null,null,null,null,null,null,null,null,null,null,null,null,null,null,null,null,null,null,null,null,null,null,null,null,null,null,null,null,null,null,null,null,null,null,null,null,null,null,null,null,null,null,null,null,null,null,null,null,null,null,null,null,null,null,null,null,null,null,null,null,null,null,null,null,null,null,null,null,null,null,null,null,null,null,null,null,null,null,null,null,null,null,null,null,null,null,null,null,null,null,null,null,null,null,null,null,null,null,null,null,null,null,null,null,null,null,null,null,null,null,null,null,null,null,null,null,null,null,null,null,null,null,null,null,null,null,null,null,null,null,null,null,null,null,null,null,null,null,null,null,null,null,null,null,null,null,null,null,null,null,null,null,null,null,null,null,null,null,null,null,null,null,null,null,null,null,null,null,null,null,null,null,null,null,null,null,null,null,null,null,null,null,null,null,null,null,null,null,null,null,null,null,null,null,null,null,null,null,null,null,null,null,null,null,null,null,null,null,null,null,null,null,null,null,null,null,null,null,null,null,null,null,null,null,null,null,null,null,null,null,null,null,null,null,null,null,null,null,null,null,null,null,null,null,null,null,null,null,null,null,null,null,null,null,null,null,null,null,null,null,null,null,null,null,null,null,null,null,null,null,null,null,null,null,null,null,null,null,null,null,null,null,null,null,null,null,null,null,null,null,null,null,null,null,null,null,null,null,null,null,null,null,null,null,null,null,null,null,null,null,null,null,null,null,null,null,null,null,null,null,null,null,null,null,null,null,null,null,null,null,null,null,null,null,null,null,null,null,null,null,null,null,null,null,null,null,null,null,null,null,null,null,null,null,null,null,null,null,null,null,null,null,null,null,null,null,null,null,null,null,null,null,null,null,null,null,null,null,null,null,null,null,null,null,null,null,null,null,null,null,null,null,null,null,null,null,null,null,null,null,null,null,null,null,null,null,null,null,null,null,null,null,null,null,null,null,null,null,null,null,null,null,null,null,null,null,null,null,null,null,null,null,null,null,null,null,null,null,null,null,null,null,null,null,null,null,null,null,null,null,null,null,null,null,null,null,null,null,null,null,null,null,null,null,null,null,null,null,null,null,null,null,null,null,null,null,null,null,null,null,null,null,null,null,null,null,null,null,null,null,null,null,null,null,null,null,null,null,null,null,null,null,null,null,null,null,null,null,null,null,null,null,null,null,null,null,null,null,null,null,null,null,null,null,null,null,null,null,null,null,null,null,null,null,null,null,null,null,null,null,null,null,null,null,null,null,null,null,null,null,null,null,null,null,null,null,null,null,null,null,null,null,null,null,null,null,null,null,null,null,null,null,null,null,null,null,null,null,null,null,null,null,null,null,null,null,null,null,null,null,null,null,null,null,null,null,null,null,null,null,null,null,null,null,null,null,null,null,null,null,null,null,null,null,null,null,null,null,null,null,null,null,null,null,null,null,null,null,null,null,null,null,null,null,null,null,null,null,null,null,null,null,null,null,null,null,null,null,null,null,null,null,null,null,null,null,null,null,null,null,null,null,null,null,null,null,null,null,null,null,null,null,null,null,null,null,null,null,null,null,null,null,null,null,null,null,null,null,null,null,null,null,null,null,null,null,null,null,null,null,null,null,null,null,null,null,null,null,null,null,null,null,null,null,null,null,null,null,null,null,null,null,null,null,null,null,null,null,null,null,null,null,null,null,null,null,null,null,null,null,null,null,null,null,null,null,null,null,null,null,null,null,null,null,null,null,null,null,null,null,null,null,null,null,null,null,null,null,null,null,null,null,null,null,null,null,null,null,null,null,null,null,null,null,null,null,null,null,null,null,null,null,null,null,null,null,null,null,null,null,null,null,null,null,null,null,null,null,null,null,null,null,null,null,null,null,null,null,null,null,null,null,null,null,null,null,null,null,null,null,null,null,null,null,null,null,null,null,null,null,null,null,null,null,null,null,null,null,null,null,null,null,null,null,null,null,null,null,null,null,null,null,null,null,null,null,null,null,null,null,null,null,null,null,null,null,null,null,null,null,null,null,null,null,null,null,null,null,null,null,null,null,null,null,null,null,null,null,null,null,null,null,null,null,null,null,null,null,null,null,null,null,null,null,null,null,null,null,null,null,null,null,null,null,null,null,null,null,null,null,null,null,null,null,null,null,null,null,null,null,null,null,null,null,null,null,null,null,null,null,null,null,null,null,null,null,null,null,null,null,null,null,null,null,null,null,null,null,null,null,null,null,null,null,null,null,null,null,null,null,null,null,null,null,null,null,null,null,null,null,null,null,null,null,null,null,null,null,null,null,null,null,null,null,null,null,null,null,null,null,null,null,null,null,null,null,null,null,null,null,null,null,null,null,null,null,null,null,null,null,null,null,null,null,null,null,null,null,null,null,null,null,null,null,null,null,null,null,null,null,null,null,null,null,null,null,null,null,null,null,null,null,null,null,null,null,null,null,null,null,null,null,null,null,null,null,null,null,null,null,null,null,null,null,null,null,null,null,null,null,null,null,null,null,null,null,null,null,null,null,null,null,null,null,null,null,null,null,null,null,null,null,null,null,null,null,null,null,null,null,null,null,null,null,null,null,null,null,null,null,null,null,null,null,null,null,null,null,null,null,null,null,null,null,null,null,null,null,null,null,null,null,null,null,null,null,null,null,null,null,null,null,null,null,null,null,null,null,null,null,null,null,null,null,null,null,null,null,null,null,null,null,null,null,null,null,null,null,null,null,null,null,null,null,null,null,null,null,null,null,null,null,null,null,null,null,null,null,null,null,null,null,null,null,null,null,null,null,null,null,null,null,null,null,null,null,null,null,null,null,null,null,null,null,null,null,null,null,null,null,null,null,null,null,null,null,null,null,null,null,null,null,null,null,null,null,null,null,null,null,null,null,null,null,null,null,null,null,null,null,null,null,null,null,null,null,null,null,null,null,null,null,null,null,null,null,null,null,null,null,null,null,null,null,null,null,null,null,null,null,null,null,null,null,null,null,null,null,null,null,null,null,null,null,null,null,null,null,null,null,null,null,null,null,null,null,null,null,null,null,null,null,null,null,null,null,null,null,null,null,null,null,null,null,null,null,null,null,null,null,null,null,null,null,null,null,null,null,null,null,null,null,null,null,null,null,null,null,null,null,null,null,null,null,null,null,null,null,null,null,null,null,null,null,null,null,null,null,null,null,null,null,null,null,null,null,null,null,null,null,null,null,null,null,null,null,null,null,null,null,null,null,null,null,null,null,null,null,null,null,null,null,null,null,null,null,null,null,null,null,null,null,null,null,null,null,null,null,null,null,null,null,null,null,null,null,null,null,null,null,null,null,null,null,null,null,null,null,null,null,null,null,null,null,null,null,null,null,null,null,null,null,null,null,null,null,null,null,null,null,null,null,null,null,null,null,null,null,null,null,null,null,null,null,null,null,null,null,null,null,null,null,null,null,null,null,null,null,null,null,null,null,null,null,null,null,null,null,null,null,null,null,null,null,null,null,null,null,null,null,null,null,null,null,null,null,null,null,null,null,null,null,null,null,null,null,null,null,null,null,null,null,null,null,null,null,null,null,null,null,null,null,null,null,null,null,null,null,null,null,null,null,null,null,null,null,null,null,null,null,null,null,null,null,null,null,null,null,null,null,null,null,null,null,null,null,null,null,null,null,null,null,null,null,null,null,null,null,null,null,null,null,null,null,null,null,null,null,null,null,null,null,null,null,null,null,null,null,null,null,null,null,null,null,null,null,null,null,null,null,null,null,null,null,null,null,null,null,null,null,null,null,null,null,null,null,null,null,null,null,null,null,null,null,null,null,null,null,null,null,null,null,null,null,null,null,null,null,null,null,null,null,null,null,null,null,null,null,null,null,null,null,null,null,null,null,null,null,null,null,null,null,null,null,null,null,null,null,null,null,null,null,null,null,null,null,null,null,null,null,null,null,null,null,null,null,null,null,null,null,null,null,null,null,null,null,null,null,null,null,null,null,null,null,null,null,null,null,null,null,null,null,null,null,null,null,null,null,null,null,null,null,null,null,null,null,null,null,null,null,null,null,null,null,null,null,null,null,null,null,null,null,null,null,null,null,null,null,null,null,null,null,null,null,null,null,null,null,null,null,null,null,null,null,null,null,null,null,null,null,null,null,null,null,null,null,null,null,null,null,null,null,null,null,null,null,null,null,null,null,null,null,null,null,null,null,null,null,null,null,null,null,null,null,null,null,null,null,null,null,null,null,null,null,null,null,null,null,null,null,null,null,null,null,null,null,null,null,null,null,null,null,null,null,null,null,null,null,null,null,null,null,null,null,null,null,null,null,null,null,null,null,null,null,null,null,null,null,null,null,null,null,null,null,null,null,null,null,null,null,null,null,null,null,null,null,null,null,null,null,null,null,null,null,null,null,null,null,null,null,null,null,null,null,null,null,null,null,null,null,null,null,null,null,null,null,null,null,null,null,null,null,null,null,null,null,null,null,null,null,null,null,null,null,null,null,null,null,null,null,null,null,null,null,null,null,null,null,null,null,null,null,null,null,null,null,null,null,null,null,null,null,null,null,null,null,null,null,null,null,null,null,null,null,null,null,null,null,null,null,null,null,null,null,null,null,null,null,null,null,null,null,null,null,null,null,null,null,null,null,null,null,null,null,null,null,null,null,null,null,null,null,null,null,null,null,null,null,null,null,null,null,null,null,null,null,null,null,null,null,null,null,null,null,null,null,null,null,null,null,null,null,null,null,null,null,null,null,null,null,null,null,null,null,null,null,null,null,null,null,null,null,null,null,null,null,null,null,null,null,null,null,null,null,null,null,null,null,null,null,null,null,null,null,null,null,null,null,null,null,null,null,null,null,null,null,null,null,null,null,null,null,null,null,null,null,null,null,null,null,null,null,null,null,null,null,null,null,null,null,null,null,null,null,null,null,null,null,null,null,null,null,null,null,null,null,null,null,null,null,null,null,null,null,null,null,null,null,null,null,null,null,null,null,null,null,null,null,null,null,null,null,null,null,null,null,null,null,null,null,null,null,null,null,null,null,null,null,null,null,null,null,null,null,null,null,null,null,null,null,null,null,null,null,null,null,null,null,null,null,null,null,null,null,null,null,null,null,null,null,null,null,null,null,null,null,null,null,null,null,null,null,null,null,null,null,null,null,null,null,null,null,null,null,null,null,null,null,null,null,null,null,null,null,null,null,null,null,null,null,null,null,null,null,null,null,null,null,null,null,null,null,null,null,null,null,null,null,null,null,null,null,null,null,null,null,null,null,null,null,null,null,null,null,null,null,null,null,null,null,null,null,null,null,null,null,null,null,null,null,null,null,null,null,null,null,null,null,null,null,null,null,null,null,null,null,null,null,null,null,null,null,null,null,null,null,null,null,null,null,null,null,null,null,null,null,null,null,null,null,null,null,null,null,null,null,null,null,null,null,null,null,null,null,null,null,null,null,null,null,null,null,null,null,null,null,null,null,null,null,null,null,null,null,null,null,null,null,null,null,null,null,null,null,null,null,null,null,null,null,null,null,null,null,null,null,null,null,null,null,null,null,null,null,null,null,null,null,null,null,null,null,null,null,null,null,null,null,null,null,null,null,null,null,null,null,null,null,null,null,null,null,null,null,null,null,null,null,null,null,null,null,null,null,null,null,null,null,null,null,null,null,null,null,null,null,null,null,null,null,null,null,null,null,null,null,null,null,null,null,null,null,null,null,null,null,null,null,null,null,null,null,null,null,null,null,null,null,null,null,null,null,null,null,null,null,null,null,null,null,null,null,null,null,null,null,null,null,null,null,null,null,null,null,null,null,null,null,null,null,null,null,null,null,null,null,null,null,null,null,null,null,null,null,null,null,null,null,null,null,null,null,null,null,null,null,null,null,null,null,null,null,null,null,null,null,null,null,null,null,null,null,null,null,null,null,null,null,null,null,null,null,null,null,null,null,null,null,null,null,null,null,null,null,null,null,null,null,null,null,null,null,null,null,null,null,null,null,null,null,null,null,null,null,null,null,null,null,null,null,null,null,null,null,null,null,null,null,null,null,null,null,null,null,null,null,null,null,null,null,null,null,null,null,null,null,null,null,null,null,null,null,null,null,null,null,null,null,null,null,null,null,null,null,null,null,null,null,null,null,null,null,-1.4555035829544067,-0.99884098768234253]
["Focal Outcome (Y):","Failure",null,null,null,null,null,null,null,null,null,{"$f":"A3","v":"Focal Outcome (Y):"},"Failure",{"$f":"\"(\"&CHAR(65+COLUMN(N3)-COLUMN($N$3))&\")\"","v":"(A)"},{"$f":"\"(\"&CHAR(65+COLUMN(O3)-COLUMN($N$3))&\")\"","v":"(B)"},"(C)","(D)","(E)","(F)","(G)","(H)","(I)","(J)","(K)","(L)",null,null,"Additional functions in add-in",null,null,null,null,null,null,"Added 2022",null,null,null,null,null,null,null,null,null,null,null,null,null,null,null,null,null,null,null,null,null,null,null,null,null,null,null,null,null,null,null,null,null,null,null,null,null,null,null,null,null,null,null,null,null,null,null,null,null,null,null,null,null,null,null,null,null,null,null,null,null,null,null,null,null,null,null,null,null,null,null,null,null,null,null,null,null,null,null,null,null,null,null,null,null,null,null,null,null,null,null,null,null,null,null,null,null,null,null,null,null,null,null,null,null,null,null,null,null,null,null,null,null,null,null,null,null,null,null,null,null,null,null,null,null,null,null,null,null,null,null,null,null,null,null,null,null,null,null,null,null,null,null,null,null,null,null,null,null,null,null,null,null,null,null,null,null,null,null,null,null,null,null,null,null,null,null,null,null,null,null,null,null,null,null,null,null,null,null,null,null,null,null,null,null,null,null,null,null,null,null,null,null,null,null,null,null,null,null,null,null,null,null,null,null,null,null,null,null,null,null,null,null,null,null,null,null,null,null,null,null,null,null,null,null,null,null,null,null,null,null,null,null,null,null,null,null,null,null,null,null,null,null,null,null,null,null,null,null,null,null,null,null,null,null,null,null,null,null,null,null,null,null,null,null,null,null,null,null,null,null,null,null,null,null,null,null,null,null,null,null,null,null,null,null,null,null,null,null,null,null,null,null,null,null,null,null,null,null,null,null,null,null,null,null,null,null,null,null,null,null,null,null,null,null,null,null,null,null,null,null,null,null,null,null,null,null,null,null,null,null,null,null,null,null,null,null,null,null,null,null,null,null,null,null,null,null,null,null,null,null,null,null,null,null,null,null,null,null,null,null,null,null,null,null,null,null,null,null,null,null,null,null,null,null,null,null,null,null,null,null,null,null,null,null,null,null,null,null,null,null,null,null,null,null,null,null,null,null,null,null,null,null,null,null,null,null,null,null,null,null,null,null,null,null,null,null,null,null,null,null,null,null,null,null,null,null,null,null,null,null,null,null,null,null,null,null,null,null,null,null,null,null,null,null,null,null,null,null,null,null,null,null,null,null,null,null,null,null,null,null,null,null,null,null,null,null,null,null,null,null,null,null,null,null,null,null,null,null,null,null,null,null,null,null,null,null,null,null,null,null,null,null,null,null,null,null,null,null,null,null,null,null,null,null,null,null,null,null,null,null,null,null,null,null,null,null,null,null,null,null,null,null,null,null,null,null,null,null,null,null,null,null,null,null,null,null,null,null,null,null,null,null,null,null,null,null,null,null,null,null,null,null,null,null,null,null,null,null,null,null,null,null,null,null,null,null,null,null,null,null,null,null,null,null,null,null,null,null,null,null,null,null,null,null,null,null,null,null,null,null,null,null,null,null,null,null,null,null,null,null,null,null,null,null,null,null,null,null,null,null,null,null,null,null,null,null,null,null,null,null,null,null,null,null,null,null,null,null,null,null,null,null,null,null,null,null,null,null,null,null,null,null,null,null,null,null,null,null,null,null,null,null,null,null,null,null,null,null,null,null,null,null,null,null,null,null,null,null,null,null,null,null,null,null,null,null,null,null,null,null,null,null,null,null,null,null,null,null,null,null,null,null,null,null,null,null,null,null,null,null,null,null,null,null,null,null,null,null,null,null,null,null,null,null,null,null,null,null,null,null,null,null,null,null,null,null,null,null,null,null,null,null,null,null,null,null,null,null,null,null,null,null,null,null,null,null,null,null,null,null,null,null,null,null,null,null,null,null,null,null,null,null,null,null,null,null,null,null,null,null,null,null,null,null,null,null,null,null,null,null,null,null,null,null,null,null,null,null,null,null,null,null,null,null,null,null,null,null,null,null,null,null,null,null,null,null,null,null,null,null,null,null,null,null,null,null,null,null,null,null,null,null,null,null,null,null,null,null,null,null,null,null,null,null,null,null,null,null,null,null,null,null,null,null,null,null,null,null,null,null,null,null,null,null,null,null,null,null,null,null,null,null,null,null,null,null,null,null,null,null,null,null,null,null,null,null,null,null,null,null,null,null,null,null,null,null,null,null,null,null,null,null,null,null,null,null,null,null,null,null,null,null,null,null,null,null,null,null,null,null,null,null,null,null,null,null,null,null,null,null,null,null,null,null,null,null,null,null,null,null,null,null,null,null,null,null,null,null,null,null,null,null,null,null,null,null,null,null,null,null,null,null,null,null,null,null,null,null,null,null,null,null,null,null,null,null,null,null,null,null,null,null,null,null,null,null,null,null,null,null,null,null,null,null,null,null,null,null,null,null,null,null,null,null,null,null,null,null,null,null,null,null,null,null,null,null,null,null,null,null,null,null,null,null,null,null,null,null,null,null,null,null,null,null,null,null,null,null,null,null,null,null,null,null,null,null,null,null,null,null,null,null,null,null,null,null,null,null,null,null,null,null,null,null,null,null,null,null,null,null,null,null,null,null,null,null,null,null,null,null,null,null,null,null,null,null,null,null,null,null,null,null,null,null,null,null,null,null,null,null,null,null,null,null,null,null,null,null,null,null,null,null,null,null,null,null,null,null,null,null,null,null,null,null,null,null,null,null,null,null,null,null,null,null,null,null,null,null,null,null,null,null,null,null,null,null,null,null,null,null,null,null,null,null,null,null,null,null,null,null,null,null,null,null,null,null,null,null,null,null,null,null,null,null,null,null,null,null,null,null,null,null,null,null,null,null,null,null,null,null,null,null,null,null,null,null,null,null,null,null,null,null,null,null,null,null,null,null,null,null,null,null,null,null,null,null,null,null,null,null,null,null,null,null,null,null,null,null,null,null,null,null,null,null,null,null,null,null,null,null,null,null,null,null,null,null,null,null,null,null,null,null,null,null,null,null,null,null,null,null,null,null,null,null,null,null,null,null,null,null,null,null,null,null,null,null,null,null,null,null,null,null,null,null,null,null,null,null,null,null,null,null,null,null,null,null,null,null,null,null,null,null,null,null,null,null,null,null,null,null,null,null,null,null,null,null,null,null,null,null,null,null,null,null,null,null,null,null,null,null,null,null,null,null,null,null,null,null,null,null,null,null,null,null,null,null,null,null,null,null,null,null,null,null,null,null,null,null,null,null,null,null,null,null,null,null,null,null,null,null,null,null,null,null,null,null,null,null,null,null,null,null,null,null,null,null,null,null,null,null,null,null,null,null,null,null,null,null,null,null,null,null,null,null,null,null,null,null,null,null,null,null,null,null,null,null,null,null,null,null,null,null,null,null,null,null,null,null,null,null,null,null,null,null,null,null,null,null,null,null,null,null,null,null,null,null,null,null,null,null,null,null,null,null,null,null,null,null,null,null,null,null,null,null,null,null,null,null,null,null,null,null,null,null,null,null,null,null,null,null,null,null,null,null,null,null,null,null,null,null,null,null,null,null,null,null,null,null,null,null,null,null,null,null,null,null,null,null,null,null,null,null,null,null,null,null,null,null,null,null,null,null,null,null,null,null,null,null,null,null,null,null,null,null,null,null,null,null,null,null,null,null,null,null,null,null,null,null,null,null,null,null,null,null,null,null,null,null,null,null,null,null,null,null,null,null,null,null,null,null,null,null,null,null,null,null,null,null,null,null,null,null,null,null,null,null,null,null,null,null,null,null,null,null,null,null,null,null,null,null,null,null,null,null,null,null,null,null,null,null,null,null,null,null,null,null,null,null,null,null,null,null,null,null,null,null,null,null,null,null,null,null,null,null,null,null,null,null,null,null,null,null,null,null,null,null,null,null,null,null,null,null,null,null,null,null,null,null,null,null,null,null,null,null,null,null,null,null,null,null,null,null,null,null,null,null,null,null,null,null,null,null,null,null,null,null,null,null,null,null,null,null,null,null,null,null,null,null,null,null,null,null,null,null,null,null,null,null,null,null,null,null,null,null,null,null,null,null,null,null,null,null,null,null,null,null,null,null,null,null,null,null,null,null,null,null,null,null,null,null,null,null,null,null,null,null,null,null,null,null,null,null,null,null,null,null,null,null,null,null,null,null,null,null,null,null,null,null,null,null,null,null,null,null,null,null,null,null,null,null,null,null,null,null,null,null,null,null,null,null,null,null,null,null,null,null,null,null,null,null,null,null,null,null,null,null,null,null,null,null,null,null,null,null,null,null,null,null,null,null,null,null,null,null,null,null,null,null,null,null,null,null,null,null,null,null,null,null,null,null,null,null,null,null,null,null,null,null,null,null,null,null,null,null,null,null,null,null,null,null,null,null,null,null,null,null,null,null,null,null,null,null,null,null,null,null,null,null,null,null,null,null,null,null,null,null,null,null,null,null,null,null,null,null,null,null,null,null,null,null,null,null,null,null,null,null,null,null,null,null,null,null,null,null,null,null,null,null,null,null,null,null,null,null,null,null,null,null,null,null,null,null,null,null,null,null,null,null,null,null,null,null,null,null,null,null,null,null,null,null,null,null,null,null,null,null,null,null,null,null,null,null,null,null,null,null,null,null,null,null,null,null,null,null,null,null,null,null,null,null,null,null,null,null,null,null,null,null,null,null,null,null,null,null,null,null,null,null,null,null,null,null,null,null,null,null,null,null,null,null,null,null,null,null,null,null,null,null,null,null,null,null,null,null,null,null,null,null,null,null,null,null,null,null,null,null,null,null,null,null,null,null,null,null,null,null,null,null,null,null,null,null,null,null,null,null,null,null,null,null,null,null,null,null,null,null,null,null,null,null,null,null,null,null,null,null,null,null,null,null,null,null,null,null,null,null,null,null,null,null,null,null,null,null,null,null,null,null,null,null,null,null,null,null,null,null,null,null,null,null,null,null,null,null,null,null,null,null,null,null,null,null,null,null,null,null,null,null,null,null,null,null,null,null,null,null,null,null,null,null,null,null,null,null,null,null,null,null,null,null,null,null,null,null,null,null,null,null,null,null,null,null,null,null,null,null,null,null,null,null,null,null,null,null,null,null,null,null,null,null,null,null,null,null,null,null,null,null,null,null,null,null,null,null,null,null,null,null,null,null,null,null,null,null,null,null,null,null,null,null,null,null,null,null,null,null,null,null,null,null,null,null,null,null,null,null,null,null,null,null,null,null,null,null,null,null,null,null,null,null,null,null,null,null,null,null,null,null,null,null,null,null,null,null,null,null,null,null,null,null,null,null,null,null,null,null,null,null,null,null,null,null,null,null,null,null,null,null,null,null,null,null,null,null,null,null,null,null,null,null,null,null,null,null,null,null,null,null,null,null,null,null,null,null,null,null,null,null,null,null,null,null,null,null,null,null,null,null,null,null,null,null,null,null,null,null,null,null,null,null,null,null,null,null,null,null,null,null,null,null,null,null,null,null,null,null,null,null,null,null,null,null,null,null,null,null,null,null,null,null,null,null,null,null,null,null,null,null,null,null,null,null,null,null,null,null,null,null,null,null,null,null,null,null,null,null,null,null,null,null,null,null,null,null,null,null,null,null,null,null,null,null,null,null,null,null,null,null,null,null,null,null,null,null,null,null,null,null,null,null,null,null,null,null,null,null,null,null,null,null,null,null,null,null,null,null,null,null,null,null,null,null,null,null,null,null,null,null,null,null,null,null,null,null,null,null,null,null,null,null,null,null,null,null,null,null,null,null,null,null,null,null,null,null,null,null,null,null,null,null,null,null,null,null,null,null,null,null,null,null,null,null,null,null,null,null,null,null,null,null,null,null,null,null,null,null,null,null,null,null,null,null,null,null,null,null,null,null,null,null,null,null,null,null,null,null,null,null,null,null,null,null,null,null,null,null,null,null,null,null,null,null,null,null,null,null,null,null,null,null,null,null,null,null,null,null,null,null,null,null,null,null,null,null,null,null,null,null,null,null,null,null,null,null,null,null,null,null,null,null,null,null,null,null,null,null,null,null,null,null,null,null,null,null,null,null,null,null,null,null,null,null,null,null,null,null,null,null,null,null,null,null,null,null,null,null,null,null,null,null,null,null,null,null,null,null,null,null,null,null,null,null,null,null,null,null,null,null,null,null,null,null,null,null,null,null,null,null,null,null,null,null,null,null,null,null,null,null,null,null,null,null,null,null,null,null,null,null,null,null,null,null,null,null,null,null,null,null,null,null,null,null,null,null,null,null,null,null,null,null,null,null,null,null,null,null,null,null,null,null,null,null,null,null,null,null,null,null,null,null,null,null,null,null,null,null,null,null,null,null,null,null,null,null,null,null,null,null,null,null,null,null,null,null,null,null,null,null,null,null,null,null,null,null,null,null,null,null,null,null,null,null,null,null,null,null,null,null,null,null,null,null,null,null,null,null,null,null,null,null,null,null,null,null,null,null,null,null,null,null,null,null,null,null,null,null,null,null,null,null,null,null,null,null,null,null,null,null,null,null,null,null,null,null,null,null,null,null,null,null,null,null,null,null,null,null,null,null,null,null,null,null,null,null,null,null,null,null,null,null,null,null,null,null,null,null,null,null,null,null,null,null,null,null,null,null,null,null,null,null,null,null,null,null,null,null,null,null,null,null,null,null,null,null,null,null,null,null,null,null,null,null,null,null,null,null,null,null,null,null,null,null,null,null,null,null,null,null,null,null,null,null,null,null,null,null,null,null,null,null,null,null,null,null,null,null,null,null,null,null,null,null,null,null,null,null,null,null,null,null,null,null,null,null,null,null,null,null,null,null,null,null,null,null,null,null,null,null,null,null,null,null,null,null,null,null,null,null,null,null,null,null,null,null,null,null,null,null,null,null,null,null,null,null,null,null,null,null,null,null,null,null,null,null,null,null,null,null,null,null,null,null,null,null,null,null,null,null,null,null,null,null,null,null,null,null,null,null,null,null,null,null,null,null,null,null,null,null,null,null,null,null,null,null,null,null,null,null,null,null,null,null,null,null,null,null,null,null,null,null,null,null,null,null,null,null,null,null,null,null,null,null,null,null,null,null,null,null,null,null,null,null,null,null,null,null,null,null,null,null,null,null,null,null,null,null,null,null,null,null,null,null,null,null,null,null,null,null,null,null,null,null,null,null,null,null,null,null,null,null,null,null,null,null,null,null,null,null,null,null,null,null,null,null,null,null,null,null,null,null,null,null,null,null,null,null,null,null,null,null,null,null,null,null,null,null,null,null,null,null,null,null,null,null,null,null,null,null,null,null,null,null,null,null,null,null,null,null,null,null,null,null,null,null,null,null,null,null,null,null,null,null,null,null,null,null,null,null,null,null,null,null,null,null,null,null,null,null,null,null,null,null,null,null,null,null,null,null,null,null,null,null,null,null,null,null,null,null,null,null,null,null,null,null,null,null,null,null,null,null,null,null,null,null,null,null,null,null,null,null,null,null,null,null,null,null,null,null,null,null,null,null,null,null,null,null,null,null,null,null,null,null,null,null,null,null,null,null,null,null,null,null,null,null,null,null,null,null,null,null,null,null,null,null,null,null,null,null,null,null,null,null,null,null,null,null,null,null,null,null,null,null,null,null,null,null,null,null,null,null,null,null,null,null,null,null,null,null,null,null,null,null,null,null,null,null,null,null,null,null,null,null,null,null,null,null,null,null,null,null,null,null,null,null,null,null,null,null,null,null,null,null,null,null,null,null,null,null,null,null,null,null,null,null,null,null,null,null,null,null,null,null,null,null,null,null,null,null,null,null,null,null,null,null,null,null,null,null,null,null,null,null,null,null,null,null,null,null,null,null,null,null,null,null,null,null,null,null,null,null,null,null,null,null,null,null,null,null,null,null,null,null,null,null,null,null,null,null,null,null,null,null,null,null,null,null,null,null,null,null,null,null,null,null,null,null,null,null,null,null,null,null,null,null,null,null,null,null,null,null,null,null,null,null,null,null,null,null,null,null,null,null,null,null,null,null,null,null,null,null,null,null,null,null,null,null,null,null,null,null,null,null,null,null,null,null,null,null,null,null,null,null,null,null,null,null,null,null,null,null,null,null,null,null,null,null,null,null,null,null,null,null,null,null,null,null,null,null,null,null,null,null,null,null,null,null,null,null,null,null,null,null,null,null,null,null,null,null,null,null,null,null,null,null,null,null,null,null,null,null,null,null,null,null,null,null,null,null,null,null,null,null,null,null,null,null,null,null,null,null,null,null,null,null,null,null,null,null,null,null,null,null,null,null,null,null,null,null,null,null,null,null,null,null,null,null,null,null,null,null,null,null,null,null,null,null,null,null,null,null,null,null,null,null,null,null,null,null,null,null,null,null,null,null,null,null,null,null,null,null,null,null,null,null,null,null,null,null,null,null,null,null,null,null,null,null,null,null,null,null,null,null,null,null,null,null,null,null,null,null,null,null,null,null,null,null,null,null,null,null,null,null,null,null,null,null,null,null,null,null,null,null,null,null,null,null,null,null,null,null,null,null,null,null,null,null,null,null,null,null,null,null,null,null,null,null,null,null,null,null,null,null,null,null,null,null,null,null,null,null,null,null,null,null,null,null,null,null,null,null,null,null,null,null,null,null,null,null,null,null,null,null,null,null,null,null,null,null,null,null,null,null,null,null,null,null,null,null,null,null,null,null,null,null,null,null,null,null,null,null,null,null,null,null,null,null,null,null,null,null,null,null,null,null,null,null,null,null,null,null,null,null,null,null,null,null,null,null,null,null,null,null,null,null,null,null,null,null,null,null,null,null,null,null,null,null,null,null,null,null,null,null,null,null,null,null,null,null,null,null,null,null,null,null,null,null,null,null,null,null,null,null,null,null,null,null,null,null,null,null,null,null,null,null,null,null,null,null,null,null,null,null,null,null,null,null,null,null,null,null,null,null,null,null,null,null,null,null,null,null,null,null,null,null,null,null,null,null,null,null,null,null,null,null,null,null,null,null,null,null,null,null,null,null,null,null,null,null,null,null,null,null,null,null,null,null,null,null,null,null,null,null,null,null,null,null,null,null,null,null,null,null,null,null,null,null,null,null,null,null,null,null,null,null,null,null,null,null,null,null,null,null,null,null,null,null,null,null,null,null,null,null,null,null,null,null,null,null,null,null,null,null,null,null,null,null,null,null,null,null,null,null,null,null,null,null,null,null,null,null,null,null,null,null,null,null,null,null,null,null,null,null,null,null,null,null,null,null,null,null,null,null,null,null,null,null,null,null,null,null,null,null,null,null,null,null,null,null,null,null,null,null,null,null,null,null,null,null,null,null,null,null,null,null,null,null,null,null,null,null,null,null,null,null,null,null,null,null,null,null,null,null,null,null,null,null,null,null,null,null,null,null,null,null,null,null,null,null,null,null,null,null,null,null,null,null,null,null,null,null,null,null,null,null,null,null,null,null,null,null,null,null,null,null,null,null,null,null,null,null,null,null,null,null,null,null,null,null,null,null,null,null,null,null,null,null,null,null,null,null,null,null,null,null,null,null,null,null,null,null,null,null,null,null,null,null,null,null,null,null,null,null,null,null,null,null,null,null,null,null,null,null,null,null,null,null,null,null,null,null,null,null,null,null,null,null,null,null,null,null,null,null,null,null,null,null,null,null,null,null,null,null,null,null,null,null,null,null,null,null,null,null,null,null,null,null,null,null,null,null,null,null,null,null,null,null,null,null,null,null,null,null,null,null,null,null,null,null,null,null,null,null,null,null,null,null,null,null,null,null,null,null,null,null,null,null,null,null,null,null,null,null,null,null,null,null,null,null,null,null,null,null,null,null,null,null,null,null,null,null,null,null,null,null,null,null,null,null,null,null,null,null,null,null,null,null,null,null,null,null,null,null,null,null,null,null,null,null,null,null,null,null,null,null,null,null,null,null,null,null,null,null,null,null,null,null,null,null,null,null,null,null,null,null,null,null,null,null,null,null,null,null,null,null,null,null,null,null,null,null,null,null,null,null,null,null,null,null,null,null,null,null,null,null,null,null,null,null,null,null,null,null,null,null,null,null,null,null,null,null,null,null,null,null,null,null,null,null,null,null,null,null,null,null,null,null,null,null,null,null,null,null,null,null,null,null,null,null,null,null,null,null,null,null,null,null,null,null,null,null,null,null,null,null,null,null,null,null,null,null,null,null,null,null,null,null,null,null,null,null,null,null,null,null,null,null,null,null,null,null,null,null,null,null,null,null,null,null,null,null,null,null,null,null,null,null,null,null,null,null,null,null,null,null,null,null,null,null,null,null,null,null,null,null,null,null,null,null,null,null,null,null,null,null,null,null,null,null,null,null,null,null,null,null,null,null,null,null,null,null,null,null,null,null,null,null,null,null,null,null,null,null,null,null,null,null,null,null,null,null,null,null,null,null,null,null,null,null,null,null,null,null,null,null,null,null,null,null,null,null,null,null,null,null,null,null,null,null,null,null,null,null,null,null,null,null,null,null,null,null,null,null,null,null,null,null,null,null,null,null,null,null,null,null,null,null,null,null,null,null,null,null,null,null,null,null,null,null,null,null,null,null,null,null,null,null,null,null,null,null,null,null,null,null,null,null,null,null,null,null,null,null,null,null,null,null,null,null,null,null,null,null,null,null,null,null,null,null,null,null,null,null,null,null,null,null,null,null,null,null,null,null,null,null,null,null,null,null,null,null,null,null,null,null,null,null,null,null,null,null,null,null,null,null,null,null,null,null,null,null,null,null,null,null,null,null,null,null,null,null,null,null,null,null,null,null,null,null,null,null,null,null,null,null,null,null,null,null,null,null,null,null,null,null,null,null,null,null,null,null,null,null,null,null,null,null,null,null,null,null,null,null,null,null,null,null,null,null,null,null,null,null,null,null,null,null,null,null,null,null,null,null,null,null,null,null,null,null,null,null,null,null,null,null,null,null,null,null,null,null,null,null,null,null,null,null,null,null,null,null,null,null,null,null,null,null,null,null,null,null,null,null,null,null,null,null,null,null,null,null,null,null,null,null,null,null,null,null,null,null,null,null,null,null,null,null,null,null,null,null,null,null,null,null,null,null,null,null,null,null,null,null,null,null,null,null,null,null,null,null,null,null,null,null,null,null,null,null,null,null,null,null,null,null,null,null,null,null,null,null,null,null,null,null,null,null,null,null,null,null,null,null,null,null,null,null,null,null,null,null,null,null,null,null,null,null,null,null,null,null,null,null,null,null,null,null,null,null,null,null,null,null,null,null,null,null,null,null,null,null,null,null,null,null,null,null,null,null,null,null,null,null,null,null,null,null,null,null,null,null,null,null,null,null,null,null,null,null,null,null,null,null,null,null,null,null,null,null,null,null,null,null,null,null,null,null,null,null,null,null,null,null,null,null,null,null,null,null,null,null,null,null,null,null,null,null,null,null,null,null,null,null,null,null,null,null,null,null,null,null,null,null,null,null,null,null,null,null,null,null,null,null,null,null,null,null,null,null,null,null,null,null,null,null,null,null,null,null,null,null,null,null,null,null,null,null,null,null,null,null,null,null,null,null,null,null,null,null,null,null,null,null,null,null,null,null,null,null,null,null,null,null,null,null,null,null,null,null,null,null,null,null,null,null,null,null,null,null,null,null,null,null,null,null,null,null,null,null,null,null,null,null,null,null,null,null,null,null,null,null,null,null,null,null,null,null,null,null,null,null,null,null,null,null,null,null,null,null,null,null,null,null,null,null,null,null,null,null,null,null,null,null,null,null,null,null,null,null,null,null,null,null,null,null,null,null,null,null,null,null,null,null,null,null,null,null,null,null,null,null,null,null,null,null,null,null,null,null,null,null,null,null,null,null,null,null,null,null,null,null,null,null,null,null,null,null,null,null,null,null,null,null,null,null,null,null,null,null,null,null,null,null,null,null,null,null,null,null,null,null,null,null,null,null,null,null,null,null,null,null,null,null,null,null,null,null,null,null,null,null,null,null,null,null,null,null,null,null,null,null,null,null,null,null,null,null,null,null,null,null,null,null,null,null,null,null,null,null,null,null,null,null,null,null,null,null,null,null,null,null,null,null,null,null,null,null,null,null,null,null,null,null,null,null,null,null,null,null,null,null,null,null,null,null,null,null,null,null,null,null,null,null,null,null,null,null,null,null,null,null,null,null,null,null,null,null,null,null,null,null,null,null,null,null,null,null,null,null,null,null,null,null,null,null,null,null,null,null,null,null,null,null,null,null,null,null,null,null,null,null,null,null,null,null,null,null,null,null,null,null,null,null,null,null,null,null,null,null,null,null,null,null,null,null,null,null,null,null,null,null,null,null,null,null,null,null,null,null,null,null,null,null,null,null,null,null,null,null,null,null,null,null,null,null,null,null,null,null,null,null,null,null,null,null,null,null,null,null,null,null,null,null,null,null,null,null,null,null,null,null,null,null,null,null,null,null,null,null,null,null,null,null,null,null,null,null,null,null,null,null,null,null,null,null,null,null,null,null,null,null,null,null,null,null,null,null,null,null,null,null,null,null,null,null,null,null,null,null,null,null,null,null,null,null,null,null,null,null,null,null,null,null,null,null,null,null,null,null,null,null,null,null,null,null,null,null,null,null,null,null,null,null,null,null,null,null,null,null,null,null,null,null,null,null,null,null,null,null,null,null,null,null,null,null,null,null,null,null,null,null,null,null,null,null,null,null,null,null,null,null,null,null,null,null,null,null,null,null,null,null,null,null,null,null,null,null,null,null,null,null,null,null,null,null,null,null,null,null,null,null,null,null,null,null,null,null,null,null,null,null,null,null,null,null,null,null,null,null,null,null,null,null,null,null,null,null,null,null,null,null,null,null,null,null,null,null,null,null,null,null,null,null,null,null,null,null,null,null,null,null,null,null,null,null,null,null,null,null,null,null,null,null,null,null,null,null,null,null,null,null,null,null,null,null,null,null,null,null,null,null,null,null,null,null,null,null,null,null,null,null,null,null,null,null,null,null,null,null,null,null,null,null,null,null,null,null,null,null,null,null,null,null,null,null,null,null,null,null,null,null,null,null,null,null,null,null,null,null,null,null,null,null,null,null,null,null,null,null,null,null,null,null,null,null,null,null,null,null,null,null,null,null,null,null,null,null,null,null,null,null,null,null,null,null,null,null,null,null,null,null,null,null,null,null,null,null,null,null,null,null,null,null,null,null,null,null,null,null,null,null,null,null,null,null,null,null,null,null,null,null,null,null,null,null,null,null,null,null,null,null,null,null,null,null,null,null,null,null,null,null,null,null,null,null,null,null,null,null,null,null,null,null,null,null,null,null,null,null,null,null,null,null,null,null,null,null,null,null,null,null,null,null,null,null,null,null,null,null,null,null,null,null,null,null,null,null,null,null,null,null,null,null,null,null,null,null,null,null,null,null,null,null,null,null,null,null,null,null,null,null,null,null,null,null,null,null,null,null,null,null,null,null,null,null,null,null,null,null,null,null,null,null,null,null,null,null,null,null,null,null,null,null,null,null,null,null,null,null,null,null,null,null,null,null,null,null,null,null,null,null,null,null,null,null,null,null,null,null,null,null,null,null,null,null,null,null,null,null,null,null,null,null,null,null,null,null,null,null,null,null,null,null,null,null,null,null,null,null,null,null,null,null,null,null,null,null,null,null,null,null,null,null,null,null,null,null,null,null,null,null,null,null,null,null,null,null,null,null,null,null,null,null,null,null,null,null,null,null,null,null,null,null,null,null,null,null,null,null,null,null,null,null,null,null,null,null,null,null,null,null,null,null,null,null,null,null,null,null,null,null,null,null,null,null,null,null,null,null,null,null,null,null,null,null,null,null,null,null,null,null,null,null,null,null,null,null,null,null,null,null,null,null,null,null,null,null,null,null,null,null,null,null,null,null,null,null,null,null,null,null,null,null,null,null,null,null,null,null,null,null,null,null,null,null,null,null,null,null,null,null,null,null,null,null,null,null,null,null,null,null,null,null,null,null,null,null,null,null,null,null,null,null,null,null,null,null,null,null,null,null,null,null,null,null,null,null,null,null,null,null,null,null,null,null,null,null,null,null,null,null,null,null,null,null,null,null,null,null,null,null,null,null,null,null,null,null,null,null,null,null,null,null,null,null,null,null,null,null,null,null,null,null,null,null,null,null,null,null,null,null,null,null,null,null,null,null,null,null,null,null,null,null,null,null,null,null,null,null,null,null,null,null,null,null,null,null,null,null,null,null,null,null,null,null,null,null,null,null,null,null,null,null,null,null,null,null,null,null,null,null,null,null,null,null,null,null,null,null,null,null,null,null,null,null,null,null,null,null,null,null,null,null,null,null,null,null,null,null,null,null,null,null,null,null,null,null,null,null,null,null,null,null,null,null,null,null,null,null,null,null,null,null,null,null,null,null,null,null,null,null,null,null,null,null,null,null,null,null,null,null,null,null,null,null,null,null,null,null,null,null,null,null,null,null,null,null,null,null,null,null,null,null,null,null,null,null,null,null,null,null,null,null,null,null,null,null,null,null,null,null,null,null,null,null,null,null,null,null,null,null,null,null,null,null,null,null,null,null,null,null,null,null,null,null,null,null,null,null,null,null,null,null,null,null,null,null,null,null,null,null,null,null,null,null,null,null,null,null,null,null,null,null,null,null,null,null,null,null,null,null,null,null,null,null,null,null,null,null,null,null,null,null,null,null,null,null,null,null,null,null,null,null,null,null,null,null,null,null,null,null,null,null,null,null,null,null,null,null,null,null,null,null,null,null,null,null,null,null,null,null,null,null,null,null,null,null,null,null,null,null,null,null,null,null,null,null,null,null,null,null,null,null,null,null,null,null,null,null,null,null,null,null,null,null,null,null,null,null,null,null,null,null,null,null,null,null,null,null,null,null,null,null,null,null,null,null,null,null,null,null,null,null,null,null,null,null,null,null,null,null,null,null,null,null,null,null,null,null,null,null,null,null,null,null,null,null,null,null,null,null,null,null,null,null,null,null,null,null,null,null,null,null,null,null,null,null,null,null,null,null,null,null,null,null,null,null,null,null,null,null,null,null,null,null,null,null,null,null,null,null,null,null,null,null,null,null,null,null,null,null,null,null,null,null,null,null,null,null,null,null,null,null,null,null,null,null,null,null,null,null,null,null,null,null,null,null,null,null,null,null,null,null,null,null,null,null,null,null,null,null,null,null,null,null,null,null,null,null,null,null,null,null,null,null,null,null,null,null,null,null,null,null,null,null,null,null,null,null,null,null,null,null,null,null,null,null,null,null,null,null,null,null,null,null,null,null,null,null,null,null,null,null,null,null,null,null,null,null,null,null,null,null,null,null,null,null,null,null,null,null,null,null,null,null,null,null,null,null,null,null,null,null,null,null,null,null,null,null,null,null,null,null,null,null,null,null,null,null,null,null,null,null,null,null,null,null,null,null,null,null,null,null,null,null,null,null,null,null,null,null,null,null,null,null,null,null,null,null,null,null,null,null,null,null,null,null,null,null,null,null,null,null,null,null,null,null,null,null,null,null,null,null,null,null,null,null,null,null,null,null,null,null,null,null,null,null,null,null,null,null,null,null,null,null,null,null,null,null,null,null,null,null,null,null,null,null,null,null,null,null,null,null,null,null,null,null,null,null,null,null,null,null,null,null,null,null,null,null,null,null,null,null,null,null,null,null,null,null,null,null,null,null,null,null,null,null,null,null,null,null,null,null,null,null,null,null,null,null,null,null,null,null,null,null,null,null,null,null,null,null,null,null,null,null,null,null,null,null,null,null,null,null,null,null,null,null,null,null,null,null,null,null,null,null,null,null,null,null,null,null,null,null,null,null,null,null,null,null,null,null,null,null,null,null,null,null,null,null,null,null,null,null,null,null,null,null,null,null,null,null,null,null,null,null,null,null,null,null,null,null,null,null,null,null,null,null,null,null,null,null,null,null,null,null,null,null,null,null,null,null,null,null,null,null,null,null,null,null,null,null,null,null,null,null,null,null,null,null,null,null,null,null,null,null,null,null,null,null,null,null,null,null,null,null,null,null,null,null,null,null,null,null,null,null,null,null,null,null,null,null,null,null,null,null,null,null,null,null,null,null,null,null,null,null,null,null,null,null,null,null,null,null,null,null,null,null,null,null,null,null,null,null,null,null,null,null,null,null,null,null,null,null,null,null,null,null,null,null,null,null,null,null,null,null,null,null,null,null,null,null,null,null,null,null,null,null,null,null,null,null,null,null,null,null,null,null,null,null,null,null,null,null,null,null,null,null,null,null,null,null,null,null,null,null,null,null,null,null,null,null,null,null,null,null,null,null,null,null,null,null,null,null,null,null,null,null,null,null,null,null,null,null,null,null,null,null,null,null,null,null,null,null,null,null,null,null,null,null,null,null,null,null,null,null,null,null,null,null,null,null,null,null,null,null,null,null,null,null,null,null,null,null,null,null,null,null,null,null,null,null,null,null,null,null,null,null,null,null,null,null,null,null,null,null,null,null,null,null,null,null,null,null,null,null,null,null,null,null,null,null,null,null,null,null,null,null,null,null,null,null,null,null,null,null,null,null,null,null,null,null,null,null,null,null,null,null,null,null,null,null,null,null,null,null,null,null,null,null,null,null,null,null,null,null,null,null,null,null,null,null,null,null,null,null,null,null,null,null,null,null,null,null,null,null,null,null,null,null,null,null,null,null,null,null,null,null,null,null,null,null,null,null,null,null,null,null,null,null,null,null,null,null,null,null,null,null,null,null,null,null,null,null,null,null,null,null,null,null,null,null,null,null,null,null,null,null,null,null,null,null,null,null,null,null,null,null,null,null,null,null,null,null,null,null,null,null,null,null,null,null,null,null,null,null,null,null,null,null,null,null,null,null,null,null,null,null,null,null,null,null,null,null,null,null,null,null,null,null,null,null,null,null,null,null,null,null,null,null,null,null,null,null,null,null,null,null,null,null,null,null,null,null,null,null,null,null,null,null,null,null,null,null,null,null,null,null,null,null,null,null,null,null,null,null,null,null,null,null,null,null,null,null,null,null,null,null,null,null,null,null,null,null,null,null,null,null,null,null,null,null,null,null,null,null,null,null,null,null,null,null,null,null,null,null,null,null,null,null,null,null,null,null,null,null,null,null,null,null,null,null,null,null,null,null,null,null,null,null,null,null,null,null,null,null,null,null,null,null,null,null,null,null,null,null,null,null,null,null,null,null,null,null,null,null,null,null,null,null,null,null,null,null,null,null,null,null,null,null,null,null,null,null,null,null,null,null,null,null,null,null,null,null,null,null,null,null,null,null,null,null,null,null,null,null,null,null,null,null,null,null,null,null,null,null,null,null,null,null,null,null,null,null,null,null,null,null,null,null,null,null,null,null,null,null,null,null,null,null,null,null,null,null,null,null,null,null,null,null,null,null,null,null,null,null,null,null,null,null,null,null,null,null,null,null,null,null,null,null,null,null,null,null,null,null,null,null,null,null,null,null,null,null,null,null,null,null,null,null,null,null,null,null,null,null,null,null,null,null,null,null,null,null,null,null,null,null,null,null,null,null,null,null,null,null,null,null,null,null,null,null,null,null,null,null,null,null,null,null,null,null,null,null,null,null,null,null,null,null,null,null,null,null,null,null,null,null,null,null,null,null,null,null,null,null,null,null,null,null,null,null,null,null,null,null,null,null,null,null,null,null,null,null,null,null,null,null,null,null,null,null,null,null,null,null,null,null,null,null,null,null,null,null,null,null,null,null,null,null,null,null,null,null,null,null,null,null,null,null,null,null,null,null,null,null,null,null,null,null,null,null,null,null,null,null,null,null,null,null,null,null,null,null,null,null,null,null,null,null,null,null,null,null,null,null,null,null,null,null,null,null,null,null,null,null,null,null,null,null,null,null,null,null,null,null,null,null,null,null,null,null,null,null,null,null,null,null,null,null,null,null,null,null,null,null,null,null,null,null,null,null,null,null,null,null,null,null,null,null,null,null,null,null,null,null,null,null,null,null,null,null,null,null,null,null,null,null,null,null,null,null,null,null,null,null,null,null,null,null,null,null,null,null,null,null,null,null,null,null,null,null,null,null,null,null,null,null,null,null,null,null,null,null,null,null,null,null,null,null,null,null,null,null,null,null,null,null,null,null,null,null,null,null,null,null,null,null,null,null,null,null,null,null,null,null,null,null,null,null,null,null,null,null,null,null,null,null,null,null,null,null,null,null,null,null,null,null,null,null,null,null,null,null,null,null,null,null,null,null,null,null,null,null,null,null,null,null,null,null,null,null,null,null,null,null,null,null,null,null,null,null,null,null,null,null,null,null,null,null,null,null,null,null,null,null,null,null,null,null,null,null,null,null,null,null,null,null,null,null,null,null,null,null,null,null,null,null,null,null,null,null,null,null,null,null,null,null,null,null,null,null,null,null,null,null,null,null,null,null,null,null,null,null,null,null,null,null,null,null,null,null,null,null,null,null,null,null,null,null,null,null,null,null,null,null,null,null,null,null,null,null,null,null,null,null,null,null,null,null,null,null,null,null,null,null,null,null,null,null,null,null,null,null,null,null,null,null,null,null,null,null,null,null,null,null,null,null,null,null,null,null,null,null,null,null,null,null,null,null,null,null,null,null,null,null,null,null,null,null,null,null,null,null,null,null,null,null,null,null,null,null,null,null,null,null,null,null,null,null,null,null,null,null,null,null,null,null,null,null,null,null,null,null,null,null,null,null,null,null,null,null,null,null,null,null,null,null,null,null,null,null,null,null,null,null,null,null,null,null,null,null,null,null,null,null,null,null,null,null,null,null,null,null,null,null,null,null,null,null,null,null,null,null,null,null,null,null,null,null,null,null,null,null,null,null,null,null,null,null,null,null,null,null,null,null,null,null,null,null,null,null,null,null,null,null,null,null,null,null,null,null,null,null,null,null,null,null,null,null,null,null,null,null,null,null,null,null,null,null,null,null,null,null,null,null,null,null,null,null,null,null,null,null,null,null,null,null,null,null,null,null,null,null,null,null,null,null,null,null,null,null,null,null,null,null,null,null,null,null,null,null,null,null,null,null,null,null,null,null,null,null,null,null,null,null,null,null,null,null,null,null,null,null,null,null,null,null,null,null,null,null,null,null,null,null,null,null,null,null,null,null,null,null,null,null,null,null,null,null,null,null,null,null,null,null,null,null,null,null,null,null,null,null,null,null,null,null,null,null,null,null,null,null,null,null,null,null,null,null,null,null,null,null,null,null,null,null,null,null,null,null,null,null,null,null,null,null,null,null,null,null,null,null,null,null,null,null,null,null,null,null,null,null,null,null,null,null,null,null,null,null,null,null,null,null,null,null,null,null,null,null,null,null,null,null,null,null,null,null,null,null,null,null,null,null,null,null,null,null,null,null,null,null,null,null,null,null,null,null,null,null,null,null,null,null,null,null,null,null,null,null,null,null,null,null,null,null,null,null,null,null,null,null,null,null,null,null,null,null,null,null,null,null,null,null,null,null,null,null,null,null,null,null,null,null,null,null,null,null,null,null,null,null,null,null,null,null,null,null,null,null,null,null,null,null,null,null,null,null,null,null,null,null,null,null,null,null,null,null,null,null,null,null,null,null,null,null,null,null,null,null,null,null,null,null,null,null,null,null,null,null,null,null,null,null,null,null,null,null,null,null,null,null,null,null,null,null,null,null,null,null,null,null,null,null,null,null,null,null,null,null,null,null,null,null,null,null,null,null,null,null,null,null,null,null,null,null,null,null,null,null,null,null,null,null,null,null,null,null,null,null,null,null,null,null,null,null,null,null,null,null,null,null,null,null,null,null,null,null,null,null,null,null,null,null,null,null,null,null,null,null,null,null,null,null,null,null,null,null,null,null,null,null,null,null,null,null,null,null,null,null,null,null,null,null,null,null,null,null,null,null,null,null,null,null,null,null,null,null,null,null,null,null,null,null,null,null,null,null,null,null,null,null,null,null,null,null,null,null,null,null,null,null,null,null,null,null,null,null,null,null,null,null,null,null,null,null,null,null,null,null,null,null,null,null,null,null,null,null,null,null,null,null,null,null,null,null,null,null,null,null,null,null,null,null,null,null,null,null,null,null,null,null,null,null,null,null,null,null,null,null,null,null,null,null,null,null,null,null,null,null,null,null,null,null,null,null,null,null,null,null,null,null,null,null,null,null,null,null,null,null,null,null,null,null,null,null,null,null,null,null,null,null,null,null,null,null,null,null,null,null,null,null,null,null,null,null,null,null,null,null,null,null,null,null,null,null,null,null,null,null,null,null,null,null,null,null,null,null,null,null,null,null,null,null,null,null,null,null,null,null,null,null,null,null,null,null,null,null,null,null,null,null,null,null,null,null,null,null,null,null,null,null,null,null,null,null,null,null,null,null,null,null,null,null,null,null,null,null,null,null,null,null,null,null,null,null,null,null,null,null,null,null,null,null,null,null,null,null,null,null,null,null,null,null,null,null,null,null,null,null,null,null,null,null,null,null,null,null,null,null,null,null,null,null,null,null,null,null,null,null,null,null,null,null,null,null,null,null,null,null,null,null,null,null,null,null,null,null,null,null,null,null,null,null,null,null,null,null,null,null,null,null,null,null,null,null,null,null,null,null,null,null,null,null,null,null,null,null,null,null,null,null,null,null,null,null,null,null,null,null,null,null,null,null,null,null,null,null,null,null,null,null,null,null,null,null,null,null,null,null,null,null,null,null,null,null,null,null,null,null,null,null,null,null,null,null,null,null,null,null,null,null,null,null,null,null,null,null,null,null,null,null,null,null,null,null,null,null,null,null,null,null,null,null,null,null,null,null,null,null,null,null,null,null,null,null,null,null,null,null,null,null,null,null,null,null,null,null,null,null,null,null,null,null,null,null,null,null,null,null,null,null,null,null,null,null,null,null,null,null,null,null,null,null,null,null,null,null,null,null,null,null,null,null,null,null,null,null,null,null,null,null,null,null,null,null,null,null,null,null,null,null,null,null,null,null,null,null,null,null,null,null,null,null,null,null,null,null,null,null,null,null,null,null,null,null,null,null,null,null,null,null,null,null,null,null,null,null,null,null,null,null,null,null,null,null,null,null,null,null,null,null,null,null,null,null,null,null,null,null,null,null,null,null,null,null,null,null,null,null,null,null,null,null,null,null,null,null,null,null,null,null,null,null,null,null,null,null,null,null,null,null,null,null,null,null,null,null,null,null,null,null,null,null,null,null,null,null,null,null,null,null,null,null,null,null,null,null,null,null,null,null,null,null,null,null,null,null,null,null,null,null,null,null,null,null,null,null,null,null,null,null,null,null,null,null,null,null,null,null,null,null,null,null,null,null,null,null,null,null,null,null,null,null,null,null,null,null,null,null,null,null,null,null,null,null,null,null,null,null,null,null,null,null,null,null,null,null,null,null,null,null,null,null,null,null,null,null,null,null,null,null,null,null,null,null,null,null,null,null,null,null,null,null,null,null,null,null,null,null,null,null,null,null,null,null,null,null,null,null,null,null,null,null,null,null,null,null,null,null,null,null,null,null,null,null,null,null,null,null,null,null,null,null,null,null,null,null,null,null,null,null,null,null,null,null,null,null,null,null,null,null,null,null,null,null,null,null,null,null,null,null,null,null,null,null,null,null,null,null,null,null,null,null,null,null,null,null,null,null,null,null,null,null,null,null,null,null,null,null,null,null,null,null,null,null,null,null,null,null,null,null,null,null,null,null,null,null,null,null,null,null,null,null,null,null,null,null,null,null,null,null,null,null,null,null,null,null,null,null,null,null,null,null,null,null,null,null,null,null,null,null,null,null,null,null,null,null,null,null,null,null,null,null,null,null,null,null,null,null,null,null,null,null,null,null,null,null,null,null,null,null,null,null,null,null,null,null,null,null,null,null,null,null,null,null,null,null,null,null,null,null,null,null,null,null,null,null,null,null,null,null,null,null,null,null,null,null,null,null,null,null,null,null,null,null,null,null,null,null,null,null,null,null,null,null,null,null,null,null,null,null,null,null,null,null,null,null,null,null,null,null,null,null,null,null,null,null,null,null,null,null,null,null,null,null,null,null,null,null,null,null,null,null,null,null,null,null,null,null,null,null,null,null,null,null,null,null,null,null,null,null,null,null,null,null,null,null,null,null,null,null,null,null,null,null,null,null,null,null,null,null,null,null,null,null,null,null,null,null,null,null,null,null,null,null,null,null,null,null,null,null,null,null,null,null,null,null,null,null,null,null,null,null,null,null,null,null,null,null,null,null,null,null,null,null,null,null,null,null,null,null,null,null,null,null,null,null,null,null,null,null,null,null,null,null,null,null,null,null,null,null,null,null,null,null,null,null,null,null,null,null,null,null,null,null,null,null,null,null,null,null,null,null,null,null,null,null,null,null,null,null,null,null,null,null,null,null,null,null,null,null,null,null,null,null,null,null,null,null,null,null,null,null,null,null,null,null,null,null,null,null,null,null,null,null,null,null,null,null,null,null,null,null,null,null,null,null,null,null,null,null,null,null,null,null,null,null,null,null,null,null,null,null,null,null,null,null,null,null,null,null,null,null,null,null,null,null,null,null,null,null,null,null,null,null,null,null,null,null,null,null,null,null,null,null,null,null,null,null,null,null,null,null,null,null,null,null,null,null,null,null,null,null,null,null,null,null,null,null,null,null,null,null,null,null,null,null,null,null,null,null,null,null,null,null,null,null,null,null,null,null,null,null,null,null,null,null,null,null,null,null,null,null,null,null,null,null,null,null,null,null,null,null,null,null,null,null,null,null,null,null,null,null,null,null,null,null,null,null,null,null,null,null,null,null,null,null,null,null,null,null,null,null,null,null,null,null,null,null,null,null,null,null,null,null,null,null,null,null,null,null,null,null,null,null,null,null,null,null,null,null,null,null,null,null,null,null,null,null,null,null,null,null,null,null,null,null,null,null,null,null,null,null,null,null,null,null,null,null,null,null,null,null,null,null,null,null,null,null,null,null,null,null,null,null,null,null,null,null,null,null,null,null,null,null,null,null,null,null,null,null,null,null,null,null,null,null,null,null,null,null,null,null,null,null,null,null,null,null,null,null,null,null,null,null,null,null,null,null,null,null,null,null,null,null,null,null,null,null,null,null,null,null,null,null,null,null,null,null,null,null,null,null,null,null,null,null,null,null,null,null,null,null,null,null,null,null,null,null,null,null,null,null,null,null,null,null,null,null,null,null,null,null,null,null,null,null,null,null,null,null,null,null,null,null,null,null,null,null,null,null,null,null,null,null,null,null,null,null,null,null,null,null,null,null,null,null,null,null,null,null,null,null,null,null,null,null,null,null,null,null,null,null,null,null,null,null,null,null,null,null,null,null,null,null,null,null,null,null,null,null,null,null,null,null,null,null,null,null,null,null,null,null,null,null,null,null,null,null,null,null,null,null,null,null,null,null,null,null,null,null,null,null,null,null,null,null,null,null,null,null,null,null,null,null,null,null,null,null,null,null,null,null,null,null,null,null,null,null,null,null,null,null,null,null,null,null,null,null,null,null,null,null,null,null,null,null,null,null,null,null,null,null,null,null,null,null,null,null,null,null,null,null,null,null,null,null,null,null,null,null,null,null,null,null,null,null,null,null,null,null,null,null,null,null,null,null,null,null,null,null,null,null,null,null,null,null,null,null,null,null,null,null,null,null,null,null,null,null,null,null,null,null,null,null,null,null,null,null,null,null,null,null,null,null,null,null,null,null,null,null,null,null,null,null,null,null,null,null,null,null,null,null,null,null,null,null,null,null,null,null,null,null,null,null,null,null,null,null,null,null,null,null,null,null,null,null,null,null,null,null,null,null,null,null,null,null,null,null,null,null,null,null,null,null,null,null,null,null,null,null,null,null,null,null,null,null,null,null,null,null,null,null,null,null,null,null,null,null,null,null,null,null,null,null,null,null,null,null,null,null,null,null,null,null,null,null,null,null,null,null,null,null,null,null,null,null,null,null,null,null,null,null,null,null,null,null,null,null,null,null,null,null,null,null,null,null,null,null,null,null,null,null,null,null,null,null,null,null,null,null,null,null,null,null,null,null,null,null,null,null,null,null,null,null,null,null,null,null,null,null,null,null,null,null,null,null,null,null,null,null,null,null,null,null,null,null,null,null,null,null,null,null,null,null,null,null,null,null,null,null,null,null,null,null,null,null,null,null,null,null,null,null,null,null,null,null,null,null,null,null,null,null,null,null,null,null,null,null,null,null,null,null,null,null,null,null,null,null,null,null,null,null,null,null,null,null,null,null,null,null,null,null,null,null,null,null,null,null,null,null,null,null,null,null,null,null,null,null,null,null,null,null,null,null,null,null,null,null,null,null,null,null,null,null,null,null,null,null,null,null,null,null,null,null,null,null,null,null,null,null,null,null,null,null,null,null,null,null,null,null,null,null,null,null,null,null,null,null,null,null,null,null,null,null,null,null,null,null,null,null,null,null,null,null,null,null,null,null,null,null,null,null,null,null,null,null,null,null,null,null,null,null,null,null,null,null,null,null,null,null,null,null,null,null,null,null,null,null,null,null,null,null,null,null,null,null,null,null,null,null,null,null,null,null,null,null,null,null,null,null,null,null,null,null,null,null,null,null,null,null,null,null,null,null,null,null,null,null,null,null,null,null,null,null,null,null,null,null,null,null,null,null,null,null,null,null,null,null,null,null,null,null,null,null,null,null,null,null,null,null,null,null,null,null,null,null,null,null,null,null,null,null,null,null,null,null,null,null,null,null,null,null,null,null,null,null,null,null,null,null,null,null,null,null,null,null,null,null,null,null,null,null,null,null,null,null,null,null,null,null,null,null,null,null,null,null,null,null,null,null,null,null,null,null,null,null,null,null,null,null,null,null,null,null,null,null,null,null,null,null,null,null,null,null,null,null,null,null,null,null,null,null,null,null,null,null,null,null,null,null,null,null,null,null,null,null,null,null,null,null,null,null,null,null,null,null,null,null,null,null,null,null,null,null,null,null,null,null,null,null,null,null,null,null,null,null,null,null,null,null,null,null,null,null,null,null,null,null,null,null,null,null,null,null,null,null,null,null,null,null,null,null,null,null,null,null,null,null,null,null,null,null,null,null,null,null,null,null,null,null,null,null,null,null,null,null,null,null,null,null,null,null,null,null,null,null,null,null,null,null,null,null,null,null,null,null,null,null,null,null,null,null,null,null,null,null,null,null,null,null,null,null,null,null,null,null,null,null,null,null,null,null,null,null,null,null,null,null,null,null,null,null,null,null,null,null,null,null,null,null,null,null,null,null,null,null,null,null,null,null,null,null,null,null,null,null,null,null,null,null,null,null,null,null,null,null,null,null,null,null,null,null,null,null,null,null,null,null,null,null,null,null,null,null,null,null,null,null,null,null,null,null,null,null,null,null,null,null,null,null,null,null,null,null,null,null,null,null,null,null,null,null,null,null,null,null,null,null,null,null,null,null,null,null,null,null,null,null,null,null,null,null,null,null,null,null,null,null,null,null,null,null,null,null,null,null,null,null,null,null,null,null,null,null,null,null,null,null,null,null,null,null,null,null,null,null,null,null,null,null,null,null,null,null,null,null,null,null,null,null,null,null,null,null,null,null,null,null,null,null,null,null,null,null,null,null,null,null,null,null,null,null,null,null,null,null,null,null,null,null,null,null,null,null,null,null,null,null,null,null,null,null,null,null,null,null,null,null,null,null,null,null,null,null,null,null,null,null,null,null,null,null,null,null,null,null,null,null,null,null,null,null,null,null,null,null,null,null,null,null,null,null,null,null,null,null,null,null,null,null,null,null,null,null,null,null,null,null,null,null,null,null,null,null,null,null,null,null,null,null,null,null,null,null,null,null,null,null,null,null,null,null,null,null,null,null,null,null,null,null,null,null,null,null,null,null,null,null,null,null,null,null,null,null,null,null,null,null,null,null,null,null,null,null,null,null,null,null,null,null,null,null,null,null,null,null,null,null,null,null,null,null,null,null,null,null,null,null,null,null,null,null,null,null,null,null,null,null,null,null,null,null,null,null,null,null,null,null,null,null,null,null,null,null,null,null,null,null,null,null,null,null,null,null,null,null,null,null,null,null,null,null,null,null,null,null,null,null,null,null,null,null,null,null,null,null,null,null,null,null,null,null,null,null,null,null,null,null,null,null,null,null,null,null,null,null,null,null,null,null,null,null,null,null,null,null,null,null,null,null,null,null,null,null,null,null,null,null,null,null,null,null,null,null,null,null,null,null,null,null,null,null,null,null,null,null,null,null,null,null,null,null,null,null,null,null,null,null,null,null,null,null,null,null,null,null,null,null,null,null,null,null,null,null,null,null,null,null,null,null,null,null,null,null,null,null,null,null,null,null,null,null,null,null,null,null,null,null,null,null,null,null,null,null,null,null,null,null,null,null,null,null,null,null,null,null,null,null,null,null,null,null,null,null,null,null,null,null,null,null,null,null,null,null,null,null,null,null,null,null,null,null,null,null,null,null,null,null,null,null,null,null,null,null,null,null,null,null,null,null,null,null,null,null,null,null,null,null,null,null,null,null,null,null,null,null,null,null,null,null,null,null,null,null,null,null,null,null,null,null,null,null,null,null,null,null,null,null,null,null,null,null,null,null,null,null,null,null,null,null,null,null,null,null,null,null,null,null,null,null,null,null,null,null,null,null,null,null,null,null,null,null,null,null,null,null,null,null,null,null,null,null,null,null,null,null,null,null,null,null,null,null,null,null,null,null,null,null,null,null,null,null,null,null,null,null,null,null,null,null,null,null,null,null,null,null,null,null,null,null,null,null,null,null,null,null,null,null,null,null,null,null,null,null,null,null,null,null,null,null,null,null,null,null,null,null,null,null,null,null,null,null,null,null,null,null,null,null,null,null,null,null,null,null,null,null,null,null,null,null,null,null,null,null,null,null,null,null,null,null,null,null,null,null,null,null,null,null,null,null,null,null,null,null,null,null,null,null,null,null,null,null,null,null,null,null,null,null,null,null,null,null,null,null,null,null,null,null,null,null,null,null,null,null,null,null,null,null,null,null,null,null,null,null,null,null,null,null,null,null,null,null,null,null,null,null,null,null,null,null,null,null,null,null,null,null,null,null,null,null,null,null,null,null,null,null,null,null,null,null,null,null,null,null,null,null,null,null,null,null,null,null,null,null,null,null,null,null,null,null,null,null,null,null,null,null,null,null,null,null,null,null,null,null,null,null,null,null,null,null,null,null,null,null,null,null,null,null,null,null,null,null,null,null,null,null,null,null,null,null,null,null,null,null,null,null,null,null,null,null,null,null,null,null,null,null,null,null,null,null,null,null,null,null,null,null,null,null,null,null,null,null,null,null,null,null,null,null,null,null,null,null,null,null,null,null,null,null,null,null,null,null,null,null,null,null,null,null,null,null,null,null,null,null,null,null,null,null,null,null,null,null,null,null,null,null,null,null,null,null,null,null,null,null,null,null,null,null,null,null,null,null,null,null,null,null,null,null,null,null,null,null,null,null,null,null,null,null,null,null,null,null,null,null,null,null,null,null,null,null,null,null,null,null,null,null,null,null,null,null,null,null,null,null,null,null,null,null,null,null,null,null,null,null,null,null,null,null,null,null,null,null,null,null,null,null,null,null,null,null,null,null,null,null,null,null,null,null,null,null,null,null,null,null,null,null,null,null,null,null,null,null,null,null,null,null,null,null,null,null,null,null,null,null,null,null,null,null,null,null,null,null,null,null,null,null,null,null,null,null,null,null,null,null,null,null,null,null,null,null,null,null,null,null,null,null,null,null,null,null,null,null,null,null,null,null,null,null,null,null,null,null,null,null,null,null,null,null,null,null,null,null,null,null,null,null,null,null,null,null,null,null,null,null,null,null,null,null,null,null,null,null,null,null,null,null,null,null,null,null,null,null,null,null,null,null,null,null,null,null,null,null,null,null,null,null,null,null,null,null,null,null,null,null,null,null,null,null,null,null,null,null,null,null,null,null,null,null,null,null,null,null,null,null,null,null,null,null,null,null,null,null,null,null,null,null,null,null,null,null,null,null,null,-1.4557293653488159,-1.0087306499481201]
[0.1,0.45,0.44999999999999996,1,null,null,null,null,null,null,"Sample2",7,3,2,1,0.4,0.75,{"$f":"K25& \" (\"&TEXT(Q25,\"##%\")&\")\"","v":"Sample2 (75%)"},null,null,null,null,null,null,null,null,null,null,43,48,64,55,42,46,3,74,2,94,58,36,85,78,78,43,null,null,null,null,null,null,null,null,null,null,null,null,null,null,null,null,null,null,null,null,null,null,null,null,null,null,null,null,null,null,null,null,null,null,null,null,null,null,null,null,null,null,null,null,null,null,null,null,null,null,null,null,null,null,null,null,null,null,null,null,null,null,null,null,null,null,null,null,null,null,null,null,null,null,null,null,null,null,null,null,null,null,null,null,null,null,null,null,null,null,null,null,null,null,null,null,null,null,null,null,null,null,null,null,null,null,null,null,null,null,null,null,null,null,null,null,null,null,null,null,null,null,null,null,null,null,null,null,null,null,null,null,null,null,null,null,null,null,null,null,null,null,null,null,null,null,null,null,null,null,null,null,null,null,null,null,null,null,null,null,null,null,null,null,null,null,null,null,null,null,null,null,null,null,null,null,null,null,null,null,null,null,null,null,null,null,null,null,null,null,null,null,null,null,null,null,null,null,null,null,null,null,null,null,null,null,null,null,null,null,null,null,null,null,null,null,null,null,null,null,null,null,null,null,null,null,null,null,null,null,null,null,null,null,null,null,null,null,null,null,null,null,null,null,null,null,null,null,null,null,null,null,null,null,null,null,null,null,null,null,null,null,null,null,null,null,null,null,null,null,null,null,null,null,null,null,null,null,null,null,null,null,null,null,null,null,null,null,null,null,null,null,null,null,null,null,null,null,null,null,null,null,null,null,null,null,null,null,null,null,null,null,null,null,null,null,null,null,null,null,null,null,null,null,null,null,null,null,null,null,null,null,null,null,null,null,null,null,null,null,null,null,null,null,null,null,null,null,null,null,null,null,null,null,null,null,null,null,null,null,null,null,null,null,null,null,null,null,null,null,null,null,null,null,null,null,null,null,null,null,null,null,null,null,null,null,null,null,null,null,null,null,null,null,null,null,null,null,null,null,null,null,null,null,null,null,null,null,null,null,null,null,null,null,null,null,null,null,null,null,null,null,null,null,null,null,null,null,null,null,null,null,null,null,null,null,null,null,null,null,null,null,null,null,null,null,null,null,null,null,null,null,null,null,null,null,null,null,null,null,null,null,null,null,null,null,null,null,null,null,null,null,null,null,null,null,null,null,null,null,null,null,null,null,null,null,null,null,null,null,null,null,null,null,null,null,null,null,null,null,null,null,null,null,null,null,null,null,null,null,null,null,null,null,null,null,null,null,null,null,null,null,null,null,null,null,null,null,null,null,null,null,null,null,null,null,null,null,null,null,null,null,null,null,null,null,null,null,null,null,null,null,null,null,null,null,null,null,null,null,null,null,null,null,null,null,null,null,null,null,null,null,null,null,null,null,null,null,null,null,null,null,null,null,null,null,null,null,null,null,null,null,null,null,null,null,null,null,null,null,null,null,null,null,null,null,null,null,null,null,null,null,null,null,null,null,null,null,null,null,null,null,null,null,null,null,null,null,null,null,null,null,null,null,null,null,null,null,null,null,null,null,null,null,null,null,null,null,null,null,null,null,null,null,null,null,null,null,null,null,null,null,null,null,null,null,null,null,null,null,null,null,null,null,null,null,null,null,null,null,null,null,null,null,null,null,null,null,null,null,null,null,null,null,null,null,null,null,null,null,null,null,null,null,null,null,null,null,null,null,null,null,null,null,null,null,null,null,null,null,null,null,null,null,null,null,null,null,null,null,null,null,null,null,null,null,null,null,null,null,null,null,null,null,null,null,null,null,null,null,null,null,null,null,null,null,null,null,null,null,null,null,null,null,null,null,null,null,null,null,null,null,null,null,null,null,null,null,null,null,null,null,null,null,null,null,null,null,null,null,null,null,null,null,null,null,null,null,null,null,null,null,null,null,null,null,null,null,null,null,null,null,null,null,null,null,null,null,null,null,null,null,null,null,null,null,null,null,null,null,null,null,null,null,null,null,null,null,null,null,null,null,null,null,null,null,null,null,null,null,null,null,null,null,null,null,null,null,null,null,null,null,null,null,null,null,null,null,null,null,null,null,null,null,null,null,null,null,null,null,null,null,null,null,null,null,null,null,null,null,null,null,null,null,null,null,null,null,null,null,null,null,null,null,null,null,null,null,null,null,null,null,null,null,null,null,null,null,null,null,null,null,null,null,null,null,null,null,null,null,null,null,null,null,null,null,null,null,null,null,null,null,null,null,null,null,null,null,null,null,null,null,null,null,null,null,null,null,null,null,null,null,null,null,null,null,null,null,null,null,null,null,null,null,null,null,null,null,null,null,null,null,null,null,null,null,null,null,null,null,null,null,null,null,null,null,null,null,null,null,null,null,null,null,null,null,null,null,null,null,null,null,null,null,null,null,null,null,null,null,null,null,null,null,null,null,null,null,null,null,null,null,null,null,null,null,null,null,null,null,null,null,null,null,null,null,null,null,null,null,null,null,null,null,null,null,null,null,null,null,null,null,null,null,null,null,null,null,null,null,null,null,null,null,null,null,null,null,null,null,null,null,null,null,null,null,null,null,null,null,null,null,null,null,null,null,null,null,null,null,null,null,null,null,null,null,null,null,null,null,null,null,null,null,null,null,null,null,null,null,null,null,null,null,null,null,null,null,null,null,null,null,null,null,null,null,null,null,null,null,null,null,null,null,null,null,null,null,null,null,null,null,null,null,null,null,null,null,null,null,null,null,null,null,null,null,null,null,null,null,null,null,null,null,null,null,null,null,null,null,null,null,null,null,null,null,null,null,null,null,null,null,null,null,null,null,null,null,null,null,null,null,null,null,null,null,null,null,null,null,null,null,null,null,null,null,null,null,null,null,null,null,null,null,null,null,null,null,null,null,null,null,null,null,null,null,null,null,null,null,null,null,null,null,null,null,null,null,null,null,null,null,null,null,null,null,null,null,null,null,null,null,null,null,null,null,null,null,null,null,null,null,null,null,null,null,null,null,null,null,null,null,null,null,null,null,null,null,null,null,null,null,null,null,null,null,null,null,null,null,null,null,null,null,null,null,null,null,null,null,null,null,null,null,null,null,null,null,null,null,null,null,null,null,null,null,null,null,null,null,null,null,null,null,null,null,null,null,null,null,null,null,null,null,null,null,null,null,null,null,null,null,null,null,null,null,null,null,null,null,null,null,null,null,null,null,null,null,null,null,null,null,null,null,null,null,null,null,null,null,null,null,null,null,null,null,null,null,null,null,null,null,null,null,null,null,null,null,null,null,null,null,null,null,null,null,null,null,null,null,null,null,null,null,null,null,null,null,null,null,null,null,null,null,null,null,null,null,null,null,null,null,null,null,null,null,null,null,null,null,null,null,null,null,null,null,null,null,null,null,null,null,null,null,null,null,null,null,null,null,null,null,null,null,null,null,null,null,null,null,null,null,null,null,null,null,null,null,null,null,null,null,null,null,null,null,null,null,null,null,null,null,null,null,null,null,null,null,null,null,null,null,null,null,null,null,null,null,null,null,null,null,null,null,null,null,null,null,null,null,null,null,null,null,null,null,null,null,null,null,null,null,null,null,null,null,null,null,null,null,null,null,null,null,null,null,null,null,null,null,null,null,null,null,null,null,null,null,null,null,null,null,null,null,null,null,null,null,null,null,null,null,null,null,null,null,null,null,null,null,null,null,null,null,null,null,null,null,null,null,null,null,null,null,null,null,null,null,null,null,null,null,null,null,null,null,null,null,null,null,null,null,null,null,null,null,null,null,null,null,null,null,null,null,null,null,null,null,null,null,null,null,null,null,null,null,null,null,null,null,null,null,null,null,null,null,null,null,null,null,null,null,null,null,null,null,null,null,null,null,null,null,null,null,null,null,null,null,null,null,null,null,null,null,null,null,null,null,null,null,null,null,null,null,null,null,null,null,null,null,null,null,null,null,null,null,null,null,null,null,null,null,null,null,null,null,null,null,null,null,null,null,null,null,null,null,null,null,null,null,null,null,null,null,null,null,null,null,null,null,null,null,null,null,null,null,null,null,null,null,null,null,null,null,null,null,null,null,null,null,null,null,null,null,null,null,null,null,null,null,null,null,null,null,null,null,null,null,null,null,null,null,null,null,null,null,null,null,null,null,null,null,null,null,null,null,null,null,null,null,null,null,null,null,null,null,null,null,null,null,null,null,null,null,null,null,null,null,null,null,null,null,null,null,null,null,null,null,null,null,null,null,null,null,null,null,null,null,null,null,null,null,null,null,null,null,null,null,null,null,null,null,null,null,null,null,null,null,null,null,null,null,null,null,null,null,null,null,null,null,null,null,null,null,null,null,null,null,null,null,null,null,null,null,null,null,null,null,null,null,null,null,null,null,null,null,null,null,null,null,null,null,null,null,null,null,null,null,null,null,null,null,null,null,null,null,null,null,null,null,null,null,null,null,null,null,null,null,null,null,null,null,null,null,null,null,null,null,null,null,null,null,null,null,null,null,null,null,null,null,null,null,null,null,null,null,null,null,null,null,null,null,null,null,null,null,null,null,null,null,null,null,null,null,null,null,null,null,null,null,null,null,null,null,null,null,null,null,null,null,null,null,null,null,null,null,null,null,null,null,null,null,null,null,null,null,null,null,null,null,null,null,null,null,null,null,null,null,null,null,null,null,null,null,null,null,null,null,null,null,null,null,null,null,null,null,null,null,null,null,null,null,null,null,null,null,null,null,null,null,null,null,null,null,null,null,null,null,null,null,null,null,null,null,null,null,null,null,null,null,null,null,null,null,null,null,null,null,null,null,null,null,null,null,null,null,null,null,null,null,null,null,null,null,null,null,null,null,null,null,null,null,null,null,null,null,null,null,null,null,null,null,null,null,null,null,null,null,null,null,null,null,null,null,null,null,null,null,null,null,null,null,null,null,null,null,null,null,null,null,null,null,null,null,null,null,null,null,null,null,null,null,null,null,null,null,null,null,null,null,null,null,null,null,null,null,null,null,null,null,null,null,null,null,null,null,null,null,null,null,null,null,null,null,null,null,null,null,null,null,null,null,null,null,null,null,null,null,null,null,null,null,null,null,null,null,null,null,null,null,null,null,null,null,null,null,null,null,null,null,null,null,null,null,null,null,null,null,null,null,null,null,null,null,null,null,null,null,null,null,null,null,null,null,null,null,null,null,null,null,null,null,null,null,null,null,null,null,null,null,null,null,null,null,null,null,null,null,null,null,null,null,null,null,null,null,null,null,null,null,null,null,null,null,null,null,null,null,null,null,null,null,null,null,null,null,null,null,null,null,null,null,null,null,null,null,null,null,null,null,null,null,null,null,null,null,null,null,null,null,null,null,null,null,null,null,null,null,null,null,null,null,null,null,null,null,null,null,null,null,null,null,null,null,null,null,null,null,null,null,null,null,null,null,null,null,null,null,null,null,null,null,null,null,null,null,null,null,null,null,null,null,null,null,null,null,null,null,null,null,null,null,null,null,null,null,null,null,null,null,null,null,null,null,null,null,null,null,null,null,null,null,null,null,null,null,null,null,null,null,null,null,null,null,null,null,null,null,null,null,null,null,null,null,null,null,null,null,null,null,null,null,null,null,null,null,null,null,null,null,null,null,null,null,null,null,null,null,null,null,null,null,null,null,null,null,null,null,null,null,null,null,null,null,null,null,null,null,null,null,null,null,null,null,null,null,null,null,null,null,null,null,null,null,null,null,null,null,null,null,null,null,null,null,null,null,null,null,null,null,null,null,null,null,null,null,null,null,null,null,null,null,null,null,null,null,null,null,null,null,null,null,null,null,null,null,null,null,null,null,null,null,null,null,null,null,null,null,null,null,null,null,null,null,null,null,null,null,null,null,null,null,null,null,null,null,null,null,null,null,null,null,null,null,null,null,null,null,null,null,null,null,null,null,null,null,null,null,null,null,null,null,null,null,null,null,null,null,null,null,null,null,null,null,null,null,null,null,null,null,null,null,null,null,null,null,null,null,null,null,null,null,null,null,null,null,null,null,null,null,null,null,null,null,null,null,null,null,null,null,null,null,null,null,null,null,null,null,null,null,null,null,null,null,null,null,null,null,null,null,null,null,null,null,null,null,null,null,null,null,null,null,null,null,null,null,null,null,null,null,null,null,null,null,null,null,null,null,null,null,null,null,null,null,null,null,null,null,null,null,null,null,null,null,null,null,null,null,null,null,null,null,null,null,null,null,null,null,null,null,null,null,null,null,null,null,null,null,null,null,null,null,null,null,null,null,null,null,null,null,null,null,null,null,null,null,null,null,null,null,null,null,null,null,null,null,null,null,null,null,null,null,null,null,null,null,null,null,null,null,null,null,null,null,null,null,null,null,null,null,null,null,null,null,null,null,null,null,null,null,null,null,null,null,null,null,null,null,null,null,null,null,null,null,null,null,null,null,null,null,null,null,null,null,null,null,null,null,null,null,null,null,null,null,null,null,null,null,null,null,null,null,null,null,null,null,null,null,null,null,null,null,null,null,null,null,null,null,null,null,null,null,null,null,null,null,null,null,null,null,null,null,null,null,null,null,null,null,null,null,null,null,null,null,null,null,null,null,null,null,null,null,null,null,null,null,null,null,null,null,null,null,null,null,null,null,null,null,null,null,null,null,null,null,null,null,null,null,null,null,null,null,null,null,null,null,null,null,null,null,null,null,null,null,null,null,null,null,null,null,null,null,null,null,null,null,null,null,null,null,null,null,null,null,null,null,null,null,null,null,null,null,null,null,null,null,null,null,null,null,null,null,null,null,null,null,null,null,null,null,null,null,null,null,null,null,null,null,null,null,null,null,null,null,null,null,null,null,null,null,null,null,null,null,null,null,null,null,null,null,null,null,null,null,null,null,null,null,null,null,null,null,null,null,null,null,null,null,null,null,null,null,null,null,null,null,null,null,null,null,null,null,null,null,null,null,null,null,null,null,null,null,null,null,null,null,null,null,null,null,null,null,null,null,null,null,null,null,null,null,null,null,null,null,null,null,null,null,null,null,null,null,null,null,null,null,null,null,null,null,null,null,null,null,null,null,null,null,null,null,null,null,null,null,null,null,null,null,null,null,null,null,null,null,null,null,null,null,null,null,null,null,null,null,null,null,null,null,null,null,null,null,null,null,null,null,null,null,null,null,null,null,null,null,null,null,null,null,null,null,null,null,null,null,null,null,null,null,null,null,null,null,null,null,null,null,null,null,null,null,null,null,null,null,null,null,null,null,null,null,null,null,null,null,null,null,null,null,null,null,null,null,null,null,null,null,null,null,null,null,null,null,null,null,null,null,null,null,null,null,null,null,null,null,null,null,null,null,null,null,null,null,null,null,null,null,null,null,null,null,null,null,null,null,null,null,null,null,null,null,null,null,null,null,null,null,null,null,null,null,null,null,null,null,null,null,null,null,null,null,null,null,null,null,null,null,null,null,null,null,null,null,null,null,null,null,null,null,null,null,null,null,null,null,null,null,null,null,null,null,null,null,null,null,null,null,null,null,null,null,null,null,null,null,null,null,null,null,null,null,null,null,null,null,null,null,null,null,null,null,null,null,null,null,null,null,null,null,null,null,null,null,null,null,null,null,null,null,null,null,null,null,null,null,null,null,null,null,null,null,null,null,null,null,null,null,null,null,null,null,null,null,null,null,null,null,null,null,null,null,null,null,null,null,null,null,null,null,null,null,null,null,null,null,null,null,null,null,null,null,null,null,null,null,null,null,null,null,null,null,null,null,null,null,null,null,null,null,null,null,null,null,null,null,null,null,null,null,null,null,null,null,null,null,null,null,null,null,null,null,null,null,null,null,null,null,null,null,null,null,null,null,null,null,null,null,null,null,null,null,null,null,null,null,null,null,null,null,null,null,null,null,null,null,null,null,null,null,null,null,null,null,null,null,null,null,null,null,null,null,null,null,null,null,null,null,null,null,null,null,null,null,null,null,null,null,null,null,null,null,null,null,null,null,null,null,null,null,null,null,null,null,null,null,null,null,null,null,null,null,null,null,null,null,null,null,null,null,null,null,null,null,null,null,null,null,null,null,null,null,null,null,null,null,null,null,null,null,null,null,null,null,null,null,null,null,null,null,null,null,null,null,null,null,null,null,null,null,null,null,null,null,null,null,null,null,null,null,null,null,null,null,null,null,null,null,null,null,null,null,null,null,null,null,null,null,null,null,null,null,null,null,null,null,null,null,null,null,null,null,null,null,null,null,null,null,null,null,null,null,null,null,null,null,null,null,null,null,null,null,null,null,null,null,null,null,null,null,null,null,null,null,null,null,null,null,null,null,null,null,null,null,null,null,null,null,null,null,null,null,null,null,null,null,null,null,null,null,null,null,null,null,null,null,null,null,null,null,null,null,null,null,null,null,null,null,null,null,null,null,null,null,null,null,null,null,null,null,null,null,null,null,null,null,null,null,null,null,null,null,null,null,null,null,null,null,null,null,null,null,null,null,null,null,null,null,null,null,null,null,null,null,null,null,null,null,null,null,null,null,null,null,null,null,null,null,null,null,null,null,null,null,null,null,null,null,null,null,null,null,null,null,null,null,null,null,null,null,null,null,null,null,null,null,null,null,null,null,null,null,null,null,null,null,null,null,null,null,null,null,null,null,null,null,null,null,null,null,null,null,null,null,null,null,null,null,null,null,null,null,null,null,null,null,null,null,null,null,null,null,null,null,null,null,null,null,null,null,null,null,null,null,null,null,null,null,null,null,null,null,null,null,null,null,null,null,null,null,null,null,null,null,null,null,null,null,null,null,null,null,null,null,null,null,null,null,null,null,null,null,null,null,null,null,null,null,null,null,null,null,null,null,null,null,null,null,null,null,null,null,null,null,null,null,null,null,null,null,null,null,null,null,null,null,null,null,null,null,null,null,null,null,null,null,null,null,null,null,null,null,null,null,null,null,null,null,null,null,null,null,null,null,null,null,null,null,null,null,null,null,null,null,null,null,null,null,null,null,null,null,null,null,null,null,null,null,null,null,null,null,null,null,null,null,null,null,null,null,null,null,null,null,null,null,null,null,null,null,null,null,null,null,null,null,null,null,null,null,null,null,null,null,null,null,null,null,null,null,null,null,null,null,null,null,null,null,null,null,null,null,null,null,null,null,null,null,null,null,null,null,null,null,null,null,null,null,null,null,null,null,null,null,null,null,null,null,null,null,null,null,null,null,null,null,null,null,null,null,null,null,null,null,null,null,null,null,null,null,null,null,null,null,null,null,null,null,null,null,null,null,null,null,null,null,null,null,null,null,null,null,null,null,null,null,null,null,null,null,null,null,null,null,null,null,null,null,null,null,null,null,null,null,null,null,null,null,null,null,null,null,null,null,null,null,null,null,null,null,null,null,null,null,null,null,null,null,null,null,null,null,null,null,null,null,null,null,null,null,null,null,null,null,null,null,null,null,null,null,null,null,null,null,null,null,null,null,null,null,null,null,null,null,null,null,null,null,null,null,null,null,null,null,null,null,null,null,null,null,null,null,null,null,null,null,null,null,null,null,null,null,null,null,null,null,null,null,null,null,null,null,null,null,null,null,null,null,null,null,null,null,null,null,null,null,null,null,null,null,null,null,null,null,null,null,null,null,null,null,null,null,null,null,null,null,null,null,null,null,null,null,null,null,null,null,null,null,null,null,null,null,null,null,null,null,null,null,null,null,null,null,null,null,null,null,null,null,null,null,null,null,null,null,null,null,null,null,null,null,null,null,null,null,null,null,null,null,null,null,null,null,null,null,null,null,null,null,null,null,null,null,null,null,null,null,null,null,null,null,null,null,null,null,null,null,null,null,null,null,null,null,null,null,null,null,null,null,null,null,null,null,null,null,null,null,null,null,null,null,null,null,null,null,null,null,null,null,null,null,null,null,null,null,null,null,null,null,null,null,null,null,null,null,null,null,null,null,null,null,null,null,null,null,null,null,null,null,null,null,null,null,null,null,null,null,null,null,null,null,null,null,null,null,null,null,null,null,null,null,null,null,null,null,null,null,null,null,null,null,null,null,null,null,null,null,null,null,null,null,null,null,null,null,null,null,null,null,null,null,null,null,null,null,null,null,null,null,null,null,null,null,null,null,null,null,null,null,null,null,null,null,null,null,null,null,null,null,null,null,null,null,null,null,null,null,null,null,null,null,null,null,null,null,null,null,null,null,null,null,null,null,null,null,null,null,null,null,null,null,null,null,null,null,null,null,null,null,null,null,null,null,null,null,null,null,null,null,null,null,null,null,null,null,null,null,null,null,null,null,null,null,null,null,null,null,null,null,null,null,null,null,null,null,null,null,null,null,null,null,null,null,null,null,null,null,null,null,null,null,null,null,null,null,null,null,null,null,null,null,null,null,null,null,null,null,null,null,null,null,null,null,null,null,null,null,null,null,null,null,null,null,null,null,null,null,null,null,null,null,null,null,null,null,null,null,null,null,null,null,null,null,null,null,null,null,null,null,null,null,null,null,null,null,null,null,null,null,null,null,null,null,null,null,null,null,null,null,null,null,null,null,null,null,null,null,null,null,null,null,null,null,null,null,null,null,null,null,null,null,null,null,null,null,null,null,null,null,null,null,null,null,null,null,null,null,null,null,null,null,null,null,null,null,null,null,null,null,null,null,null,null,null,null,null,null,null,null,null,null,null,null,null,null,null,null,null,null,null,null,null,null,null,null,null,null,null,null,null,null,null,null,null,null,null,null,null,null,null,null,null,null,null,null,null,null,null,null,null,null,null,null,null,null,null,null,null,null,null,null,null,null,null,null,null,null,null,null,null,null,null,null,null,null,null,null,null,null,null,null,null,null,null,null,null,null,null,null,null,null,null,null,null,null,null,null,null,null,null,null,null,null,null,null,null,null,null,null,null,null,null,null,null,null,null,null,null,null,null,null,null,null,null,null,null,null,null,null,null,null,null,null,null,null,null,null,null,null,null,null,null,null,null,null,null,null,null,null,null,null,null,null,null,null,null,null,null,null,null,null,null,null,null,null,null,null,null,null,null,null,null,null,null,null,null,null,null,null,null,null,null,null,null,null,null,null,null,null,null,null,null,null,null,null,null,null,null,null,null,null,null,null,null,null,null,null,null,null,null,null,null,null,null,null,null,null,null,null,null,null,null,null,null,null,null,null,null,null,null,null,null,null,null,null,null,null,null,null,null,null,null,null,null,null,null,null,null,null,null,null,null,null,null,null,null,null,null,null,null,null,null,null,null,null,null,null,null,null,null,null,null,null,null,null,null,null,null,null,null,null,null,null,null,null,null,null,null,null,null,null,null,null,null,null,null,null,null,null,null,null,null,null,null,null,null,null,null,null,null,null,null,null,null,null,null,null,null,null,null,null,null,null,null,null,null,null,null,null,null,null,null,null,null,null,null,null,null,null,null,null,null,null,null,null,null,null,null,null,null,null,null,null,null,null,null,null,null,null,null,null,null,null,null,null,null,null,null,null,null,null,null,null,null,null,null,null,null,null,null,null,null,null,null,null,null,null,null,null,null,null,null,null,null,null,null,null,null,null,null,null,null,null,null,null,null,null,null,null,null,null,null,null,null,null,null,null,null,null,null,null,null,null,null,null,null,null,null,null,null,null,null,null,null,null,null,null,null,null,null,null,null,null,null,null,null,null,null,null,null,null,null,null,null,null,null,null,null,null,null,null,null,null,null,null,null,null,null,null,null,null,null,null,null,null,null,null,null,null,null,null,null,null,null,null,null,null,null,null,null,null,null,null,null,null,null,null,null,null,null,null,null,null,null,null,null,null,null,null,null,null,null,null,null,null,null,null,null,null,null,null,null,null,null,null,null,null,null,null,null,null,null,null,null,null,null,null,null,null,null,null,null,null,null,null,null,null,null,null,null,null,null,null,null,null,null,null,null,null,null,null,null,null,null,null,null,null,null,null,null,null,null,null,null,null,null,null,null,null,null,null,null,null,null,null,null,null,null,null,null,null,null,null,null,null,null,null,null,null,null,null,null,null,null,null,null,null,null,null,null,null,null,null,null,null,null,null,null,null,null,null,null,null,null,null,null,null,null,null,null,null,null,null,null,null,null,null,null,null,null,null,null,null,null,null,null,null,null,null,null,null,null,null,null,null,null,null,null,null,null,null,null,null,null,null,null,null,null,null,null,null,null,null,null,null,null,null,null,null,null,null,null,null,null,null,null,null,null,null,null,null,null,null,null,null,null,null,null,null,null,null,null,null,null,null,null,null,null,null,null,null,null,null,null,null,null,null,null,null,null,null,null,null,null,null,null,null,null,null,null,null,null,null,null,null,null,null,null,null,null,null,null,null,null,null,null,null,null,null,null,null,null,null,null,null,null,null,null,null,null,null,null,null,null,null,null,null,null,null,null,null,null,null,null,null,null,null,null,null,null,null,null,null,null,null,null,null,null,null,null,null,null,null,null,null,null,null,null,null,null,null,null,null,null,null,null,null,null,null,null,null,null,null,null,null,null,null,null,null,null,null,null,null,null,null,null,null,null,null,null,null,null,null,null,null,null,null,null,null,null,null,null,null,null,null,null,null,null,null,null,null,null,null,null,null,null,null,null,null,null,null,null,null,null,null,null,null,null,null,null,null,null,null,null,null,null,null,null,null,null,null,null,null,null,null,null,null,null,null,null,null,null,null,null,null,null,null,null,null,null,null,null,null,null,null,null,null,null,null,null,null,null,null,null,null,null,null,null,null,null,null,null,null,null,null,null,null,null,null,null,null,null,null,null,null,null,null,null,null,null,null,null,null,null,null,null,null,null,null,null,null,null,null,null,null,null,null,null,null,null,null,null,null,null,null,null,null,null,null,null,null,null,null,null,null,null,null,null,null,null,null,null,null,null,null,null,null,null,null,null,null,null,null,null,null,null,null,null,null,null,null,null,null,null,null,null,null,null,null,null,null,null,null,null,null,null,null,null,null,null,null,null,null,null,null,null,null,null,null,null,null,null,null,null,null,null,null,null,null,null,null,null,null,null,null,null,null,null,null,null,null,null,null,null,null,null,null,null,null,null,null,null,null,null,null,null,null,null,null,null,null,null,null,null,null,null,null,null,null,null,null,null,null,null,null,null,null,null,null,null,null,null,null,null,null,null,null,null,null,null,null,null,null,null,null,null,null,null,null,null,null,null,null,null,null,null,null,null,null,null,null,null,null,null,null,null,null,null,null,null,null,null,null,null,null,null,null,null,null,null,null,null,null,null,null,null,null,null,null,null,null,null,null,null,null,null,null,null,null,null,null,null,null,null,null,null,null,null,null,null,null,null,null,null,null,null,null,null,null,null,null,null,null,null,null,null,null,null,null,null,null,null,null,null,null,null,null,null,null,null,null,null,null,null,null,null,null,null,null,null,null,null,null,null,null,null,null,null,null,null,null,null,null,null,null,null,null,null,null,null,null,null,null,null,null,null,null,null,null,null,null,null,null,null,null,null,null,null,null,null,null,null,null,null,null,null,null,null,null,null,null,null,null,null,null,null,null,null,null,null,null,null,null,null,null,null,null,null,null,null,null,null,null,null,null,null,null,null,null,null,null,null,null,null,null,null,null,null,null,null,null,null,null,null,null,null,null,null,null,null,null,null,null,null,null,null,null,null,null,null,null,null,null,null,null,null,null,null,null,null,null,null,null,null,null,null,null,null,null,null,null,null,null,null,null,null,null,null,null,null,null,null,null,null,null,null,null,null,null,null,null,null,null,null,null,null,null,null,null,null,null,null,null,null,null,null,null,null,null,null,null,null,null,null,null,null,null,null,null,null,null,null,null,null,null,null,null,null,null,null,null,null,null,null,null,null,null,null,null,null,null,null,null,null,null,null,null,null,null,null,null,null,null,null,null,null,null,null,null,null,null,null,null,null,null,null,null,null,null,null,null,null,null,null,null,null,null,null,null,null,null,null,null,null,null,null,null,null,null,null,null,null,null,null,null,null,null,null,null,null,null,null,null,null,null,null,null,null,null,null,null,null,null,null,null,null,null,null,null,null,null,null,null,null,null,null,null,null,null,null,null,null,null,null,null,null,null,null,null,null,null,null,null,null,null,null,null,null,null,null,null,null,null,null,null,null,null,null,null,null,null,null,null,null,null,null,null,null,null,null,null,null,null,null,null,null,null,null,null,null,null,null,null,null,null,null,null,null,null,null,null,null,null,null,null,null,null,null,null,null,null,null,null,null,null,null,null,null,null,null,null,null,null,null,null,null,null,null,null,null,null,null,null,null,null,null,null,null,null,null,null,null,null,null,null,null,null,null,null,null,null,null,null,null,null,null,null,null,null,null,null,null,null,null,null,null,null,null,null,null,null,null,null,null,null,null,null,null,null,null,null,null,null,null,null,null,null,null,null,null,null,null,null,null,null,null,null,null,null,null,null,null,null,null,null,null,null,null,null,null,null,null,null,null,null,null,null,null,null,null,null,null,null,null,null,null,null,null,null,null,null,null,null,null,null,null,null,null,null,null,null,null,null,null,null,null,null,null,null,null,null,null,null,null,null,null,null,null,null,null,null,null,null,null,null,null,null,null,null,null,null,null,null,null,null,null,null,null,null,null,null,null,null,null,null,null,null,null,null,null,null,null,null,null,null,null,null,null,null,null,null,null,null,null,null,null,null,null,null,null,null,null,null,null,null,null,null,null,null,null,null,null,null,null,null,null,null,null,null,null,null,null,null,null,null,null,null,null,null,null,null,null,null,null,null,null,null,null,null,null,null,null,null,null,null,null,null,null,null,null,null,null,null,null,null,null,null,null,null,null,null,null,null,null,null,null,null,null,null,null,null,null,null,null,null,null,null,null,null,null,null,null,null,null,null,null,null,null,null,null,null,null,null,null,null,null,null,null,null,null,null,null,null,null,null,null,null,null,null,null,null,null,null,null,null,null,null,null,null,null,null,null,null,null,null,null,null,null,null,null,null,null,null,null,null,null,null,null,null,null,null,null,null,null,null,null,null,null,null,null,null,null,null,null,null,null,null,null,null,null,null,null,null,null,null,null,null,null,null,null,null,null,null,null,null,null,null,null,null,null,null,null,null,null,null,null,null,null,null,null,null,null,null,null,null,null,null,null,null,null,null,null,null,null,null,null,null,null,null,null,null,null,null,null,null,null,null,null,null,null,null,null,null,null,null,null,null,null,null,null,null,null,null,null,null,null,null,null,null,null,null,null,null,null,null,null,null,null,null,null,null,null,null,null,null,null,null,null,null,null,null,null,null,null,null,null,null,null,null,null,null,null,null,null,null,null,null,null,null,null,null,null,null,null,null,null,null,null,null,null,null,null,null,null,null,null,null,null,null,null,null,null,null,null,null,null,null,null,null,null,null,null,null,null,null,null,null,null,null,null,null,null,null,null,null,null,null,null,null,null,null,null,null,null,null,null,null,null,null,null,null,null,null,null,null,null,null,null,null,null,null,null,null,null,null,null,null,null,null,null,null,null,null,null,null,null,null,null,null,null,null,null,null,null,null,null,null,null,null,null,null,null,null,null,null,null,null,null,null,null,null,null,null,null,null,null,null,null,null,null,null,null,null,null,null,null,null,null,null,null,null,null,null,null,null,null,null,null,null,null,null,null,null,null,null,null,null,null,null,null,null,null,null,null,null,null,null,null,null,null,null,null,null,null,null,null,null,null,null,null,null,null,null,null,null,null,null,null,null,null,null,null,null,null,null,null,null,null,null,null,null,null,null,null,null,null,null,null,null,null,null,null,null,null,null,null,null,null,null,null,null,null,null,null,null,null,null,null,null,null,null,null,null,null,null,null,null,null,null,null,null,null,null,null,null,null,null,null,null,null,null,null,null,null,null,null,null,null,null,null,null,null,null,null,null,null,null,null,null,null,null,null,null,null,null,null,null,null,null,null,null,null,null,null,null,null,null,null,null,null,null,null,null,null,null,null,null,null,null,null,null,null,null,null,null,null,null,null,null,null,null,null,null,null,null,null,null,null,null,null,null,null,null,null,null,null,null,null,null,null,null,null,null,null,null,null,null,null,null,null,null,null,null,null,null,null,null,null,null,null,null,null,null,null,null,null,null,null,null,null,null,null,null,null,null,null,null,null,null,null,null,null,null,null,null,null,null,null,null,null,null,null,null,null,null,null,null,null,null,null,null,null,null,null,null,null,null,null,null,null,null,null,null,null,null,null,null,null,null,null,null,null,null,null,null,null,null,null,null,null,null,null,null,null,null,null,null,null,null,null,null,null,null,null,null,null,null,null,null,null,null,null,null,null,null,null,null,null,null,null,null,null,null,null,null,null,null,null,null,null,null,null,null,null,null,null,null,null,null,null,null,null,null,null,null,null,null,null,null,null,null,null,null,null,null,null,null,null,null,null,null,null,null,null,null,null,null,null,null,null,null,null,null,null,null,null,null,null,null,null,null,null,null,null,null,null,null,null,null,null,null,null,null,null,null,null,null,null,null,null,null,null,null,null,null,null,null,null,null,null,null,null,null,null,null,null,null,null,null,null,null,null,null,null,null,null,null,null,null,null,null,null,null,null,null,null,null,null,null,null,null,null,null,null,null,null,null,null,null,null,null,null,null,null,null,null,null,null,null,null,null,null,null,null,null,null,null,null,null,null,null,null,null,null,null,null,null,null,null,null,null,null,null,null,null,null,null,null,null,null,null,null,null,null,null,null,null,null,null,null,null,null,null,null,null,null,null,null,null,null,null,null,null,null,null,null,null,null,null,null,null,null,null,null,null,null,null,null,null,null,null,null,null,null,null,null,null,null,null,null,null,null,null,null,null,null,null,null,null,null,null,null,null,null,null,null,null,null,null,null,null,null,null,null,null,null,null,null,null,null,null,null,null,null,null,null,null,null,null,null,null,null,null,null,null,null,null,null,null,null,null,null,null,null,null,null,null,null,null,null,null,null,null,null,null,null,null,null,null,null,null,null,null,null,null,null,null,null,null,null,null,null,null,null,null,null,null,null,null,null,null,null,null,null,null,null,null,null,null,null,null,null,null,null,null,null,null,null,null,null,null,null,null,null,null,null,null,null,null,null,null,null,null,null,null,null,null,null,null,null,null,null,null,null,null,null,null,null,null,null,null,null,null,null,null,null,null,null,null,null,null,null,null,null,null,null,null,null,null,null,null,null,null,null,null,null,null,null,null,null,null,null,null,null,null,null,null,null,null,null,null,null,null,null,null,null,null,null,null,null,null,null,null,null,null,null,null,null,null,null,null,null,null,null,null,null,null,null,null,null,null,null,null,null,null,null,null,null,null,null,null,null,null,null,null,null,null,null,null,null,null,null,null,null,null,null,null,null,null,null,null,null,null,null,null,null,null,null,null,null,null,null,null,null,null,null,null,null,null,null,null,null,null,null,null,null,null,null,null,null,null,null,null,null,null,null,null,null,null,null,null,null,null,null,null,null,null,null,null,null,null,null,null,null,null,null,null,null,null,null,null,null,null,null,null,null,null,null,null,null,null,null,null,null,null,null,null,null,null,null,null,null,null,null,null,null,null,null,null,null,null,null,null,null,null,null,null,null,null,null,null,null,null,null,null,null,null,null,null,null,null,null,null,null,null,null,null,null,null,null,null,null,null,null,null,null,null,null,null,null,null,null,null,null,null,null,null,null,null,null,null,null,null,null,null,null,null,null,null,null,null,null,null,null,null,null,null,null,null,null,null,null,null,null,null,null,null,null,null,null,null,null,null,null,null,null,null,null,null,null,null,null,null,null,null,null,null,null,null,null,null,null,null,null,null,null,null,null,null,null,null,null,null,null,null,null,null,null,null,null,null,null,null,null,null,null,null,null,null,null,null,null,null,null,null,null,null,null,null,null,null,null,null,null,null,null,null,null,null,null,null,null,null,null,null,null,null,null,null,null,null,null,null,null,null,null,null,null,null,null,null,null,null,null,null,null,null,null,null,null,null,null,null,null,null,null,null,null,null,null,null,null,null,null,null,null,null,null,null,null,null,null,null,null,null,null,null,null,null,null,null,null,null,null,null,null,null,null,null,null,null,null,null,null,null,null,null,null,null,null,null,null,null,null,null,null,null,null,null,null,null,null,null,null,null,null,null,null,null,null,null,null,null,null,null,null,null,null,null,null,null,null,null,null,null,null,null,null,null,null,null,null,null,null,null,null,null,null,null,null,null,null,null,null,null,null,null,null,null,null,null,null,null,null,null,null,null,null,null,null,null,null,null,null,null,null,null,null,null,null,null,null,null,null,null,null,null,null,null,null,null,null,null,null,null,null,null,null,null,null,null,null,null,null,null,null,null,null,null,null,null,null,null,null,null,null,null,null,null,null,null,null,null,null,null,null,null,null,null,null,null,null,null,null,null,null,null,null,null,null,null,null,null,null,null,null,null,null,null,null,null,null,null,null,null,null,null,null,null,null,null,null,null,null,null,null,null,null,null,null,null,null,null,null,null,null,null,null,null,null,null,null,null,null,null,null,null,null,null,null,null,null,null,null,null,null,null,null,null,null,null,null,null,null,null,null,null,null,null,null,null,null,null,null,null,null,null,null,null,null,null,null,null,null,null,null,null,null,null,null,null,null,null,null,null,null,null,null,null,null,null,null,null,null,null,null,null,null,null,null,null,null,null,null,null,null,null,null,null,null,null,null,null,null,null,null,null,null,null,null,null,null,null,null,null,null,null,null,null,null,null,null,null,null,null,null,null,null,null,null,null,null,null,null,null,null,null,null,null,null,null,null,null,null,null,null,null,null,null,null,null,null,null,null,null,null,null,null,null,null,null,null,null,null,null,null,null,null,null,null,null,null,null,null,null,null,null,null,null,null,null,null,null,null,null,null,null,null,null,null,null,null,null,null,null,null,null,null,null,null,null,null,null,null,null,null,null,null,null,null,null,null,null,null,null,null,null,null,null,null,null,null,null,null,null,null,null,null,null,null,null,null,null,null,null,null,null,null,null,null,null,null,null,null,null,null,null,null,null,null,null,null,null,null,null,null,null,null,null,null,null,null,null,null,null,null,null,null,null,null,null,null,null,null,null,null,null,null,null,null,null,null,null,null,null,null,null,null,null,null,null,null,null,null,null,null,null,null,null,null,null,null,null,null,null,null,null,null,null,null,null,null,null,null,null,null,null,null,null,null,null,null,null,null,null,null,null,null,null,null,null,null,null,null,null,null,null,null,null,null,null,null,null,null,null,null,null,null,null,null,null,null,null,null,null,null,null,null,null,null,null,null,null,null,null,null,null,null,null,null,null,null,null,null,null,null,null,null,null,null,null,null,null,null,null,null,null,null,null,null,null,null,null,null,null,null,null,null,null,null,null,null,null,null,null,null,null,null,null,null,null,null,null,null,null,null,null,null,null,null,null,null,null,null,null,null,null,null,null,null,null,null,null,null,null,null,null,null,null,null,null,null,null,null,null,null,null,null,null,null,null,null,null,null,null,null,null,null,null,null,null,null,null,null,null,null,null,null,null,null,null,null,null,null,null,null,null,null,null,null,null,null,null,null,null,null,null,null,null,null,null,null,null,null,null,null,null,null,null,null,null,null,null,null,null,null,null,null,null,null,null,null,null,null,null,null,null,null,null,null,null,null,null,null,null,null,null,null,null,null,null,null,null,null,null,null,null,null,null,null,null,null,null,null,null,null,null,null,null,null,null,null,null,null,null,null,null,null,null,null,null,null,null,null,null,null,null,null,null,null,null,null,null,null,null,null,null,null,null,null,null,null,null,null,null,null,null,null,null,null,null,null,null,null,null,null,null,null,null,null,null,null,null,null,null,null,null,null,null,null,null,null,null,null,null,null,null,null,null,null,null,null,null,null,null,null,null,null,null,null,null,null,null,null,null,null,null,null,null,null,null,null,null,null,null,null,null,null,null,null,null,null,null,null,null,null,null,null,null,null,null,null,null,null,null,null,null,null,null,null,null,null,null,null,null,null,null,null,null,null,null,null,null,null,null,null,null,null,null,null,null,null,null,null,null,null,null,null,null,null,null,null,null,null,null,null,null,null,null,null,null,null,null,null,null,null,null,null,null,null,null,null,null,null,null,null,null,null,null,null,null,null,null,null,null,null,null,null,null,null,null,null,null,null,null,null,null,null,null,null,null,null,null,null,null,null,null,null,null,null,null,null,null,null,null,null,null,null,null,null,null,null,null,null,null,null,null,null,null,null,null,null,null,null,null,null,null,null,null,null,null,null,null,null,null,null,null,null,null,null,null,null,null,null,null,null,null,null,null,null,null,null,null,null,null,null,null,null,null,null,null,null,null,null,null,null,null,null,null,null,null,null,null,null,null,null,null,null,null,null,null,null,null,null,null,null,null,null,null,null,null,null,null,null,null,null,null,null,null,null,null,null,null,null,null,null,null,null,null,null,null,null,null,null,null,null,null,null,null,null,null,null,null,null,null,null,null,null,null,null,null,null,null,null,null,null,null,null,null,null,null,null,null,null,null,null,null,null,null,null,null,null,null,null,null,null,null,null,null,null,null,null,null,null,null,null,null,null,null,null,null,null,null,null,null,null,null,null,null,null,null,null,null,null,null,null,null,null,null,null,null,null,null,null,null,null,null,null,null,null,null,null,null,null,null,null,null,null,null,null,null,null,null,null,null,null,null,null,null,null,null,null,null,null,null,null,null,null,null,null,null,null,null,null,null,null,null,null,null,null,null,null,null,null,null,null,null,null,null,null,null,null,null,null,null,null,null,null,null,null,null,null,null,null,null,null,null,null,null,null,null,null,null,null,null,null,null,null,null,null,null,null,null,null,null,null,null,null,null,null,null,null,null,null,null,null,null,null,null,null,null,null,null,null,null,null,null,null,null,null,null,null,null,null,null,null,null,null,null,null,null,null,null,null,null,null,null,null,null,null,null,null,null,null,null,null,null,null,null,null,null,null,null,null,null,null,null,null,null,null,null,null,null,null,null,null,null,null,null,null,null,null,null,null,null,null,null,null,null,null,null,null,null,null,null,null,null,null,null,null,null,null,null,null,null,null,null,null,null,null,null,null,null,null,null,null,null,null,null,null,null,null,null,null,null,null,null,null,null,null,null,null,null,null,null,null,null,null,null,null,null,null,null,null,null,null,null,null,null,null,null,null,null,null,null,null,null,null,null,null,null,null,null,null,null,null,null,null,null,null,null,null,null,null,null,null,null,null,null,null,null,null,null,null,null,null,null,null,null,null,null,null,null,null,null,null,null,null,null,null,null,null,null,null,null,null,null,null,null,null,null,null,null,null,null,null,null,null,null,null,null,null,null,null,null,null,null,null,null,null,null,null,null,null,null,null,null,null,null,null,null,null,null,null,null,null,null,null,null,null,null,null,null,null,null,null,null,null,null,null,null,null,null,null,null,null,null,null,null,null,null,null,null,null,null,null,null,null,null,null,null,null,null,null,null,null,null,null,null,null,null,null,null,null,null,null,null,null,null,null,null,null,null,null,null,null,null,null,null,null,null,null,null,null,null,null,null,null,null,null,null,null,null,null,null,null,null,null,null,null,null,null,null,null,null,null,null,null,null,null,null,null,null,null,null,null,null,null,null,null,null,null,null,null,null,null,null,null,null,null,null,null,null,null,null,null,null,null,null,null,null,null,null,null,null,null,null,null,null,null,null,null,null,null,null,null,null,null,null,null,null,null,null,null,null,null,null,null,null,null,null,null,null,null,null,null,null,null,null,null,null,null,null,null,null,null,null,null,null,null,null,null,null,null,null,null,null,null,null,null,null,null,null,null,null,null,null,null,null,null,null,null,null,null,null,null,null,null,null,null,null,null,null,null,null,null,null,null,null,null,null,null,null,null,null,null,null,null,null,null,null,null,null,null,null,null,null,null,null,null,null,null,null,null,null,null,null,null,null,null,null,null,null,null,null,null,null,null,null,null,null,null,null,null,null,null,null,null,null,null,null,null,null,null,null,null,null,null,null,null,null,null,null,null,null,null,null,null,null,null,null,null,null,null,null,null,null,null,null,null,null,null,null,null,null,null,null,null,null,null,null,null,null,null,null,null,null,null,null,null,null,null,null,null,null,null,null,null,null,null,null,null,null,null,null,null,null,null,null,null,null,null,null,null,null,null,null,null,null,null,null,null,null,null,null,null,null,null,null,null,null,null,null,null,null,null,null,null,null,null,null,null,null,null,null,null,null,null,null,null,null,null,null,null,null,null,null,null,null,null,null,null,null,null,null,null,null,null,null,null,null,null,null,null,null,null,null,null,null,null,null,null,null,null,null,null,null,null,null,null,null,null,null,null,null,null,null,null,null,null,null,null,null,null,null,null,null,null,null,null,null,null,null,null,null,null,null,null,null,null,null,null,null,null,null,null,null,null,null,null,null,null,null,null,null,null,null,null,null,null,null,null,null,null,null,null,null,null,null,null,null,null,null,null,null,null,null,null,null,null,null,null,null,null,null,null,null,null,null,null,null,null,null,null,null,null,null,null,null,null,null,null,null,null,null,null,null,null,null,null,null,null,null,null,null,null,null,null,null,null,null,null,null,null,null,null,null,null,null,null,null,null,null,null,null,null,null,null,null,null,null,null,null,null,null,null,null,null,null,null,null,null,null,null,null,null,null,null,null,null,null,null,null,null,null,null,null,null,null,null,null,null,null,null,null,null,null,null,null,null,null,null,null,null,null,null,null,null,null,null,null,null,null,null,null,null,null,null,null,null,null,null,null,null,null,null,null,null,null,null,null,null,null,null,null,null,null,null,null,null,null,null,null,null,null,null,null,null,null,null,null,null,null,null,null,null,null,null,null,null,null,null,null,null,null,null,null,null,null,null,null,null,null,null,null,null,null,null,null,null,null,null,null,null,null,null,null,null,null,null,null,null,null,null,null,null,null,null,null,null,null,null,null,null,null,null,null,null,null,null,null,null,null,null,null,null,null,null,null,null,null,null,null,null,null,null,null,null,null,null,null,null,null,null,null,null,null,null,null,null,null,null,null,null,null,null,null,null,null,null,null,null,null,null,null,null,null,null,null,null,null,null,null,null,null,null,null,null,null,null,null,null,null,null,null,null,null,null,null,null,null,null,null,null,null,null,null,null,null,null,null,null,null,null,null,null,null,null,null,null,null,null,null,null,null,null,null,null,null,null,null,null,null,null,null,null,null,null,null,null,null,null,null,null,null,null,null,null,null,null,null,null,null,null,null,null,null,null,null,null,null,null,null,null,null,null,null,null,null,null,null,null,null,null,null,null,null,null,null,null,null,null,null,null,null,null,null,null,null,null,null,null,null,null,null,null,null,null,null,null,null,null,null,null,null,null,null,null,null,null,null,null,null,null,null,null,null,null,null,null,null,null,null,null,null,null,null,null,null,null,null,null,null,null,null,null,null,null,null,null,null,null,null,null,null,null,null,null,null,null,null,null,null,null,null,null,null,null,null,null,null,null,null,null,null,null,null,null,null,null,null,null,null,null,null,null,null,null,null,null,null,null,null,null,null,null,null,null,null,null,null,null,null,null,null,null,null,null,null,null,null,null,null,null,null,null,null,null,null,null,null,null,null,null,null,null,null,null,null,null,null,null,null,null,null,null,null,null,null,null,null,null,null,null,null,null,null,null,null,null,null,null,null,null,null,null,null,null,null,null,null,null,null,null,null,null,null,null,null,null,null,null,null,null,null,null,null,null,null,null,null,null,null,null,null,null,null,null,null,null,null,null,null,null,null,null,null,null,null,null,null,null,null,null,null,null,null,null,null,null,null,null,null,null,null,null,null,null,null,null,null,null,null,null,null,null,null,null,null,null,null,null,null,null,null,null,null,null,null,null,null,null,null,null,null,null,null,null,null,null,null,null,null,null,null,null,null,null,null,null,null,null,null,null,null,null,null,null,null,null,null,null,null,null,null,null,null,null,null,null,null,null,null,null,null,null,null,null,null,null,null,null,null,null,null,null,null,null,null,null,null,null,null,null,null,null,null,null,null,null,null,null,null,null,null,null,null,null,null,null,null,null,null,null,null,null,null,null,null,null,null,null,null,null,null,null,null,null,null,null,null,null,null,null,null,null,null,null,null,null,null,null,null,null,null,null,null,null,null,null,null,null,null,null,null,null,null,null,null,null,null,null,null,null,null,null,null,null,null,null,null,null,null,null,null,null,null,null,null,null,null,null,null,null,null,null,null,null,null,null,null,null,null,null,null,null,null,null,null,null,null,null,null,null,null,null,null,null,null,null,null,null,null,null,null,null,null,null,null,null,null,null,null,null,null,null,null,null,null,null,null,null,null,null,null,null,null,null,null,null,null,null,null,null,null,null,null,null,null,null,null,null,null,null,null,null,null,null,null,null,null,null,null,null,null,null,null,null,null,null,null,null,null,null,null,null,null,null,null,null,null,null,null,null,null,null,null,null,null,null,null,null,null,null,null,null,null,null,null,null,null,null,null,null,null,null,null,null,null,null,null,null,null,null,null,null,null,null,null,null,null,null,null,null,null,null,null,null,null,null,null,null,null,null,null,null,null,null,null,null,null,null,null,null,null,null,null,null,null,null,null,null,null,null,null,null,null,null,null,null,null,null,null,null,null,null,null,null,null,null,null,null,null,null,null,null,null,null,null,null,null,null,null,null,null,null,null,null,null,null,null,null,null,null,null,null,null,null,null,null,null,null,null,null,null,null,null,null,null,null,null,null,null,null,null,null,null,null,null,null,null,null,null,null,null,null,null,null,null,null,null,null,null,null,null,null,null,null,null,null,null,null,null,null,null,null,null,null,null,null,null,null,null,null,null,null,null,null,null,null,null,null,null,null,null,null,null,null,null,null,null,null,null,null,null,null,null,null,null,null,null,null,null,null,null,null,null,null,null,null,null,null,null,null,null,null,null,null,null,null,null,null,null,null,null,null,null,null,null,null,null,null,null,null,null,null,null,null,null,null,null,null,null,null,null,null,null,null,null,null,null,null,null,null,null,null,null,null,null,null,null,null,null,null,null,null,null,null,null,null,null,null,null,null,null,null,null,null,null,null,null,null,null,null,null,null,null,null,null,null,null,null,null,null,null,null,null,null,null,null,null,null,null,null,null,null,null,null,null,null,null,null,null,null,null,null,null,null,null,null,null,null,null,null,null,null,null,null,null,null,null,null,null,null,null,null,null,null,null,null,null,null,null,null,null,null,null,null,null,null,null,null,null,null,null,null,null,null,null,null,null,null,null,null,null,null,null,null,null,null,null,null,null,null,null,null,null,null,null,null,null,null,null,null,null,null,null,null,null,null,null,null,null,null,null,null,null,null,null,null,null,null,null,null,null,null,null,null,null,null,null,null,null,null,null,null,null,null,null,null,null,null,null,null,null,null,null,null,null,null,null,null,null,null,null,null,null,null,null,null,null,null,null,null,null,null,null,null,null,null,null,null,null,null,null,null,null,null,null,null,null,null,null,null,null,null,null,null,null,null,null,null,null,null,null,null,null,null,null,null,null,null,null,null,null,null,null,null,null,null,null,null,null,null,null,null,null,null,null,null,null,null,null,null,null,null,null,null,null,null,null,null,null,null,null,null,null,null,null,null,null,null,null,null,null,null,null,null,null,null,null,null,null,null,null,null,null,null,null,null,null,null,null,null,null,null,null,null,null,null,null,null,null,null,null,null,null,null,null,null,null,null,null,null,null,null,null,null,null,null,null,null,null,null,null,null,null,null,null,null,null,null,null,null,null,null,null,null,null,null,null,null,null,null,null,null,null,null,null,null,null,null,null,null,null,null,null,null,null,null,null,null,null,null,null,null,null,null,null,null,null,null,null,null,null,null,null,null,null,null,null,null,null,null,null,null,null,null,null,null,null,null,null,null,null,null,null,null,null,null,null,null,null,null,null,null,null,null,null,null,null,null,null,null,null,null,null,null,null,null,null,null,null,null,null,null,null,null,null,null,null,null,null,null,null,null,null,null,null,null,null,null,null,null,null,null,null,null,null,null,null,null,null,null,null,null,null,null,null,null,null,null,null,null,null,null,null,null,null,null,null,null,null,null,null,null,null,null,null,null,null,null,null,null,null,null,null,null,null,null,null,null,null,null,null,null,null,null,null,null,null,null,null,null,null,null,null,null,null,null,null,null,null,null,null,null,null,null,null,null,null,null,null,null,null,null,null,null,null,null,null,null,null,null,null,null,null,null,null,null,null,null,null,null,null,null,null,null,null,null,null,null,null,null,null,null,null,null,null,null,null,null,null,null,null,null,null,null,null,null,null,null,null,null,null,null,null,null,null,null,null,null,null,null,null,null,null,null,null,null,null,null,null,null,null,null,null,null,null,null,null,null,null,null,null,null,null,null,null,null,null,null,null,null,null,null,null,null,null,null,null,null,null,null,null,null,null,null,null,null,null,null,null,null,null,null,null,null,null,null,null,null,null,null,null,null,null,null,null,null,null,null,null,null,null,null,null,null,null,null,null,null,null,null,null,null,null,null,null,null,null,null,null,null,null,null,null,null,null,null,null,null,null,null,null,null,null,null,null,null,null,null,null,null,null,null,null,null,null,null,null,null,null,null,null,null,null,null,null,null,null,null,null,null,null,null,null,null,null,null,null,null,null,null,null,null,null,null,null,null,null,null,null,null,null,null,null,null,null,null,null,null,null,null,null,null,null,null,null,null,null,null,null,null,null,null,null,null,null,null,null,null,null,null,null,null,null,null,null,null,null,null,null,null,null,null,null,null,null,null,null,null,null,null,null,null,null,null,null,null,null,null,null,null,null,null,null,null,null,null,null,null,null,null,null,null,null,null,null,null,null,null,null,null,null,null,null,null,null,null,null,null,null,null,null,null,null,null,null,null,null,null,null,null,null,null,null,null,null,null,null,null,null,null,null,null,null,null,null,null,null,null,null,null,null,null,null,null,null,null,null,null,null,null,null,null,null,null,null,null,null,null,null,null,null,null,null,null,null,null,null,null,null,null,null,null,null,null,null,null,null,null,null,null,null,null,null,null,null,null,null,null,null,null,null,null,null,null,null,null,null,null,null,null,null,null,null,null,null,null,null,null,null,null,null,null,null,null,null,null,null,null,null,null,null,null,null,null,null,null,null,null,null,null,null,null,null,null,null,null,null,null,null,null,null,null,null,null,null,null,null,null,null,null,null,null,null,null,null,null,null,null,null,null,null,null,null,null,null,null,null,null,null,null,null,null,null,null,null,null,null,null,null,null,null,null,null,null,null,null,null,null,null,null,null,null,null,null,null,null,null,null,null,null,null,null,null,null,null,null,null,null,null,null,null,null,null,null,null,null,null,null,null,null,null,null,null,null,null,null,null,null,null,null,null,null,null,null,null,null,null,null,null,null,null,null,null,null,null,null,null,null,null,null,null,null,null,null,null,null,null,null,null,null,null,null,null,null,null,null,null,null,null,null,null,null,null,null,null,null,null,null,null,null,null,null,null,null,null,null,null,null,null,null,null,null,null,null,null,null,null,null,null,null,null,null,null,null,null,null,null,null,null,null,null,null,null,null,null,null,null,null,null,null,null,null,null,null,null,null,null,null,null,null,null,null,null,null,null,null,null,null,null,null,null,null,null,null,null,null,null,null,null,null,null,null,null,null,null,null,null,null,null,null,null,null,null,null,null,null,null,null,null,null,null,null,null,null,null,null,null,null,null,null,null,null,null,null,null,null,null,null,null,null,null,null,null,null,null,null,null,null,null,null,null,null,null,null,null,null,null,null,null,null,null,null,null,null,null,null,null,null,null,null,null,null,null,null,null,null,null,null,null,null,null,null,null,null,null,null,null,null,null,null,null,null,null,null,null,null,null,null,null,null,null,null,null,null,null,null,null,null,null,null,null,null,null,null,null,null,null,null,null,null,null,null,null,null,null,null,null,null,null,null,null,null,null,null,null,null,-1.215195894241333,-1.0445660352706909]
[null,null,null,null,null,null,null,null,null,53,null,null,null,null,null,null,null,null,null,null,null,null,null,null,null,null,null,null,null,null,null,null,null,null,null,null,null,null,null,null,null,null,null,null,null,null,null,null,null,null,null,null,null,null,null,null,null,null,null,null,null,null,null,null,null,null,null,null,null,null,null,null,null,null,null,null,null,null,null,null,null,null,null,null,null,null,null,null,null,null,null,null,null,null,null,null,null,null,null,null,null,null,null,null,null,null,null,null,null,null,null,null,null,null,null,null,null,null,null,null,null,null,null,null,null,null,null,null,null,null,null,null,null,null,null,null,null,null,null,null,null,null,null,null,null,null,null,null,null,null,null,null,null,null,null,null,null,null,null,null,null,null,null,null,null,null,null,null,null,null,null,null,null,null,null,null,null,null,null,null,null,null,null,null,null,null,null,null,null,null,null,null,null,null,null,null,null,null,null,null,null,null,null,null,null,null,null,null,null,null,null,null,null,null,null,null,null,null,null,null,null,null,null,null,null,null,null,null,null,null,null,null,null,null,null,null,null,null,null,null,null,null,null,null,null,null,null,null,null,null,null,null,null,null,null,null,null,null,null,null,null,null,null,null,null,null,null,null,null,null,null,null,null,null,null,null,null,null,null,null,null,null,null,null,null,null,null,null,null,null,null,null,null,null,null,null,null,null,null,null,null,null,null,null,null,null,null,null,null,null,null,null,null,null,null,null,null,null,null,null,null,null,null,null,null,null,null,null,null,null,null,null,null,null,null,null,null,null,null,null,null,null,null,null,null,null,null,null,null,null,null,null,null,null,null,null,null,null,null,null,null,null,null,null,null,null,null,null,null,null,null,null,null,null,null,null,null,null,null,null,null,null,null,null,null,null,null,null,null,null,null,null,null,null,null,null,null,null,null,null,null,null,null,null,null,null,null,null,null,null,null,null,null,null,null,null,null,null,null,null,null,null,null,null,null,null,null,null,null,null,null,null,null,null,null,null,null,null,null,null,null,null,null,null,null,null,null,null,null,null,null,null,null,null,null,null,null,null,null,null,null,null,null,null,null,null,null,null,null,null,null,null,null,null,null,null,null,null,null,null,null,null,null,null,null,null,null,null,null,null,null,null,null,null,null,null,null,null,null,null,null,null,null,null,null,null,null,null,null,null,null,null,null,null,null,null,null,null,null,null,null,null,null,null,null,null,null,null,null,null,null,null,null,null,null,null,null,null,null,null,null,null,null,null,null,null,null,null,null,null,null,null,null,null,null,null,null,null,null,null,null,null,null,null,null,null,null,null,null,null,null,null,null,null,null,null,null,null,null,null,null,null,null,null,null,null,null,null,null,null,null,null,null,null,null,null,null,null,null,null,null,null,null,null,null,null,null,null,null,null,null,null,null,null,null,null,null,null,null,null,null,null,null,null,null,null,null,null,null,null,null,null,null,null,null,null,null,null,null,null,null,null,null,null,null,null,null,null,null,null,null,null,null,null,null,null,null,null,null,null,null,null,null,null,null,null,null,null,null,null,null,null,null,null,null,null,null,null,null,null,null,null,null,null,null,null,null,null,null,null,null,null,null,null,null,null,null,null,null,null,null,null,null,null,null,null,null,null,null,null,null,null,null,null,null,null,null,null,null,null,null,null,null,null,null,null,null,null,null,null,null,null,null,null,null,null,null,null,null,null,null,null,null,null,null,null,null,null,null,null,null,null,null,null,null,null,null,null,null,null,null,null,null,null,null,null,null,null,null,null,null,null,null,null,null,null,null,null,null,null,null,null,null,null,null,null,null,null,null,null,null,null,null,null,null,null,null,null,null,null,null,null,null,null,null,null,null,null,null,null,null,null,null,null,null,null,null,null,null,null,null,null,null,null,null,null,null,null,null,null,null,null,null,null,null,null,null,null,null,null,null,null,null,null,null,null,null,null,null,null,null,null,null,null,null,null,null,null,null,null,null,null,null,null,null,null,null,null,null,null,null,null,null,null,null,null,null,null,null,null,null,null,null,null,null,null,null,null,null,null,null,null,null,null,null,null,null,null,null,null,null,null,null,null,null,null,null,null,null,null,null,null,null,null,null,null,null,null,null,null,null,null,null,null,null,null,null,null,null,null,null,null,null,null,null,null,null,null,null,null,null,null,null,null,null,null,null,null,null,null,null,null,null,null,null,null,null,null,null,null,null,null,null,null,null,null,null,null,null,null,null,null,null,null,null,null,null,null,null,null,null,null,null,null,null,null,null,null,null,null,null,null,null,null,null,null,null,null,null,null,null,null,null,null,null,null,null,null,null,null,null,null,null,null,null,null,null,null,null,null,null,null,null,null,null,null,null,null,null,null,null,null,null,null,null,null,null,null,null,null,null,null,null,null,null,null,null,null,null,null,null,null,null,null,null,null,null,null,null,null,null,null,null,null,null,null,null,null,null,null,null,null,null,null,null,null,null,null,null,null,null,null,null,null,null,null,null,null,null,null,null,null,null,null,null,null,null,null,null,null,null,null,null,null,null,null,null,null,null,null,null,null,null,null,null,null,null,null,null,null,null,null,null,null,null,null,null,null,null,null,null,null,null,null,null,null,null,null,null,null,null,null,null,null,null,null,null,null,null,null,null,null,null,null,null,null,null,null,null,null,null,null,null,null,null,null,null,null,null,null,null,null,null,null,null,null,null,null,null,null,null,null,null,null,null,null,null,null,null,null,null,null,null,null,null,null,null,null,null,null,null,null,null,null,null,null,null,null,null,null,null,null,null,null,null,null,null,null,null,null,null,null,null,null,null,null,null,null,null,null,null,null,null,null,null,null,null,null,null,null,null,null,null,null,null,null,null,null,null,null,null,null,null,null,null,null,null,null,null,null,null,null,null,null,null,null,null,null,null,null,null,null,null,null,null,null,null,null,null,null,null,null,null,null,null,null,null,null,null,null,null,null,null,null,null,null,null,null,null,null,null,null,null,null,null,null,null,null,null,null,null,null,null,null,null,null,null,null,null,null,null,null,null,null,null,null,null,null,null,null,null,null,null,null,null,null,null,null,null,null,null,null,null,null,null,null,null,null,null,null,null,null,null,null,null,null,null,null,null,null,null,null,null,null,null,null,null,null,null,null,null,null,null,null,null,null,null,null,null,null,null,null,null,null,null,null,null,null,null,null,null,null,null,null,null,null,null,null,null,null,null,null,null,null,null,null,null,null,null,null,null,null,null,null,null,null,null,null,null,null,null,null,null,null,null,null,null,null,null,null,null,null,null,null,null,null,null,null,null,null,null,null,null,null,null,null,null,null,null,null,null,null,null,null,null,null,null,null,null,null,null,null,null,null,null,null,null,null,null,null,null,null,null,null,null,null,null,null,null,null,null,null,null,null,null,null,null,null,null,null,null,null,null,null,null,null,null,null,null,null,null,null,null,null,null,null,null,null,null,null,null,null,null,null,null,null,null,null,null,null,null,null,null,null,null,null,null,null,null,null,null,null,null,null,null,null,null,null,null,null,null,null,null,null,null,null,null,null,null,null,null,null,null,null,null,null,null,null,null,null,null,null,null,null,null,null,null,null,null,null,null,null,null,null,null,null,null,null,null,null,null,null,null,null,null,null,null,null,null,null,null,null,null,null,null,null,null,null,null,null,null,null,null,null,null,null,null,null,null,null,null,null,null,null,null,null,null,null,null,null,null,null,null,null,null,null,null,null,null,null,null,null,null,null,null,null,null,null,null,null,null,null,null,null,null,null,null,null,null,null,null,null,null,null,null,null,null,null,null,null,null,null,null,null,null,null,null,null,null,null,null,null,null,null,null,null,null,null,null,null,null,null,null,null,null,null,null,null,null,null,null,null,null,null,null,null,null,null,null,null,null,null,null,null,null,null,null,null,null,null,null,null,null,null,null,null,null,null,null,null,null,null,null,null,null,null,null,null,null,null,null,null,null,null,null,null,null,null,null,null,null,null,null,null,null,null,null,null,null,null,null,null,null,null,null,null,null,null,null,null,null,null,null,null,null,null,null,null,null,null,null,null,null,null,null,null,null,null,null,null,null,null,null,null,null,null,null,null,null,null,null,null,null,null,null,null,null,null,null,null,null,null,null,null,null,null,null,null,null,null,null,null,null,null,null,null,null,null,null,null,null,null,null,null,null,null,null,null,null,null,null,null,null,null,null,null,null,null,null,null,null,null,null,null,null,null,null,null,null,null,null,null,null,null,null,null,null,null,null,null,null,null,null,null,null,null,null,null,null,null,null,null,null,null,null,null,null,null,null,null,null,null,null,null,null,null,null,null,null,null,null,null,null,null,null,null,null,null,null,null,null,null,null,null,null,null,null,null,null,null,null,null,null,null,null,null,null,null,null,null,null,null,null,null,null,null,null,null,null,null,null,null,null,null,null,null,null,null,null,null,null,null,null,null,null,null,null,null,null,null,null,null,null,null,null,null,null,null,null,null,null,null,null,null,null,null,null,null,null,null,null,null,null,null,null,null,null,null,null,null,null,null,null,null,null,null,null,null,null,null,null,null,null,null,null,null,null,null,null,null,null,null,null,null,null,null,null,null,null,null,null,null,null,null,null,null,null,null,null,null,null,null,null,null,null,null,null,null,null,null,null,null,null,null,null,null,null,null,null,null,null,null,null,null,null,null,null,null,null,null,null,null,null,null,null,null,null,null,null,null,null,null,null,null,null,null,null,null,null,null,null,null,null,null,null,null,null,null,null,null,null,null,null,null,null,null,null,null,null,null,null,null,null,null,null,null,null,null,null,null,null,null,null,null,null,null,null,null,null,null,null,null,null,null,null,null,null,null,null,null,null,null,null,null,null,null,null,null,null,null,null,null,null,null,null,null,null,null,null,null,null,null,null,null,null,null,null,null,null,null,null,null,null,null,null,null,null,null,null,null,null,null,null,null,null,null,null,null,null,null,null,null,null,null,null,null,null,null,null,null,null,null,null,null,null,null,null,null,null,null,null,null,null,null,null,null,null,null,null,null,null,null,null,null,null,null,null,null,null,null,null,null,null,null,null,null,null,null,null,null,null,null,null,null,null,null,null,null,null,null,null,null,null,null,null,null,null,null,null,null,null,null,null,null,null,null,null,null,null,null,null,null,null,null,null,null,null,null,null,null,null,null,null,null,null,null,null,null,null,null,null,null,null,null,null,null,null,null,null,null,null,null,null,null,null,null,null,null,null,null,null,null,null,null,null,null,null,null,null,null,null,null,null,null,null,null,null,null,null,null,null,null,null,null,null,null,null,null,null,null,null,null,null,null,null,null,null,null,null,null,null,null,null,null,null,null,null,null,null,null,null,null,null,null,null,null,null,null,null,null,null,null,null,null,null,null,null,null,null,null,null,null,null,null,null,null,null,null,null,null,null,null,null,null,null,null,null,null,null,null,null,null,null,null,null,null,null,null,null,null,null,null,null,null,null,null,null,null,null,null,null,null,null,null,null,null,null,null,null,null,null,null,null,null,null,null,null,null,null,null,null,null,null,null,null,null,null,null,null,null,null,null,null,null,null,null,null,null,null,null,null,null,null,null,null,null,null,null,null,null,null,null,null,null,null,null,null,null,null,null,null,null,null,null,null,null,null,null,null,null,null,null,null,null,null,null,null,null,null,null,null,null,null,null,null,null,null,null,null,null,null,null,null,null,null,null,null,null,null,null,null,null,null,null,null,null,null,null,null,null,null,null,null,null,null,null,null,null,null,null,null,null,null,null,null,null,null,null,null,null,null,null,null,null,null,null,null,null,null,null,null,null,null,null,null,null,null,null,null,null,null,null,null,null,null,null,null,null,null,null,null,null,null,null,null,null,null,null,null,null,null,null,null,null,null,null,null,null,null,null,null,null,null,null,null,null,null,null,null,null,null,null,null,null,null,null,null,null,null,null,null,null,null,null,null,null,null,null,null,null,null,null,null,null,null,null,null,null,null,null,null,null,null,null,null,null,null,null,null,null,null,null,null,null,null,null,null,null,null,null,null,null,null,null,null,null,null,null,null,null,null,null,null,null,null,null,null,null,null,null,null,null,null,null,null,null,null,null,null,null,null,null,null,null,null,null,null,null,null,null,null,null,null,null,null,null,null,null,null,null,null,null,null,null,null,null,null,null,null,null,null,null,null,null,null,null,null,null,null,null,null,null,null,null,null,null,null,null,null,null,null,null,null,null,null,null,null,null,null,null,null,null,null,null,null,null,null,null,null,null,null,null,null,null,null,null,null,null,null,null,null,null,null,null,null,null,null,null,null,null,null,null,null,null,null,null,null,null,null,null,null,null,null,null,null,null,null,null,null,null,null,null,null,null,null,null,null,null,null,null,null,null,null,null,null,null,null,null,null,null,null,null,null,null,null,null,null,null,null,null,null,null,null,null,null,null,null,null,null,null,null,null,null,null,null,null,null,null,null,null,null,null,null,null,null,null,null,null,null,null,null,null,null,null,null,null,null,null,null,null,null,null,null,null,null,null,null,null,null,null,null,null,null,null,null,null,null,null,null,null,null,null,null,null,null,null,null,null,null,null,null,null,null,null,null,null,null,null,null,null,null,null,null,null,null,null,null,null,null,null,null,null,null,null,null,null,null,null,null,null,null,null,null,null,null,null,null,null,null,null,null,null,null,null,null,null,null,null,null,null,null,null,null,null,null,null,null,null,null,null,null,null,null,null,null,null,null,null,null,null,null,null,null,null,null,null,null,null,null,null,null,null,null,null,null,null,null,null,null,null,null,null,null,null,null,null,null,null,null,null,null,null,null,null,null,null,null,null,null,null,null,null,null,null,null,null,null,null,null,null,null,null,null,null,null,null,null,null,null,null,null,null,null,null,null,null,null,null,null,null,null,null,null,null,null,null,null,null,null,null,null,null,null,null,null,null,null,null,null,null,null,null,null,null,null,null,null,null,null,null,null,null,null,null,null,null,null,null,null,null,null,null,null,null,null,null,null,null,null,null,null,null,null,null,null,null,null,null,null,null,null,null,null,null,null,null,null,null,null,null,null,null,null,null,null,null,null,null,null,null,null,null,null,null,null,null,null,null,null,null,null,null,null,null,null,null,null,null,null,null,null,null,null,null,null,null,null,null,null,null,null,null,null,null,null,null,null,null,null,null,null,null,null,null,null,null,null,null,null,null,null,null,null,null,null,null,null,null,null,null,null,null,null,null,null,null,null,null,null,null,null,null,null,null,null,null,null,null,null,null,null,null,null,null,null,null,null,null,null,null,null,null,null,null,null,null,null,null,null,null,null,null,null,null,null,null,null,null,null,null,null,null,null,null,null,null,null,null,null,null,null,null,null,null,null,null,null,null,null,null,null,null,null,null,null,null,null,null,null,null,null,null,null,null,null,null,null,null,null,null,null,null,null,null,null,null,null,null,null,null,null,null,null,null,null,null,null,null,null,null,null,null,null,null,null,null,null,null,null,null,null,null,null,null,null,null,null,null,null,null,null,null,null,null,null,null,null,null,null,null,null,null,null,null,null,null,null,null,null,null,null,null,null,null,null,null,null,null,null,null,null,null,null,null,null,null,null,null,null,null,null,null,null,null,null,null,null,null,null,null,null,null,null,null,null,null,null,null,null,null,null,null,null,null,null,null,null,null,null,null,null,null,null,null,null,null,null,null,null,null,null,null,null,null,null,null,null,null,null,null,null,null,null,null,null,null,null,null,null,null,null,null,null,null,null,null,null,null,null,null,null,null,null,null,null,null,null,null,null,null,null,null,null,null,null,null,null,null,null,null,null,null,null,null,null,null,null,null,null,null,null,null,null,null,null,null,null,null,null,null,null,null,null,null,null,null,null,null,null,null,null,null,null,null,null,null,null,null,null,null,null,null,null,null,null,null,null,null,null,null,null,null,null,null,null,null,null,null,null,null,null,null,null,null,null,null,null,null,null,null,null,null,null,null,null,null,null,null,null,null,null,null,null,null,null,null,null,null,null,null,null,null,null,null,null,null,null,null,null,null,null,null,null,null,null,null,null,null,null,null,null,null,null,null,null,null,null,null,null,null,null,null,null,null,null,null,null,null,null,null,null,null,null,null,null,null,null,null,null,null,null,null,null,null,null,null,null,null,null,null,null,null,null,null,null,null,null,null,null,null,null,null,null,null,null,null,null,null,null,null,null,null,null,null,null,null,null,null,null,null,null,null,null,null,null,null,null,null,null,null,null,null,null,null,null,null,null,null,null,null,null,null,null,null,null,null,null,null,null,null,null,null,null,null,null,null,null,null,null,null,null,null,null,null,null,null,null,null,null,null,null,null,null,null,null,null,null,null,null,null,null,null,null,null,null,null,null,null,null,null,null,null,null,null,null,null,null,null,null,null,null,null,null,null,null,null,null,null,null,null,null,null,null,null,null,null,null,null,null,null,null,null,null,null,null,null,null,null,null,null,null,null,null,null,null,null,null,null,null,null,null,null,null,null,null,null,null,null,null,null,null,null,null,null,null,null,null,null,null,null,null,null,null,null,null,null,null,null,null,null,null,null,null,null,null,null,null,null,null,null,null,null,null,null,null,null,null,null,null,null,null,null,null,null,null,null,null,null,null,null,null,null,null,null,null,null,null,null,null,null,null,null,null,null,null,null,null,null,null,null,null,null,null,null,null,null,null,null,null,null,null,null,null,null,null,null,null,null,null,null,null,null,null,null,null,null,null,null,null,null,null,null,null,null,null,null,null,null,null,null,null,null,null,null,null,null,null,null,null,null,null,null,null,null,null,null,null,null,null,null,null,null,null,null,null,null,null,null,null,null,null,null,null,null,null,null,null,null,null,null,null,null,null,null,null,null,null,null,null,null,null,null,null,null,null,null,null,null,null,null,null,null,null,null,null,null,null,null,null,null,null,null,null,null,null,null,null,null,null,null,null,null,null,null,null,null,null,null,null,null,null,null,null,null,null,null,null,null,null,null,null,null,null,null,null,null,null,null,null,null,null,null,null,null,null,null,null,null,null,null,null,null,null,null,null,null,null,null,null,null,null,null,null,null,null,null,null,null,null,null,null,null,null,null,null,null,null,null,null,null,null,null,null,null,null,null,null,null,null,null,null,null,null,null,null,null,null,null,null,null,null,null,null,null,null,null,null,null,null,null,null,null,null,null,null,null,null,null,null,null,null,null,null,null,null,null,null,null,null,null,null,null,null,null,null,null,null,null,null,null,null,null,null,null,null,null,null,null,null,null,null,null,null,null,null,null,null,null,null,null,null,null,null,null,null,null,null,null,null,null,null,null,null,null,null,null,null,null,null,null,null,null,null,null,null,null,null,null,null,null,null,null,null,null,null,null,null,null,null,null,null,null,null,null,null,null,null,null,null,null,null,null,null,null,null,null,null,null,null,null,null,null,null,null,null,null,null,null,null,null,null,null,null,null,null,null,null,null,null,null,null,null,null,null,null,null,null,null,null,null,null,null,null,null,null,null,null,null,null,null,null,null,null,null,null,null,null,null,null,null,null,null,null,null,null,null,null,null,null,null,null,null,null,null,null,null,null,null,null,null,null,null,null,null,null,null,null,null,null,null,null,null,null,null,null,null,null,null,null,null,null,null,null,null,null,null,null,null,null,null,null,null,null,null,null,null,null,null,null,null,null,null,null,null,null,null,null,null,null,null,null,null,null,null,null,null,null,null,null,null,null,null,null,null,null,null,null,null,null,null,null,null,null,null,null,null,null,null,null,null,null,null,null,null,null,null,null,null,null,null,null,null,null,null,null,null,null,null,null,null,null,null,null,null,null,null,null,null,null,null,null,null,null,null,null,null,null,null,null,null,null,null,null,null,null,null,null,null,null,null,null,null,null,null,null,null,null,null,null,null,null,null,null,null,null,null,null,null,null,null,null,null,null,null,null,null,null,null,null,null,null,null,null,null,null,null,null,null,null,null,null,null,null,null,null,null,null,null,null,null,null,null,null,null,null,null,null,null,null,null,null,null,null,null,null,null,null,null,null,null,null,null,null,null,null,null,null,null,null,null,null,null,null,null,null,null,null,null,null,null,null,null,null,null,null,null,null,null,null,null,null,null,null,null,null,null,null,null,null,null,null,null,null,null,null,null,null,null,null,null,null,null,null,null,null,null,null,null,null,null,null,null,null,null,null,null,null,null,null,null,null,null,null,null,null,null,null,null,null,null,null,null,null,null,null,null,null,null,null,null,null,null,null,null,null,null,null,null,null,null,null,null,null,null,null,null,null,null,null,null,null,null,null,null,null,null,null,null,null,null,null,null,null,null,null,null,null,null,null,null,null,null,null,null,null,null,null,null,null,null,null,null,null,null,null,null,null,null,null,null,null,null,null,null,null,null,null,null,null,null,null,null,null,null,null,null,null,null,null,null,null,null,null,null,null,null,null,null,null,null,null,null,null,null,null,null,null,null,null,null,null,null,null,null,null,null,null,null,null,null,null,null,null,null,null,null,null,null,null,null,null,null,null,null,null,null,null,null,null,null,null,null,null,null,null,null,null,null,null,null,null,null,null,null,null,null,null,null,null,null,null,null,null,null,null,null,null,null,null,null,null,null,null,null,null,null,null,null,null,null,null,null,null,null,null,null,null,null,null,null,null,null,null,null,null,null,null,null,null,null,null,null,null,null,null,null,null,null,null,null,null,null,null,null,null,null,null,null,null,null,null,null,null,null,null,null,null,null,null,null,null,null,null,null,null,null,null,null,null,null,null,null,null,null,null,null,null,null,null,null,null,null,null,null,null,null,null,null,null,null,null,null,null,null,null,null,null,null,null,null,null,null,null,null,null,null,null,null,null,null,null,null,null,null,null,null,null,null,null,null,null,null,null,null,null,null,null,null,null,null,null,null,null,null,null,null,null,null,null,null,null,null,null,null,null,null,null,null,null,null,null,null,null,null,null,null,null,null,null,null,null,null,null,null,null,null,null,null,null,null,null,null,null,null,null,null,null,null,null,null,null,null,null,null,null,null,null,null,null,null,null,null,null,null,null,null,null,null,null,null,null,null,null,null,null,null,null,null,null,null,null,null,null,null,null,null,null,null,null,null,null,null,null,null,null,null,null,null,null,null,null,null,null,null,null,null,null,null,null,null,null,null,null,null,null,null,null,null,null,null,null,null,null,null,null,null,null,null,null,null,null,null,null,null,null,null,null,null,null,null,null,null,null,null,null,null,null,null,null,null,null,null,null,null,null,null,null,null,null,null,null,null,null,null,null,null,null,null,null,null,null,null,null,null,null,null,null,null,null,null,null,null,null,null,null,null,null,null,null,null,null,null,null,null,null,null,null,null,null,null,null,null,null,null,null,null,null,null,null,null,null,null,null,null,null,null,null,null,null,null,null,null,null,null,null,null,null,null,null,null,null,null,null,null,null,null,null,null,null,null,null,null,null,null,null,null,null,null,null,null,null,null,null,null,null,null,null,null,null,null,null,null,null,null,null,null,null,null,null,null,null,null,null,null,null,null,null,null,null,null,null,null,null,null,null,null,null,null,null,null,null,null,null,null,null,null,null,null,null,null,null,null,null,null,null,null,null,null,null,null,null,null,null,null,null,null,null,null,null,null,null,null,null,null,null,null,null,null,null,null,null,null,null,null,null,null,null,null,null,null,null,null,null,null,null,null,null,null,null,null,null,null,null,null,null,null,null,null,null,null,null,null,null,null,null,null,null,null,null,null,null,null,null,null,null,null,null,null,null,null,null,null,null,null,null,null,null,null,null,null,null,null,null,null,null,null,null,null,null,null,null,null,null,null,null,null,null,null,null,null,null,null,null,null,null,null,null,null,null,null,null,null,null,null,null,null,null,null,null,null,null,null,null,null,null,null,null,null,null,null,null,null,null,null,null,null,null,null,null,null,null,null,null,null,null,null,null,null,null,null,null,null,null,null,null,null,null,null,null,null,null,null,null,null,null,null,null,null,null,null,null,null,null,null,null,null,null,null,null,null,null,null,null,null,null,null,null,null,null,null,null,null,null,null,null,null,null,null,null,null,null,null,null,null,null,null,null,null,null,null,null,null,null,null,null,null,null,null,null,null,null,null,null,null,null,null,null,null,null,null,null,null,null,null,null,null,null,null,null,null,null,null,null,null,null,null,null,null,null,null,null,null,null,null,null,null,null,null,null,null,null,null,null,null,null,null,null,null,null,null,null,null,null,null,null,null,null,null,null,null,null,null,null,null,null,null,null,null,null,null,null,null,null,null,null,null,null,null,null,null,null,null,null,null,null,null,null,null,null,null,null,null,null,null,null,null,null,null,null,null,null,null,null,null,null,null,null,null,null,null,null,null,null,null,null,null,null,null,null,null,null,null,null,null,null,null,null,null,null,null,null,null,null,null,null,null,null,null,null,null,null,null,null,null,null,null,null,null,null,null,null,null,null,null,null,null,null,null,null,null,null,null,null,null,null,null,null,null,null,null,null,null,null,null,null,null,null,null,null,null,null,null,null,null,null,null,null,null,null,null,null,null,null,null,null,null,null,null,null,null,null,null,null,null,null,null,null,null,null,null,null,null,null,null,null,null,null,null,null,null,null,null,null,null,null,null,null,null,null,null,null,null,null,null,null,null,null,null,null,null,null,null,null,null,null,null,null,null,null,null,null,null,null,null,null,null,null,null,null,null,null,null,null,null,null,null,null,null,null,null,null,null,null,null,null,null,null,null,null,null,null,null,null,null,null,null,null,null,null,null,null,null,null,null,null,null,null,null,null,null,null,null,null,null,null,null,null,null,null,null,null,null,null,null,null,null,null,null,null,null,null,null,null,null,null,null,null,null,null,null,null,null,null,null,null,null,null,null,null,null,null,null,null,null,null,null,null,null,null,null,null,null,null,null,null,null,null,null,null,null,null,null,null,null,null,null,null,null,null,null,null,null,null,null,null,null,null,null,null,null,null,null,null,null,null,null,null,null,null,null,null,null,null,null,null,null,null,null,null,null,null,null,null,null,null,null,null,null,null,null,null,null,null,null,null,null,null,null,null,null,null,null,null,null,null,null,null,null,null,null,null,null,null,null,null,null,null,null,null,null,null,null,null,null,null,null,null,null,null,null,null,null,null,null,null,null,null,null,null,null,null,null,null,null,null,null,null,null,null,null,null,null,null,null,null,null,null,null,null,null,null,null,null,null,null,null,null,null,null,null,null,null,null,null,null,null,null,null,null,null,null,null,null,null,null,null,null,null,null,null,null,null,null,null,null,null,null,null,null,null,null,null,null,null,null,null,null,null,null,null,null,null,null,null,null,null,null,null,null,null,null,null,null,null,null,null,null,null,null,null,null,null,null,null,null,null,null,null,null,null,null,null,null,null,null,null,null,null,null,null,null,null,null,null,null,null,null,null,null,null,null,null,null,null,null,null,null,null,null,null,null,null,null,null,null,null,null,null,null,null,null,null,null,null,null,null,null,null,null,null,null,null,null,null,null,null,null,null,null,null,null,null,null,null,null,null,null,null,null,null,null,null,null,null,null,null,null,null,null,null,null,null,null,null,null,null,null,null,null,null,null,null,null,null,null,null,null,null,null,null,null,null,null,null,null,null,null,null,null,null,null,null,null,null,null,null,null,null,null,null,null,null,null,null,null,null,null,null,null,null,null,null,null,null,null,null,null,null,null,null,null,null,null,null,null,null,null,null,null,null,null,null,null,null,null,null,null,null,null,null,null,null,null,null,null,null,null,null,null,null,null,null,null,null,null,null,null,null,null,null,null,null,null,null,null,null,null,null,null,null,null,null,null,null,null,null,null,null,null,null,null,null,null,null,null,null,null,null,null,null,null,null,null,null,null,null,null,null,null,null,null,null,null,null,null,null,null,null,null,null,null,null,null,null,null,null,null,null,null,null,null,null,null,null,null,null,null,null,null,null,null,null,null,null,null,null,null,null,null,null,null,null,null,null,null,null,null,null,null,null,null,null,null,null,null,null,null,null,null,null,null,null,null,null,null,null,null,null,null,null,null,null,null,null,null,null,null,null,null,null,null,null,null,null,null,null,null,null,null,null,null,null,null,null,null,null,null,null,null,null,null,null,null,null,null,null,null,null,null,null,null,null,null,null,null,null,null,null,null,null,null,null,null,null,null,null,null,null,null,null,null,null,null,null,null,null,null,null,null,null,null,null,null,null,null,null,null,null,null,null,null,null,null,null,null,null,null,null,null,null,null,null,null,null,null,null,null,null,null,null,null,null,null,null,null,null,null,null,null,null,null,null,null,null,null,null,null,null,null,null,null,null,null,null,null,null,null,null,null,null,null,null,null,null,null,null,null,null,null,null,null,null,null,null,null,null,null,null,null,null,null,null,null,null,null,null,null,null,null,null,null,null,null,null,null,null,null,null,null,null,null,null,null,null,null,null,null,null,null,null,null,null,null,null,null,null,null,null,null,null,null,null,null,null,null,null,null,null,null,null,null,null,null,null,null,null,null,null,null,null,null,null,null,null,null,null,null,null,null,null,null,null,null,null,null,null,null,null,null,null,null,null,null,null,null,null,null,null,null,null,null,null,null,null,null,null,null,null,null,null,null,null,null,null,null,null,null,null,null,null,null,null,null,null,null,null,null,null,null,null,null,null,null,null,null,null,null,null,null,null,null,null,null,null,null,null,null,null,null,null,null,null,null,null,null,null,null,null,null,null,null,null,null,null,null,null,null,null,null,null,null,null,null,null,null,null,null,null,null,null,null,null,null,null,null,null,null,null,null,null,null,null,null,null,null,null,null,null,null,null,null,null,null,null,null,null,null,null,null,null,null,null,null,null,null,null,null,null,null,null,null,null,null,null,null,null,null,null,null,null,null,null,null,null,null,null,null,null,null,null,null,null,null,null,null,null,null,null,null,null,null,null,null,null,null,null,null,null,null,null,null,null,null,null,null,null,null,null,null,null,null,null,null,null,null,null,null,null,null,null,null,null,null,null,null,null,null,null,null,null,null,null,null,null,null,null,null,null,null,null,null,null,null,null,null,null,null,null,null,null,null,null,null,null,null,null,null,null,null,null,null,null,null,null,null,null,null,null,null,null,null,null,null,null,null,null,null,null,null,null,null,null,null,null,null,null,null,null,null,null,null,null,null,null,null,null,null,null,null,null,null,null,null,null,null,null,null,null,null,null,null,null,null,null,null,null,null,null,null,null,null,null,null,null,null,null,null,null,null,null,null,null,null,null,null,null,null,null,null,null,null,null,null,null,null,null,null,null,null,null,null,null,null,null,null,null,null,null,null,null,null,null,null,null,null,null,null,null,null,null,null,null,null,null,null,null,null,null,null,null,null,null,null,null,null,null,null,null,null,null,null,null,null,null,null,null,null,null,null,null,null,null,null,null,null,null,null,null,null,null,null,null,null,null,null,null,null,null,null,null,null,null,null,null,null,null,null,null,null,null,null,null,null,null,null,null,null,null,null,null,null,null,null,null,null,null,null,null,null,null,null,null,null,null,null,null,null,null,null,null,null,null,null,null,null,null,null,null,null,null,null,null,null,null,null,null,null,null,null,null,null,null,null,null,null,null,null,null,null,null,null,null,null,null,null,null,null,null,null,null,null,null,null,null,null,null,null,null,null,null,null,null,null,null,null,null,null,null,null,null,null,null,null,null,null,null,null,null,null,null,null,null,null,null,null,null,null,null,null,null,null,null,null,null,null,null,null,null,null,null,null,null,null,null,null,null,null,null,null,null,null,null,null,null,null,null,null,null,null,null,null,null,null,null,null,null,null,null,null,null,null,null,null,null,null,null,null,null,null,null,null,null,null,null,null,null,null,null,null,null,null,null,null,null,null,null,null,null,null,null,null,null,null,null,null,null,null,null,null,null,null,null,null,null,null,null,null,null,null,null,null,null,null,null,null,null,null,null,null,null,null,null,null,null,null,null,null,null,null,null,null,null,null,null,null,null,null,null,null,null,null,null,null,null,null,null,null,null,null,null,null,null,null,null,null,null,null,null,null,null,null,null,null,null,null,null,null,null,null,null,null,null,null,null,null,null,null,null,null,null,null,null,null,null,null,null,null,null,null,null,null,null,null,null,null,null,null,null,null,null,null,null,null,null,null,null,null,null,null,null,null,null,null,null,null,null,null,null,null,null,null,null,null,null,null,null,null,null,null,null,null,null,null,null,null,null,null,null,null,null,null,null,null,null,null,null,null,null,null,null,null,null,null,null,null,null,null,null,null,null,null,null,null,null,null,null,null,null,null,null,null,null,null,null,null,null,null,null,null,null,null,null,null,null,null,null,null,null,null,null,null,null,null,null,null,null,null,null,null,null,null,null,null,null,null,null,null,null,null,null,null,null,null,null,null,null,null,null,null,null,null,null,null,null,null,null,null,null,null,null,null,null,null,null,null,null,null,null,null,null,null,null,null,null,null,null,null,null,null,null,null,null,null,null,null,null,null,null,null,null,null,null,null,null,null,null,null,null,null,null,null,null,null,null,null,null,null,null,null,null,null,null,null,null,null,null,null,null,null,null,null,null,null,null,null,null,null,null,null,null,null,null,null,null,null,null,null,null,null,null,null,null,null,null,null,null,null,null,null,null,null,null,null,null,null,null,null,null,null,null,null,null,null,null,null,null,null,null,null,null,null,null,null,null,null,null,null,null,null,null,null,null,null,null,null,null,null,null,null,null,null,null,null,null,null,null,null,null,null,null,null,null,null,null,null,null,null,null,null,null,null,null,null,null,null,null,null,null,null,null,null,null,null,null,null,null,null,null,null,null,null,null,null,null,null,null,null,null,null,null,null,null,null,null,null,null,null,null,null,null,null,null,null,null,null,null,null,null,null,null,null,null,null,null,null,null,null,null,null,null,null,null,null,null,null,null,null,null,null,null,null,null,null,null,null,null,null,null,null,null,null,null,null,null,null,null,null,null,null,null,null,null,null,null,null,null,null,null,null,null,null,null,null,null,null,null,null,null,null,null,null,null,null,null,null,null,null,null,null,null,null,null,null,null,null,null,null,null,null,null,null,null,null,null,null,null,null,null,null,null,null,null,null,null,null,null,null,null,null,null,null,null,null,null,null,null,null,null,null,null,null,null,null,null,null,null,null,null,null,null,null,null,null,null,null,null,null,null,null,null,null,null,null,null,null,null,null,null,null,null,null,null,null,null,null,null,null,null,null,null,null,null,null,null,null,null,null,null,null,null,null,null,null,null,null,null,null,null,null,null,null,null,null,null,null,null,null,null,null,null,null,null,null,null,null,null,null,null,null,null,null,null,null,null,null,null,null,null,null,null,null,null,null,null,null,null,null,null,null,null,null,null,null,null,null,null,null,null,null,null,null,null,null,null,null,null,null,null,null,null,null,null,null,null,null,null,null,null,null,null,null,null,null,null,null,null,null,null,null,null,null,null,null,null,null,null,null,null,null,null,null,null,null,null,null,null,null,null,null,null,null,null,null,null,null,null,null,null,null,null,null,null,null,null,null,null,null,null,null,null,null,null,null,null,null,null,null,null,null,null,null,null,null,null,null,null,null,null,null,null,null,null,null,null,null,null,null,null,null,null,null,null,null,null,null,null,null,null,null,null,null,null,null,null,null,null,null,null,null,null,null,null,null,null,null,null,null,null,null,null,null,null,null,null,null,null,null,null,null,null,null,null,null,null,null,null,null,null,null,null,null,null,null,null,null,null,null,null,null,null,null,null,null,null,null,null,null,null,null,null,null,null,null,null,null,null,null,null,null,null,null,null,null,null,null,null,null,null,null,null,null,null,null,null,null,null,null,null,null,null,null,null,null,null,null,null,null,null,null,null,null,null,null,null,null,null,null,null,null,null,null,null,null,null,null,null,null,null,null,null,null,null,null,null,null,null,null,null,null,null,null,null,null,null,null,null,null,null,null,null,null,null,null,null,null,null,null,null,null,null,null,null,null,null,null,null,null,null,null,null,null,null,null,null,null,null,null,null,null,null,null,null,null,null,null,null,null,null,null,null,null,null,null,null,null,null,null,null,null,null,null,null,null,null,null,null,null,null,null,null,null,null,null,null,null,null,null,null,null,null,null,null,null,null,null,null,null,null,null,null,null,null,null,null,null,null,null,null,null,null,null,null,null,null,null,null,null,null,null,null,null,null,null,null,null,null,null,null,null,null,null,null,null,null,null,null,null,null,null,null,null,null,null,null,null,null,null,null,null,null,null,null,null,null,null,null,null,null,null,null,null,null,null,null,null,null,null,null,null,null,null,null,null,null,null,null,null,null,null,null,null,null,null,null,null,null,null,null,null,null,null,null,null,null,null,null,null,null,null,null,null,null,null,null,null,null,null,null,null,null,null,null,null,null,null,null,null,null,null,null,null,null,null,null,null,null,null,null,null,null,null,null,null,null,null,null,null,null,null,null,null,null,null,null,null,null,null,null,null,null,null,null,null,null,null,null,null,null,null,null,null,null,null,null,null,null,null,null,null,null,null,null,null,null,null,null,null,null,null,null,null,null,null,null,null,null,null,null,null,null,null,null,null,null,null,null,null,null,null,null,null,null,null,null,null,null,null,null,null,null,null,null,null,null,null,null,null,null,null,null,null,null,null,null,null,null,null,null,null,null,null,null,null,null,null,null,null,null,null,null,null,null,null,null,null,null,null,null,null,null,null,null,null,null,null,null,null,null,null,null,null,null,null,null,null,null,null,null,null,null,null,null,null,null,null,null,null,null,null,null,null,null,null,null,null,null,null,null,null,null,null,null,null,null,null,null,null,null,null,null,null,null,null,null,null,null,null,null,null,null,null,null,null,null,null,null,null,null,null,null,null,null,null,null,null,null,null,null,null,null,null,null,null,null,null,null,null,null,null,null,null,null,null,null,null,null,null,null,null,null,null,null,null,null,null,null,null,null,null,null,null,null,null,null,null,null,null,null,null,null,null,null,null,null,null,null,null,null,null,null,null,null,null,null,null,null,null,null,null,null,null,null,null,null,null,null,null,null,null,null,null,null,null,null,null,null,null,null,null,null,null,null,null,null,null,null,null,null,null,null,null,null,null,null,null,null,null,null,null,null,null,null,null,null,null,null,null,null,null,null,null,null,null,null,null,null,null,null,null,null,null,null,null,null,null,null,null,null,null,null,null,null,null,null,null,null,null,null,null,null,null,null,null,null,null,null,null,null,null,null,null,null,null,null,null,null,null,null,null,null,null,null,null,null,null,null,null,null,null,null,null,null,null,null,null,null,null,null,null,null,null,null,null,null,null,null,null,null,null,null,null,null,null,null,null,null,null,null,null,null,null,null,null,null,null,null,null,null,null,null,null,null,null,null,null,null,null,null,null,null,null,null,null,null,null,null,null,null,null,null,null,null,null,null,null,null,null,null,null,null,null,null,null,null,null,null,null,null,null,null,null,null,null,null,null,null,null,null,null,null,null,null,null,null,null,null,null,null,null,null,null,null,null,null,null,null,null,null,null,null,null,null,null,null,null,null,null,null,null,null,null,null,null,null,null,null,null,null,null,null,null,null,null,null,null,null,null,null,null,null,null,null,null,null,null,null,null,null,null,null,null,null,null,null,null,null,null,null,null,null,null,null,null,null,null,null,null,null,null,null,null,null,null,null,null,null,null,null,null,null,null,null,null,null,null,null,null,null,null,null,null,null,null,null,null,null,null,null,null,null,null,null,null,null,null,null,null,null,null,null,null,null,null,null,null,null,null,null,null,null,null,null,null,null,null,null,null,null,null,null,null,null,null,null,null,null,null,null,null,null,null,null,null,null,null,null,null,null,null,null,null,null,null,null,null,null,null,null,null,null,null,null,null,null,null,null,null,null,null,null,null,null,null,null,null,null,null,null,null,null,null,null,null,null,null,null,null,null,null,null,null,null,null,null,null,null,null,null,null,null,null,null,null,null,null,null,null,null,null,null,null,null,null,null,null,null,null,null,null,null,null,null,null,null,null,null,null,null,null,null,null,null,null,null,null,null,null,null,null,null,null,null,null,null,null,null,null,null,null,null,null,null,null,null,null,null,null,null,null,null,null,null,null,null,null,null,null,null,null,null,null,null,null,null,null,null,null,null,null,null,null,null,null,null,null,null,null,null,null,null,null,null,null,null,null,null,null,null,null,null,null,null,null,null,null,null,null,null,null,null,null,null,null,null,null,null,null,null,null,null,null,null,null,null,null,null,null,null,null,null,null,null,null,null,null,null,null,null,null,null,null,null,null,null,null,null,null,null,null,null,null,null,null,null,null,null,null,null,null,null,null,null,null,null,null,null,null,null,null,null,null,null,null,null,null,null,null,null,null,null,null,null,null,null,null,null,null,null,null,null,null,null,null,null,null,null,null,null,null,null,null,null,null,null,null,null,null,null,null,null,null,null,null,null,null,null,null,null,null,null,null,null,null,null,null,null,null,null,null,null,null,null,null,null,null,null,null,null,null,null,null,null,null,null,null,null,null,null,null,null,null,null,null,null,null,null,null,null,null,null,null,null,null,null,null,null,null,null,null,null,null,null,null,null,null,null,null,null,null,null,null,null,null,null,null,null,null,null,null,null,null,null,null,null,null,null,null,null,null,null,null,null,null,null,null,null,null,null,null,null,null,null,null,null,null,null,null,null,null,null,null,null,null,null,null,null,null,null,null,null,null,null,null,null,null,null,null,null,null,null,null,null,null,null,null,null,null,null,null,null,null,null,null,null,null,null,null,null,null,null,null,null,null,null,null,null,null,null,null,null,null,null,null,null,null,null,null,null,null,null,null,null,null,null,null,null,null,null,null,null,null,null,null,null,null,null,null,null,null,null,null,null,null,null,null,null,null,null,null,null,null,null,null,null,null,null,null,null,null,null,null,null,null,null,null,null,null,null,null,null,null,null,null,null,null,null,null,null,null,null,null,null,null,null,null,null,null,null,null,null,null,null,null,null,null,null,null,null,null,null,null,null,null,null,null,null,null,null,null,null,null,null,null,null,null,null,null,null,null,null,null,null,null,null,null,null,null,null,null,null,null,null,null,null,null,null,null,null,null,null,null,null,null,null,null,null,null,null,null,null,null,null,null,null,null,null,null,null,null,null,null,null,null,null,null,null,null,null,null,null,null,null,null,null,null,null,null,null,null,null,null,null,null,null,null,null,null,null,null,null,null,null,null,null,null,null,null,null,null,null,null,null,null,null,null,null,null,null,null,null,null,null,null,null,null,null,null,null,null,null,null,null,null,null,null,null,null,null,null,null,null,null,null,null,null,null,null,null,null,null,null,null,null,null,null,null,null,null,null,null,null,null,null,null,null,null,null,null,null,null,null,null,null,null,null,null,null,null,null,null,null,null,null,null,null,null,null,null,null,null,null,null,null,null,null,null,null,null,null,null,null,null,null,null,null,null,null,null,null,null,null,null,null,null,null,null,null,null,null,null,null,null,null,null,null,null,null,null,null,null,null,null,null,null,null,null,null,null,null,null,null,null,null,null,null,null,null,null,null,null,null,null,null,null,null,null,null,null,null,null,null,null,null,null,null,null,null,null,null,null,null,null,null,null,null,null,null,null,null,null,null,null,null,null,null,null,null,null,null,null,null,null,null,null,null,null,null,null,null,null,null,null,null,null,null,null,null,null,null,null,null,null,null,null,null,null,null,null,null,null,null,null,null,null,null,null,null,null,null,null,null,null,null,null,null,null,null,null,null,null,null,null,null,null,null,null,null,null,null,null,null,null,null,null,null,null,null,null,null,null,null,null,null,null,null,null,null,null,null,null,null,null,null,null,null,null,null,null,null,null,null,null,null,null,null,null,null,null,null,null,null,null,null,null,null,null,null,null,null,null,null,null,null,null,null,null,null,null,null,null,null,null,null,null,null,null,null,null,null,null,null,null,null,null,null,null,null,null,null,null,null,null,null,null,null,null,null,null,null,null,null,null,null,null,null,null,null,null,null,null,null,null,null,null,null,null,null,null,null,null,null,null,null,null,null,null,null,null,null,null,null,null,null,null,null,null,null,null,null,null,null,null,null,null,null,null,null,null,null,null,null,null,null,null,null,null,null,null,null,null,null,null,null,null,null,null,null,null,null,null,null,null,null,null,null,null,null,null,null,null,null,null,null,null,null,null,null,null,null,null,null,null,null,null,null,null,null,null,null,null,null,null,null,null,null,null,null,null,null,null,null,null,null,null,null,null,null,null,null,null,null,null,null,null,null,null,null,null,null,null,null,null,null,null,null,null,null,null,null,null,null,null,null,null,null,null,null,null,null,null,null,null,null,null,null,null,null,null,null,null,null,null,null,null,null,null,null,null,null,null,null,null,null,null,null,null,null,null,null,null,null,null,null,null,null,null,null,null,null,null,null,null,null,null,null,null,null,null,null,null,null,null,null,null,null,null,null,null,null,null,null,null,null,null,null,null,null,null,null,null,null,null,null,null,null,null,null,null,null,null,null,null,null,null,null,null,null,null,null,null,null,null,null,null,null,null,null,null,null,null,null,null,null,null,null,null,null,null,null,null,null,null,null,null,null,null,null,null,null,null,null,null,null,null,null,null,null,null,null,null,null,null,null,null,null,null,null,null,null,null,null,null,null,null,null,null,null,null,null,null,null,null,null,null,null,null,null,null,null,null,null,null,null,null,null,null,null,null,null,null,null,null,null,null,null,null,null,null,null,null,null,null,null,null,null,null,null,null,null,null,null,null,null,null,null,null,null,null,null,null,null,null,null,null,null,null,null,null,null,null,null,null,null,null,null,null,null,null,null,null,null,null,null,null,null,null,null,null,null,null,null,null,null,null,null,null,null,null,null,null,null,null,null,null,null,null,null,null,null,null,null,null,null,null,null,null,null,null,null,null,null,null,null,null,null,null,null,null,null,null,null,null,null,null,null,null,null,null,null,null,null,null,null,null,null,null,null,null,null,null,null,null,null,null,null,null,null,null,null,null,null,null,null,null,null,null,null,null,null,null,null,null,null,null,null,null,null,null,null,null,null,null,null,null,null,null,null,null,null,null,null,null,null,null,null,null,null,null,null,null,null,null,null,null,null,null,null,null,null,null,null,null,null,null,null,null,null,null,null,null,null,null,null,null,null,null,null,null,null,null,null,null,null,null,null,null,null,null,null,null,null,null,null,null,null,null,null,null,null,null,null,null,null,null,null,null,null,null,null,null,null,null,null,null,null,null,null,null,null,null,null,null,null,null,null,null,null,null,null,null,null,null,null,null,null,null,null,null,null,null,null,null,null,null,null,null,null,null,null,null,null,null,null,null,null,null,null,null,null,null,null,null,null,null,null,null,null,null,null,null,null,null,null,null,null,null,null,null,null,null,null,null,null,null,null,null,null,null,null,null,null,null,null,null,null,null,null,null,null,null,null,null,null,null,null,null,null,null,null,null,null,null,null,null,null,null,null,null,null,null,null,null,null,null,null,null,null,null,null,null,null,null,null,null,null,null,null,null,null,null,null,null,null,null,null,null,null,null,null,null,null,null,null,null,null,null,null,null,null,null,null,null,null,null,null,null,null,null,null,null,null,null,null,null,null,null,null,null,null,null,null,null,null,null,null,null,null,null,null,null,null,null,null,null,null,null,null,null,null,null,null,null,null,null,null,null,null,null,null,null,null,null,null,null,null,null,null,null,null,null,null,null,null,null,null,null,null,null,null,null,null,null,null,null,null,null,null,null,null,null,null,null,null,null,null,null,null,null,null,null,null,null,null,null,null,null,null,null,null,null,null,null,null,null,null,null,null,null,null,null,null,null,null,null,null,null,null,null,null,null,null,null,null,null,null,null,null,null,null,null,null,null,null,null,null,null,null,null,null,null,null,null,null,null,null,null,null,null,null,null,null,null,null,null,null,null,null,null,null,null,null,null,null,null,null,null,null,null,null,null,null,null,null,null,null,null,null,null,null,null,null,null,null,null,null,null,null,null,null,null,null,null,null,null,null,null,null,null,null,null,null,null,null,null,null,null,null,null,null,null,null,null,null,null,null,null,null,null,null,null,null,null,null,null,null,null,null,null,null,null,null,null,null,null,null,null,null,null,null,null,null,null,null,null,null,null,null,null,null,null,null,null,null,null,null,null,null,null,null,null,null,null,null,null,null,null,null,null,null,null,null,null,null,null,null,null,null,null,null,null,null,null,null,null,null,null,null,null,null,null,null,null,null,null,null,null,null,null,null,null,null,null,null,null,null,null,null,null,null,null,null,null,null,null,null,null,null,null,null,null,null,null,null,null,null,null,null,null,null,null,null,null,null,null,null,null,null,null,null,null,null,null,null,null,null,null,null,null,null,null,null,null,null,null,null,null,null,null,null,null,null,null,null,null,null,null,null,null,null,null,null,null,null,null,null,null,null,null,null,null,null,null,null,null,null,null,null,null,null,null,null,null,null,null,null,null,null,null,null,null,null,null,null,null,null,null,null,null,null,null,null,null,null,null,null,null,null,null,null,null,null,null,null,null,null,null,null,null,null,null,null,null,null,null,null,null,null,null,null,null,null,null,null,null,null,null,null,null,null,null,null,null,null,null,null,null,null,null,null,null,null,null,null,null,null,null,null,null,null,null,null,null,null,null,null,null,null,null,null,null,null,null,null,null,null,null,null,null,null,null,null,null,null,null,null,null,null,null,null,null,null,null,null,null,null,null,null,null,null,null,null,null,null,null,null,null,null,null,null,null,null,null,null,null,null,null,null,null,null,null,null,null,null,null,null,null,null,null,null,null,null,null,null,null,null,null,null,null,null,null,null,null,null,null,null,null,null,null,null,null,null,null,null,null,null,null,null,null,null,null,null,null,null,null,null,null,null,null,null,null,null,null,null,null,null,null,null,null,null,null,null,null,null,null,null,null,null,null,null,null,null,null,null,null,null,null,null,null,null,null,null,null,null,null,null,null,null,null,null,null,null,null,null,null,null,null,null,null,null,null,null,null,null,null,null,null,null,null,null,null,null,null,null,null,null,null,null,null,null,null,null,null,null,null,null,null,null,null,null,null,null,null,null,null,null,null,null,null,null,null,null,null,null,null,null,null,null,null,null,null,null,null,null,null,null,null,null,null,null,null,null,null,null,null,null,null,null,null,null,null,null,null,null,null,null,null,null,null,null,null,null,null,null,null,null,null,null,null,null,null,null,null,null,null,null,null,null,null,null,null,null,null,null,null,null,null,null,null,null,null,null,null,null,null,null,null,null,null,null,null,null,null,null,null,null,null,null,null,null,null,null,null,null,null,null,null,null,null,null,null,null,null,null,null,null,null,null,null,null,null,null,null,null,null,null,null,null,null,null,null,null,null,null,null,null,null,null,null,null,null,null,null,null,null,null,null,null,null,null,null,null,null,null,null,null,null,null,null,null,null,null,null,null,null,null,null,null,null,null,null,null,null,null,null,null,null,null,null,null,null,null,null,null,null,null,null,null,null,null,null,null,null,null,null,null,null,null,null,null,null,null,null,null,null,null,null,null,null,null,null,null,null,null,null,null,null,null,null,null,null,null,null,null,null,null,null,null,null,null,null,null,null,null,null,null,null,null,null,null,null,null,null,null,null,null,null,null,null,null,null,null,null,null,null,null,null,null,null,null,null,null,null,null,null,null,null,null,null,null,null,null,null,null,null,null,null,null,null,null,null,null,null,null,null,null,null,null,null,null,null,null,null,null,null,null,null,null,null,null,null,null,null,null,null,null,null,null,null,null,null,null,null,null,null,null,null,null,null,null,null,null,null,null,null,null,null,null,null,null,null,null,null,null,null,null,null,null,null,null,null,null,null,null,null,null,null,null,null,null,null,null,null,null,null,null,null,null,null,null,null,null,null,null,null,null,null,null,null,null,null,null,null,null,null,null,null,null,null,null,null,null,null,null,null,null,null,null,null,null,null,null,null,null,null,null,null,null,null,null,null,null,null,null,null,null,null,null,null,null,null,null,null,null,null,null,null,null,null,null,null,null,null,null,null,null,null,null,null,null,null,null,null,null,null,null,null,null,null,null,null,null,null,null,null,null,null,null,null,null,null,null,null,null,null,null,null,null,null,null,null,null,null,null,null,null,null,null,null,null,null,null,null,null,null,null,null,null,null,null,null,null,null,null,null,null,null,null,null,null,null,null,null,null,null,null,null,null,null,null,null,null,null,null,null,null,null,null,null,null,null,null,null,null,null,null,null,null,null,null,null,null,null,null,null,null,null,null,null,null,null,null,null,null,null,null,null,null,null,null,null,null,null,null,null,null,null,null,null,null,null,null,null,null,null,null,null,null,null,null,null,null,null,null,null,null,null,null,null,null,null,null,null,null,null,null,null,null,null,null,null,null,null,null,null,null,null,null,null,null,null,null,null,null,null,null,null,null,null,null,null,null,null,null,null,null,null,null,null,null,null,null,null,null,null,null,null,null,null,null,null,null,null,null,null,null,null,null,null,null,null,null,null,null,null,null,null,null,null,null,null,null,null,null,null,null,null,null,null,null,null,null,null,null,null,null,null,null,null,null,null,null,null,null,null,null,null,null,null,null,null,null,null,null,null,null,null,null,null,null,null,null,null,null,null,null,null,null,null,null,null,null,null,null,null,null,null,null,null,null,null,null,null,null,null,null,null,null,null,null,null,null,null,null,null,null,null,null,null,null,null,null,null,null,null,null,null,null,null,null,null,null,null,null,null,null,null,null,null,null,null,null,null,null,null,null,null,null,null,null,null,null,null,null,null,null,null,null,null,null,null,null,null,null,null,null,null,null,null,null,null,null,null,null,null,null,null,null,null,null,null,null,null,null,null,null,null,null,null,null,null,null,null,null,null,null,null,null,null,null,null,null,null,null,null,null,null,null,null,null,null,null,null,null,null,null,null,null,null,null,null,null,null,null,null,null,null,null,null,null,null,null,null,null,null,null,null,null,null,null,null,null,null,null,null,null,null,null,null,null,null,null,null,null,null,null,null,null,null,null,null,null,null,null,null,null,null,null,null,null,null,null,null,null,null,null,null,null,null,null,null,null,null,null,null,null,null,null,null,null,null,null,null,null,null,null,null,null,null,null,null,null,null,null,null,null,null,null,null,null,null,null,null,null,null,null,null,null,null,null,null,null,null,null,null,null,null,null,null,null,null,null,null,null,null,null,null,null,null,null,null,null,null,null,null,null,null,null,null,null,null,null,null,null,null,null,null,null,null,null,null,null,null,null,null,null,null,null,null,null,null,null,null,null,null,null,null,null,null,null,null,null,null,null,null,null,null,null,null,null,null,null,null,null,null,null,null,null,null,null,null,null,null,null,null,null,null,null,null,null,null,null,null,null,null,null,null,null,null,null,null,null,null,null,null,null,null,null,null,null,null,null,null,null,null,null,null,null,null,null,null,null,null,null,null,null,null,null,null,null,null,null,null,null,null,null,null,null,null,null,null,null,null,null,null,null,null,null,null,null,null,null,null,null,null,null,null,null,null,null,null,null,null,null,null,null,null,null,null,null,null,null,null,null,null,null,null,null,null,null,null,null,null,null,null,null,null,null,null,null,null,null,null,null,null,null,null,null,null,null,null,null,null,null,null,null,null,null,null,null,null,null,null,null,null,null,null,null,null,null,null,null,null,null,null,null,null,null,null,null,null,null,null,null,null,null,null,null,null,null,null,null,null,null,null,null,null,null,null,null,null,null,null,null,null,null,null,null,null,null,null,null,null,null,null,null,null,null,null,null,null,null,null,null,null,null,null,null,null,null,null,null,null,null,null,null,null,null,null,null,null,null,null,null,null,null,null,null,null,null,null,null,null,null,null,null,null,null,null,null,null,null,null,null,null,null,null,null,null,null,null,null,null,null,null,null,null,null,null,null,null,null,null,null,null,null,null,null,null,null,null,null,null,null,null,null,null,null,null,null,null,null,null,null,null,null,null,null,null,null,null,null,null,null,null,null,null,null,null,null,null,null,1.31840980052948,0.75350111722946167]
[null,null,null,null,null,null,null,null,null,86]
[null,null,null,null,null,null,null,null,null,null,null,"SheetB"]

{"sheet":"TestSet","index":3,"n_rows":1001,"n_cols":6,"rows_kept":1001,"cut":false,"hidden":false,"merged":[]}
["Ratio1","Binary1","Interval1","Ordinal1","Y2","Y"]
[9.5023471598300047E-2,0,0.15283784343562773,2010,2.5015942123037527,0]
[0.43096362958385015,0,0.13846618670978739,2010,0.18602888217316826,0]
[0.83509287788602227,0,7.5076681948290896E-2,2020,-4.3524034915828569E-2,0]
[0.39608228303099713,1,0.43271822603450028,2002,2.779981082399722,1]
[0.55668643087421033,1,0.64874514393262461,2008,3.317329717268779,1]
[0.89209892250738432,1,1.0699066044481738,2021,-0.77675991977354142,0]
[0.89189970693845755,1,1.011086934955272,2020,0.92568910476166832,1]
[0.64949619269442382,0,3.9209989145973581E-2,2001,0.47298717751251795,0]
[0.83439300176237385,1,0.88064357855931508,2011,1.5283623321818192,1]
[4.5758410912557057E-2,1,0.21985653541124903,2017,0.3226466002671059,0]
[0.61021125406234344,1,0.69356761987404569,2023,1.2268254907403464,0]
[0.32022755035291794,1,0.3608883378224268,2020,1.7389015503664877,1]
[0.87005060759141994,0,1.1537423670282277E-2,2018,-0.59909746039749656,0]
[0.95726565563988719,0,0.14457823209305404,2019,0.59522122584389381,0]
[3.8713150096630233E-2,1,8.7150019488140745E-2,2003,3.0478014040533692,1]
[0.47094775499598196,1,0.64522982563229769,2018,2.2211158469290226,0]
[0.2762653807431511,0,5.9611214180743007E-3,2013,2.0112047578736845,0]
[0.55087333314505904,0,6.4813669554108375E-2,2018,0.84172683816478266,0]
[0.16506345410695555,1,0.35931925277225868,2019,0.82531677872357945,1]
[0.63588453004557688,0,4.3295951172852482E-2,2018,-0.48247225566800345,0]
[0.75524966549982653,1,0.91956931002962639,2002,1.1268206883653646,1]
[0.55191875576486182,0,0.1345767174716154,2009,2.0151432111765692,0]
[0.35558202582832299,0,7.6430900824181608E-2,2008,2.1325531488268212,0]
[2.4297843876651459E-2,0,0.1245109087580782,2002,1.5682568816600257,0]
[0.71163986594305761,1,0.71335808359401243,2015,0.65870931483702888,0]
[0.31851074223551767,1,0.44192341647445149,2011,1.303200621471061,1]
[0.11921136158962975,1,0.21801791435843793,2016,1.3998536224392437,0]
[0.79922326825149104,1,0.85278354147295676,2002,2.5193750605553049,1]
[0.93172351551042609,1,1.1039431691373807,2017,1.1952771999593954,0]
[0.84845418101928893,0,1.5155335351648015E-2,2017,-0.39290602082083614,0]
[0.10179435729673136,1,0.23147185479362539,2002,3.4393791464908041,1]
[0.58580119715953116,1,0.59535571307848578,2007,2.0773866478243121,1]
[0.41138188801112041,1,0.51667777814612315,2007,3.1979877744764407,1]
[0.14018864499134109,0,3.5519640658792428E-2,2004,2.2013475726773089,0]
[0.95848722133912112,0,2.9502736388397333E-2,2006,2.2751802489460635,0]
[0.22946205000951703,1,0.4241662650094975,2014,2.1005904023855253,0]
[0.37284020082372826,1,0.41263892229446875,2015,0.18573471483670401,0]
[0.5288097332635161,0,9.8149296361495497E-2,2002,2.2249815871985525,0]
[0.56094798526731937,1,0.5637283271663075,2017,0.58550581944804292,0]
[0.15220474322784106,1,0.23014462931647733,2021,0.36371766613984224,1]
[0.12254588213206519,1,0.140015969122124,2014,1.8730472641391231,0]
[0.3239638845565237,1,0.50783836044441055,2021,0.63009475525498293,0]
[0.41419129236032848,1,0.46924100797946794,2010,1.1025784217976686,1]
[0.11624625607218519,0,0.14742938091166707,2010,2.911031799385364,0]
[5.248398088904338E-2,0,0.12826418357936029,2016,1.3088282245383107,0]
[0.82257260810325317,1,0.85052028895886489,2019,-0.76817933173614183,0]
[0.95279614567641402,0,3.9668346058158346E-2,2013,1.0165823555244882,0]
[0.13086347531667253,1,0.26948360175734842,2009,2.6704958926433142,1]
[0.44093352132977981,0,7.3104162403587955E-2,2001,1.5888993655382952,0]
[0.68019682529795678,1,0.68130233509447069,2013,1.3596474868652531,0]
[0.74861115939663181,1,0.87339657361259526,2020,2.0819829985064304,0]
[0.6489855686251097,0,1.9183160357330187E-2,2017,1.0838801006217746,0]
[0.40343222943821622,0,9.064932605928E-2,2010,2.4541430701158244,0]
[1.9116424228316609E-2,0,1.0251448596164604E-2,2017,9.7154193498596553E-2,0]
[0.48989375366768939,0,2.429046679215863E-3,2016,0.25171508027478739,0]
[0.7905916338902178,1,0.96841471700087889,2021,0.70232063241098952,0]
[0.57799046266102438,1,0.58366287122046245,2005,2.922501268154611,1]
[5.884660184530266E-2,1,0.11184719585569802,2020,1.5713109313579527,0]
[0.77007639227800628,1,0.96844344317614395,2008,0.96024921141776787,1]
[9.3526638664563455E-2,1,0.16135903755288078,2012,2.8608650930232375,1]
[0.26888054461415978,0,5.4176965768117147E-2,2002,1.3463962473127693,0]
[0.54661271731700434,1,0.56971750589644765,2011,1.0940038137562844,1]
[0.9898167028542062,1,1.068277310616486,2009,0.52785175821474584,1]
[0.30007228327794822,1,0.44230897669145197,2011,2.6341340066232561,1]
[0.34209084901671749,1,0.42536575300787982,2003,2.8012464303460911,1]
[0.29673212848077568,0,7.9083129414145109E-2,2016,-0.57922750340766005,0]
[0.21719938287521312,1,0.35182558933155972,2023,1.150466780730546,0]
[0.820235903856399,1,0.82194946104570299,2012,0.2941252637282436,0]
[0.99597147025520849,0,0.18170924971929081,2007,0.72928231070709137,0]
[0.56628158964624831,1,0.64800477879531682,2016,0.75123290347807659,0]
[0.71558779585850973,1,0.77986240319250588,2013,1.6414412559517231,0]
[7.3409068709493486E-2,1,0.10402267786668426,2020,0.2057917536023135,0]
[0.61180102435674122,1,0.7649116258351325,2017,-0.42657678055237946,0]
[0.43697195776191788,0,0.18932676080223232,2014,1.6717724505560883,0]
[0.55416225564750021,0,4.2855814915171812E-2,2007,0.63531425810086795,0]
[1.3012971830071884E-2,1,4.3183369381124687E-2,2009,3.2259447730725084,0]
[0.5260229355511955,0,0.1237700239780055,2023,0.85135442821212592,0]
[0.12070225890513475,0,0.18705719529729259,2011,1.8329080208780857,0]
[0.5191179101193325,1,0.71153790215166723,2009,2.6646466750148567,1]
[2.5146305362665267E-2,1,6.530339289490511E-2,2004,3.4490649593657752,0]
[0.15803408392944041,1,0.26585250345131078,2014,1.1276534809347312,0]
[0.65222173931063565,1,0.72475512473778991,2018,1.2613954685150466,0]
[0.21387742465973236,1,0.2455758708541331,2019,1.7940496822356198,0]
[0.45313671450272419,0,7.5952651188541428E-2,2003,2.7076164616229534,0]
[0.71319725919070531,1,0.86091206882174687,2020,0.48789082095177472,0]
[0.25083201823803247,0,4.7527061595943068E-2,2014,1.6005030908241176,0]
[0.74459236287810571,1,0.87576592275244514,2019,2.0376333191009968,0]
[0.71995497897960925,0,0.18046797560462041,2002,3.1860363543790586,0]
[0.95252987476904516,0,0.15723279530899736,2002,0.22350484531657122,0]
[0.14077626303942137,1,0.3132161547790962,2016,1.6834698871752427,0]
[0.1111554445077092,0,4.9527678653502563E-2,2007,1.1797995507534842,0]
[0.23215009995747637,0,0.13214871897731068,2004,3.4782303166292605,0]
[0.98518156342086993,0,8.1138096424442946E-2,2017,-0.22113273436428837,0]
[0.2320273972898117,0,2.7873484946272509E-3,2005,2.3179311404580059,0]
[1.4248312669551733E-2,1,0.19856408205432188,2005,1.3891759860871373,1]
[5.1092824175748563E-2,0,0.1507414586064173,2012,2.1362437539105841,0]
[0.28903942327145582,0,5.3442703393391501E-2,2001,2.7413178566736267,0]
[0.25121700834996397,0,4.9320890238656406E-2,2023,-0.11391494977618999,0]
[0.34559205489938805,1,0.49023168683610008,2002,3.1603372136508989,1]
[0.21411141611693063,1,0.26057639889068673,2016,2.5160011208279376,1]
[0.30584986529023972,1,0.39688991132800233,2004,2.7397338590621527,1]
[0.53393961158383385,1,0.61028153998357215,2012,0.8096680629429347,1]
[0.56002568340254344,0,0.11816100320074861,2004,2.2227609773150201,0]
[0.14445168012093157,0,0.12783177289137709,2005,2.4680529166179239,0]
[0.62827076492708123,1,0.77950201818054432,2021,-0.47708084212308566,0]
[0.51527815472280225,1,0.70779506944988735,2009,2.8630657952955625,1]
[0.52077790670180824,0,5.8691798415743792E-3,2016,0.99148379236182316,0]
[0.76163061634422735,0,4.3251507322455952E-2,2001,2.5784223083396158,0]
[0.10237415072863243,0,0.12349783111033358,2023,0.31170387859446858,0]
[0.62651703116927582,0,5.8757454909995337E-2,2015,-0.17670761277022262,0]
[0.37941650795860193,1,0.45937606412758542,2021,1.7149581375622507,1]
[0.54993461449803704,0,3.3739450337379975E-2,2006,2.4073684270498599,0]
[0.45344887844701554,0,1.4284378174536028E-2,2023,-0.69336386102615544,0]
[0.6518629682576198,0,0.17148870266595465,2018,0.29681925646497298,0]
[0.50957840811545929,0,4.3096561272659595E-2,2021,0.58973320638332716,0]
[0.65509359552442548,1,0.8372951670997143,2010,2.1389451465605234,1]
[0.45622700273850736,0,9.6961201815803089E-2,2016,1.2768425203497074,0]
[0.68914532535681916,1,0.73243976453061699,2005,2.2178721991218082,1]
[0.10098620268610681,1,0.13958005029330448,2021,-0.10117163256224748,0]
[0.47792177373663514,1,0.5914829765779912,2022,-0.92475252890872472,0]
[0.99822623311564651,1,1.1632467721360005,2002,1.1366285611525031,1]
[0.43689764937363895,0,0.16675603988641163,2017,-0.54333589192876164,0]
[0.58484788658034137,1,0.7275358009954338,2002,2.0328442831754607,1]
[0.51284909487547803,1,0.59836226877980125,2012,2.8022483184412379,0]
[0.41594053520248997,0,0.12800135094560416,2008,0.13109603361589145,0]
[0.13323236080020784,0,3.6139947904198569E-2,2008,2.5517224789856074,0]
[0.14095573332341882,0,4.5704565080021721E-2,2010,1.029414343885251,0]
[0.18922401911879916,0,4.7344904294750335E-2,2023,-1.4036798458446276,0]
[0.14903791790519638,1,0.18876772575451017,2019,-0.62470351561222204,1]
[0.63868652755570543,0,0.12917540075509598,2003,1.6776659171689627,0]
[0.26032629735870061,0,0.1796287290198918,2010,1.007222494471816,0]
[0.23426223784746136,1,0.26603034650926988,2017,-0.43954913924393157,0]
[0.87557216598650478,0,0.10535610078904223,2017,1.1545153336523157,0]
[0.12624215759399471,0,8.1074445988598476E-2,2020,0.18399260170485077,0]
[0.10688858259617307,0,4.2945543180817537E-2,2007,3.1182798242187135,0]
[0.23017138414686056,1,0.24411666085480527,2006,1.5100836837267759,1]
[9.6220549048036896E-2,1,0.23543290542752732,2017,1.5515384038844831,1]
[0.8483526948595087,0,6.6842781713176883E-2,2006,-7.9475334960792177E-2,0]
[0.15622308394712481,1,0.17231123493072376,2006,2.5700017150662799,0]
[0.89704924140452158,0,1.1712046116062448E-2,2014,0.49477510760404675,0]
[3.1727354098327942E-2,0,4.246892449007509E-2,2013,0.93243809689317647,0]
[0.56064801478967063,1,0.71156721200795636,2005,1.0871625116428851,1]
[0.87530897363714744,1,0.98933397512906107,2016,1.2242135251622854,1]
[0.16927762930046175,1,0.20713069188793526,2022,0.97389896793346331,0]
[0.18914302839097352,1,0.38249390140148776,2011,1.7227491106781043,0]
[0.76254020682889823,1,0.89387033749628197,2013,1.6961709882702325,0]
[0.95275877655740604,1,0.95438436759191192,2013,0.29540275925576615,1]
[0.78680443852261372,1,0.78870668478587092,2005,1.6243289920152209,1]
[0.39506116002095126,0,0.1446376449225556,2009,-8.912176670489777E-2,0]
[0.76062291634736057,1,0.92811399262166761,2009,0.38692034039229573,0]
[0.79388873083076483,0,3.7001470986314879E-2,2021,-1.6035907497463007,0]
[0.25562425235322961,1,0.39417859269675826,2002,3.4602084573321292,1]
[0.60661202306798856,1,0.78766236405231638,2014,2.1802990636285315,0]
[0.28886372226544377,1,0.31586722557916413,2018,0.15582259940501686,0]
[3.943347121279861E-3,1,0.19336207200019698,2016,1.3571889486111002,1]
[0.3197395382628464,0,3.4195933825374339E-3,2010,-0.22234247906204224,0]
[0.78005080630524626,1,0.9705046137478055,2004,1.9155077757617771,1]
[0.29391135356964593,0,0.18530993614611846,2016,-8.0325919129731305E-2,0]
[0.11016145499173235,0,0.11330874845764678,2021,-0.63162445504034281,0]
[2.898080510780332E-2,1,8.4876544622519506E-2,2018,-0.214967219430093,0]
[0.40401993299203842,1,0.57423647945521406,2016,0.88809877251877023,1]
[0.83883309223238012,1,0.99434306117303395,2023,-0.53473862105227576,0]
[0.41743958620042165,0,0.15778211082852456,2018,1.0566788878368527,0]
[0.87057872609549114,1,1.0477054182141043,2009,0.78514087102974972,1]
[0.58070577440430926,0,0.1907043913993908,2011,0.45671258028585582,0]
[0.77772192663578421,1,0.8809560772931051,2015,1.6288216747856876,1]
[0.69359597511946502,0,1.3735629468629629E-2,2007,1.4160752755631005,0]
[0.58142943887607368,1,0.75149943587753165,2008,1.0814879717532488,1]
[0.32745059911943386,1,0.39807543582829336,2008,1.1281329025062381,1]
[0.94589452797600226,1,1.0143583177405751,2018,2.0954742593485913,1]
[0.54070973968770131,0,4.30488334206717E-2,2006,1.0582757858095366,0]
[0.33927528203467405,1,0.48564730262095496,2013,0.72271898127274348,1]
[0.50828194066490562,1,0.58471202118159304,2004,3.6407374512650263,1]
[0.26074602674547409,1,0.30075465989801786,2016,0.54156500207324387,0]
[0.59084375779677667,0,8.2671865537843434E-2,2015,-0.39637147813029672,0]
[0.71118765365059111,0,0.15060981068460577,2021,0.40370117839577713,0]
[0.68331974711287857,1,0.8620194548519402,2012,1.9955267700392731,0]
[0.34829971616865718,1,0.46364541565845629,2023,1.0529753656368379,0]
[0.4099756998299211,0,4.5255279283020672E-2,2003,0.59440896995381176,0]
[0.21415802458228417,1,0.34897721104368357,2005,1.7497173580008334,1]
[0.87468122140979565,1,0.91732819794821807,2006,0.88441485981274082,1]
[0.88185590992883167,0,0.12976232156304426,2004,0.23828090821549663,0]
[0.68855055583547853,0,2.3314876104011863E-2,2005,2.5566027451397098,0]
[1.5053426800188174E-2,0,4.8441707800048417E-2,2019,1.5639614253365437,0]
[0.67564800996351082,1,0.71030027529637374,2010,3.0484135546376412,0]
[0.98770895247927271,1,1.1524036199090364,2009,2.6195774500401998,0]
[0.52808354317141615,0,9.8217731308486433E-2,2022,0.58344282089502886,0]
[0.76331655277423793,0,7.8762009512441999E-2,2003,2.9229208336363914,0]
[0.90384841326640497,1,1.069827563458656,2021,1.734081238632182,0]
[0.96191328471499282,0,5.5230119257344161E-2,2017,4.6169717437554603E-2,0]
[0.28039206735028621,0,9.4203958588292946E-2,2002,0.77713144265865763,0]
[0.65199991691559056,0,7.1050769792487131E-2,2014,1.9279779496251335,0]
[0.22277961953363623,0,2.6853338910825378E-2,2017,1.3781898922104328,0]
[7.8409742046982922E-2,0,0.162072921231082,2003,2.7344606192415708,0]
[0.73509882891676781,0,0.17063342136931048,2014,1.0819844025288585,0]
[0.90851534005631673,1,0.98525021165740534,2006,3.1316052946970614,1]
[0.49230572695139163,1,0.60281773010165662,2003,1.9016631606778531,1]
[0.14338761211884077,1,0.17736285142335978,2020,0.13376769973126879,0]
[0.74786336143097187,0,0.17430776880068752,2011,1.4047793057298112,0]
[0.60335833331910138,1,0.70932891222340289,2014,1.651087308254221,0]
[0.61590471202845287,0,5.0597515260187902E-2,2015,6.512629792742386E-2,0]
[8.2380584579555549E-2,1,0.17931136159319061,2023,1.0704654096274475,0]
[0.40494920948881374,0,0.15443720531207517,2020,1.7304500133458265,0]
[0.70593253665588063,1,0.8373860887802288,2012,1.1872372817358303,1]
[6.3536514097715657E-2,1,7.3075064129111938E-2,2015,-0.10026600554453818,0]
[7.1366363660632204E-2,1,0.17977778194849039,2016,1.4181065842950138,0]
[0.59513770514427311,0,0.1732327439410366,2019,-5.1023427484957473E-3,0]
[0.70313397700449431,1,0.84609913476946075,2009,3.182801181904563,1]
[0.55760526339937466,0,0.15177751927914068,2021,1.3911100990581293,0]
[3.0544915852202648E-2,0,0.19637101730064913,2020,1.8230497036362014,0]
[0.37821860254439299,1,0.47406834435826639,2002,2.2425925437920053,1]
[0.56871299348399273,1,0.68722109440529466,2017,2.5011319190733587,0]
[0.30082279856323513,0,5.6757436959531619E-3,2022,-1.3758884265289297,0]
[0.45677629801906916,0,0.18159556272804223,2017,1.5108418414070892,0]
[5.5004535137953003E-2,1,0.15826484510337169,2007,2.3621725989149982,1]
[0.7328415335477928,0,0.16121582742549898,2020,-0.98524612698933045,0]
[0.35614945356937244,0,0.17676964489590896,2006,2.0488967438204524,0]
[0.14662734993286208,1,0.26721946797716672,2012,2.6757447364465525,1]
[0.69543177434915071,1,0.82916440707059347,2020,-0.12218793650958237,1]
[0.28413615533640579,0,0.12791374959534663,2013,2.0354927501364779,0]
[0.57621769770260867,1,0.65896042314849457,2016,7.1071648917519159E-2,0]
[0.64160789563604559,0,5.7138009110679455E-2,2008,0.3413971736406804,0]
[0.47300578307302299,0,0.17944060341978088,2023,0.45826588801724388,0]
[0.94999658392339348,1,0.99269903579315655,2022,-0.13755255003345723,0]
[5.9242221476117796E-2,0,0.16136762133776505,2014,2.1669906227120936,0]
[0.36533127944488364,0,8.3847669024259067E-2,2014,1.2246873295049219,0]
[0.87029746317911261,1,0.90149778090749522,2022,1.771748308622509,0]
[0.71423338829759198,1,0.87423476330085426,2002,3.1901575549360941,1]
[0.46288026700809948,1,0.62040186936947939,2005,2.5528868754830549,1]
[4.5804373022784173E-3,1,0.16224095643491326,2020,2.208325291648312,1]
[0.61165322724564519,0,0.12049106355395788,2010,1.2904254546124911,0]
[0.19494209540756691,0,0.15101206299727438,2020,0.74027471568732284,0]
[0.30821533485087915,0,3.2645956621626664E-2,2022,-1.4004247911957941,0]
[0.43754178324876236,0,4.8509392354971918E-2,2005,1.9972987327671661,0]
[0.20778545649984759,0,4.6347176334708756E-3,2002,2.3909416301849156,0]
[0.27613413936464815,1,0.41527986410207696,2020,-0.30949303953791929,1]
[0.2019452443105787,1,0.33701606288597563,2001,3.1458581310424369,1]
[0.85753906120372436,1,0.96616891426462304,2021,1.2101285120607983,0]
[0.98397711936677945,0,0.10064820013385983,2020,-0.96350882570336216,0]
[0.41643861181691255,1,0.59229438150386571,2004,1.5744283908508074,1]
[0.883259692247234,0,7.2561079824979599E-2,2011,-0.43704315525577386,0]
[0.63504389624848767,1,0.65262209183363185,2009,2.5046222086824246,1]
[0.84063260545953522,0,3.7334564567073514E-2,2016,-1.1422220311696134,0]
[0.9740316249780091,1,1.0738220756872763,2009,1.9421408268122735,1]
[0.90761755662869448,0,0.19054983429870184,2015,0.69135199013162496,0]
[0.44199404875992654,1,0.48254106215920589,2020,7.9691708441123721E-2,0]
[0.72662459468349472,0,0.11687917451782007,2011,-3.6033756164573605E-2,0]
[0.37533344197245488,1,0.51111536108960198,2019,1.2500210609699782,0]
[0.51825908797501108,0,1.3494217554048627E-2,2007,0.53153755168059313,0]
[3.1504470376914839E-2,1,0.2027758766883786,2006,1.4856847914872611,1]
[0.21068354990150318,0,5.3861365080624161E-2,2016,0.65870145057368945,0]
[0.85406365837558229,0,3.200959231443079E-2,2017,-1.1906346369547329,0]
[0.44342953584135325,1,0.64243827654798291,2013,2.5484241425374345,0]
[0.62861700171019541,1,0.71552144336027512,2019,9.409697260598382E-2,1]
[0.80337472953180555,0,0.12833837117524,2001,3.1643033850959532,0]
[0.98443685916177082,1,1.1040247211552976,2009,0.46951607424117558,1]
[0.34223601944547966,1,0.38860805362823153,2010,2.6111962775150697,1]
[0.64914584138894538,0,9.6163684166885949E-2,2020,-0.37914876723996205,0]
[0.46892212511178677,0,0.13322697516541521,2010,1.4743748881553831,0]
[0.23597452820247777,1,0.40647158465139072,2014,-0.11503454480593656,1]
[0.41690390939609223,0,0.11206943079104592,2011,2.0506840884119177,0]
[0.6721066925604362,0,7.4859989640071681E-3,2001,2.0258979290023635,0]
[0.40770837657627457,1,0.5622409165169503,2017,2.3384618302564517,0]
[0.88805911069018761,1,1.041116905187875,2014,0.54212573760991212,0]
[0.33561757832988404,1,0.4413254295472121,2004,2.6793452914094757,0]
[0.51228435313206966,0,9.6480248463470364E-2,2023,0.11465543767998376,0]
[0.35926446793173028,0,0.19384050222711871,2003,2.1947556692966366,0]
[0.36090742131108433,1,0.43224895672041241,2020,1.9640617967187937,0]
[0.30266652141469363,0,4.4472624302399955E-2,2018,0.48946812991876887,0]
[0.25234335344075109,1,0.35134486754258315,2002,1.9764158277859147,1]
[0.22370576637395723,1,0.37788862584111582,2010,0.55730033456799122,1]
[0.16659689525014387,1,0.24604994217704118,2020,-0.66885028038015992,1]
[0.87592204104886007,0,7.5851303775485199E-2,2003,1.72759518717384,0]
[0.72158105676575757,1,0.75573360089292418,2010,0.3371029113887164,1]
[0.5624897802213904,1,0.70216371096104602,2004,2.1561256109099372,1]
[0.29661970691349671,1,0.3374098897094826,2023,1.4485017842745307,0]
[0.68678622803104183,1,0.85412289718443468,2006,3.4730021279952927,1]
[0.78123505138580362,0,1.4885077584639174E-2,2012,0.13721721588372149,0]
[0.88460108056237841,1,0.93238847803371927,2002,2.1168083175524917,0]
[0.61356778723699301,1,0.79578000680081185,2016,2.0684973777060107,1]
[0.11139653170152697,1,0.21462227073498211,2004,1.8370640883172196,1]
[0.68398496453937874,0,8.8179233069027529E-2,2022,-1.6392844054608449,0]
[6.8605492527054057E-2,0,0.14937140579955155,2014,0.85807297990941866,0]
[0.28335573782374168,0,0.18950314414706942,2008,0.87849294054086013,0]
[0.84649793910345172,0,0.17075615186360393,2021,0.77214458484054926,0]
[0.16850158150154049,1,0.36452980628825782,2006,1.545218773942679,1]
[0.7960661857794229,1,0.82032227828545867,2008,2.0675186016554146,1]
[0.31147294064620989,1,0.48533218248034704,2011,2.7847790902079868,1]
[0.945352119842782,1,1.0103029036552189,2011,1.4329225187058721,1]
[0.50236577391537862,0,5.7803456898761853E-2,2018,0.9570401704243281,0]
[0.25526140205545478,0,4.9347565106503871E-2,2004,2.5794358116921225,0]
[0.90439307812730207,0,5.6857418156462058E-2,2023,-1.1150263776907408,0]
[0.22884578814288503,1,0.41048858652061371,2002,1.5781599572204565,1]
[0.3350846745652013,1,0.52520835943588162,2006,3.0802995246543885,1]
[0.22144960373760858,1,0.38738748339605811,2004,1.1249832010745058,1]
[0.81303397454394444,1,0.84265128440215087,2011,1.381056155556611,1]
[0.5768887897827506,0,1.9319914454295973E-2,2016,0.15905335871489013,0]
[0.48866983123357055,0,8.9638861591274085E-2,2015,1.4508186519186768,0]
[0.5587242897323399,0,6.1832242432413899E-2,2012,2.0693391322937797,0]
[0.89975706826187951,1,0.95237173588116197,2004,2.401710748327762,1]
[0.56971631161376424,1,0.65771206125553805,2001,2.3129775007406925,1]
[0.22337006330534259,0,4.6858320294905553E-2,2023,-1.1252513324049778,0]
[9.9349030007934491E-2,1,0.12201596089157771,2018,0.28617664309543178,0]
[5.2199884606877633E-2,1,0.24013207083515301,2009,3.252586237995942,1]
[0.46267384471759831,1,0.6187751724365298,2016,0.7278022565130543,0]
[0.61784348235856867,1,0.62793237724936735,2013,0.106369693634567,1]
[0.18755952099810014,1,0.22611967834489682,2023,1.0344469462951005,0]
[0.51949004098180696,1,0.69472386397751706,2001,3.3804051601299694,1]
[0.22195589039475028,1,0.38840254874627012,2005,3.0556341403738045,1]
[0.75100185741219549,0,0.15735309183047713,2015,-0.86627731610244307,0]
[9.4872330086984702E-3,1,0.16182445070717938,2017,0.83146416660123312,1]
[0.33005941792483895,0,9.077381770201097E-2,2020,1.7151701890129476,0]
[0.48252563661531223,0,2.2175525746912506E-4,2001,2.0510241919954639,0]
[0.77382183315634234,1,0.92797730960353764,2020,1.6805300826855429,0]
[0.34463887349909372,1,0.43622763093067402,2021,1.4161298360026118,1]
[0.95021307076631456,1,0.96597239496413312,2008,0.80958786204974209,0]
[0.68206612845200032,1,0.87123897882853174,2020,1.6635290468884258,1]
[0.15066390981982747,0,4.2115862423623265E-2,2005,0.56778256528307147,0]
[0.35242757724034901,1,0.42144587628155805,2004,2.3111860589632722,1]
[0.35077388418125865,0,8.3121310220524325E-2,2014,-9.4655948259843026E-3,0]
[0.82974270224537838,0,0.18571672291084534,2022,-1.2412418142960546,0]
[0.47246955596722395,0,0.19581912949334937,2009,1.6547899173743563,0]
[0.9492444085223114,0,3.5367876115117715E-4,2003,1.3000030983381681,0]
[0.1993387557539098,0,3.4741895460595855E-2,2017,0.42137078455848198,0]
[0.38458901005878499,1,0.48716068856730133,2002,1.6760551307985099,1]
[0.56201618670811493,0,9.7430910605954352E-2,2009,1.9437830653655928,0]
[0.60070727332359708,1,0.6856981176776149,2004,2.3900994246586222,1]
[0.28644425372716142,1,0.37489202208541272,2015,2.0602137518708075,0]
[0.25119569064114267,0,0.14406018062396489,2020,1.5185533954341612,0]
[0.99273434676678141,1,1.148998313856743,2003,2.0957696151203988,1]
[0.56682341877330145,0,2.7685612060721624E-4,2017,1.2436552198973905,0]
[7.5171046649938678E-2,1,0.1653611802095413,2002,3.3307288719448911,1]
[0.63684468055124233,0,3.6750056346023352E-2,2001,1.5168123308032375,0]
[0.90880769701142949,0,0.1250576952929251,2015,-6.2483198589565081E-2,0]
[0.61220091532279663,0,1.0303792220852448E-2,2003,0.43875080274088452,0]
[0.6905799316131177,0,0.17758311523784892,2022,-1.4380553656634534,0]
[0.10056789805794719,0,0.1619160493085692,2022,1.1797185767882781,0]
[0.51912489257222461,1,0.59582583803494094,2007,0.64113390614941745,1]
[0.49650553665296882,1,0.61724867526808236,2005,3.708520519586445,1]
[0.95131620622195956,0,0.15153347465692538,2009,0.93052426607119854,0]
[0.30964791102329647,1,0.33633286167997456,2004,3.670100813356489,1]
[1.3461905098043569E-2,1,0.11351260740970681,2016,0.58696592209458442,1]
[0.28264995496165068,1,0.38276410238574488,2010,0.51028494113112055,0]
[0.35648259687338257,0,0.11788685545238205,2012,1.4591897505228899,0]
[0.66901582246549007,0,0.19306328915045534,2005,1.0548069401129823,0]
[0.97354573651975729,1,1.0378516469002319,2011,2.3781070180324284,1]
[0.25952647460354838,1,0.3267428749458165,2020,0.94274165091193896,0]
[0.18079836509947866,0,1.1052358928846262E-3,2012,9.703018425720189E-3,0]
[0.55810999067138145,1,0.66459398602508213,2020,1.976059670475637,0]
[0.115714239712712,1,0.29699026977582155,2005,1.1831919350929292,0]
[0.29971086584334616,0,1.9278005442645796E-2,2013,2.0952622565823082,0]
[0.18788232338853061,1,0.31288811444101938,2002,2.4043531967502347,1]
[0.15096601090020478,1,0.18477168212510015,2014,0.16502807525264251,1]
[0.66226575300511226,1,0.6708063573219466,2011,1.2846533223615391,1]
[0.1169120806568279,1,0.26226530944665016,2002,2.1793628443866462,1]
[5.5493396288648134E-2,1,0.14566791057261141,2013,2.5550061706436664,0]
[0.12180532646547015,1,0.25472475010982737,2003,1.6551949767900944,1]
[0.4316870124699882,0,1.8539145111431954E-2,2015,0.89323039677334948,0]
[0.40542333154883303,0,0.12607432074471972,2001,2.2611110257762226,0]
[0.36040939544815942,1,0.544900187998271,2021,-0.20973295113254098,0]
[0.49263686623021463,0,0.15280464164382199,2004,2.1906150545370826,0]
[4.0014724251514089E-2,0,0.19392152698015441,2002,2.6501619948962194,0]
[0.83325946639958337,0,0.18041833375127433,2021,0.59043769824835857,0]
[0.93529344486341592,1,1.0335008929524436,2018,0.91742355242029316,0]
[0.60981761599653406,1,0.79723495248351828,2014,2.4688547508574157,0]
[0.79195440625772462,1,0.93838570235506447,2022,0.13088334002387847,0]
[0.26974686986479623,0,0.14373857723641137,2001,2.5987233133534535,0]
[0.4894396676023145,0,8.7793519862891481E-2,2008,0.81333685724022076,0]
[0.58365438009283599,0,0.1358479443982597,2018,-0.69463030508837387,0]
[0.9084170841135053,0,0.10786311865455972,2023,-0.55108383379103731,0]
[0.73382883974131163,1,0.91121896835850769,2010,2.045353488842292,1]
[0.1793215553760108,0,9.5100856087509233E-2,2021,0.74569275727325257,0]
[0.38626990454124166,0,8.1670701373201607E-2,2003,0.48364666865712719,0]
[0.70403994533948222,1,0.70767108100915765,2015,0.70347987487211949,0]
[0.33602711284825826,1,0.34379695768713242,2022,-0.68397130777272086,0]
[0.24989397775926347,1,0.25255629706866711,2016,1.2075859286331383,0]
[0.30313485957742681,0,0.11897401927846488,2020,0.88879457045094634,0]
[0.91262422947939803,1,0.91794265587694968,2002,2.7893862938088549,1]
[0.90184983008330866,1,0.96798023281203793,2013,0.52844600939018149,0]
[0.14074253418051341,1,0.23424081026045085,2022,-0.92290381856592307,0]
[0.77151243812794856,1,0.82782443306883147,2022,-0.17799011824262567,0]
[3.2077058712627893E-2,0,0.11313643814231658,2005,1.9018876274410528,0]
[3.272751986285416E-2,1,5.2438486622604176E-2,2001,2.4729997103394075,1]
[0.24265161238765676,1,0.25491481989893749,2005,0.808399982672944,1]
[0.46037394269914245,0,0.17203049109973184,2010,2.5039948528634759,0]
[0.4937533727490272,1,0.68457253335776036,2013,0.47648682690056804,0]
[0.86017561846241686,1,1.0228442740461379,2004,1.2348352081023495,1]
[0.34851094608206579,0,7.4383673764471331E-2,2017,-0.96120241227664072,0]
[0.91445568882368933,0,8.6880838569532576E-2,2005,2.2346103475624757,0]
[0.86102812625174141,1,0.96611227063303384,2022,-9.8642658375579284E-2,0]
[0.12557394003043754,0,9.0280665711067742E-3,2005,2.0229259277923033,0]
[0.43158477897343506,1,0.43449173821635001,2003,1.6439800403126834,0]
[0.55657959218052255,1,0.68736918203955433,2007,3.4526396475860208,1]
[0.61067757545900736,1,0.79646180209021844,2003,1.0551079176511844,1]
[0.69987528632780183,0,0.10015642005215848,2002,2.371745668531998,0]
[0.41185894587096294,0,0.15229715493522733,2013,1.7925695553563661,0]
[0.65622782904221943,0,0.18798531295845938,2004,1.2728623852804981,0]
[0.10258908861010618,1,0.12116461375157481,2009,2.2485088681563408,0]
[0.14358091467528344,0,0.14178788749639168,2016,2.2975642660910163,0]
[0.98675029103520318,0,0.10432255117539871,2008,0.28081598126991869,0]
[0.6389404219584186,0,6.5879267962138041E-2,2023,-1.530190457613406,0]
[0.10584416381670325,0,0.13476655485243325,2001,3.0894739201467423,0]
[0.54610455277247993,0,3.9147056435007516E-2,2015,1.2967278487721003,0]
[0.80792477603711932,0,0.1658148115537752,2022,-1.4627855615631149,0]
[0.81080862963131417,0,9.8734255122561402E-3,2021,-0.57095543543681782,0]
[0.95339864215734071,1,0.97204648804085902,2001,3.6094819103379203,1]
[0.93662340351189188,1,1.0761890494543604,2014,0.52799648016051814,1]
[0.64029615331244971,0,0.16354151137960893,2004,0.88379024863421529,0]
[0.30325945160540946,0,0.15993671619036853,2021,-0.73490017001974328,0]
[0.70410012739579519,0,1.4703543122443243E-2,2023,-1.6248122749277889,0]
[0.66458981891640456,1,0.79717539395787151,2019,0.25873808560450862,1]
[0.18638847676984038,1,0.36347423492793829,2010,1.6356383186214398,1]
[0.72434747556347656,0,0.13997707602195214,2017,-0.64832397428311717,0]
[0.27509099640618262,1,0.28576120234285313,2022,-0.33122530821459062,0]
[0.62649281132036005,0,9.5979422186268537E-2,2007,1.4088732015725716,0]
[4.5250810577811107E-2,1,8.4414830749508799E-2,2013,0.17593785678441626,0]
[0.97724034241904389,1,1.0671176349976808,2016,0.95916266960724261,0]
[0.13009823263539166,1,0.21233109706998149,2002,2.3927256657926099,1]
[3.9038161553396233E-2,0,0.12782240191735628,2003,2.6222885120891557,0]
[9.3299862173363057E-2,0,3.727267423797536E-2,2019,-0.33506088939038026,0]
[0.89056454570716403,0,1.3605073512178968E-2,2012,9.4344374126158481E-3,0]
[0.39520432085509138,1,0.53472938801328096,2020,0.28004039085022325,1]
[0.60087922041675257,1,0.73935188887569447,2013,2.3657766370206521,1]
[0.41847077717590653,1,0.58101281903406732,2003,2.4031122767673665,1]
[2.090166951828254E-2,1,9.2996675826483396E-2,2010,2.243642886775056,0]
[0.61605750116629854,1,0.65940250418645663,2001,3.862392869140824,1]
[0.77338172632726065,1,0.84653606517259161,2001,2.5134984124155029,1]
[0.52137531217608901,1,0.6313222241310128,2019,0.76328668437989367,0]
[0.22511373735869011,0,0.1995462341342763,2022,-0.19278126406028506,0]
[1.214756866485911E-2,1,0.120892145192699,2022,-0.88948279615551684,0]
[3.949855995510132E-2,0,0.16552248358390592,2017,2.1860636289122537,0]
[7.780986464620665E-3,0,0.14014949936083651,2009,2.0964268874386338,0]
[0.74718568533442209,0,7.4361934401589044E-2,2023,-1.3784535287850002,0]
[0.17868213740155026,0,0.15756078142143104,2022,-0.73853574475405914,0]
[0.93848377273552941,0,0.15548292191831914,2004,1.0590642672336144,0]
[0.17869806298820357,0,0.13944553255870926,2009,1.9766900193483143,0]
[0.80513800062900331,0,2.9879036392873926E-2,2003,1.4288264343967385,0]
[0.6264425331090997,0,0.16351345550397123,2002,1.8256962674199362,0]
[0.98538096974901923,1,1.1676338593961402,2021,0.69325193907056348,0]
[0.88407992114328349,0,8.6939834823773154E-2,2012,1.1553547754538831,0]
[0.3559459827190028,0,0.17879465125609495,2019,1.8350283891364736,0]
[0.51343184936829589,1,0.55261407435390397,2004,1.3531702370931054,1]
[0.45210979503474558,0,0.18587643064783602,2013,-0.3260227201124748,0]
[0.59269725751406666,1,0.77168200780182206,2017,2.160456615563386,0]
[0.17012548996125643,0,0.14239695737843,2023,1.3101403212604399,0]
[0.27816376594772219,1,0.33597391103662277,2014,2.2806026573901153,1]
[0.59183884386082874,1,0.64098446075067472,2003,2.1923126909553958,1]
[0.86545772663010501,0,5.1843068827041816E-2,2001,0.99993765786132005,0]
[0.34707316038593994,0,8.6642668420007229E-2,2017,1.6469030003448055,0]
[0.87608784593025646,1,0.92056348777975738,2022,1.6511908745871255,1]
[0.58600253865855878,0,1.669266167153427E-2,2013,1.0066753601592378,0]
[0.5574008227187468,1,0.56182390832154072,2001,2.6428434684185298,1]
[0.91322804935611801,0,3.722952919766747E-2,2014,1.388771020534048,0]
[0.12687248944841123,0,0.18749106920405922,2015,0.23086408413608817,0]
[0.71216130715569526,0,1.4169077544478338E-2,2011,1.9848038618376114,0]
[0.80644347733195243,1,0.8133888531172202,2013,-6.63329935178682E-2,0]
[0.48083558172099772,0,2.9276328424344113E-2,2013,1.3342083326043725,0]
[0.35793973270946877,0,0.16065441844778414,2016,2.0175757410998418,0]
[0.6845966882918022,1,0.84992380557718616,2014,0.51877356351876225,1]
[9.2733334782278298E-2,0,0.16059158675987617,2008,1.4982886827501831,0]
[0.50996795428576269,0,9.381043976802915E-2,2020,0.90021610759091653,0]
[0.68261901786441348,1,0.80230939246025346,2020,-0.37901436115322384,0]
[0.75916139263364035,1,0.84943047263250004,2015,1.6744267986623069,0]
[0.91609411995881096,1,1.0770350339351971,2003,1.6763423845494398,1]
[0.10383414026230842,0,5.3836256706399556E-2,2021,0.46801726534782362,0]
[0.51941288349943382,1,0.59727759425511773,2014,1.472035245000157,0]
[0.74727648980236761,1,0.84841528282100276,2008,0.85068956286082664,0]
[0.77968117021921057,1,0.89059614761381323,2014,2.6778530582451325,1]
[0.35539992428246348,0,0.13164473638151131,2018,0.17452644244044557,0]
[0.2133196170523658,1,0.37131580252343432,2007,0.69877290739888243,1]
[0.56831233929543268,0,0.17188448058271324,2018,-0.32603498630197325,0]
[0.84375931603185583,1,0.98667645379687996,2019,1.6487934582466401,0]
[0.90215000810002455,0,0.19349583012774998,2019,-1.2393343330437525,0]
[0.3329149205669244,1,0.45743966052502893,2013,0.92741216118162428,1]
[0.28330284278122797,1,0.30836948081513388,2019,0.94677611512080606,0]
[0.44559996299282034,0,9.4706276037921644E-2,2015,1.6087332238830025,0]
[0.78334662634985641,1,0.80570354580589476,2003,0.88559521618712267,0]
[0.9593009879677854,1,0.98098187686853189,2013,0.78813830946619801,1]
[0.77135497739708825,1,0.84362279748156888,2016,-4.6149843631151932E-2,0]
[0.83472978181668112,1,0.96285600158872209,2012,2.3841063570384056,1]
[0.74803749214218673,1,0.82364641009999595,2022,-0.62489691141088533,0]
[0.33326940372436331,1,0.51332550618347561,2021,0.27327093790622514,0]
[0.48410822792583896,1,0.53491185587716195,2020,-0.29077456530226531,0]
[0.60657452552319058,0,6.5977692822257919E-2,2018,-0.65425155920253153,0]
[0.87539151903744816,1,0.97682066795564793,2004,2.9791177105638518,1]
[0.45839770499024801,1,0.61970427213901458,2001,3.6407466253609773,1]
[0.80704885073275323,1,0.81798057299198823,2009,1.4513778001403814,0]
[0.73535475486148438,0,6.7405067296096327E-2,2006,0.18561158548376078,0]
[5.1336600008451971E-2,0,0.10499500353345648,2023,1.1816908533343022,0]
[0.756864151071166,0,1.0097561291484737E-2,2022,6.0542548541796304E-2,0]
[0.89161171146074825,0,0.13918908579457667,2003,2.6790646358391945,0]
[0.98857630125010076,0,9.3889558547881058E-2,2002,1.1072538102882241,0]
[0.51760900540041521,0,0.11862510586997366,2014,1.1019481743021728,0]
[0.57664556988310445,1,0.75826631460643779,2007,3.3165055968235095,1]
[0.23706685416600304,0,0.11468747049431754,2018,-8.0705207651700084E-3,0]
[0.17607531719932779,0,5.1203565556999411E-2,2015,-0.1495909987207148,0]
[0.88451652324648999,0,6.7152513931825308E-2,2020,-1.5750296940201647,0]
[0.87004396199773049,1,1.0612582658748295,2023,0.35328006690438984,0]
[0.60287068643865305,0,0.1867402079232221,2013,1.6412600470600029,0]
[0.44571711620927623,1,0.4580480660165524,2019,0.64203238896499948,0]
[0.56904775432981458,0,0.17032344970787891,2022,0.91213876473775635,0]
[0.76811188784897999,1,0.85798037556463602,2007,3.0476534172905416,1]
[3.4340250088103819E-2,0,0.17653857343122067,2015,1.7774683528450974,0]
[0.93318598152707632,1,1.0169870673537313,2009,2.5410457229856673,0]
[0.72539395201422641,1,0.77127050410564801,2012,1.967364505208991,0]
[0.36878265784612929,0,0.16299144347992461,2014,1.1109055785476105,0]
[0.63995135204387543,1,0.66865356399534337,2010,2.6477562466921758,1]
[0.83262843931775887,0,0.13464828527667533,2007,1.5497438288103347,0]
[0.6133283957730431,1,0.7045602930264605,2002,1.6512303803806918,1]
[0.35311973804674801,1,0.40531998646617834,2013,2.7949874250040678,0]
[8.1755373732871228E-2,1,0.22458776713752046,2019,0.77013481633263547,0]
[4.7011315463475256E-2,1,4.7870527259639292E-2,2021,1.942242269949439,0]
[0.68027910417683846,0,4.0711704430053654E-2,2005,1.3156088653338751,0]
[0.4597806961539137,1,0.55684928910173781,2012,0.95838341505657643,1]
[3.5246667591938619E-2,1,0.20535680009342547,2021,1.6102625370022077,0]
[2.0655644818208474E-2,0,1.4316132937874128E-2,2008,0.6870858329266204,0]
[0.65692752217618788,0,6.1863359332972115E-2,2011,2.1094701771053095,0]
[0.77779618619847812,1,0.95372470057512571,2004,3.8010767569067361,1]
[0.6457107090366202,1,0.79870494019224481,2005,1.8970315373905167,1]
[0.32308863869351234,1,0.32902966305820575,2011,2.6201772195633932,0]
[0.65834246597280899,1,0.82141168729362435,2012,0.66542996678954647,1]
[0.55392332749959172,0,9.1078474810810883E-2,2021,-0.68232922609709112,0]
[0.96179771430548777,1,1.1205090476539477,2013,0.4393488642909727,1]
[0.45232227638247158,1,0.47195839866448497,2010,1.268603567434492,0]
[0.7066550234418606,0,2.8185383264411602E-2,2013,1.8361296459274887,0]
[7.8596445328956266E-2,1,0.22309301570995008,2015,0.27138250685132026,0]
[0.57092144530107858,0,0.18503347481078747,2008,2.0607546225028615,0]
[0.53407696376024894,0,0.19555961186068224,2002,1.4006855279258605,0]
[0.91674356601427953,1,1.0125734827184567,2021,1.8881924215234798,0]
[0.80102247866595022,1,0.85835915780326655,2007,1.8030376900905383,1]
[0.69264811468557319,1,0.77865622682970925,2017,-9.1040858514296219E-2,0]
[0.83171150557937834,1,0.90553340845945407,2021,-0.51441206637565873,1]
[0.36079891507708672,1,0.43805920363759504,2013,1.1805740874147095,0]
[0.16076800879977882,0,0.18855627129608593,2014,-1.7235404268664489E-2,0]
[0.42717446899050449,0,0.18369511693051746,2006,0.17004586782734335,0]
[5.8278240954985905E-2,1,0.11101554702839936,2001,3.3161856266449545,1]
[0.44334535084339788,0,9.0074750251812885E-3,2020,0.8761966056165853,0]
[0.2636158142493219,0,0.13152451175208971,2014,2.2886191718089117,0]
[0.10579018871322388,1,0.22073649968589065,2021,1.4725797593714194,0]
[0.31678198720239414,1,0.40474937385214416,2001,3.3092428677561481,1]
[0.95124100463824612,0,0.18011110216661844,2013,-0.42816811854068215,0]
[0.27644768271012321,1,0.38312874878520808,2014,1.7329391052037433,0]
[0.56854794256802532,1,0.71348661830103577,2009,2.8210487944634379,1]
[0.75445006723322183,0,0.11150158881862832,2001,2.7775348072331134,0]
[0.96591443720689896,0,1.7618168009971291E-2,2011,0.97888096975180328,0]
[0.73155330185798473,0,4.2576954725275076E-2,2017,0.21907921509740413,0]
[0.82087641202823092,0,2.6251706938664965E-2,2022,-0.9012080737037067,0]
[5.1938475939521167E-2,0,9.8934563465035846E-2,2003,0.93505520596332636,0]
[0.7584974211582225,1,0.79697194007403993,2006,3.3096601046982617,1]
[0.74501197984853851,0,8.5122275470668071E-2,2006,0.33488530251698589,0]
[3.3103929009421051E-2,0,0.16035341704996556,2022,1.860327599451443,0]
[0.98308562626493556,0,6.6403296753116986E-2,2005,0.13643726033900161,0]
[0.62390249084593918,1,0.71682255377272619,2008,3.3335469771717263,1]
[0.72045276856375617,1,0.72061840707375524,2003,3.4432573842949163,1]
[0.66345843711432106,1,0.69843980820605245,2021,1.6300720006683709,0]
[0.6559479359933027,0,9.0737965666319781E-2,2017,-1.0854505266817891,0]
[0.95004358829973889,0,3.9948296704467895E-2,2015,1.1582502717632592,0]
[0.52664737449465782,1,0.58932228686203991,2003,2.7057862852547334,1]
[0.87062857214730416,0,5.6673770239086263E-3,2021,0.99181698676715135,0]
[0.73089217918884208,0,6.1733654375834161E-2,2012,0.42345775779927153,0]
[0.28663380999395371,0,5.4876331882503383E-2,2010,0.35226952462268168,0]
[0.8865199109892361,0,0.16267469126636019,2005,0.97111847451431976,0]
[0.89534188115069746,0,3.4796357302736718E-2,2013,0.93614484767021211,0]
[0.63284107804263512,1,0.75592048274176593,2009,2.0357329047192474,1]
[0.13840075051758272,0,4.9166914518915085E-3,2013,0.38546772657686035,0]
[0.73193115529686703,0,0.12856894229786328,2002,1.2197450445412206,0]
[0.36498790704974415,1,0.52790993672503694,2003,2.6193016068314416,1]
[0.70751677982003125,0,4.6724735362539231E-2,2006,1.1134055771741946,0]
[0.3283351271735514,0,4.1648442692673093E-2,2015,0.10559251393892199,0]
[0.5784183191040797,1,0.64142924185225492,2021,1.4302336559799147,0]
[5.2426656813248096E-3,1,5.493607648072954E-2,2015,0.50175125186860381,0]
[0.7936501641974304,0,2.440005568154149E-2,2013,1.1901865546976196,0]
[0.4561927335655388,1,0.56056374531559328,2013,1.0018564390349605,0]
[0.75336269245537857,1,0.78258625783234936,2010,0.35958620567781208,0]
[0.93700000801868866,1,1.084233713457081,2017,-5.708962186420885E-2,0]
[0.97078775334615541,1,1.0833314713387097,2021,1.5479445226951827,0]
[0.40988382812951241,0,0.18303240544843324,2007,0.42149582746733,0]
[0.71688902114887798,1,0.84780717248087312,2011,1.6102850354967919,0]
[0.62202891015138584,0,0.15923074917700775,2012,1.286560151748801,0]
[0.30488085792278319,0,0.17915170833341149,2016,0.69978549272671886,0]
[0.33257307087775456,1,0.49625206838871161,2006,1.106420795186287,1]
[0.37607642777701189,0,0.11112331427307801,2001,1.0663493865466429,0]
[0.804684821558031,0,3.6578421095433793E-2,2002,1.8194275640371023,0]
[0.40589767838262647,1,0.44520510001573904,2015,-1.0225753488824985E-2,1]
[0.8385430673288421,0,7.4999061121830482E-2,2018,0.91074887659300696,0]
[0.53622074751584237,1,0.68326454101842382,2007,1.6784380324267536,0]
[0.79324808399970292,1,0.96726737413424413,2012,0.27888314392110752,0]
[3.8136905686227407E-2,0,0.16598103137555278,2002,1.5862171340591056,0]
[0.17048231671418224,1,0.28038749244028704,2020,1.3888330429145732,0]
[0.23491992366830972,1,0.38917804194019867,2002,3.5210842412988743,1]
[0.35273295474696997,1,0.40263822341931493,2005,0.79307780812751816,1]
[0.49565656973060157,1,0.53140280206175106,2013,0.59638206438711561,1]
[0.68510226519015338,1,0.73395320609362291,2022,1.2279444796490484,0]
[0.37376909664620084,0,0.18474686327129644,2016,0.75487011698709972,0]
[0.23364931994259963,1,0.29948575357762197,2008,1.5148917866690943,1]
[0.56557048395479537,1,0.64962247208846713,2007,1.7473774139883691,1]
[0.68014332831063518,1,0.69007711760683288,2005,3.4036193620492168,1]
[4.7499581006925196E-2,0,2.4586082999756932E-2,2022,-0.58923610168853813,0]
[3.2567512545645716E-2,0,3.9044474976770882E-2,2004,2.9739172986189097,0]
[0.36473169831464769,0,1.9227819725339025E-2,2005,2.1929277133457687,0]
[0.10819261487466147,1,0.1173917683097498,2009,2.7843850110187285,1]
[3.2267399218777637E-2,1,0.22518050053511982,2007,3.2197259021401408,1]
[0.80557689520407161,1,0.82752679102664739,2002,3.2005746777660455,0]
[0.45449299129116016,1,0.48804673666434661,2012,2.8188330423792931,1]
[0.86316348751345673,0,5.7815338138108067E-2,2015,1.0096577497163592,0]
[0.24862774530026388,1,0.42876670583720439,2009,1.9372115551391096,1]
[8.8379206049424841E-2,1,0.12172465015285999,2003,1.0927633155474952,1]
[0.77483414991216482,0,3.7243319684500058E-2,2017,-1.2742763060229525,0]
[0.67009364224020906,1,0.81816338225976049,2004,2.1787105357045755,0]
[0.1796800570224748,1,0.28391472872309664,2013,1.7193187582356015,0]
[0.71070761049965825,0,1.5488496371991501E-2,2015,1.4648845218533793,0]
[0.93734669829125938,1,0.95895122295288859,2015,2.1285784940489201,0]
[0.83637770878978834,1,0.84971099270853345,2019,0.50121973196065206,0]
[0.2290784092528797,0,0.15035365677792545,2011,2.2863470620592623,0]
[0.50742484634894403,1,0.51078365213546639,2017,1.6077200031116337,1]
[0.11349107172930906,1,0.17437318746236122,2009,1.8475762167010323,0]
[0.50550940676153866,0,0.19310093442384854,2004,0.92808301241389723,0]
[0.93517691173758266,0,0.13183728136913458,2007,-0.45920575658258067,0]
[0.24124918143994567,1,0.31424898264453544,2005,3.4629444154647691,1]
[3.3750665221667031E-2,0,0.17632586878605411,2011,1.811648253886796,0]
[0.22905462724108838,1,0.30410805400204677,2022,-0.55356308933584031,0]
[0.41987243840910971,0,0.13382899706255097,2007,0.38470940930274133,0]
[5.2271117559714586E-2,0,7.7897890598426292E-2,2013,1.9081695671708432,0]
[0.21321810444469347,0,6.0929536807636714E-2,2014,-0.43055232104758168,0]
[0.44162891016845007,1,0.53568013531977732,2021,1.7326490094803551,0]
[0.85067296640606971,0,0.18051784446702476,2003,2.0313820477051383,0]
[0.99492463383297758,1,1.0328565401813372,2017,-5.5162115814032298E-2,1]
[0.59241865740056543,1,0.74558484321846907,2022,-0.79954775699617919,1]
[0.45991509410312992,1,0.5361657152182262,2001,3.5415343843468019,1]
[0.4598470268222794,0,0.10192478632928413,2014,1.965733981203776,0]
[0.64975671271682067,0,0.19057109253795237,2007,2.685403838693825,0]
[0.68736318549705222,1,0.73699110625366493,2021,1.8776326733075159,0]
[0.66385558387043453,1,0.68235129245966986,2019,0.30006437825914578,0]
[5.5893483655346299E-2,1,0.12464686864897438,2009,0.59789439495315211,1]
[0.31949079479555964,0,6.9762489086971469E-2,2019,-0.64964535148561497,0]
[9.9124449998946207E-2,1,0.27517100301182984,2008,1.9389329825907029,0]
[0.87788876657075987,0,9.1254792504455146E-2,2008,0.59790212649560059,0]
[0.36899292193100786,0,9.8453961032482828E-2,2023,1.1244360144139911,0]
[0.51529391515992384,1,0.65137779599612344,2004,1.680586296250179,1]
[0.25526535474016099,1,0.42913303503856493,2009,2.8383475485957761,0]
[0.66260541960722052,1,0.86098095434392841,2016,1.9527996285147244,0]
[0.89547900580539608,0,2.4225667584999888E-2,2015,9.3133510910181849E-2,0]
[0.55711255008741023,0,0.11880853398349533,2002,0.99565007827239327,0]
[0.48187642983531886,0,0.18700749373049574,2015,1.9176720342264142E-2,0]
[7.9160009663251651E-2,1,0.10848129607710263,2020,-0.68346765447355329,0]
[0.27721650488316474,1,0.45151064772812433,2014,2.7408027238194794,0]
[0.4509124597618217,1,0.61198195695014113,2002,3.9961978678558152,1]
[0.49668733386325692,1,0.66330596042137369,2013,0.31317458404621706,1]
[0.31926270150737424,0,5.4271957269339359E-2,2010,2.6678761962550381,0]
[0.31292114181650199,0,7.350862331398518E-2,2005,2.5252998412891183,0]
[4.9943319373411454E-2,1,0.23068721929554908,2023,0.37272015303363193,1]
[0.12150246159286193,1,0.19780207523587107,2002,1.9013050823098845,1]
[0.86122538220741085,0,0.19128524703619121,2014,-0.29684238234923854,0]
[0.230020005224436,1,0.30117420991077576,2015,0.23860062264464432,0]
[0.92138150183209366,1,1.0699014554039987,2012,1.1382732426022479,1]
[8.2586084801984372E-2,1,0.13351167557535265,2012,0.81695131129120868,0]
[0.23095826600363967,1,0.25826150343258347,2003,3.1536991371870675,1]
[0.63506202856803828,1,0.70379265494612697,2001,3.5772626465283697,1]
[0.98927243304202184,0,0.12419277079610319,2013,1.2361487485404716,0]
[0.32588292198793845,1,0.47789634123044133,2002,3.5038979973253652,1]
[0.6484717947674199,0,2.1757833721130982E-2,2022,-1.3551324848767838,0]
[0.34419313694196363,1,0.47524855385866971,2006,3.2391512775615321,1]
[0.71221145346753545,0,0.19836917810403293,2002,1.0828624056143434,0]
[0.52401036993792027,0,0.19716743845078724,2023,0.51907739819621757,0]
[0.55643589043038943,0,0.18638143670159638,2022,-1.4684838337399686,0]
[0.75197267398794343,0,6.4397599558814814E-2,2023,-1.543186663068179,0]
[0.23047399355680609,1,0.41518443987448522,2019,-0.12556674697890502,1]
[0.67772980500472468,1,0.87322649468360247,2022,1.6622877621965291,0]
[0.60882282809343868,1,0.76592720126771352,2021,0.85000224324461171,0]
[0.44452959398757019,1,0.53976811967794214,2006,2.5848632511713054,1]
[0.70328472937273867,0,0.16672843899257764,2013,1.6012130606102661,0]
[0.76225948836315127,1,0.83668132887454583,2018,1.7382739290736549,0]
[0.89368932410244262,0,0.17929388348590475,2004,1.9761319471188097,0]
[0.79426046162199249,0,9.2313976914910903E-2,2007,1.7728664600008488,0]
[0.96266383103292064,0,1.9522859399744076E-3,2008,1.3096592364858808,0]
[0.9748217448694273,1,1.0136488332616469,2003,3.5887435337008351,1]
[0.84496920888829208,1,0.96668347031524393,2009,1.7204718833812818,0]
[0.91001836957556437,0,0.18783856660363718,2015,1.3209857416468873,0]
[0.3851147120151367,1,0.50611130832128404,2016,1.7337100044019911,1]
[1.2445353352950717E-2,1,7.7236079373225616E-2,2010,3.0473817382371156,0]
[0.39546204135971641,1,0.51166106537131295,2007,1.5785375837136648,1]
[0.10209240816330034,1,0.19579208530538444,2010,2.8915942675806114,0]
[0.21196659845317278,1,0.29763366419027393,2014,0.5128076282958538,1]
[0.27442099089574445,1,0.40427772817101587,2007,3.4909194208852217,1]
[0.22158616262321551,0,8.0150884540048928E-3,2011,1.081916794652811,0]
[0.50169534258539272,0,5.2391856787013059E-2,2011,1.9468433785006523,0]
[0.96910712278265365,0,3.4920932995649023E-2,2007,1.6677173235533764,0]
[0.80946308310559856,1,0.84816067274386231,2005,3.5352221166959175,0]
[0.65890880861873813,0,0.11419216707954061,2022,-1.4787450007607026,0]
[5.0005283979434934E-2,1,5.2952036375449027E-2,2008,3.1064706298097606,1]
[0.14902751860125618,1,0.24606476193346255,2012,0.74497617644844882,1]
[0.21674135897469859,1,0.31372715686509678,2019,0.8034908016808161,0]
[0.8667359133075454,0,9.8330210974905574E-2,2018,0.61080022585401883,0]
[0.59285697484264666,1,0.65917429351994006,2014,0.91881692826780181,0]
[0.86811254041512931,1,0.95871381998882554,2008,0.41957467363118689,1]
[0.94375421566556505,0,0.14980805330084951,2017,0.14978707036384464,0]
[0.44986295670298981,1,0.54275425953405132,2013,0.24520694803650217,0]
[0.65531709655742343,1,0.74185894766364513,2013,2.1576603897505904,1]
[0.17836895991453583,1,0.25062711271861293,2005,2.4684493058582877,1]
[0.56918462814216964,0,0.19014626408946345,2002,1.62406340424573,0]
[0.28109875746678026,0,0.16778793243553281,2018,0.8894360089657164,0]
[0.82767742062583116,0,0.15129779376819716,2002,1.2167188489243523,0]
[0.18247699657539551,1,0.37769956598510979,2005,3.1242993528972764,1]
[0.1762884940212448,0,2.8842539764578026E-2,2001,1.6383805748969169,0]
[0.84989489531571927,0,2.951525426361459E-2,2017,0.294911463774439,0]
[0.78179491945420709,1,0.86955127804559129,2013,2.1552300724949744,0]
[0.20429995001397283,1,0.36153478448979204,2022,0.92935335432930166,1]
[0.54893732604418632,1,0.63122186810789549,2023,0.38066688626919665,0]
[0.39522252090598264,0,2.100285572705636E-2,2008,2.0239869970991622,0]
[0.39930656447108182,1,0.42484178868553213,2020,0.41158089668767328,1]
[0.45706545854327085,1,0.60015665186257805,2005,1.2516786697553077,1]
[0.15652528629466189,1,0.33754448430297712,2005,1.7348666460639204,1]
[0.49864869401854517,0,0.10720177618065115,2012,-0.17278964938053887,0]
[0.14564179187889026,1,0.1930828948969337,2002,1.2318478785895994,1]
[2.1580078049365126E-2,1,8.4999598708857302E-2,2012,1.6133475185369541,0]
[0.39970870658767055,1,0.40285529933291009,2018,1.752147206838925,0]
[0.58167199927286217,1,0.62849541851224489,2015,1.4513376124517903,1]
[0.82626873615541152,0,0.17757327550912935,2013,1.4036294687615334,0]
[0.36754127273390824,1,0.56621519983205326,2010,2.6157930164541772,1]
[2.6911214757152635E-2,1,9.7321956971935381E-2,2021,-0.53504006086357936,1]
[0.835808540863342,0,8.1113625341085557E-2,2019,-1.0337556319536254,0]
[0.67835618570301992,1,0.79440174912256845,2014,-6.6456304473460071E-2,1]
[0.32490835259515505,1,0.36840064691574381,2018,0.39883094358546778,0]
[0.51379522769990837,1,0.59316336126583691,2017,0.80327912035008664,0]
[0.55199555488456853,1,0.5781918053856584,2004,2.6037386337731516,1]
[0.9307225966463587,1,1.0293327192306725,2009,0.35614142865812037,1]
[0.53254984722821297,0,0.11144987046145194,2006,0.27860465803014689,0]
[0.1157869403611419,1,0.2399620175217323,2013,2.0037719836383747,1]
[0.85221223131796209,0,0.1322302925879705,2012,1.884844359767526,0]
[0.25961332177103535,1,0.37954267276825648,2017,1.1777591018367042,1]
[0.50617575226024625,0,0.182744520459208,2011,0.8254870746917311,0]
[0.22863431493446562,0,5.687303001483604E-2,2017,1.1011412224651793,0]
[0.53392425366052876,0,0.1215226401370972,2010,2.2494246020608175,0]
[0.62127145536034778,0,2.2573470374644234E-2,2013,-2.4225009132636477E-2,0]
[0.81405520236965045,0,6.886994628734476E-2,2011,2.1343332623769555,0]
[0.69205853668473916,0,0.19905933783007768,2012,7.6494837015864015E-2,0]
[0.14157388086773026,1,0.15618001025292344,2019,-0.28726528443047106,0]
[0.56179567445615719,1,0.5726337724774202,2021,0.10155721107931626,0]
[9.2846075870237743E-2,0,1.4284435457028401E-3,2021,0.42414908983065058,0]
[8.395714020241396E-2,0,9.8904602173899292E-3,2022,-1.2547784146375642,0]
[0.6625115408457718,0,0.1541246898544287,2021,0.57487732827936533,0]
[0.8692087690920085,0,0.18325570321553517,2021,0.29333654620359306,0]
[0.13449599173841476,0,8.2398773816304102E-2,2006,0.79774346223866011,0]
[0.11171723156768065,1,0.15570275162825203,2014,0.83490594141781127,0]
[0.68835524706963058,0,0.13030726759587241,2019,1.4758711900417629,0]
[0.11262735204823837,0,2.8390721111829189E-2,2012,2.3517524722913965,0]
[0.90264626412200766,1,1.0779752148299884,2023,8.864014957609978E-2,0]
[0.76660082708299582,1,0.9225563172750838,2004,1.0224717919263702,1]
[0.16110994298377701,1,0.2050985864450609,2004,3.2302760163933923,1]
[0.45257484498272404,0,0.18243030526994208,2006,2.7010327740151867,0]
[0.75452575201029171,0,2.3446642420367828E-2,2016,0.96767861549312961,0]
[0.78747328572078601,1,0.82878176104250223,2021,-0.20404606601135533,1]
[0.22252329284389927,0,0.14582036373319332,2023,0.77809744483687693,0]
[0.2919150048423037,0,2.1311201833100448E-2,2008,1.6164550988963564,0]
[0.22529196361933723,1,0.4035550311126444,2003,2.9063001305605987,1]
[2.3780111042806418E-2,0,0.13889295823856482,2020,0.72387220169144773,0]
[0.50037257380863509,1,0.51542313160155151,2022,1.7934103459627895,0]
[0.20607670628526376,0,8.2067307731141528E-2,2007,2.9373795224049069,0]
[0.81450214458490922,0,0.1167708355882601,2009,0.17974542743957012,0]
[1.3976432353874912E-2,0,0.16012226262469642,2023,1.2134029372987949,0]
[0.3933480680268866,0,1.2066727621923491E-2,2015,1.0889910902712125,0]
[0.50176901761569126,0,6.2076839986575656E-4,2015,0.58143062536176204,0]
[0.67503536059039027,1,0.87232372009187709,2002,3.9727289373571697,1]
[1.8237278815984359E-2,0,0.13647446159730423,2022,-0.85466056169665838,0]
[0.60126516966059562,0,3.2456728226134726E-2,2020,-1.4053388861043146,0]
[0.12236139328216422,0,6.6843258693077126E-2,2019,-0.42777292732442918,0]
[0.96382667296615132,1,1.0820508213132158,2006,3.458049317857673,1]
[0.56576129549672438,1,0.59186201989154696,2010,2.2076050481676801,1]
[0.87004443779631901,1,0.88975588988128063,2007,2.2750898516531195,0]
[0.62192865386544094,1,0.6982824112835726,2019,-0.44586565102701869,1]
[0.41509157580447009,1,0.53974223510972341,2022,0.78432803277915708,0]
[0.69312315829988713,1,0.711189987571333,2008,2.9605957166964116,1]
[0.37759421668763515,0,0.11685703160314334,2014,1.8598960218521401,0]
[0.10524178958239616,0,9.2502755149427476E-2,2017,-0.28220573990720366,0]
[0.51867507206647212,0,9.5049399679253799E-2,2006,1.0238588627930745,0]
[0.64511530547405549,1,0.73158195014920102,2013,0.84976512099846824,0]
[0.95332081749259334,1,1.0720244081776098,2015,1.2680068161631493,0]
[0.9593668026019524,1,1.1460052140652508,2004,3.4448012482497408,1]
[0.91226575707128776,1,1.0668583617696761,2022,0.94213542467231892,0]
[0.96797038227921983,1,1.0899761522729392,2006,1.6151793988451266,0]
[0.53236259541003494,1,0.6157453351394504,2013,1.5899728624180629,1]
[0.37803975956066582,1,0.55811987414289732,2018,0.96004851159511306,0]
[0.77549786430489265,1,0.90317959996357144,2009,1.6827903397415291,1]
[0.87700763924901415,1,0.94140198323630586,2022,1.3535592716746183,0]
[0.55332527315458302,1,0.7152605974901558,2011,1.8786879580825886,0]
[0.70394180857426125,1,0.84748951452152821,2019,2.0267074208368552,0]
[0.19593154222701548,0,0.19553623973219864,2012,0.85118026355319354,0]
[8.0240209403530383E-2,0,3.7535940738772314E-3,2002,2.9796846401463268,0]
[0.29051394553806054,1,0.3494631536552858,2004,1.5887069709560335,1]
[0.73708880015659162,1,0.92801922760515465,2023,-0.81303278231881737,1]
[0.73239640454328314,0,9.0774308261880987E-2,2011,1.5799724540162403,0]
[0.39001855086180337,1,0.3976390072603706,2005,3.2015476865030328,1]
[0.24661746589551703,1,0.40613817057093593,2018,-4.5673515929911868E-2,1]
[0.70219907484853938,0,0.16583309716779171,2020,-1.3645913150630427,0]
[6.3907125049409208E-2,0,0.14058357211305553,2021,0.33037935807358054,0]
[0.92952479302925295,0,1.5396013665154707E-2,2023,-0.89238960969583481,0]
[0.39822070647998453,0,9.685513815628638E-2,2002,0.83142569703544367,0]
[0.16738794163039494,1,0.36100088123266344,2002,1.2718159626836596,1]
[0.64834045450779387,1,0.81614716840466328,2006,2.2949878571887306,1]
[8.6511575633069326E-2,1,0.25402492203182497,2007,2.8569911203294618,1]
[0.72001827787341521,0,0.17154524815088812,2022,-0.39701813177280409,0]
[8.4580198777889914E-2,1,0.12122391259298566,2010,3.0609209148080754,1]
[0.10221845957672338,0,0.11718084625602032,2008,1.4865263677316354,0]
[0.21281066469162224,1,0.32742647991580964,2011,1.9934840200084567,1]
[2.5776181169739565E-2,0,0.10611282920284835,2002,2.5256389208450303,0]
[0.11195906183213633,0,8.6782734870421055E-2,2020,-0.11546506078129204,0]
[0.89841583888806253,0,3.9578679952828488E-2,2011,-0.44027171049980163,0]
[0.94812658588980825,0,4.346145180015637E-3,2006,0.8120765917434718,0]
[0.5019781042950705,1,0.63745734467502402,2003,2.6515293310936894,1]
[0.41016357698915629,0,4.3574097240128486E-2,2001,3.1469708233640361,0]
[0.2609760002580136,0,0.10844050321498354,2019,1.7620694560026369,0]
[0.97350979786294967,0,1.0252132125704106E-2,2015,-0.82966603799973371,0]
[0.42983404130421443,0,2.3666631796394701E-2,2016,-0.48706043361862594,0]
[5.9776254526323291E-2,0,0.15239917717757351,2022,0.51059129086951627,0]
[0.20828200969344257,1,0.22585068064966454,2009,1.7324676076271792,1]
[0.23637453727168578,0,2.8118614482343009E-2,2006,1.9531420495278087,0]
[0.20049830584992101,1,0.3914508296625222,2019,0.92020998947248456,0]
[0.39895339522430084,1,0.53108456257546977,2022,-0.42100679844897471,1]
[0.23386831217296089,0,0.15134364420727342,2018,0.31860647691022215,0]
[0.42107067061023917,1,0.49310439829184199,2017,-5.015108649854183E-2,0]
[0.15688842221674992,0,8.2165840947169166E-2,2019,1.8221928545097033,0]
[0.24867651122535162,0,8.8766859451060668E-3,2021,0.40404096988352034,0]
[0.16948792972790849,1,0.34935717944475209,2015,1.4849429271529428,1]
[0.80442466481032582,1,0.98946385508998591,2008,0.53716916934160519,1]
[8.7881382231199789E-2,1,0.18678337184150631,2009,2.1271124678818656,0]
[0.55294609904950087,1,0.61717487480410405,2018,-0.45563982987640494,0]
[6.0822398354155593E-3,1,0.1978814000130564,2003,3.5444368619909459,1]
[0.96841446916768104,1,1.0422576646264743,2021,1.1341475807890342,1]
[0.88676382007260224,1,0.94838439450044754,2013,2.2525153930779602,1]
[0.99107593021662299,0,1.3761730581121135E-2,2006,-0.3914937149361738,0]
[0.89848444527298355,1,0.9515273853568339,2020,1.8060471283843191,0]
[9.0673000627476408E-2,0,3.3510927816662764E-3,2018,1.4224042039953693,0]
[0.14292708610907323,1,0.21165142072892879,2009,0.96466159006708974,1]
[0.64849383660286386,1,0.81373851285897902,2019,-0.44495550891913294,1]
[0.55760634560792577,1,0.75061622334955325,2006,2.9483039831301747,1]
[0.51202824566322669,1,0.56460417640137972,2017,-0.34352262325737259,0]
[0.52851554067402851,0,7.5505329298147045E-2,2021,0.4901052161319206,0]
[0.62580279399581051,1,0.6812945627796364,2017,1.4600338380448332,1]
[0.17263716956174435,0,0.14457421204487794,2018,1.0252751668368139,0]
[0.82108571310681666,1,0.84447027788972329,2015,0.31494904961503012,0]
[0.64305142131008564,0,9.622796083684125E-2,2021,-5.3686177558575743E-2,0]
[0.8140990172761684,1,0.87609965564643744,2016,0.95381531706768163,1]
[0.33108255490547922,1,0.43430722023378104,2005,2.6298702163526637,1]
[0.34438717315944678,1,0.47419674732637118,2006,1.8900605223426039,1]
[0.82249662126565115,1,0.98388454852853391,2005,3.7039041019146177,1]
[0.97332361051641769,1,1.1348949232870709,2010,1.7172522616986623,0]
[0.54139256380115597,0,2.3987888348533384E-4,2015,-0.49652466093944803,0]
[0.30646595508329466,0,6.5597092089661954E-2,2022,1.0727358514610521,0]
[0.87677077377652557,1,0.91671956087100093,2019,0.48673990063675709,1]
[0.32158227197887068,0,0.10234694775438749,2011,-0.25684239842855561,0]
[0.66591634614707584,0,0.14667693495622844,2020,0.44185279201516403,0]
[0.4278294166129728,1,0.56893945692466052,2017,-0.22149199158070243,0]
[0.32150999561025018,1,0.46109025555123306,2012,0.82233587268485764,1]
[0.71902752836307637,0,0.15278801258610974,2015,-0.97269649242499423,0]
[0.46449116594305795,0,0.13063292078907804,2022,0.20766773229628077,0]
[0.43450126882961437,0,3.4094751208600726E-2,2019,-1.2786933937455671,0]
[0.11043480774710213,0,0.10788248888210586,2014,-3.981772589851662E-3,0]
[0.10603059765693168,1,0.21273663650085278,2013,1.8419330252682347,0]
[0.77661281330420995,1,0.81297487102250487,2016,1.1191023636673632,1]
[0.51238195017964772,0,7.465596888208037E-2,2008,0.69146247455261856,0]
[0.27222782034511106,1,0.43834701719302194,2007,2.5025336981491146,1]
[0.83450040933229475,1,0.99605886037904789,2011,1.5273024152619064,0]
[0.62347326174662288,1,0.82285534547694161,2013,2.4757204841237677,1]
[0.25890474395798679,1,0.29307224041642765,2011,0.9656160524587637,1]
[0.80942454548701837,1,0.97126705420908066,2023,0.31397073183801472,1]
[0.89007530613908659,1,1.0213660871312062,2009,1.3078786468105814,1]
[0.6087967416216109,0,0.18883543121408586,2009,1.5350736318101053,0]
[0.60830325028786247,1,0.72767376322880262,2022,0.78362439049044952,0]
[0.19657888106806054,0,0.14891443109408675,2012,1.7010130114379716,0]
[0.87954401291048423,0,7.4402352269806585E-2,2021,1.0342337921289673,0]
[2.8404201968135534E-2,1,0.14984225552670905,2013,1.536862659038122,0]
[0.42433112306760545,1,0.45687845376979508,2005,1.3117149496952016,1]
[0.20874083270947175,1,0.36802017725298503,2007,1.1136393037368379,1]
[0.36183087283569371,0,9.693599134004259E-2,2018,-5.5181421347918702E-2,0]
[0.96583025618222706,0,0.19544550596353313,2017,1.502382219267056,0]
[0.69026381543119975,0,0.11099110780855766,2014,0.45747366549496393,0]
[0.38636111368789439,0,0.13920418546568586,2007,1.8145422132500832,0]
[0.2604147032904901,0,0.11144422803797444,2018,1.8578273624725421,0]
[0.71324135270495514,1,0.81807129734671313,2011,0.21186733372123132,1]
[0.98943876211429682,1,1.0788687448093337,2001,2.7323340840447985,1]
[0.59122772898852516,1,0.60528851139413153,2014,-8.6047616824279638E-2,1]
[0.18694732434726768,1,0.29026181011373703,2007,1.8905250003978986,1]
[0.19028386455056534,1,0.38603828626729508,2018,2.1169384027552525,0]
[0.32706001297676335,1,0.48526206213108902,2019,0.55628190315279347,1]
[0.69175460878312678,1,0.77861402808436053,2014,0.76577375634393385,1]
[0.95902058822460845,0,8.0525297778387572E-2,2023,-1.6144931944543153,0]
[0.34317248098005304,0,0.16203329366306385,2018,-0.72944673454176312,0]
[0.45204483239414395,1,0.48415432311362278,2008,0.56317525482305686,1]
[0.75383055048811987,0,0.15049689861608218,2003,3.0757163455072623,0]
[7.5619555967066487E-2,0,0.17529501789419011,2014,0.85478857717829138,0]
[0.22010630394376007,0,0.17898432591562252,2013,2.3573728784434631,0]
[0.53207550362051415,1,0.57561087872678729,2015,-0.24308352996614224,0]
[0.52618422351991845,1,0.67129064362036583,2009,2.7701521742372224,1]
[0.43888891832612986,0,2.0444542964081783E-2,2021,-1.1349652044945719,0]
[0.27229269551607282,0,5.6976671778205562E-2,2018,1.5751138842141044,0]
[8.142161931410008E-2,1,0.15862311673224183,2006,1.328457598272035,0]
[2.0670000786949472E-2,1,0.12041837598602963,2022,1.0759572474301633,0]
[0.1500213564133529,1,0.2627745770755921,2013,1.5203967496223258,0]
[0.94846031991245339,1,1.0698984563518088,2007,0.9204945977772252,1]
[0.79291689976046886,1,0.80102772191492921,2017,-0.31656170556002683,0]
[5.6232629708177551E-2,0,2.9007738517790507E-2,2016,-2.5121598370469012E-2,0]
[0.78354935188721875,0,7.109447901135578E-2,2004,0.41021828197143695,0]
[0.36075115036026328,1,0.36693935763290186,2023,-0.61031933160717522,0]
[0.69197661793777343,0,2.8595912996721751E-2,2017,0.2950335993964881,0]
[0.99134889263238901,0,0.1224850786255092,2012,-0.21214648937312597,0]
[0.20714550962153,0,0.16381610178180556,2022,-0.97138385311030395,0]
[0.83870596199427394,0,5.5415651252718127E-2,2019,-1.3563833212595335,0]
[2.0553724428552855E-2,1,3.8298995713827201E-2,2016,0.44612856793801836,1]
[0.97471342876508915,0,0.15314447555280983,2007,0.4457498190052851,0]
[9.9544332646364753E-2,0,0.12182337904478605,2019,-0.60945640587282868,0]
[0.48631563520033583,1,0.54291727431553383,2004,3.2751412890612599,1]
[0.96532751461061594,0,0.19295204450588099,2014,0.79621028906890534,0]
[0.47414559503701303,0,0.10007210244182346,2022,0.20460442316098626,0]
[0.30066765022287534,0,2.793619509378218E-2,2017,0.53794935616104267,0]
[0.37986353654390426,1,0.44963029190525344,2009,3.1312913138359311,1]
[0.44510782040810049,0,0.17487733129428165,2007,0.5366962467526819,0]
[0.96517625557572162,1,1.0943557291239117,2011,2.9440497919654933,0]
[0.79765047346356277,0,7.9035621624085048E-2,2017,0.21098727304243448,0]
[0.71896623961649431,0,3.4429698906842554E-2,2008,0.62083037850569123,0]
[0.95764714457568401,1,0.97116537927611624,2005,1.3209492867214236,1]
[0.28539732354351022,1,0.30850332472118747,2011,0.61331393787868926,1]
[0.92234535541106044,1,1.0121046458514276,2016,1.8691813582413097,0]
[0.94926105547960504,0,3.5429808813853604E-3,2023,0.25342360133745157,0]
[0.15746983864457675,0,0.13338884367174386,2016,0.46998712935550591,0]
[0.73787155132589177,0,0.16148077840895347,2012,2.0234277047577001,0]
[0.47541233058904386,1,0.60773450689630704,2004,1.059786439310733,1]
[0.49905149319745723,1,0.5354981451698676,2006,1.0091207619902347,1]
[5.8590536274841232E-2,0,0.17571632541134996,2021,0.76133818874370496,0]
[0.49138293125601751,1,0.65380835944500793,2001,2.7400467115331231,1]
[0.96102561501857597,0,9.8874136895595349E-2,2018,-1.0751003461401649,0]
[0.41505383713068311,1,0.54465615769422393,2013,2.2445140210041514,0]
[0.78601521071400404,0,0.12555364801345492,2007,1.3364003384234882,0]
[2.8935257415645621E-2,0,7.6583967242616499E-2,2014,-0.21117737515576451,0]
[0.8043679102360447,0,0.10790368662446151,2006,1.1045715504788403,0]
[0.64486274761287043,0,0.18982223634871698,2011,1.9753028723335151,0]
[0.25124938013785747,1,0.41600463265387566,2015,-4.2092953272263922E-2,1]
[0.60681342173329078,1,0.68932806895429377,2010,1.9789303371555036,0]
[0.81463869410869716,1,0.82861196128237224,2003,2.0730621082825227,1]
[0.17340959094727526,1,0.37187356815543704,2014,1.4260633970138974,1]
[6.8713026931305432E-2,1,0.21643755338670809,2010,3.0697766510440885,1]
[0.59499900806214645,1,0.74311128633674861,2012,0.31386454500875088,0]
[0.7357191542797723,0,7.6304164467605795E-2,2002,1.1052087191146929,0]
[0.80956295028773262,1,1.0045935928003193,2014,0.67655719940284542,1]
[0.25843525722114724,1,0.31872609442892919,2012,2.780455006576493,0]
[0.94571022801034466,0,9.0193839344664795E-2,2023,-1.4936595603578418,0]
[8.5990770581880427E-2,0,0.17717453341266604,2009,3.0712728631596438,0]
[7.7817050856856418E-2,1,0.23335485562404537,2006,3.6121362582279914,1]
[0.65838076399778256,0,1.9440724571476366E-2,2019,-0.72679461945532342,0]
[0.6165352374615678,1,0.78397406543472459,2018,0.43005396284533282,0]
[0.25466458806624226,1,0.41466327101870837,2012,2.7078949933874399,1]
[0.60845070411456958,0,0.10894519255333673,2010,0.25146438135881027,0]
[0.78893900330325539,0,0.11311753247019965,2005,0.84516102636918899,0]
[0.64207439978674974,0,0.12118641701383466,2017,-0.91149780910425726,0]
[0.88809230983284571,1,0.92437277920335337,2003,2.2680645269565467,1]
[0.81154051792909143,1,0.85754426173331189,2003,1.7920711230915947,1]
[0.92418233769542535,0,6.8738840518988403E-2,2017,0.71869850823495396,0]
[0.83452696350247002,0,0.14789749539763908,2003,1.1086867547294323,0]
[0.40448244156277691,0,0.17326969310496299,2021,1.3023686595899651,0]
[0.87901891908954988,0,0.12323208760149124,2009,2.216418445005393,0]
[0.50653986446338128,1,0.50827139947323263,2009,2.0855906764420666,1]
[0.64765875573811171,0,5.9677246415832365E-2,2019,-0.36028844647017522,0]
[0.71450309494769604,1,0.8039283315816883,2018,0.84766508739140545,0]
[0.38897262533818644,1,0.43064039180025243,2004,2.650414898575991,1]
[0.91692167115661272,0,7.406121561943467E-2,2023,-0.58807505623463641,0]
[0.41736368326490458,1,0.43742800978101687,2006,2.6942122269931152,0]
[0.26376048920736872,0,0.14866064981488572,2021,0.31394511682769455,0]
[0.26615897088605922,0,0.1478630505912856,2015,1.6895416602441435,0]
[0.86023687247368164,0,0.11800956016577324,2013,-0.38993457127672271,0]
[3.4625530179521968E-2,1,7.0363382134244201E-2,2014,-0.19873795791023796,0]
[0.60154062861741464,0,2.8903960754572022E-2,2005,0.74415763769219778,0]
[0.71424505713179365,1,0.86572902848216471,2007,2.9222020983033135,1]
[0.70194317961042896,0,4.724254223271962E-2,2021,-0.23291376820446841,0]
[0.99620061455406783,0,0.14830962331558192,2015,-7.6573240421485611E-2,0]
[0.48047447616070393,1,0.54288472022732526,2008,0.62729753986169512,0]
[0.70552857659328727,0,0.17418292558704296,2021,-0.206511250819847,0]
[0.63471499943427134,0,7.7252696589796818E-2,2019,0.80600868609251064,0]
[0.17833571082509714,1,0.18063585126487267,2003,0.87310925570185216,1]
[0.94476893380014559,0,0.19997149750133947,2018,-1.1492874564907396,0]
[9.8410720418273812E-3,1,0.18669242695520671,2021,-0.37918237030198643,0]
[0.56405187389212008,1,0.58382245009942679,2017,0.41786823641589677,0]
[0.4581112610423802,0,0.16271209571259629,2015,0.73228377855144566,0]
[0.37688795276078002,0,0.13055132348789292,2011,4.5005647043973696E-2,0]
[0.51362254073089963,0,1.2307863369265438E-2,2015,1.3094868171748706,0]
[0.77272802772876525,1,0.9291743172231357,2012,0.39670339129010873,0]
[0.90267132615238488,1,1.0195047796419403,2014,1.743831954826139,0]
[0.51997111390453621,0,8.2618814905518312E-2,2018,0.86214144383186619,0]
[5.6794353093927774E-2,0,3.0319827189283278E-3,2019,0.50744903663461727,0]
[0.30717399962395109,1,0.40381654635635594,2001,4.0044725541800261,1]
[2.1145088865088479E-2,0,4.5850285495057631E-2,2002,1.1481061585044343,0]
[0.71695117633074623,1,0.89289910376755821,2009,2.1455247053021624,1]
[0.52053521139491177,0,0.11272952235352809,2002,3.1812974370674363,0]
[0.9050727439380255,1,1.0221221157913716,2008,2.3092921669863049,0]
[0.50761831057306495,0,0.10709008073484763,2023,-1.2750998404886196,0]
[0.65275527116617671,0,0.11928398562322798,2012,1.213408429207435,0]
[0.54401913499487153,0,0.11698227277229208,2021,1.027265627207713,0]
[0.28730136421767927,1,0.33255304668076957,2002,1.9270512188146924,1]
[0.34284108558009474,1,0.38326323017672181,2018,-0.28287173644266972,0]
[0.54519475452830635,0,0.1270446241674982,2015,0.94780389509959129,0]
[0.42219610504282357,1,0.54636538165349513,2020,1.7147106285280755,1]
[0.77002362002350733,1,0.84318349093591971,2011,0.14697341030876129,1]

{"sheet":"IsmaelData","index":4,"n_rows":62,"n_cols":2,"rows_kept":62,"cut":false,"hidden":false,"merged":[]}
["Quarter","Sales"]
["Q1-02",1807.37]
["Q2-02",2355.3200000000002]
["Q3-02",2591.83]
["Q4-02",2236.39]
["Q1-03",1549.14]
["Q2-03",2105.79]
["Q3-03",2041.32]
["Q4-03",2021.01]
["Q1-04",1870.46]
["Q2-04",2390.56]
["Q3-04",2198.0300000000002]
["Q4-04",2046.83]
["Q1-05",1934.19]
["Q2-05",2406.41]
["Q3-05",2249.06]
["Q4-05",2211.56]
["Q1-06",2237.0500000000002]
["Q2-06",2856.43]
["Q3-06",2799.57]
["Q4-06",2645.33]
["Q1-07",2563.59]
["Q2-07",3146.52]
["Q3-07",3196.68]
["Q4-07",2930.48]
["Q1-08",2878.96]
["Q2-08",3687.85]
["Q3-08",3608.33]
["Q4-08",3288.26]
["Q1-09",3178.23]
["Q2-09",3939.69]
["Q3-09",3680.11]
["Q4-09",3516.65]
["Q1-10",3354.76]
["Q2-10",4490.0200000000004]
["Q3-10",4678.97]
["Q4-10",4148.5600000000004]
["Q1-11",3995.07]
["Q2-11",5178.43]
["Q3-11",5010.6400000000003]
["Q4-11",4453.38]
["Q1-12",4306.7]
["Q2-12",5321.93]
["Q3-12",4888.1000000000004]
["Q4-12",4554.6499999999996]
["Q1-13",4176.79]
["Q2-13",5125.3999999999996]
["Q3-13",4962.6499999999996]
["Q4-13",4917.63]
["Q1-14",4542.6000000000004]
["Q2-14",5284.71]
["Q3-14",4817.43]
["Q4-14",4634.5]
["Q1-15",4431.3599999999997]
["Q2-15",5602.21]
["Q3-15",5349.85]
["Q4-15",5036]
["Q1-16",4534.6099999999997]
["Q2-16",5836.17]
["Q3-16",5818.28]
["Q4-16",5070.42]
["Q1-17",4497.47]

{"sheet":"DT_tests","index":5,"n_rows":15,"n_cols":28,"rows_kept":15,"cut":false,"hidden":true,"merged":[[3,7,3,11],[3,15,3,21],[5,5,14,5],[5,13,14,13],[5,23,14,23]]}
[]
[null,"MODEL",null,null,null,"Multiple Input, Single Output Data Table",null,null,null,null,null,null,null,"Single Input (w/ Iteration), Single Output Data Table",null,null,null,null,null,null,null,null,null,"Single Input, Multiple Output Data Table"]
[]
[null,"Parameter 1 ('fact' or 'coeff')",0.9,null,null,null,null,{"$f":"B5","v":"Parameter 2 ('fact' or 'coeff')"},null,null,null,null,null,null,null,{"$f":"B10","v":"Decision/Policy Input 2 (Utility)"},null,null,null,null,null,null,null,null,null,"Output 1","Output 2","Total Out"]
[null,"Parameter 2 ('fact' or 'coeff')",1.5,null,null,null,{"$f":"C15","v":70.90756081342461},1.1000000000000001,1,1.5,1.7,1.9,null,null,{"$f":"C15","v":70.90756081342461},17,18,19,20,21,22,23,null,null,null,{"$f":"C12","v":59.670941859184168},{"$f":"C13","v":11.236618954240436},{"$f":"C15","v":70.90756081342461}]
[null,"Parameter 3 ('fact' or 'coeff')",30,null,null,{"$f":"B9","v":"Decision/Policy Input 1 (Utility)"},6,null,null,null,null,null,null,"Simulated Iteration #",1,null,null,null,null,null,null,null,null,{"$f":"B9","v":"Decision/Policy Input 1 (Utility)"},6]
[null,"Parameter 4 ('fact' or 'coeff')",10,null,null,null,7,null,null,null,null,null,null,null,2,null,null,null,null,null,null,null,null,null,7]
[null,null,null,null,null,null,8,null,null,null,null,null,null,null,3,null,null,null,null,null,null,null,null,null,8]
[null,"Decision/Policy Input 1 (Utility)",12,null,null,null,9,null,null,null,null,null,null,null,4,null,null,null,null,null,null,null,null,null,9]
[null,"Decision/Policy Input 2 (Utility)",20,null,null,null,10,null,null,null,null,null,null,null,5,null,null,null,null,null,null,null,null,null,10]
[null,null,null,null,null,null,11,null,null,null,null,null,null,null,6,null,null,null,null,null,null,null,null,null,11]
[null,"Output 1 (Means Objective)",{"$f":"RAND()+C10*C4+C9^C5","v":59.670941859184168},null,null,null,12,null,null,null,null,null,null,null,7,null,null,null,null,null,null,null,null,null,12]
[null,"Output 2 (Means Objective)",{"$f":"IF((C10-C9)>C6,C6*C5+RAND()*C7,C7+RAND()*C7)","v":11.236618954240436},null,null,null,13,null,null,null,null,null,null,null,8,null,null,null,null,null,null,null,null,null,13]
[null,null,null,null,null,null,14,null,null,null,null,null,null,null,9,null,null,null,null,null,null,null,null,null,14]
[null,"Total Output (Fundamental Obj)",{"$f":"C12+C13","v":70.90756081342461},null,null,null,15,null,null,null,null,null,null,null,10,null,null,null,null,null,null,null,null,null,15]

{"sheet":"Query","index":6,"n_rows":127,"n_cols":8,"rows_kept":127,"cut":false,"hidden":true,"merged":[]}
[null,1]
[1,"Afghanistan",34,"Nuristan,Takhar,Baghlan,Badakhshan,Kapisa,Panjshir,Nangarhar,Kunar,Laghman,MaidanWardak,Parwan,Kabul,Logar,Balkh,Samangan,Kunduz,Faryab,Sar-ePol,Jowzjan,Paktika,Khost,Paktia,Daykundi,Ghazni,Bamyan,Herat,Ghor,Badghis,Kandahar,Zabul,Oruzgan,Nimruz,Helmand,Farah","http://experimental-instruments.com/Afghanistan.html","Geography-National","Sorted"]
[2,"Argentina",23,"S_San_Luis,S_Santa_Fe,S_Chaco,S_Jujuy,S_Salta,S_Catamarca,S_La_Rioja,S_San_Juan,S_Mendoza,S_Neuquen,S_Rio_Negro,S_Chubut,S_Tucuman,S_Formosa,S_Santiago_del_Estero,S_Corrientes,S_Entre_Rios,S_Buenos_Aires,S_Misiones,S_Santa_Cruz,S_Tierra_del_Fuego,S_La_Pampa,S_Cordoba","http://experimental-instruments.com/Argentina.html","Geography-National","Sorted"]
[3,"Australia",7,"S_VIC,S_WA,S_TAS,S_QLD,S_NT,S_NSW,S_SA","http://experimental-instruments.com/Australia.html","Geography-National","Sorted"]
[4,"Brazil",27,"S_GO,S_SP,S_PR,S_SC,S_RS,S_MS,S_RJ,S_ES,S_MG,S_BA,S_DF,S_MT,S_RO,S_TO,S_SE,S_AL,S_PE,S_PB,S_RN,S_CE,S_PI,S_MA,S_AC,S_AM,S_PA,S_AP,S_RR","http://experimental-instruments.com/Brazil.html","Geography-National","Sorted"]
[5,"Canada",13,"Yukon,NorthwestTerritories,BritishColumbia,Alberta,Saskatchewan,Manitoba,Ontario,Quebec,NewfoundlandandLabrador,NewBrunswick,PrinceEdwardIsland,NovaScotia,Nunavut","http://experimental-instruments.com/Canada1.html","Geography-National","Sorted","Student"]
[6,"Chad",23,"BahrElGazel,Batha,Borkou,ChariBaguirmi,Ennedi,Freeform18,Freeform25,Freeform36,Freeform8,Guera,Kanem,Lac,LogoneOccidental,LogoneOriental,Mandoul,MayoKebbiEst,MayoKebbiOuest,MoyenChari,NDjamena,Sila,Slaamat,Tibesti,WadiFira","http://experimental-instruments.com/Chad.html","Geography-National","Sorted","Student"]
[7,"China",30,"Fujian,Shandong,Xinjiang,InnerMongolia,Heilongjiang,Jilin,Liaoning,Beijing,Tianjin,Shanxi,Henan,Shaanxi,Hubei,Anhui,Jiangsu,Zhejiang,Jiangxi,Chongqing,Hunan,Guizhou,Ningxia,Gansu,Sichuan,Yunnan,Guangxi,Guangdong,Hainan,Qinghai,Tibet,Hebei","http://experimental-instruments.com/China.html","Geography-National","Sorted"]
[8,"Egypt",26,"KafrElSheikh,Monufia,Gharbia,Sharqia,Qalyubia,Dakahlia,Matrouh,Beheira,Aleexandria,Suez,Cairo,Faiyum,Minya,BeniSuef,Giza,Sohag,Asyut,Aswan,NewValley,SouthSinai,PortSaid,QenaLuxor,Damietta,Ismailia,NorthSinai,RedSea","http://experimental-instruments.com/Egypt.html","Geography-National","Sorted"]
[9,"Ethiopia",11,"AddisAbaba,AfarRegion,AmharaRegion,Benishangul-GumuzRegion,DireDawa,GambelaRegion,HarariRegion,OromiaRegion,SomaliRegion,SouthernNation,TigrayRegion","http://experimental-instruments.com/Ethiopia.html","Geography-National","Sorted","Student"]
[10,"France",22,"Limousin,Auvergne,Centre,IledeFrance,Bourgogne,FrancheComte,Alsace,Lorraine,ChampagneArdenne,Picardie,deCalais,BasseNormandie,MidiPyrenees,Corse,LanguedocRoussillon,ProvenceAlpesCotedAzur,RhoneAlpes,Aquitaine,PoitouCharentes,PaysdelaLoire,Bretagne,HauteNormandie","http://experimental-instruments.com/France.html","Geography-National","Sorted"]
[11,"Germany",16,"S_NS,S_BB,S_SH,S_MV3,S_SA,S_T,S_S,S_BY,S_HB,S_H,S_RP,S_BW,S_NRW,S_HH,S_B,S_SL","http://experimental-instruments.com/Germany.html","Geography-National","Sorted"]
[12,"GreatLakes",5,"Erie,Huron,Michigan,Ontario,Superior","http://experimental-instruments.com/GreatLakes.html","Geography-National","Sorted","Student"]
[13,"HexStates",51,"AK,AL,AR,AZ,CA,CO,CT,DC,DE,FL,GA,HI,IA,ID,IL,IN,KS,KY,LA,MA,MD,ME,MI,MN,MO,MS,MT,NC,ND,NE,NH,NJ,NM,NV,NY,OH,OK,OR,PA,RI,SC,SD,TN,TX,UT,VA,VT,WA,WI,WV,WY","http://experimental-instruments.com/HexStates.html","Geography-National","Sorted"]
[14,"Iraq",17,"SalahadDin,AsSulaymaniyyah,Kirkuk,Arbil,Ninawa,Wasit,Diyala,Baghdad,AnNajaf,AlQadisiyyah,Babil,Karbala,AlAnbar,AlBasrah,AlMuthanna,DhiQar,Maysan","http://experimental-instruments.com/Iraq.html","Geography-National","Sorted"]
[15,"Ireland",15,"Connaught,Connaught_2,Connaught_3,Connaught_4,Connaught_5,Connaught_6,Connaught_7,Freeform16,Freeform18,Leinster,Leinster_2,Meath,Munster,Ulster,ulster_2","http://experimental-instruments.com/Ireland.html","Geography-National","Sorted"]
[16,"Israel",11,"Golan,WestBank,GazaStrip,Syria,Lebanon,Center,TelAviv,Jerusalem,South,Haifa,North","http://experimental-instruments.com/Israel.html","Geography-National","Sorted"]
[17,"Italy",20,"Puglia,FriuliVeneziaGiulia,TrentinoaltoAdige,Lombardia,Piemonte,Valled'Aosta,Liguria,EmiliaRomagna,Marche,Umbria,Abruzzo,Molise,Basilicata,Calabria,Sardegna,Sicilia,Campania,Lazio,Toscana,Veneto","http://experimental-instruments.com/Italy.html","Geography-National","Sorted"]
[18,"Japan",49,"Aichi,Akita,Aomori,Chiba,Ehime,Fukui,Fukuoka,Fukushima,Gifu,Gunma,Hiroshima,Hokkaido,Hyogo_1,Hyogo_2,Ibaraki,Ishikawa,Iwate,Kagawa,Kagoshima,Kanagawa,Kochi,Kumamoto,Kyoto,Mie,Miyagi,Miyazaki,Nagano,Nagasaki,Nara,Niigata_1,Niigata_2,Oita,Okayama,Okinawa,Osaka,Saga,Saitama,Shiga,Shimane,Shizuoka,Tochigi,Tokushima,Tokyo,Tottori,Toyama,Wakayama,Yamagata,Yamaguchi,Yamanashi","http://experimental-instruments.com/Japan.html","Geography-National","Sorted","Student"]
[19,"Kuwait",12,"Freeform10,Freeform11,Freeform12,Freeform13,Freeform14,Freeform15,Freeform16,Freeform17,Freeform19,Freeform6,Freeform7,Freeform9","http://experimental-instruments.com/Kuwait.html","Geography-National","Sorted","Student"]
[20,"Mexico",32,"Sonora,Chihuahua,Sinaloa,Durango,Zacatecas,Ag.,Nayarit,Jalisco,Co.,BajaCaliforniaSur,BajaCalifornia,CoahuiliadeZaragoza,NuevoLeon,Tamaulipas,SanLuisPotosi,Guanajuato,Queretaro,EstadodeHidalgo,Michoacan,EstadodeMexico,Mo.,Puebla,VeracruzdeIgnaciodelaLlave,Guerrero,Oaxaca,Chiapas,Tabasco,Campreche,QuintaneRoo,Yucatan,Jr,TI","http://experimental-instruments.com/Mexico.html","Geography-National","Sorted"]
[21,"Russia",80,"Tver,Smolensk,Kaluga,Tula,Oryol,Vladimir,Kostroma,Ivanovo,Yaroslavl,Tambov,Lipetsk,Mordovia,Ryazan,MariEl,Chuvashia,NizhnyNovgorod,Bryansk,Belgorod,Kursk,Rostov,Volgograd,Voronezh,Penza,Samara,Saratov,Ulyanovsk,Udmurtia,Tatarstan,Kalmykia,Astrakahn,Chechnya,KarachayCherkessia,KabardinoBalkaria,NorthOssentiaAlania,Ingushetia,Dagestan,Leningrad,Vologda,Novgorod,Pskov,Murmansk,Karelia,Komi,Perm,Kirov,Chelyabinsk,Orenburg,Bashkortostan,Tyumen,Kurgan,Sverdlovsk,Tomsk,Omsk,KhantyMansi,AltaiKrai,Novosibirsk,Kemerovo,Tuva,AltaiRepublic,Khakassia,Buryatia,Irkutsk,Amur,Zabaykalsky,Primorsky,JAO,Magadan,Stavropol,Kaliningrad,Krasnodar,MoscowOblast,Nenets,Arkhangelsk,YamaloNenets,Kamchatka,Chukotka,Sakhalin,Khabarovsk,Krashnoyarsk,SakhaYakutia","http://experimental-instruments.com/Russia.html","Geography-National","Sorted"]
[22,"Samoa",11,"Fa'aseleleaga,Gaga'ifomauga,Satupa'itea,Palauli,Tuamasaga,Atua,A'ana,Vaisigano,Va'aoFonoti,Aiga'i'le_Tai,Gaga'emauga","http://experimental-instruments.com/Samoa.html","Geography-National","Sorted"]
[23,"Sicily",9,"Agrigento,Caltanissetta,Catania,Enna,Messina,Palermo,Ragusa,Siracusa,Trapani","http://experimental-instruments.com/Sicily.html","Geography-National","Sorted"]
[24,"SouthSudan",10,"WesterhBahrElGhazel,NorthernBahrElGhazel,Warrap,Unity,Lakes,WesternEquatoria,CentralEquatoria,EaternEquatoria,Jongle,UpperNile","http://experimental-instruments.com/SouthSudan.html","Geography-National","Sorted"]
[25,"Spain",50,"Zamora,Valladolid,Valencia,Toledo,Teruel,Tarragona,Zaragoza,Soria,Sevilla,Segovia,SantaCruzdeTenerife,Salamanca,LaRioja,Pontevedra,LasPalmas,Palencia,Orense,Malaga,Madrid,Lugo,Lerida,Leon,Jaen,Huesca,Huelva,Guipuzcoa,Guadalajara,Granada,Gerona,Cuenca,LaCoruna,Cordoba,CiudadReal,Castellion,Cantabria,Cadiz,Caceres,Burgos,Vizcaya,Barcelona,IslasBaleares,Badajoz,Avila,Asturias,Almeria,Alicante,Alibacete,Alava,Navarra,Murcia","http://experimental-instruments.com/Spain.html","Geography-National","Sorted"]
[26,"Ukraine",24,"Volyn,Rivne,Zhytomyr,Kiev,Chernihiv,Sumy,Kharkiv,Luhansk,Donetsk,Lviv,Zakarpattia,Ivano-Frankivsk,Chernivtsi,Vinnytsia,Ternopil,Khmel,Odessa,Mykolaiv,Kherson,Zaporizhia,Dnipropetrovsk,Poltava,Kirovohrad,Cherkasy","http://experimental-instruments.com/Ukraine1.html","Geography-National","Sorted","Student"]
[27,"UnitedKingdom",4,"Wales,Ireland,Scotland,England","http://experimental-instruments.com/UnitedKingdom.html","Geography-National","Sorted"]
[28,"USA-Contig",48,"AL,AR,AZ,CA,CO,CT,DE,FL,GA,IA,ID,IL,IN,KS,KY,LA,MA,MD,ME,MI,MN,MO,MS,MT,NC,ND,NE,NH,NJ,NM,NV,NY,OH,OK,OR,PA,RI,SC,SD,TN,TX,UT,VA,VT,WA,WI,WV,WY","http://experimental-instruments.com/States.html","Geography-National","Sorted"]
[29,"USCounties",3141,{"$cut":{"chars":31271,"head":"NorthSlopeAK,NorthwestArcticAK,KetchikanGatewayAK,PrinceofWalesOuterKetchikanAK,WrangellPetersburgAK,SitkaAK,HainesAK,JuneauAK,SkagwayHoonahAngoonAK,YakutatAK,AleutiansWestAK,AleutiansEastAK,KodiakIslandAK,BristolBayAK,DillinghamAK,LakeandPeninsulaAK,KenaiPeninsulaAK,AnchorageAK,ValdezCordovaAK,MatanuskaSusitnaAK,SoutheastFairbanksAK,FairbanksNorthStarAK,DenaliAK,BethelAK,WadeHamptonAK,NomeAK,YukonKoyukukAK,HoustonAL,HenryAL,GenevaAL,DaleAL,CoffeeAL,CovingtonAL,MobileAL,BaldwinAL,EscambiaAL,ConecuhAL,WashingtonAL,ChoctawAL,ClarkeAL,MonroeAL,WilcoxAL,ButlerAL,CrenshawAL,PikeAL,BullockAL,MaconAL,LowndesAL,MontgomeryAL,ElmoreAL,AutaugaAL,DallasAL,MarengoAL,SumterAL,PerryAL,ChiltonAL,CoosaAL,TallapoosaAL,ClayAL,TalladegaAL,ShelbyAL,BibbAL,HaleAL,GreeneAL,PickensAL,TuscaloosaAL,JeffersonAL,WalkerAL,LamarAL,FayetteAL,FranklinAL,MarionAL,WinstonAL,CullmanAL,BlountAL,St.ClairAL,CalhounAL,EtowahAL,MarshallAL,MorganAL,LawrenceAL,ColbertAL,LauderdaleAL,LimestoneAL,MadisonAL,JacksonAL,DeKalbAL,CherokeeAL,CleburneAL,RandolphAL,ChambersAL,LeeAL,RussellAL,BarbourAL,ChicotAR,AshleyAR,PopeAR,NewtonAR,MadisonAR,FranklinAR,JohnsonAR,LoganAR,YellAR,PerryAR,ConwayAR,FaulknerAR,VanBurenAR,SearcyAR,StoneAR,CleburneAR,WhiteAR,IndependenceAR,JacksonAR,WoodruffAR,St.FrancisAR,CrittendenAR,CrossAR,PoinsettAR,MississippiAR,CraigheadAR,IzardAR,LawrenceAR,SharpAR,GreeneAR,ClayAR,RandolphAR,FultonAR,BaxterAR,MarionAR,BooneAR,CarrollAR,BentonAR,WashingtonAR,CrawfordAR,SebastianAR,ScottAR,MontgomeryAR,GarlandAR,SalineAR,PulaskiAR,LonokeAR,PrairieAR,MonroeAR,LeeAR,PhillipsAR,JeffersonAR,GrantAR,HotSpringAR,DallasAR,ClevelandAR,LincolnAR,ArkansasAR,DeshaAR,DrewAR,BradleyAR,CalhounAR,OuachitaAR,NevadaAR,HempsteadAR,ClarkAR,PikeAR,HowardAR,PolkAR,SevierAR,LittleRiverAR,MillerAR,LafayetteAR,ColumbiaAR,UnionAR,MohaveAZ,LaPazAZ,CochiseAZ,SantaCruzAZ,PimaAZ,GreenleeAZ,GrahamAZ,ApacheAZ,NavajoAZ,GilaAZ,PinalAZ,YumaAZ,MaricopaAZ,CoconinoAZ,YavapaiAZ,DelNorteCA,SiskiyouCA,ImperialCA,RiversideCA,SanDiegoCA,OrangeCA,LosAngelesCA,VenturaCA,SantaBarbaraCA,SanLuisObispoCA,KernCA,SanBernardinoCA,InyoCA,TulareCA,KingsCA,MaderaCA,FresnoCA,MontereyCA,SanBenitoCA,MercedCA,SantaCruzCA,SanMateoCA,AlamedaCA,SantaClaraCA,StanislausCA,MariposaCA,TuolumneCA,MonoCA,AlpineCA,CalaverasCA,AmadorCA,SanJoaquinCA,ContraCostaCA,ElDoradoCA,SacramentoCA,SolanoCA,SanFranciscoCA,MarinCA,NapaCA,SonomaCA,YoloCA,PlacerCA,NevadaCA,SierraCA,YubaCA,SutterCA,ColusaCA,LakeCA,ButteCA,GlennCA,PlumasCA,TehamaCA,MendocinoCA,HumboldtCA,TrinityCA,ShastaCA,LassenCA,ModocCA,MontezumaCO,LaPlataCO,ProwersCO,BentCO,KiowaCO,CheyenneCO,KitCarsonCO,YumaCO,WashingtonCO,PhillipsCO,SedgwickCO,LoganCO,MorganCO,BacaCO,OteroCO,CrowleyCO,LincolnCO,ElbertCO,ArapahoeCO,WeldCO,AdamsCO,DenverCO,DouglasCO,ElPasoCO,TellerCO,PuebloCO,LasAnimasCO,HuerfanoCO,CostillaCO,ConejosCO,AlamosaCO,RioGrandeCO,CusterCO,FremontCO,SaguacheCO,ChaffeeCO,GunnisonCO,PitkinCO,LakeCO,ParkCO,JeffersonCO,GilpinCO,ClearCreekCO,SummitCO,EagleCO,BoulderCO,GrandCO,LarimerCO,JacksonCO,RouttCO,MoffatCO,RioBlancoCO,GarfieldCO,DeltaCO,MesaCO,MontroseCO,SanJuanCO,DoloresCO,SanMiguelCO,OurayCO,HinsdaleCO,MineralCO,ArchuletaCO,BroomfieldCO,HartfordCT,LitchfieldCT,FairfieldCT,NewHavenCT,MiddlesexCT,NewLondonCT,TollandCT,WindhamCT,NewCastleDE,SussexDE,KentDE,BayFL,JacksonFL,CharlotteFL,LeeFL,HendryFL,CollierFL,MonroeFL,MiamiDadeFL,BrowardFL,PalmBeachFL,SarasotaFL,DeSotoFL,GladesFL,MartinFL,St.LucieFL,IndianRiverFL,OkeechobeeFL,HighlandsFL,HardeeFL,ManateeFL,PinellasFL,HillsboroughFL,HernandoFL,PascoFL,OsceolaFL,PolkFL,OrangeFL,SeminoleFL,LakeFL,SumterFL,CitrusFL,LevyFL,MarionFL,VolusiaFL,BrevardFL,WashingtonFL,HolmesFL,WaltonFL,OkaloosaFL,SantaRosaFL,EscambiaFL,CalhounFL,GulfFL,FranklinFL,DixieFL,GilchristFL,AlachuaFL,PutnamFL,FlaglerFL,St.JohnsFL,ClayFL,BradfordFL,UnionFL,SuwanneeFL,LafayetteFL,TaylorFL,WakullaFL,LibertyFL,GadsdenFL,LeonFL,JeffersonFL,MadisonFL,HamiltonFL,ColumbiaFL,BakerFL,DuvalFL,NassauFL,RabunGA,TownsGA,MitchellGA,BakerGA,MillerGA,EarlyGA,SeminoleGA,DecaturGA,GradyGA,ThomasGA,BrooksGA,ColquittGA,CookGA,LanierGA,LowndesGA,EcholsGA,ClinchGA,A"}},"http://experimental-instruments.com/USCounties.html","Geography-National","Sorted"]
[30,"CentralAmerica",7,"Belize,Costa_Rica,ElSalvador,Guatemala,Hondoras,Nicaragua,Panama","http://experimental-instruments.com/CentralAmerica.html","Geography-Global","Sorted","Student"]
[31,"EastAfrica",13,"DRCongo,Burundi,Rwanda,Uganda,Egypt,Kenya,Tanzania,Ethiopia,Somalia,Djibouti,Eritrea,Sudan,SouthSudan","http://experimental-instruments.com/EastAfrica.html","Geography-Global","Sorted"]
[32,"Europe",36,"Albania,Bulgaria,Estonia,Finland,Greece,Serbia,Latvia,Lithuania,Macedonia,Austria,Poland,Romania,Sweden,Slovakia,BozniaHerzegovina,Croatia,Slovenia,Denmark,England,Ireland,Germany,Luxemburge,Netherland,Belgium,Italy,Switzerland,France,Portugal,Spain,CzechRepublic,Hungary,Maldavia,Russia,Ukraine,Belarus,Norway","http://experimental-instruments.com/Europe.html","Geography-Global","Sorted"]
[33,"NorthernHemis",134,"Equator,Mexico,Belize,USA,Canada,Mongolia,Japan,SouthKorea,NorthKorea,China,Russia,Sudan,Tunisia,Portugal,Iceland,Venezuela,Finland,Libya,Spain,Algeria,England,Ireland,Norway,Sweden,Guyana,Israel,Turkey,Mali,WesternSahara,Morroco,Jordan,Ethiopia,Niger,Chad,Colombia,Greenland,Cuba,Panama,Nepal,Honduras,Oman,SriLanka,Afghanistan,Pakistan,India,Iran,Indonesia,Taiwan,SaudiArabia,Yemen,Djibouti,Somalia,Guatemala,ElSalvadore,Nicaragua,CostaRica,Haiti,DominicanRepublic,Suriname,FrenchGuiana,Kazakstan,Ecuador,Brazil,Vietnam,Bhutan,Laos,Thailand,Bangladesh,Kenya,Egypt,Italy,Iraq,Kuwait,Poland,Belarus,Ukraine,Estonia,Latvia,Lithuania,Germany,Switzerland,France,Denmark,CzechRepublic,Macedonia,Romania,Austria,Belgium,Netherlands,Slovakia,Hungary,Moldova,Bulgaria,Albania,Greece,UAE,Qatar,Lebanon,Syria,Slovenia,Croatia,BosniaHerzegovina,Serbia,Azerbaijan,Armenia,Georgia,Turkmenistan,Uzbekistan,Tajikistan,Kyrgystan,Cambodia,Myanmar,Phillipines,Malasia,Uganda,Zaire,Mauritania,Senegal,Nigeria,CentralAfricanRep,Cameroon,Benin,Togo,Ghana,Burkina,CoteDIvoire,Congo,EquatorialGuinea,Gabon,Guinea,SierraLeon,Liberia,GuineaBissau,Gambia","http://experimental-instruments.com/NorthernHemisphere.html","Geography-Global","Sorted"]
[34,"TuscanyandIslands",17,"Arezzo,Capraia,Elba,Firenze,Giannutri,Giglio,Gorgona,Grosseto,Livorno,Lucca,Massa-Carrara,Montecristo,Pianosa,Pisa,Pisotia,Prato,Siena","http://experimental-instruments.com/TuscanyandIslands.html","Geography-Global","Sorted","Student"]
[35,"WorldMap",159,"US,USalaska,Mexico,Greenland,Chile,Argentina,Belize,Guatemala,Honduras,ElSalvador,Nicaragua,SanJose,Panama,Colombia,Ecuador,Peru,Bolivia,Paraguay,Brazil,FrenchGuiana,Suriname,Guyana,Venezuela,DominicanRepublic,Haiti,Uruguay,Jamaica,Cuba,Egypt,Libya,Algeria,Mali,CoteD'ivoire,Ghana,Gabon,Cameroon,Nigeria,Niger,Chad,Sudan,Kenya,Uganda,Tanzania,DROC,Zambia,Morocco,Ethiopia,Somalia,Mauritania,WesternSharah,Senegal,Gambia,GuineaBassau,Guinea,SierraLeone,Liberia,BurkinaFaso,Togo,Benin,EquitorialNewGuinea,Congo,Burundi,Nambia,Angola,SouthAfrica,Botswana,Zimbabwe,Mozambique,Madagascar,Lesotho,Malawi,Tunisia,CentralAfricanRepublic,Rwanda,Thailand,Vietnam,Cambodia,Australia,Kazakhstan,Mongolia,Bangladesh,Myanmar,Laos,India,SouthKorea,NorthKorea,Afghanistan,Iran,Kashmir,Turkmenistan,Uzbekistan,Turkey,Bhutan,Armenia,Azerbaijan,Syria,Jordan,SaudiArabia,Qatar,UnitedArabStates,Oman,Yemen,Nepal,SriLanka,Pakistan,Kyrgystan,Svalbard,Norway,Finland,Belarus,Ukraine,Latvia,Lithuania,Estonia,Russia,Israel,Iraq,Cyprus,Moldova,Ireland,Iceland,Denmark,Netherlands,Belgium,Poland,Austria,Romania,Germany,NorthernIreland,FalklandIslands(UK),UK,France,Albania,Bulgaria,Hungary,Croatia,Serbia,Macedonia,Bosnia,CzechRepublic,Slovakia,Switzerland,Slovenia,Montenegro,Taiwan,Canada,Bahamas,Spain,Sweden,Italy,Greece,HongKong,China,Japan,NewZealand,Phillipines,Malaysia,Indonesia,PapaNewGuinea","http://experimental-instruments.com/WorldMap.html","Geography-Global","Sorted"]
[36,"Cuyahoga",11,"District1,District10,District11,District2,District3,District4,District5,District6,District7,District8,District9","http://experimental-instruments.com/Cuyahoga.html","Geography-County","Sorted"]
[37,"Portage",12,"Aurora,Crestwood,Field,JamesAGarfield,Kent,Ravenna,RavennaArsenal,Rootstown,Southeast,Streetsboro,Waterloo,Windham","http://experimental-instruments.com/Portage.html","Geography-County","Sorted","Student"]
[38,"AkronWards",21,"ChapelHill,DowntownAkron,EastAkron,ElizabethParkValley,Ellet,FairlawnHeights,FirestonePark,GoodyearHeights,HighlandSquare,Kenmore,LaneWooster,MerrimanValley,Middlebury,NorthHill,NorthwestAkron,RollingAcres,SouthAkron,SummitLake,UniversityofAkron,Wallhaven,WestAkron","http://experimental-instruments.com/AkronWards.html","Geography-City","Sorted"]
[39,"Atlanta",21,"Bartow,Cherokee,Forsyth,Hall,Paulding,Cobb,Gwinnett,Barrow,Dekalb,Walton,Newton,Rockdale,Henry,Clayton,Fayette,Coweta,Douglas,Carroll,SouthFulton,NorthFulton,Spalding","http://experimental-instruments.com/Atlanta.html","Geography-City","Sorted"]
[40,"Beijing",16,"HaiRou,MiYun,YanQing,ChangPing,ShunYi,PingGu,HaiDian,ChaoYang,XiCheng,DongCheng,ShiJingShan,MenTouGou,FengTai,FangShan,DaXing,TongZhou","http://experimental-instruments.com/Beijing2.html","Geography-City","Sorted","Student"]
[41,"Boston",24,"CharlesRiver,WestEnd,BeaconHill,PublicGarden,BostonCommon,HistoricDowntown,FinancialDistrict,ParkSquare,BayVillage,ChinaTown,TheatreDistrict,LeatherDistrict,DowntownWaterfront,NorthEnd,BackBay,FortPoint,SouthBeachWaterfront,SouthEnd,SouthBoston,Fenway,BostonHarbor,EastBoston,Charlestown,Cambridge","http://experimental-instruments.com/Boston.html","Geography-City","Sorted"]
[42,"BrecksvillePrecincts",11,"PartA,PartB,PartC,PartD,PartE,PartF,PartG,PartH,PartI,PartJ,PartK","http://experimental-instruments.com/BrecksvilleVoterPrecinct.html","Geography-City","Sorted","Student"]
[43,"Brent",21,"Kenton,Queensbury,Fryent,WeishHarp,Tokyngton,Sudbury,NorthwickPark,Preston,Barnhill,WembleyCentral,Alperton,Harlesden,Stonebridge,Kilburn,Queen'sPark,KensaiGreen,BrondesburyPark,Mapesbury,DollisHill,DuddenHill,WillesdenGreen","http://experimental-instruments.com/Brent.html","Geography-City","Sorted"]
[44,"Brooklyn",9,"Downtown,GowanusandRedHook,ConeyIslandandBrightonBeach,GreenwoodandNewUtrecht,ProspectPark,BedfordStuyvesantandFlatbush,Williamsburg,GNRA,EastBrooklyn","http://experimental-instruments.com/Brooklyn.html","Geography-City","Sorted"]
[45,"BucyrusEast",26,"ApartmentResidential_1,ApartmentResidential_2,ApartmentResidential_3,Freeform12,Freeform17,Freeform3,Freeform30,GeneralBusiness_1,GeneralBusiness_2,GeneralBusiness_3,GeneralIndustrial_1,GeneralIndustrial_2,GeneralIndustrial_3,LimitedIndustrial/Comercial_1,LimitedIndustrial/Comercial_2,LimitedIndustrial/Comercial_3,ManufacturedHomeResidential,NeighborhoodBusiness,Residentail1_2,Residentail2,Residentail3_1,Residential1_1,Residential3_2,Residential3_3,ResidentialEstate,SpecialUse","http://experimental-instruments.com/BucyrusEast.html","Geography-City","Sorted","Student"]
[46,"CapeCod",15,"Barnstable,Bourne,Brewster,Chattam,Dennis,Eastham,Falmouth,Harwich,Mashpee,Orleans,Provincetown,Sandwich,Truro,Wellfleet,Yarmouth","http://experimental-instruments.com/CapeCod.html","Geography-City","Sorted","Student"]
[47,"CharlestonWV",8,"Downtown,EastEnd,Edgewood,KanawhaCity,NorthCharleston,Oakridge,SouthHills,WestSide","http://experimental-instruments.com/CharlestonWV.html","Geography-City","Sorted","Student"]
[48,"ChicagoNeighborhoods",91,"LincolnPark,Lakeview,NearNorthSide,DePaul,RoscoeVillage,UpTown,Edgewater,Ravenswood,NorthCenter,Avondale,Bucktown,WickerPark,GooseIsland,Loop,NearWestSide,UkrainianVillage,WestTown,LoganSquare,IrvingPark,AlbanyPark,NorthPark,LincolnSquare,WestRogersPark,Freeform27,Sauganash,ForestGlen,Freeform30,NorthwoodPark,EdisonPark,O'Hare,Dunning,PortagePark,Montclaire,BelmontCentral,Galewood,Austin,Craigin,Hermosa,HumboldtPark,GarfieldPark,Lawndale,Tritaylor,UniversityVillage,Pilsen,LittleVillage,MckinleyVillage,NearSouthSide,Chinatown,BridgePort,Douglas,Oakland,Kenwood,GrandBlvd,Freeform62,BackOftheYard,BrightonPark,ArcherHeights,WestElsdon,GarfieldRidge,Clearing,WestLawn,Freeform70,GagePark,WestEnglewood,Englewood,WashingtonPark,HydePark,Woodlawn,Southshore,GreaterGrandCrossing,Chatham,Gresham,Ashburn,Scottsdale,Beverly,Brainerd,MountGreenwood,MorganPark,WestPullman,Roseland,Pullman,Riverdale,Burnside,AvalonPark,SouthChicago,CalumetHeights,JefferyManor,EastSide,Southdeering,Empty,Freeform99","http://experimental-instruments.com/ChicagoNeighbor.html","Geography-City","Sorted"]
[49,"ChicagoSkyline",26,"111SWacker,900NMichigan,AT&TCorporateCenter,BlueCross&BlueShieldTower,ChaseTower,ChicagoBoardofTrade,ChicagoTitle&Trust,CNAPlaza,DelayCenter,Freeform21,Freeform22,Freeform28,Freeform3,Freeform4,IBMPlaza,JohnHancockCenter,KluczynskiFederalCenter,LeoBumettBuilding,MetropolitanCenter,MidContinentalPlaza,OnePrudentialPlaza,ParkTower,R.R.DonnelleyBuilding,Smurfit-StoneBuilding,TheHeritage,ThreeFirstNationalPlaza","http://experimental-instruments.com/ChicagoSkyline.html","Geography-City","Sorted","Student"]
[50,"Cincinnati",51,"WestPriceHill,Westwood,Northside,FayApts,EastWestwood,NorthFairmount,Millvale,SouthCumminsville,EastPriceHill,Sedamsville,Riverside,SaylerPark,SouthFairmount,MtAiry,CollegeHill,WintonHills,WintonPlace,Carthage,Freeform19,Roselawn,Clifton,CampWashington,PaddockHills,NorthAvondale,BondHill,LowerPriceHill,Queensgate,CUF,CentralBusinessDist,WestEnd,Freeform31,Heights,OvertheRhine,Corryville,MtAuburn,Freeform36,WalnutHills,PleasantRidge,KennedyHeights,Evanston,Madisonville,EastWalnutHills,OBryonville,Linwood,HydePark,Oakley,MtLookout,ColumbiaTusculum,California,MtWashington,EastEnd","http://experimental-instruments.com/Cincinnati1.html","Geography-City","Sorted","Student"]
[51,"CincySkyline",15,"3buildingstoleftofScripps,BetweenGAandOmriconTower,CarewTower,FifthThirdTower,FirstBuilding+Others,Freeform6,GreatAmericanTower,LeftofGreatAmericanTower,LeftOmriconTower,PaulBrownStadium,PNCTower,RightofScrippsTower,ScrippsTower,USBankBuilding+Others,WestEdgeofCity","http://experimental-instruments.com/CincySkyline.html","Geography-City","Sorted","Student"]
[52,"Cleveland",36,"BrooklynCentre,Buckeye-Shaker,Central,Clark-Fulton,Corlette,Cudell,Detroit-Shoreway,Downtown,Edgewater,EuclidGreen,Fairfax,ForestHills,Freeform4,Glenville,Goodrich-KirtlandPark,Hough,IndustrialValley,Jefferson,kamm'sCorner,Kinsman,LeeMiles,Mt.Pleasant,NorthBroadway,NorthCollinwood,OhioCity-NearWestSide,OldBrooklyn,Puritas-Longmead,SouthBroadway,SouthCollinwood,St.Claire-Superior,Stockyards,Tremont,Union-MilesPark,University,WestBlvd.,WoodlandHills","http://experimental-instruments.com/Cleveland.html","Geography-City","Sorted","Student"]
[53,"ColumbusNeighborhoods",27,"Clintonville,Downtown,Eastland/Brice,Eastmoor/WalnutRidge,FarEast,FarNorth,FarNorthwest,FarSouth,FarWest,Franklinton,Greenlawn/FrankRoad,HaydenRun,Hilltop,NearEast,NearNorth/University,NearSouth,Northeast,Northland,NorthLinden,Northwest,Rickenbacker,RockyFork-Blacklick,Southeast,SouthLinden,Westland,WestOlentangy,WestScioto","http://experimental-instruments.com/ColumbusNeighborhoods.html","Geography-City","Sorted","Student"]
[54,"ColumbusSkyline",9,"BuildingComplex1,BuildingComplex2,HuntingtonTower,LeVequeTower,OneNationwidePlaza,RhodesStateOfficeTower,ThreeNationwidePlaza,VernRiffeStateOfficeTower,WilliamGreenBuilding","http://experimental-instruments.com/ColumbusSkyline.html","Geography-City","Sorted","Student"]
[55,"Copenhagen",10,"Amager-ost,AmagerVest,Bispebjerg,Bronshoj-Husum,Kommune,Norre-bro,Oster-bro,Valby,Vanlose,Vester-bro","http://experimental-instruments.com/Copenhagen.html","Geography-City","Sorted","Student"]
[56,"COTAHeat",9,"Central,East,North,NorthEast,NorthWest,South,SouthEast,SouthWest,WestSide","http://experimental-instruments.com/CotaHeat.html","Geography-City","Sorted","Student"]
[57,"Dallas",17,"DowntownDallas,EastDallas,EastOakCliff,FairPark,FarNorthDallas,LakeHighlands,NorthDallas,NorthOakCliff,OakLawn,OuterEastDallas,OuterWestDallas,PleasantGrove,PrestonHollow,SouthernDallas,SouthOakCliff,WestDallas,WestDallas(Gerrymandered)","http://experimental-instruments.com/Dallas.html","Geography-City","Sorted","Student"]
[58,"Denver",75,"Regis,ChaffeePark,Globeville,Berkeley,Sunnyside,WestHighland,Highland,SloanLake,JeffersonPark,UnionStation,Auraria,WestColfax,VillaPark,SunValley,LincolnPark,BarnumWest,Barnum,Valerde,Westwood,AthmarPark,MarLee,RubyHill,HarveyPark,CollegeView,SouthPlatte,HarveyParkSouth,BearValley,FortLogan,Marston,ElyriaSwansea,Cole,Clayton,FivePoints,Whittier,Skyland,CityPark,Freeform39,CBD,NorthCapitolHill,CrocCenter,CapitolHill,CheesmanPark,CongressPark,Hale,Baker,Speer,CountryClub,CherryCreek,Belcaro,WashingtonPark,WashParkWest,CoryMerrill,Overland,PlattPark,Nocedale,University,UniversityPark,UniversityHills,SouthmoorPark,NorthEastParkHill,NorthParkHill,SouthParkHill,Montclair,EastColfax,Hilltop,WashingtonVirginiaVale,LowryField,Windsor,IndianCreek,VirginiaVillage,Goldsmith,Hampden,Kennedy,HampdenSouth,Stapleton","http://experimental-instruments.com/Denver.html","Geography-City","Sorted"]
[59,"EmoryCampus",186,"376z,379z,381z,377z,378z,33z,950z,940z,910z,970z,920z,900z,930z,990z,7901z,7810z,2440z,2580z,2581z,2430z,2420z,2422z,230z,7490z,7460z,1641z,8760z,8761z,8760Bz,1599z,1640z,1710z,700z,8510z,1515z,8785z,3235z,1525z,2192z,3030z,2020z,2125z,3190z,1330z,1522z,1518z,290z,1031z,500z,501z,502z,39z,103z,102z,1940z,1941z,1370z,36z,38z,6180z,5145z,3220z,1610z,3160z,1340z,1440z,6155z,3115z,1081z,3105z,3106z,3110z,3118z,6210z,6160z,6150z,6110z,6080z,35z,37z,1403z,6230z,6220z,3091z,1020z,1010z,3202z,280z,2172z,3203z,3271z,3270z,1400z,1402z,3262z,3050z,1900z,1751z,200z,1930z,3010z,3210z,1800z,1600z,3241z,3240z,2260z,3250z,3280z,1990z,3070z,3130z,3060z,3140z,1535z,1460z,1250z,1249z,1170z,1680z,1580z,1980z,1560z,1571z,1570z,2043z,1200z,800z,1830z,29z,1150z,2045z,2040z,2041z,1380z,1131z,1000z,1130z,3264z,3263z,2150z,2151z,1121z,2015z,2010z,1470z,1320z,360z,2240z,130z,350z,351z,90z,6500z,1720z,1722z,1721z,3261z,3260z,2030z,1707z,1715z,1753z,60z,1784z,1804z,3278z,1082z,1083z,1812z,1350z,1360z,70z,CliftonRoadz,LullwaterLakez,HoustonMillRoadz,NorthGatewoodRd.z,GatewoodDr.z,MichaelStreetz,AsburyCirclez,NorthDecaturRd.z,OxfordRd.z,DickeyDr.z,EagleRowz,FishburneDrivez,AsburyCircleEmoryz","http://experimental-instruments.com/EmoryCampus.html","Geography-City","Sorted"]
[60,"London",33,"Harrow,Brent,Barnet,Haringey,Camden,Islington,Westminster,KC,HF,Hackney,TowerHamlets,City,Southwark,Lewisham,Lambett,Wandsworth,Greenwich,Merton,Sutton,Kingston,Richmond,Ealing,Newham,Enfield,WalthamForest,Redbridge,BarkingandDagenham,Bexley,Croydon,Bromley,Havering,Hounslow,Hillingdon","http://experimental-instruments.com/London.html","Geography-City","Sorted"]
[61,"LosAngeles",85,"Sylmar,GranadaHills,PorterRanch,SanFernando,Chatsworth,Northridge,Reseda,Winnetka,CanogaPark,WestHills,NorthHills,MissionHills,Pacolma,LakeviewTerrace,ShadowHills,Sunland,SunValley,Tujunga,Arieta,PanoramaCity,WoodlandHills,Tarzana,LakeBalboa,VanNuys,NorthHollywood,Encino,ValleyGlen,ValleyVillage,ShermanOaks,PacificPalisades,Brentwood,Belair,StudioCity,BeverlyCreek,UniversalCity,Hollywood,Westwood,VA,SantaMonica,BeverlyHills,SanPedro,TerminIsland,Wilmington,HarborCity,Harbor,SouthLosAngeles,SoutheastLosAngeles,Watts,HydePark,MidWilshire,MidcityWest,WestLosAngeles,GriffithPark,MidCity,CentralCity,WestAdams,Sawtelle,MarVista,Venice,Crenshaw,JeffersonPark,LeimentPark,Palms,PlayaDelRey,PlayaVista,WestchesterLax,ElSoreno,BoyleHeights,CentralCityEast,KoreaTown,WeshireCenter,PicoUnion,TolucaLake,Westlake,SilverLake,EchoPark,GlassellPark,ChinaTown,EagleRock,HighlandPark,LincolnHeights,CypressPark,ByPark,MarPark,MarHeights","http://experimental-instruments.com/LosAngeles.html","Geography-City","Sorted"]
[62,"LowerManhattan",283,"UpperWestSide1,UpperWestSide10,UpperWestSide5,UpperWestSide2,UpperWestSide3,UpperWestSide4,UpperWestSide9,CentralPark1,UpperWestSide14,CentralPark2,UpperEastSide13,Yorkville9,Yorkville10,Yorkville8,Yorkville7,Yorkville6,UpperEastSide6,UpperEastSide5,UpperEastSide4,Yorkville4,Yorkville5,Yorkville3,Yorkville2,Yorkville1,UpperEastSide3,UpperEastSide2,UpperEastSide1,UpperEastSide12,UpperEastSide11,UpperEastSide10,UpperEastSide9,UpperEastSide8,UpperEastSide7,UpperEastSide21,UpperEastSide20,UpperEastSide19,UpperEastSide18,UpperEastSide17,UpperEastSide16,UpperEastSide15,UpperEastSide29,UpperEastSide28,UpperEastSide27,UpperEastSide26,UpperEastSide25,UpperEastSide24,UpperEastSide23,Midtown15,Midtown13,Midtown12,Midtown11,Midtown10,Midtown9,Midtown14,Midtown20,Midtown21,Midtown22,Midtown23,Midtown24,Midtown18,Midtown19,Midtown39,Midtown37,Midtown36,Midtown38,UpperWestSide19,UpperWestSide16,UpperWestSide15,UpperWestSide20,UpperWestSide17,UpperWestSide18,Midtown1,Midtown8,Midtown7,Midtown6,MurraryHill6,MurraryHill5,MurraryHill4,MurraryHill3,MurraryHill2,MurraryHill1,Gramercy6,Gramercy5,Gramercy4,Gramercy3,Gramercy2,Gramercy1,GarmentDistrict5,TheaterDistrict5,Midtown25,Midtown2,Midtown3,Midtown4,Midtown31,Midtown30,Midtown29,Midtown34,Midtown35,TheaterDistrict1,Chelsea12,Chelsea11,GarmentDistrict6,GarmentDistrict7,Chelsea7,Chelsea6,GarmentDistrict1,GarmentDistrict2,GarmentDistrict8,Chelsea3,Chelsea9,Chelsea8,Chelsea5,Chelsea4,Gramercy12,Gramercy11,Gramercy10,Gramercy9,Midtown26,TheaterDistrict4,Chelsea19,EastVillage11,EastVillage8,EastVillage15,EastVillage12,EastVillage10,EastVillage9,EastVillage14,EastVillage13,Midtown32,Midtown33,Midtown27,Midtown5,Midtown28,TheaterDistrict2,TheaterDistrict3,UpperWestSide6,UpperWestSide7,UpperWestSide8,UpperWestSide11,UpperWestSide13,UpperWestSide12,RooseveltIsland,Yorkville11,UpperEastSide14,UpperEastSide22,Midtown16,Midtown17,Chelsea20,Chelsea18,Chelsea17,Chelsea15,Chelsea16,Chelsea22,Chelsea21,Chelsea14,Freeform183,GarmentDistrict4,GarmentDistrict3,GarmentDistrict10,Chelsea2,Gramercy8,Chelsea1,Gramercy7,Chelsea13,Chelsea10,Midtown40,Queensborobridge,LittleItaly1,LittleItaly4,LittleItaly2,LittleItaly5,LittleItaly3,LittleItaly6,EastVillage3,EastVillage1,EastVillage7,EastVillage16,EastVillage2,EastVillage5,EastVillage6,EastVillage4,EastVillage17,EastVillage18,StuyvesantTown1,StuyvesantTown2,StuyvesantTown3,LowerEastSide9,LowerEastSide10,LowerEastSide11,LowerEastSide7,WestVillage14,WestVillage13,WestVillage5,WestVillage8,WashingtonSquare,WestVillage7,LowerEastSide6,LowerEastSide3,LowerEastSide8,LowerEastSide5,WilliamsburgeBridge,ChinaTown1,ChinaTown2,Freeform100,ManhattanBridge,LowerEastSide4,LowerEastSide1,LowerEastSide2,BrooklynBridge,WestVillage1,WestVillage3,WestVillage2,WestVillage4,WestVillage6,WestVillage9,WestVillage11,WestVillage12,WestVillage10,Soho1,Soho4,Soho2,Soho3,Soho5,Soho9,Soho10,Soho8,Soho11,Soho13,Soho14,Soho12,Soho17,Soho6,Soho15,Soho16,Soho7,Soho18,Tribeca1,Tribeca2,Tribeca7,Tribeca6,Tribeca4,Tribeca5,Tribeca3,CivicCenter2,CivicCenter3,CivicCenter1,FinancialDistrict1,FinancialDistrict2,FinancialDistrict3,FinancialDistrict8,FinancialDistrict5,FinancialDistrict4,FinancialDistrict6,FinancialDistrict7,FinancialDistrict17,FinancialDistrict12,FinancialDistrict10,FinancialDistrict11,FinancialDistrict16,BatteryParkCity,FinancialDistrict13,FinancialDistrict14,FinancialDistrict15,StatueofLiberty,EllisIsland,FinancialDistrict18,HollandTunnel,BrooklynBatteryTunnel,LincolnTunnel,QueensMidtownTunnel,Green1,Freeform273,Green3,Green4,Green5,Green6,Green8,Green11,Green9,Green10,Green12,Green13,Green14","http://experimental-instruments.com/LowerManhattan.html","Geography-City","Sorted"]
[63,"Milwaukee",15,"District9,District5,District2,District1,District7,District6,District3,District10,District15,Disctrict4,District8,District12,District14,District11,District13","http://experimental-instruments.com/Milwaukee1.html","Geography-City","Sorted","Student"]
[64,"Moscow",10,"Central,North,Northeast,NortheastCentral,Northwest,NorthwestCentral,South,Southeast,Southwest,WestCentral","http://experimental-instruments.com/Moscow.html","Geography-City","Sorted","Student"]
[65,"NewYorkCity",22,"Harlem,EastHarlem,MorningsideHeights,UpperEastSide,MidtownWest,TimesSquare,MidtownEast,GarmentDistrict,Chelsea,MurrayHill,Gramercy,StuyvesantTown,GreenwichVillage,EastVillage,Soho,LittleItaly,LowerEastSide,Tribeca,ChinaTown,FinancialDistrict,UpperWestSide,CentralPark","http://experimental-instruments.com/NewYorkCity.html","Geography-City","Sorted"]
[66,"NorthResidence",18,"BowenHouse,RaneyHouse,BuschHouse,TaylorTower,HalloranHouse,HouckHouse,BarrettHouse,HaverfieldHouse,HoustonHouse,JonesTower,NoskerHouse,BlackburnHouse,TorresHouse,DrackettTower,ArcherHouse,NortonHouse,MendozaHouse,ScottHouse","http://experimental-instruments.com/NorthResidence1.html","Geography-City","Sorted","Student"]
[67,"OSUCampus",11,"AcademicCore,Oval,SouthOval,NothCampus,SouthCampus,Stadiums,RPACArea,MedCampus,Union,ArtsArea,OffCampus","http://experimental-instruments.com/OSUCampus1.html","Geography-City","Sorted","Student"]
[68,"OSUOval",72,"E_1,E_2,E_3,N_1,N_10,N_11,N_3,N_4,N_5,N_6,NE_1,NE_10,NE_11,NE_12,NE_2,NE_3,NE_4,NE_5,NE_6,NE_7,NE_8,NE_9,NW_1,NW_10,NW_2,NW_3,NW_4,NW_5,NW_6,NW_7,NW_8,NW_9,S_1,S_2,SE_1,SE_10,SE_11,SE_12,SE_13,SE_14,SE_15,SE_16,SE_17,SE_18,SE_19,SE_2,SE_20,SE_21,SE_3,SE_4,SE_5,SE_6,SE_7,SE_9,SW_1,SW_11,SW_12,SW_13,SW_14,SW_15,SW_16,SW_17,SW_2,SW_3,SW_5,SW_6,SW_8,SW_9,Thompson,W_2,W_3,W_5","http://experimental-instruments.com/OSUOval.html","Geography-City","Sorted","Student"]
[69,"PittsburghNeighborhood",92,"Freeform4,Windgap,Sheraden,CraftonHeights,Espen,Freeform9,Elliot,BrightonHeights,PerryNorth,SummerHill,MarshallShadeland,Freeform15,Manchester,Freeform17,CentralNorthside,NorthShore,AlleghenyCenter,Fineview,PerrySouth,NorthviewHeights,SpringhillCityView,TroyHill,SpringGarden,EastCarnegie,Oakwood,Banksville,Beechview,WestEnd,Brookline,Overbrook,Carrick,St.Clair,Hays,NewHomestead,LincolnPlace,Westwood,Ridgemont,SouthShore,SouthsideFlats,BonAir,Arlington,SouthsideSlopes,DuquesneHeights,MountWashington,Allentown,Beltzhoover,Knoxville,CentralBusinessDistrict,LowerLawrenceville,NorthOakland,CentralOakland,SouthOakland,Lincoln-LemingtonBelmar,HomewoodNorth,EastHills,HomewoodSouth,PointBreezeNorth,PointBreeze,SwisshelmPark,GlenHazel,Hazelwood,Bloomfield,EastLiberty,Larimer,StripDistrict,Bluff,WestOakland,PolishHill,Crawford-Roberts,UpperHill,BedfordDwellings,TerraceVillage,MiddleHill,Greenfield,CentralLawrenceville,UpperLawrenceville,StantonHeights,Morningside,HighlandPark,Shadyside,SquirrelHillNorth,SquirrelHillSouth,Garfield,ChartiersCity,ArlingtonHeights,Mt.Oliver,RegentSquare,HomewoodWest,Friendship,HerrsIsland,EastAllegheny,AlleghenyWest","http://experimental-instruments.com/PittsburgNeighbor.html","Geography-City","Sorted"]
[70,"SanFrancisco",37,"Presidio,Marina,RussianHill,PresidioHeights,PacificHeights,OuterRichmond,Seacliff,InnerRichmond,GolderGatePark,OuterSunset,InnerSunset,HaightAshbury,WesternAddition,NorthBeach,TreasureIsland,NobHill,Chinatown,FinancialDistrict,DowntownCivicCenter,SouthofMarket,Mission,CastroUpperMarket,PotreroHill,Parkside,Lakeshore,OceanView,OuterMission,TwinPeaks,NoeValley,WestofTwinPeaks,DiamondHeights,GlenPark,CrockerAmazon,BernalHeights,Excelsior,VisitacionValley,Bayview","http://experimental-instruments.com/SanFrancisco.html","Geography-City","Sorted"]
[71,"Shanghai",19,"Baoshan,Changning,Chongming1,Chongming2,Chongming3,Chongming4,Fengxian,Freeform10,Hongkou,Huangpu,Jiading,Jingan,Jinshan,Minhang,Pudong,Putuo,Songjiang,Xuhui,Yangpu","http://experimental-instruments.com/Shanghai.html","Geography-City","Sorted","Student"]
[72,"StLouis",27,"BadenRiverview,WalnutPark,Arlington,Fairgrounds,BissellCollegeHill,HydePark,OldNorthStLouis,GrandPrarie,Cabanne,Yeatman,CentralBusinessDistrict,MidTown,Kingsbury,CentralWestEnd,Oakland,TowerGrove,Clifton,TheHill,ComptonHeights,LafayetteSquare,Soulard,BentonParK,Southwest,Morganford,Carondelet,MarquetteCherokee,OakHill","http://experimental-instruments.com/StLouis.html","Geography-City","Sorted"]
[73,"Strasbourg",15,"Centre,Cronenbourg,Elsau,Esplanade,Freeform19,Gare,Hauteplerre,Koenigshoffen,Meinau,MontagneVerte,Neudorf,Neuhof2,Orangerie,PortDuRhin,RobertsauWacken","http://experimental-instruments.com/Strasbourg.html","Geography-City","Sorted","Student"]
[74,"TaiPei",12,"Beitou,Daan,Datong,Freeform2,Nangang,Neihu,Songshan,Wanhua,Wenshan,Xinyi,Zhongshan,Zhongzheng","http://experimental-instruments.com/TaiPei.html","Geography-City","Sorted","Student"]
[75,"Tokyo",53,"Okutama,Hinohara,Ome,Hachioji,Mizuho,Hinode,Akiruno,Musa.,Ham.,Hi.,Fussa,Hino,Hig.,Akishima,Tac.,Kiy.,Kok.,Tama,Machida,Higa.,Kun.,Kodaira,Nis.,Inagi,Kog.,Nerima,Fuchu,Itabashi,Mus.,K.,Kita,Chofu,Suginami,Adachi,Mitaka,Katsushika,Setagaya,edogawa,Ara.,Ota,Koto,Freeform45,Sum.,Bun.,Shi.,Toshima,Taito,Meg.,C.,Shinjuku,Minato,Shib.,Chi.","http://experimental-instruments.com/Tokyo1.html","Geography-City","Sorted","Student"]
[76,"Anhui",16,"Anqing,Bengbu,Chaohu,Chizhou,Chuzhou,Fuyang,Haozhou,Hefei,Huainan,Huangshan,Luan,Maanshan,Suzhou,Tongling,Wuhu,Xuancheng","http://experimental-instruments.com/Anhui.html","Geography-China","Sorted","Student"]
[77,"Guangdong",21,"Qingyuan,Zhaoqing,Guangzhou,Zhuhai,Zhongshan,Foshan,Shenzhen,Dongguan,Jiangmen,Yunfu,Shaoguan,Heyuan,Huizhou,Meizhou,Chaozhuo,Maoming,Shanwei,Jieyang,Shantou,Yangjiang,Zhanjiang","http://experimental-instruments.com/Guangdong1.html","Geography-China","Sorted","Student"]
[78,"Henan",18,"Anyang,Hebi,Jiaozuo,Jiyuan,Kaifeng,Luohe,Luoyang,Nanyang,Pingdingshan,Puyang,Sanmenxia,Shangqiu,xinxiang,Xinyang,Xuchang,Zhengzhou,Zhoukou,Zhumadian","http://experimental-instruments.com/Henan1.html","Geography-China","Sorted","Student"]
[79,"Jiangsu",14,"Xuzhou,Lianyungang,Suqian,Huaian,Yancheng,Yangzhou,Nanjing,Zhenjiang,Taizhou,Nantong,Shanghai,Changzhou,Wuxi,Suzhou","http://experimental-instruments.com/Jiangsu1.html","Geography-China","Sorted","Student"]
[80,"Liaoning",14,"Anshan,Benxi,Chaoyang,Dalian,Freeform10,Freeform17,Freeform18,Fushun,Fuxin,Liaoyang,oanjin,Shenyang,Tieling,Yingkou","http://experimental-instruments.com/Liaoning.html","Geography-China","Sorted","Student"]
[81,"Shanxi",11,"Datong,Shuozhou,Xinzhou,Lvliang,Taiyuan,Yangquan,Jinzhong,Linfen,Changzhi,Jincheng,Yuncheng","http://experimental-instruments.com/Shanxi1.html","Geography-China","Sorted","Student"]
[82,"Shenzhen",10,"Baoan,Guangming,Longhua,Nanshan,Futian,Luohu,Yantian,Dapeng,Longgang,Pingshan","http://experimental-instruments.com/Shenzhen1.html","Geography-China","Sorted","Student"]
[83,"Airplane2",29,"Chassis,Cockpit,Freeform11,Freeform24,Freeform25,Freeform28,Freeform42,Jet,Tail2,Window10,Window11,Window12,Window13,Window16,Window18,Window19,Window2,Window20,Window21,Window22,Window3,Window4,Window5,Window6,Window7,Window8,Window9,Wing1,Wing2","http://experimental-instruments.com/Airplane2.html","Blueprint-Item","Sorted"]
[84,"AirplaneProts",14,"1P_Pro,1P_Body,1P_Cabin,2P_Tail,1P_FWheel,2P_Body,2P_Cabin,2P_Pro,2P_FWheel,1P_Tail,2P_BWheel,Freeform15,1P_Wing,2P_Wing","http://experimental-instruments.com/AirplaneProts.html","Blueprint-Item","Sorted"]
[85,"AWingStarfighter",9,"Cockpit,ComputerSystem,ConcussionMissile,Engine,LaserCannon,LongRangeSensor,LowerWingStabilizer,StarfighterBody,UpperWingStabilizer","http://experimental-instruments.com/AWingStarfighter.html","Blueprint-Item","Sorted","Student"]
[86,"Boeing",295,"1A,1C,1D,1F,1G,1J,2A,2C,2D,2F,2G,2J,3A,3C,3D,3F,3G,3J,4A,4C,4D,4F,4G,4J,5A,5C,10A,10C,10D,10F,10G,10J,11A,11C,11D,11F,11G,11J,12A,12C,12D,12F,12G,12J,13A,13C,13D,13F,13G,13J,30A,30B,30C,30D,30E,30F,30G,30H,30J,31A,31B,31C,31D,31E,31F,31G,31H,31J,32A,32B,32C,32D,32E,32F,32G,32H,32J,33A,33B,33C,33D,33E,33F,33G,33H,33J,34A,34B,34C,34D,34E,34F,34G,34H,34J,35A,35B,35C,35D,35E,35F,35G,35H,35J,36A,36B,36C,36D,36E,36F,36G,36H,36J,37A,37B,37C,37D,37E,37F,37G,37H,37J,38A,38B,38C,38D,38E,38F,38G,38H,38J,39A,39B,39C,39D,39E,39F,39G,39H,39J,40A,40B,40C,40D,40E,40F,40G,40H,40J,45A,45B,45C,45D,45E,45F,45G,45H,45J,46A,46B,46C,46D,46E,46F,46G,46H,46J,47A,47B,47C,47D,47E,47F,47G,47H,47J,48A,48B,48C,48D,48E,48F,48G,48H,48J,49A,49B,49C,49D,49E,49F,49G,49H,49J,50A,50B,50C,50D,50E,50F,50G,50H,50J,51A,51B,51C,51D,51E,51F,51G,51H,51J,52A,52B,52C,52D,52E,52F,52G,52H,52J,53A,53B,53C,53D,53E,53F,53G,53H,53J,54A,54B,54C,54D,54E,54F,54G,54H,54J,55A,55B,55C,55D,55E,55F,55G,55H,55J,56A,56B,56D,56E,56F,56H,56J,57A,57B,57H,57J,41D,41E,41F,44A,44B,44C,44G,44H,44J,MensRoom1,WomensRoom1,MensRoom2,WomensRoom2,MensRoom4,WomensRoom4,MensRoom3,WomensRoom3,MensRoom5,WomensRoom5,MensRoom6,WomensRoom6,FoodStorage1,FoodStorage3,FoodStorage2,FoodStorage4,FoodStorage5,RightExit1,LeftExit1,RightExit2,LeftExit2,RightExit3,LeftExit3,RightExit4,LeftExit4,RightExit5,LeftExit5","http://experimental-instruments.com/Boeing.html","Blueprint-Item","Sorted"]
[87,"Camera",28,"CMOS,FnButton,HandleBar,HandleTop,HotShoe,HotShoesCover,ISOPanel,LeftHole,LeftRing,Lense,LenseHole,LenseRelease,Light,LightSensor,LowerBody,ModePanel1,ModePanel2,ModePanel3,RecButton,RightHole,RightRing,ShutterButton,UpperBody,ViewFinder_L1,ViewFinder_L2,ViewFinder_Main,ViewFinder_R,WheelFrame","http://experimental-instruments.com/Camera.html","Blueprint-Item","Sorted","Student"]
[88,"Car_Model1",157,"Back_Window,Side_FrontTire,Side_RearTire,Front_Windshield,Front_Roof,Front_RMirror,Front_HoodBump,Front_Nose,Front_Hood,Front_TireR,Front_UnderMid,Front_Exhaust,Front_UnderR,Top_HoodHump,Top_Roof,Top_Windshield,Top_WiperArea,Side_RearHubcap,Side_FrontHubcap,Side_Windshield,Side_Mirror,Side_HSide,Side_DriverDoorUpper,Side_DriverWindow,Side_Rim2,Side_Rim1,Side_Roof,Side_WindowDivider,Side_PassengerWindow,Side_Handle,Side_PassLower,Side_PassUpper,Side_PassTrim,Side_MidUnder,Side_FootRidge,Top_WinDividerR,Top_FRidgeR,Side_GasTank,Side_BackWindow,Side_PumpArea,Side_DriverDoorLower,Side_Wedge,Top_FWindowR,Top_Trim1R,Top_Trim2R,Top_PassWindowR,Top_PassTrimR,Top_DoorR,Top_MirrorR,Top_PassUpperR,Top_HSideR,Top_BumperR,Top_Hood,Top_FWindowL,Top_Trim1L,Top_Trim2L,Top_PassWindowL,Top_PassTrimL,Top_DoorL,Top_MirrorL,Top_PassUpperL,Top_HSideL,Top_BumperL,Top_WinDividerL,Top_FRidgeL,Top_LightR,Top_LightL,Top_Nose,Top_RearWedgeR,Top_RearWedgeL,Side_RearWedge,Top_BackWindow,Side_FrontBumpEdge,Side_HoodBump,Side_Hood,Side_TopLight,Side_BumperFront,Side_Nose,Side_FrontUnder,Side_LightHousing,Side_LowLight,Front_LMirror,Front_TIreL,Front_UnderL,Front_Rim2L,Front_Trim1L,Front_WindowL,Side_TrunkTop,Side_TrunkBack,Back_MirrorL,Back_RimL,Top_RBumperR,Back_RearWedgeL,Back_GTankL,Side_RearTrunkCab,Front_HSideR,Front_HSide2R,Front_HSideFR,Front_LightUpperR,Side_BumperRear,Side_RearUnder,Top_GTankR,Top_PumpR,Top_TrunkBackR,Top_RBumperL,Top_GTankL,Top_PumpL,Top_TrunkBackL,Top_Trunk,Top_TrunkCab,Back_Light2L,Back_TrunkL,Back_Light1L,Back_TireL,Back_ExhaustL,Back_ExHoleL,Back_Tow,Back_RearU1L,Back_RearU2L,Front_HousUpR,Front_BumperR,Front_FUnderR,Front_LHousingR,Front_LowerLightR,Front_HSideFL,Front_UpperLightL,Front_BumperL,Front_FUnderL,Front_LHousingL,Front_LowerLightL,Front_HSideL,Front_HSide2L,Front_HousUpL,Back_MirrorR,Back_RimR,Back_RearWedgeR,Back_GTankR,Back_Light2R,Back_TrunkR,Back_Light1R,Back_TireR,Back_ExhaustR,Back_ExHoleR,Back_RearU1R,Back_RearU2R,Back_Roof,Back_TrunkBack,Back_TrunkLock,Back_License,Back_LicSideL,Back_LicSideR,Back_Under,Back_TruckCab,Back_TrunkTop,Front_Trim2R,Front_Trim1R,Front_WindowR","http://experimental-instruments.com/Car1.html","Blueprint-Item","Sorted"]
[89,"Computer",83,"'a',apostrophe,'b',backquote,backslash,backspace,'c',capslock,comma,'d',dash,delete,downarrow,'e',eight,enter,equals,escape,escape,'f','f1','f10','f11','f12','f2','f3','f4','f5','f6','f7','f8','f9',five,fn,four,'g','h','i','j','k','l',leftalt,leftarrow,leftbase,leftbracket,leftcontrol,leftshift,'m','n',nine,'o',one,'p',period,'q','r',rightalt,rightarrow,rightbase,rightbracket,rightcontrol,rightshift,'s',screen,semi-colon,seven,six,slash,space,'t',tab,three,touchpad,two,'u',uparrow,'v','w',windows,'x','y','z',zero","http://experimental-instruments.com/Computer.html","Blueprint-Item","Sorted"]
[90,"Flight",25,"Cockpit,Freeform16,Freeform17,Freeform24,Front,Left_Engine1,Left_Engine2,Left_Horizontal_Stabilizer,Left_Wing,LeftEngine1,LeftEngine2,LeftWheel,LeftWing,Main_Body-Fuselage,Right_Engine1,Right_Engine2,Right_Horizontal_Stabilizer,Right_Wing,RightEngine1,RightEngine2,RightWheel,RightWing,Stabilizer,Vertical_Stabilizer,Wheels","http://experimental-instruments.com/Flight.html","Blueprint-Item","Sorted","Student"]
[91,"Jet1",7,"lefttail,body,lefthud,righthud,righttail,rightwing,leftwing","http://experimental-instruments.com/Jet1.html","Blueprint-Item","Sorted"]
[92,"KeyboardMap",61,"A_Key,Apostrophe_Key,B_Key,BackSlash_Key,Backspace_Key,C_Key,CapsLock_Key,CloseBracket_Key,Comma_Key,D_Key,Dash_key,E_Key,Eight_Key,Enter_Key,EqualSign_Key,F_Key,Five_key,Four_Key,G_Key,H_Key,I_Key,J_Key,K_Key,L_Key,LeftAlt_Key,LeftControl_Key,LeftShift_Key,LeftWindows_Key,M_Key,Menu_Key,N_Key,Nine_Key,O_Key,One_Key,OpenBracket_Key,P_Key,Period_Key,Q_Key,R_Key,RightAlt_Key,RightControl_Key,RightShift_Key,RightWindows_Key,S_Key,SemiColon_Key,Seven_Key,Six_Key,Slash_Key,SpaceBar_Key,T_Key,Tab_Key,Three_Key,Tilde_Key,Two_Key,U_Key,V_Key,W_Key,X_Key,Y_Key,Z_Key,Zero_Key","http://experimental-instruments.com/KeyboardMap.html","Blueprint-Item","Sorted"]
[93,"Lamborghini",22,"BackBody,BackBumper,BackEngine,BackLeftQuarterPanel,BackLeftWindow,BackofTop,BackRIghtQuarterPanel,Freeform25,GasTank,Hood,LeftDoor,LeftFrontBumper,LeftHeadlight,LeftSideMirror,LeftWindshield,RightDoor,RightFrontBumper,RightHeadlight,RightSideMirror,RightWindshield,Roof,Windshield","http://experimental-instruments.com/Lamborghini.html","Blueprint-Item","Sorted","Student"]
[94,"Mask_Hockey",8,"Surround,RSecure,TopSecure,Cap,LSecure,ShieldR,Chin,ShieldL","http://experimental-instruments.com/HockeyMask.html","Blueprint-Item","Sorted"]
[95,"PackageVolatility",9,"SideX,SideY,SideZ,AngVelVarX,AngVelVarY,AngVelVarZ,AccelVariationX,AccelVariationY,AccelVariationZ","http://experimental-instruments.com/PackageVolatility.html","Blueprint-Item","Sorted"]
[96,"RocketShip",21,"Tip,Guidance,Payload,Fuel,Oxidant,JetNozzle,TopFin,BottomFin,RegenerativeCooling,PropellantNozzles,CombustionChamber,PropellantInjectionBottomPump,Freeform28,TurbineGasGenerator,Freeform29,Pipe1,Pipe3,Turbine,Pipe2,PropellantInjectionTopPump,Shell","http://experimental-instruments.com/RocketShip.html","Blueprint-Item","Sorted"]
[97,"RotaryPhone",29,"_0,_1,_2,_3,_4,_5,_6,_7,_8,_9,bottom,c_1,c_2,c_3,c_4,click,ear,front,front_edge,front_meets_bottom,handle,left_rest_side,left_rest_top,left_slope,mouth,rest,right_rest_side,right_rest_top,right_slope","http://experimental-instruments.com/Rotary.html","Blueprint-Item","Sorted","Student"]
[98,"Shoe",7,"Ankle,Heel,Sole,Stripe1,Stripe2,Stripe3,Toe","http://experimental-instruments.com/Shoe.html","Blueprint-Item","Sorted"]
[99,"Shoe2",14,"AdidasLettering,BackPlate,Foam,FrontStrip,Grid,LaceHoles,Sole,Stripe1,Stripe2,Stripe3,Tab,Toe,Tongue,Upper","http://experimental-instruments.com/Shoe2.html","Blueprint-Item","Sorted","Student"]
[100,"Wristwatch",13,"Hand_hour,Hand_minute,Tick_12,Tick_3,Tick_6,Tick_9,Watch_bottom_casing,watch_dial,watch_face,watch_rim,Watch_top_band,Watch_top_band,Watch_top_casing","http://experimental-instruments.com/Wristwatch.html","Blueprint-Item","Sorted","Student"]
[101,"BaseballSpray",17,"CenterField,UptheMiddle,ThirdBaseFoulLine,Shortstop,SecondBase,RightInfieldHole,RightInfield,RightFieldFoulLine,RightField,Right-CenterField,LeftInfieldHole,LeftInfield,LeftFieldFoulLine,LeftField,Left-CenterField,HomePkate,FirstBaseFoulLine","http://experimental-instruments.com/BaseballSpray.html","Blueprint-Area","Sorted","Student"]
[102,"Building2",37,"Freeform21,InnerBase,InnerMain,InnerMidBase,InnerMidTOp,InnerSpire,InnerTop,OuterBase,OuterMain,OuterMidTop,OuterSpire,OutsideMidBase,Window1,Window10,Window11,Window12,Window13,Window14,Window15,Window16,Window17,Window18,Window19,Window2,Window20,Window21,Window22,Window23,Window24,Window25,Window3,Window4,Window5,Window6,Window7,Window8,Window9","http://experimental-instruments.com/Building2.html","Blueprint-Area","Sorted","Student"]
[103,"CitiFieldMets",199,"Freeform5,Suites,CocaColaLanding,OutField,PorscheGrill,visitorsDugout,clubhouse,WarningTrack,BaseballDiamond,infield,Pitcher'sMound,Bullpen,Freeform126,Freeform206,Freeform185,Freeform183,Freeform167,Freeform133,Freeform117,SRO,FirstBaseLine,ThirdBaseLine,BroadcastingBooth,Hat,532,531,530,529,528,527,526,525,524,523,522,521,520,519,518,517,516,515,514,513,512,511,510,509,508,507,506,505,504,503,502,501,401,402,403,404,405,406,407,408,409,410,411,412,413,414,415,416,417,418,419,420,421,422,423,424,425,426,427,428,429,430,431,432,433,434,435,436,437,301,302,303,304,305,306,307,308,309,310,311,312,313,314,315,316,317,318,319,320,321,322,323,324,325,326,327,328,329,330,333,332,334,335,336,337,338,339,139,138,137,136,135,134,132,131,130,129,128,127,126,125,124,123,122,121,120,119,118,117,116,114,113,112,111,110,109,107,108,106,105,104,103,102,101,143,142,140,141,10,9,8,7,6,4,3,2,1,115,19,18,17,16,15,14,13,12,11,538,537,536,534,533,GiantVideoboard,Scoreboard,535","http://experimental-instruments.com/CitiFieldMets.html","Blueprint-Area","Sorted","Student"]
[104,"Hospital",168,"Receiving1,Receiving2,Receiving3,Receiving4,Receiving5,Receiving6,Receiving7,Receiving9,Receiving8,Receiving12,Receiving10,Receiving11,Receiving13,Receiving22,Receiving23,Receiving14,Receiving15,ReceivingLobby,Receiving17,Receiving18,Receiving19,North1,North2,North3,North4,Receiving20,Receiving21,North5,North7,North8,North10,North6,Norht9,North13,North14,EmergencyLobby,Emergency16,Emergency3,Emergency4,Emergency5,Emergency6,Emergency8,Emergency7,Emergency9,Emergency10,Emergency11,Emergency12,Emergency13,NurseControlStation,Nurse1,Nurse2,Nurse3,Nurse4,Nurse5,Nurse6,Nurse7,South1,South2,South3,South4,South5,South6,South7,South8,South9,South10,South11,South12,South27,South13,South14,South28,South15,South16,South17,South18,South19,South20,South29,South21,South23,South22,South24,South25,South30,South26,West1,West2,West3,West4,West5,West6,West7,West8,West9,West10,West11,West12,West13,West14,West15,West17,West18,West19,West20,West21,West22,West23,West24,West25,West26,West27,West28,West29,West30,West31,West32,West33,West34,West35,WestLobby,Entrance1,Entrance2,Entrance3,Entrance4,Entrance5,Entrance6,Entrance7,Entrance8,Entrance9,Entrance10,Entrance11,Entrance12,Entrance13,Entrance14,Entrance15,EntranceLobby,Entrance16,Entrance17,Entrance19,Entrance18,Central1,Central2,Central3,Central4,Central5,Central6,Central7,Central8,Central9,Central10,Central11,Central12,Central13,Central14,Central15,CentralLobby,Central16,Central17,Central20,Central21,Central22,EntranceHallway,PatientHallway,StaffHallway,AmbulanceHallway,PublicEmergencyHallway,ConcurrentHallway","http://experimental-instruments.com/Hospital.html","Blueprint-Area","Sorted"]
[105,"KMS_Floorplan",122,"KMS_101,KMS_103,KMS_106_Music,KMS_106A,KMS_109,KMS_110,KMS_111,KMS_112,KMS_113,KMS_114_Art,KMS_114_ArtCloset1,KMS_200,KMS_201,KMS_202,KMS_203,KMS_204,KMS_205,KMS_206,KMS_207,KMS_208,KMS_208210_Annex,KMS_209,KMS_210,KMS_211,KMS_212,KMS_212214_Annex,KMS_213,KMS_214,KMS_215,KMS_216,KMS_Alcove1,KMS_Auditorium,KMS_AuditoriumBelow,KMS_AuditoriumLobby,KMS_Balcony,KMS_Cafeteria,KMS_Cafeteria_Annex1,KMS_Counselor1,KMS_Custodial1,KMS_Elevator1,KMS_Elevator2,KMS_ESL,KMS_GuestDesk,KMS_Gymnasium,KMS_GymnasiumBelow,KMS_IntSpec,KMS_Kitchen,KMS_Kitchen_Annex1,KMS_Kitchen_Annex2,KMS_Kitchen_Annex3,KMS_Kitchen_Annex4,KMS_Kitchen_Annex5,KMS_Kitchen_Annex6,KMS_Kitchen_Annex7,KMS_Lobby,KMS_MainHall1,KMS_MainHall2,KMS_MainOfficeSpace,KMS_MediaCenter,KMS_MediaCenterBelow,KMS_Music_Annex1,KMS_Music_Annex2,KMS_Music_Annex3,KMS_Music_Annex4,KMS_OfficeHall,KMS_OfficeLobby,KMS_P,KMS_Principal,KMS_Receiving,KMS_S,KMS_StaffLounge,KMS_Stage,KMS_Stage_Annex1,KMS_Stage_Annex2,KMS_Stage_Annex3,KMS_StageBalcony1,KMS_StageBalcony2,KMS_StageLoft,KMS_Stairs_Cafeteria,KMS_Stairs_Exterior1,KMS_Stairs_Exterior2,KMS_Stairs_Exterior3,KMS_Stairs_Interior1,KMS_Stairs_Interior2,KMS_Stairs_Interior3,KMS_Stairs_Interior4,KMS_Stairs_Interior5,KMS_Stairs_Kitchen,KMS_TeacherPrep,KMS_Unspecifid24,KMS_Unspecified1,KMS_Unspecified10,KMS_Unspecified11,KMS_Unspecified12,KMS_Unspecified13,KMS_Unspecified14,KMS_Unspecified15,KMS_Unspecified16,KMS_Unspecified17,KMS_Unspecified18,KMS_Unspecified19,KMS_Unspecified2,KMS_Unspecified20,KMS_Unspecified21,KMS_Unspecified22,KMS_Unspecified23,KMS_Unspecified25,KMS_Unspecified26,KMS_Unspecified27,KMS_Unspecified28,KMS_Unspecified29,KMS_Unspecified3,KMS_Unspecified30,KMS_Unspecified31,KMS_Unspecified32,KMS_Unspecified33,KMS_Unspecified4,KMS_Unspecified5,KMS_Unspecified6,KMS_Unspecified7,KMS_Unspecified8,KMS_Unspecified9","http://experimental-instruments.com/KMS_Floorplan.html","Blueprint-Area","Sorted"]
[106,"OhioUnion",15,"BenAndArleneRothLounge,Freeform12,Freeform16,Freeform7,Freeform8,GreatRoom,Hallway1,Hallway2,MulticulturalCenter,OSUPublicSafety,PerformanceHall,UnionMarket,UniversityBookstore,USBank,USBankTheatre","http://experimental-instruments.com/OhioUnion.html","Blueprint-Area","Sorted","Student"]
[107,"Stadium",151,"513A,514A,515A,516A,543A,542A,541A,540A,512A,511A,510A,509A,508A,547A,548A,546A,545A,544A,507A,506A,505A,504A,553A,554A,501A,503A,502A,552A,551A,550A,549A,526A,527A,528A,529A,530A,517A,518A,519A,520A,521A,522A,523A,524A,525A,539A,538A,537A,531A,532A,533A,534A,535A,536A,201A,200A,200B,256A,255A,103A,102A,101A,140A,139A,104A,119A,120A,121A,122A,123A,226A,227A,229A,230A,231A,232A,225A,124A,202A,254A,203A,204A,253A,252A,110A,111A,112A,113A,133A,132A,131A,130A,109A,114A,108A,115A,105A,118A,107A,116A,106A,117A,134A,129A,126A,136A,135A,128A,137A,127A,138A,125A,346A,344A,343A,345A,342A,341A,347A,351A,349A,350A,348A,313A,314A,312A,311A,315A,310A,316A,340A,339A,338A,337A,336A,234A,233A,309A,205A,308A,206A,320A,319A,321A,318A,317A,323A,224A,Field,HomeSide,AwaySide","http://experimental-instruments.com/Stadium.html","Blueprint-Area","Sorted"]
[108,"TallahasseeMall",131,"120s,203s,269s,130s,220s,400s,525s,520s,515s,556s,710s,1102b,1102a,600s,260s,1150s,2000s,1000s,412s,303s,310s,230s,240s,246s,248s,650s,380s,360s,350s,641s,1090s,1072s,1190s,830s,930s,902s,901s,810s,560s,551s,348s,648s,332s,402s,401s,291s,292s,408s,266s,414s,416s,1160s,1104s,1106s,1052s,1164s,1178s,1030s,2048s,2076s,Bathroom1,Freeform70,FoodCourt2,FoodCourt3,FoodCourt4,FoodCourt5,FoodCourt6,FoodCourt7,FoodCourt8,FoodCourt9,FoodCourt10,FoodCourt11,FoodCourt12,Kiosk1,Kiosk2,Kiosk3,Kiosk5,Kiosk6,kiosk34,Kiosk8,Kiosk9,Kiosk10,Kiosk11,321s,294s,295s,Bathroom2,Bathroom3,1044s,238s,393s,363s,427s,690s,523s,550s,234s,FoodCourt13,2094s,2052s,2058s,2060s,2064s,2084s,2090s,Booth1,Booth2,Booth3,Booth4,Booth6,Booth7,External1,330s,540s,kiosk4,676s,372s,370s,358s,336s,320s,249s,250s,kiosk12,External2,kiosk125,kiosk13,kiosk14,kiosk15,kiosk16,309s","http://experimental-instruments.com/TallahaseeMall.html","Blueprint-Area","Sorted"]
[109,"TheShoe",164,"10A,10AA,10B,10BX,10C,11A,11AA,11C,11D,11D-BX,12A,12AA,12B,12BX,12C,13A,13AA,13C,13D,14A,14AA,14B,14BX,14C,15A,15AA,15C,15D,16A,16AA,16B,16BX,16C,17A,17AA,17C,17D,17D-BX,18A,18AA,18B,18BX,18C,19AA,19C,19D,1A,1B,1BX,1C,1CL,20A,20B,20BX,20C,21AA,21C,21D,21D-BX,22A,22AA,22B,22BX,22C,23A,23AA,23C,23D,24A,24AA,24B,24BX,24C,25A,25AA,25C,25D,25D-BX,26A,26AA,26B,26BX,26C,27A,27AA,27C,27D,28A,28AA,28B,28BX,28C,29A,29AA,29C,29D,2A,2B,2BX,2C,2CL,30A,30AA,30C,31A,31B,32A,32B,33A,33B,34A,34B,35A,35B,36A,36B,37A,37AA,37B,38A,38AA,38B,39A,39AA,39B,3A,3AA,3B,3BX,3C,3CL,4A,4AA,4B,4BX,4C,4CL,5A,5AA,5C,5CL,6A,6AA,6B,6BX,6C,7A,7AA,7C,8A,8AA,8B,8BX,8C,9A,9AA,9C,AwayBench,Field,Freeform147,HomeBench,LogeBox,PressBox&Suite3,Suite1&2","http://experimental-instruments.com/TheShoe.html","Blueprint-Area","Sorted","Student"]
[110,"ArcDeTriomphe",62,"2ndTopLine,3rdhorizontalline,4thhorizontalline,5thhorizontalline,BottomLeftArchPart,BottomRightArchPart,Freeform20,Freeform52,Freeform53,Freeform54,Freeform57,Freeform69,Freeform78,LeftArch,LeftBottomBlock,LeftbottomLine,LeftCenterArch,LeftMiddleHorizontalLine,LeftMiddleHorizontalLine2,MainArch,MainBottomLine,MiddleTopBlock1,MiddleTopBlock2,MiddleTopBlock3,MiddleTopBlock4,RightArch,RightBottomBlock,RightBottomLine,RightCenterArch,RightMiddleHorizontalLine,TopArch,TopDesignpt1a,TopDesignpt1b,TopDesignpt1c,TopDesignpt1d,TopDesignpt1e,TopDesignpt1g,TopDesignpt2a,TopDesignpt2b,TopDesignpt2c,TopDesignpt2d,TopDesignpt2e,TopDesignpt2f,TopDesignpt2g,TopDesignpt3a,TopDesignpt3b,TopDesignpt3c,TopDesignpt3d,TopDesignpt3e,TopDesignpt3f,TopDesignpt4a,TopDesignpt4b,TopDesignpt4d,TopDesignpt4e,TopDesignpt4f,TopDesignpt5a,TopDesignpt5b,TopDesignpt5c,TopDesignpt5d,TopDesignpt5f,TopDesignpt5g,TopDesignpt5h","http://experimental-instruments.com/ArcDeTriumph.html","Artwork","Sorted","Student"]
[111,"Brutus",12,"BlockO,Body,Hat,Head,HeadPiece,LeftArm,LeftEyePiece,Mouth,RightArm,RightArmPiece,RightEye,RightEyePiece","http://experimental-instruments.com/Brutus.html","Artwork","Sorted"]
[112,"EagleSalmon",93,"Freeform101,Freeform102,Freeform103,Freeform104,Freeform105,Freeform106,Freeform107,Freeform108,Freeform109,Freeform110,Freeform111,Freeform112,Freeform113,Freeform114,Freeform115,Freeform116,Freeform117,Freeform118,Freeform119,Freeform120,Freeform121,Freeform122,Freeform123,Freeform124,Freeform125,Freeform126,Freeform127,Freeform128,Freeform129,Freeform130,Freeform131,Freeform132,Freeform133,Freeform134,Freeform135,Freeform136,Freeform137,Freeform138,Freeform139,Freeform140,Freeform141,Freeform142,Freeform143,Freeform144,Freeform145,Freeform146,Freeform147,Freeform148,Freeform149,Freeform150,Freeform151,Freeform152,Freeform153,Freeform154,Freeform155,Freeform156,Freeform157,Freeform158,Freeform159,Freeform160,Freeform161,Freeform162,Freeform163,Freeform164,Freeform165,Freeform166,Freeform167,Freeform168,Freeform169,Freeform170,Freeform171,Freeform172,Freeform173,Freeform174,Freeform175,Freeform176,Freeform177,Freeform178,Freeform179,Freeform180,Freeform181,Freeform182,Freeform183,Freeform184,Freeform185,Freeform186,Freeform187,Freeform188,Freeform189,Freeform190,Freeform191,Freeform192,Freeform193","http://experimental-instruments.com/EagleSalmon.html","Artwork","Sorted"]
[113,"NapoleonD",5,"Hair&Shadow,LEye+Nose,LowerHighlight,REye&Lens,UpperHighlight","http://experimental-instruments.com/NapoleonD.html","Artwork","Sorted","Student"]
[114,"OSULogo",15,"Freeform18,Freeform22,Freeform24,Freeform26,Freeform28,Freeform30,Freeform32,Freeform34,Freeform36,Freeform38,Freeform40,Freeform42,Freeform44,Freeform46,Freeform49","http://experimental-instruments.com/OSULogo.html","Artwork","Sorted"]
[115,"Tiger",300,"Freeform10,Freeform11,Freeform12,Freeform13,Freeform14,Freeform15,Freeform16,Freeform17,Freeform18,Freeform19,Freeform20,Freeform21,Freeform22,Freeform23,Freeform24,Freeform25,Freeform26,Freeform27,Freeform28,Freeform29,Freeform30,Freeform31,Freeform32,Freeform33,Freeform34,Freeform35,Freeform36,Freeform37,Freeform38,Freeform39,Freeform40,Freeform41,Freeform42,Freeform43,Freeform44,Freeform45,Freeform46,Freeform47,Freeform48,Freeform49,Freeform50,Freeform51,Freeform52,Freeform53,Freeform54,Freeform55,Freeform56,Freeform57,Freeform58,Freeform59,Freeform60,Freeform61,Freeform62,Freeform63,Freeform64,Freeform65,Freeform66,Freeform67,Freeform68,Freeform69,Freeform70,Freeform71,Freeform72,Freeform73,Freeform74,Freeform75,Freeform76,Freeform77,Freeform78,Freeform79,Freeform80,Freeform81,Freeform82,Freeform83,Freeform84,Freeform85,Freeform86,Freeform87,Freeform88,Freeform89,Freeform90,Freeform91,Freeform92,Freeform93,Freeform94,Freeform95,Freeform96,Freeform97,Freeform98,Freeform99,Freeform100,Freeform101,Freeform102,Freeform103,Freeform104,Freeform105,Freeform106,Freeform107,Freeform108,Freeform109,Freeform110,Freeform111,Freeform112,Freeform113,Freeform114,Freeform115,Freeform116,Freeform117,Freeform118,Freeform119,Freeform120,Freeform121,Freeform122,Freeform123,Freeform124,Freeform125,Freeform126,Freeform127,Freeform128,Freeform129,Freeform130,Freeform131,Freeform132,Freeform133,Freeform134,Freeform135,Freeform136,Freeform137,Freeform138,Freeform139,Freeform140,Freeform141,Freeform142,Freeform143,Freeform144,Freeform145,Freeform146,Freeform147,Freeform148,Freeform149,Freeform150,Freeform151,Freeform152,Freeform153,Freeform154,Freeform155,Freeform156,Freeform157,Freeform158,Freeform159,Freeform160,Freeform161,Freeform162,Freeform163,Freeform164,Freeform165,Freeform166,Freeform167,Freeform168,Freeform169,Freeform170,Freeform171,Freeform172,Freeform173,Freeform174,Freeform175,Freeform176,Freeform177,Freeform178,Freeform179,Freeform180,Freeform181,Freeform182,Freeform183,Freeform184,Freeform185,Freeform186,Freeform187,Freeform188,Freeform189,Freeform190,Freeform191,Freeform192,Freeform193,Freeform194,Freeform195,Freeform196,Freeform197,Freeform198,Freeform199,Freeform200,Freeform201,Freeform202,Freeform203,Freeform204,Freeform205,Freeform206,Freeform207,Freeform208,Freeform209,Freeform211,Freeform212,Freeform213,Freeform214,Freeform215,Freeform216,Freeform217,Freeform218,Freeform219,Freeform220,Freeform221,Freeform222,Freeform223,Freeform224,Freeform225,Freeform226,Freeform227,Freeform228,Freeform229,Freeform230,Freeform231,Freeform232,Freeform233,Freeform234,Freeform235,Freeform236,Freeform237,Freeform238,Freeform239,Freeform240,Freeform241,Freeform242,Freeform243,Freeform244,Freeform245,Freeform246,Freeform247,Freeform248,Freeform249,Freeform250,Freeform251,Freeform252,Freeform253,Freeform254,Freeform255,Freeform256,Freeform257,Freeform258,Freeform259,Freeform260,Freeform261,Freeform262,Freeform263,Freeform264,Freeform265,Freeform266,Freeform267,Freeform268,Freeform269,Freeform270,Freeform271,Freeform272,Freeform273,Freeform274,Freeform275,Freeform276,Freeform277,Freeform278,Freeform279,Freeform280,Freeform281,Freeform282,Freeform283,Freeform284,Freeform285,Freeform286,Freeform287,Freeform288,Freeform289,Freeform290,Freeform291,Freeform292,Freeform293,Freeform294,Freeform295,Freeform296,Freeform297,Freeform298,Freeform299,Freeform300,Freeform301,Freeform302,Freeform303,Freeform304,Freeform305,Freeform306,Freeform307,Freeform308,Freeform309,Freeform310","http://experimental-instruments.com/Tiger.html","Artwork","Sorted"]
[116,"AngleMap",20,"AboveNeck,Back,Chest,LeftElbow,LeftKnee,LeftLowerArm,LeftLowerLeg,LeftShoulder,LeftSide,LeftUpperArm,LeftUpperLeg,Neck,RightElbow,RightKnee,RightLowerArm,RightLowerLeg,RightShoulder,RightSide,RightUpperArm,RightUpperLeg","http://experimental-instruments.com/Anglemap.html","Anatomy","Sorted"]
[117,"AngleMap2",10,"Back,LeftElbow,LeftKnee,LeftShoulder,LeftSide,Neck,RightElbow,RightKnee,RightShoulder,RightSide","http://experimental-instruments.com/Anglemap2.html","Anatomy","Sorted"]
[118,"Bird",20,"Back,Rump,Crown,Head,Eye,Nape,Throat,LowerBeak,UpperBeak,Tail,UppertailCoverts,Breast,Side,TopWing,Wing,Thigh,Belly,Backside,Undertailcoverts,Legs","http://experimental-instruments.com/Bird.html","Anatomy","Sorted"]
[119,"Body-Back",46,"Skull_LeftBackUpper,Shoulder_LeftBack,Neck_LeftBack,Skull_LeftBackLower,Back_LeftMid,Back_LeftLower,Bicep_LeftBack,Elbow_LeftBack,Hand_LeftBack,Buttox_Left,Back_LeftSide,Side_LeftBack,Thigh_BackLOuter,Thigh_BackLInner,Forearm_LeftBack,Wrist_LeftBack,Knee_LeftBack,Calf_Left,Shin_LeftBack,Heel_LeftOuter,Foot_LeftOuter,Ankle_LeftOuter,Ear_LeftBack,Skull_RightBackUpper,Shoulder_RightBack,Neck_RightBack,Skull_RightBackLower,Back_RightMid,Back_RightLower,Bicep_RightBack,Elbow_RightBack,Hand_RightBack,Buttox_Right,Back_RightSide,Side_RightBack,Thigh_BackROuter,Thigh_BackRInner,Forearm_RightBack,Wrist_RightBack,Knee_RightBack,Calf_Right,Shin_RightBack,Heel_RightOuter,Foot_RightOuter,Ankle_RightOuter,Ear_RightBack","http://experimental-instruments.com/BodyBack.html","Anatomy","Sorted"]
[120,"Body-Front",46,"Neck_RightFront,Neck_LeftFront,Skull_LeftFront,Nose,Eye_Left,Jaw,Ear_LeftFront,Mouth,Skull_RightFront,Eye_Right,Ear_RightFront,Groin,Pec_Left,Shoulder_LeftFront,Bicep_LeftFront,Abs_Left,Side_LeftFront,ForeArm_LeftFront,Wrist_LeftFront,Hand_LeftFront,Elbow_LeftInner,Thigh_LeftOuter,Thigh_LeftInner,Knee_LeftFront,Shin_LeftInner,Shin_LeftOuter,Ankle_LeftInner,Heel_LeftInner,Foot_LeftInner,Pec_Right,Shoulder_RightFront,Bicep_RightFront,Abs_Right,Side_RightFront,ForeArm_RightFront,Wrist_RightFront,Hand_RightFront,Elbow_RightInner,Thigh_RightOuter,Thigh_RightInner,Knee_RightFront,Shin_RightInner,Shin_RightOuter,Ankle_RightInner,Heel_RightInner,Foot_RightInner","http://experimental-instruments.com/BodyFront.html","Anatomy","Sorted"]
[121,"Brain",10,"FrontalLobe,MotorCortex,AuditoryCortex,SomatosensoryCortex,ParietalLobe,TemporalLobe,Wernicke'sArea,OccipitalLobe,Hippocampus,Brainstem","http://experimental-instruments.com/Brain.html","Anatomy","Sorted"]
[122,"Eye",10,"Cornea,Fovea,Iris,Lens,LowerSclera,OpticNerve,Pupil,Retina,UpperSclera,Vitreoushumor","http://experimental-instruments.com/Eye.html","Anatomy","Sorted","Student"]
[123,"Footprint",18,"Freeform18,Freeform19,Freeform20,Freeform21,Freeform22,Freeform23,Freeform24,Freeform25,Freeform29,Freeform54,Freeform56,Freeform57,Freeform58,Freeform59,Freeform60,Freeform61,Freeform62,Freeform63","http://experimental-instruments.com/Footprint.html","Anatomy","Sorted","Student"]
[124,"Frog",25,"Tongue,LeftEye,RightEye,LeftEyeLid,RightEyelid,Brain,LeftEar,RightEar,BrainStem,LeftLung,RightLung,Heart,Liver,Stomach,Pancreas,GallBladder,SmallIntestine,LargeIntestine,Bladder,Cloaca,LeftLeg,RightLeg,RightArm,LeftArm,Head","http://experimental-instruments.com/Frog.html","Anatomy","Sorted"]
[125,"Heart",19,"InferiorVenaCava,SuperiorVenaCava,Aorta,BrachiocephalicTrunk,LeftCommonCarotidArtery,LeftSubclavianArtery,RightPulmonaryArteries,RightPulmonaryVeins,RightAtrium,AtrioventricularValve,RightVentricle,LeftVentricle,LeftPulmonaryVeins,PulmonaryTrunk,LeftPulmonaryArteries,Freeform19,Freeform21,LeftAtrium,Septum","http://experimental-instruments.com/Heart.html","Anatomy","Sorted"]
[126,"Lungs",11,"Apex(L),Apex(R),Body,Bronchioles,Bronchioles(L),MiddleLobe,MiddleLobe2,Neck,SuperiorLobe,SuperiorLobe2,Trachea","http://experimental-instruments.com/Lungs.html","Anatomy","Sorted","Student"]